Workbook

Sheet User Guidance
A7: Tool version | B7: v3.0
A8: Date of issue | B8: 2021-10-08
A9: Tool developed by | B9: Vaibhav Gaikwad Sazal Kundu Ben Hale
A10: Tool reviewed by | B10: Jonas Bengtsson

Sheet New materials (hidden)
A2: Additional materials
A3: Lime | B3: Wearing-course
A4: Cement | B4: Wearing-course
A6: Plastics | B6: Sub-base | C6: X
A7: Toner | B7: Sub-base | C7: X
A8: Waste tyre | B8: Sub-base | C8: X
A10: Reclaimed Asphalt Pavement (RAP) | B10: Sub-base | C10: Base-course
A11: Crushed brick | B11: Sub-base | C11: Base-course
A12: Tile | B12: Sub-base | C12: Base-course

Sheet MACC draft (hidden)
A1: Material/Transport/Utility | B1: Option 1 | D1: Option 2
B2: Carbon abated per FU (kg CO2 eq.) | C2: Abatement cost ($/tonne CO2 eq.) | D2: Carbon abated per FU (kg CO2 eq.) | E2: Abatement cost ($/tonne CO2 eq.)
A3: Aggregates-coarse
A4: Aggregates-fine
A5: Bitumen
A6: Cement
A7: Crushed brick
A8: Fly ash
A9: Glass
A10: Lime
A11: Natural gravel
A12: Plastics
A13: RAP
A14: Recycled concrete
A15: Recycled tile
A16: Sand
A17: Stabilised gravel
A18: Toner
A19: Transport
A20: Waste tyre
C25: Carbon conditionality
A26: 1 | B26: Option 1 - details - materials/ transport etc | C26: Option 1 overall < BAU, materials and others<BAU | D26: No cost, no display
A27: 2 | B27: Option 2 - details - materials/ transport etc | C27: Option 2 overall < BAU, materials and others<BAU | D27: No cost, no display
A28: 3 | B28: Option 1 and 2 - overall
A29: 4 | B29: Offset cost vs inititaive cost

Sheet Draft table (hidden)
C2: Baseline | D2: Option 1 | E2: Option 2
B3: Carbon footprint | C3: 2000 | D3: 700 | E3: 1222
B4: Project cost | C4: 200000 | D4: 170000 | E4: 350000
B5: Carbon abatement cost | C5: =SUM(C6:C7) -> 0
B6: Offset
B7: Initiative

Sheet Input and Dasboard_draft
A1: General Inputs
A2: Road structure | B2: Unit | C2: Baseline | D2: Option 1 | E2: Option 2
A3: Wearing course thickness | B3: mm | C3: 50 | D3: 150 | E3: 175 | T3: ="Functional Unit (FU) = 1 km of"&" "&$C$7&"-lane paved road" -> Functional Unit (FU) = 1 km of 2-lane paved road
A4: Base course thickness | B4: mm | C4: 150 | D4: 200 | E4: 0
A5: Sub-base course thickness | B5: mm | C5: 365 | D5: 150 | E5: 200
A6: Width of 1 lane | B6: m | C6: 5.1 | D6: 5.1 | E6: 5.1
A7: Number of lanes | B7: no. | C7: 2 | D7: 2 | E7: 2
A15: Customisation - Road layer composition
A16: Road layer | B16: Materials | C16: Baseline | E16: Option 1 | G16: Option 2 | I16: Unit
C17: Weight (%) | D17: t/ FU | E17: Weight (%) | F17: t / FU | G17: Weight (%) | H17: t/ FU
A18: Wearing course - Asphalt mix | B18: Bitumen | C18: 0.04 | D18: =C18*'LCI and calculations'!$B$85 -> 48.96 | E18: 0.04 | F18: =E18*'LCI and calculations'!$C$85 -> 146.88 | G18: 0.04 | H18: =G18*'LCI and calculations'!$D$85 -> 171.36 | I18: Weight %
B19: RAP | C19: 0.3 | D19: =C19*'LCI and calculations'!$B$85 -> 367.2 | E19: 0.3 | F19: =E19*'LCI and calculations'!$C$85 -> 1101.6 | G19: 0.3 | H19: =G19*'LCI and calculations'!$D$85 -> 1285.2
B20: Aggregates-fine | C20: 0.19 | D20: =C20*'LCI and calculations'!$B$85 -> 232.56 | E20: 0.19 | F20: =E20*'LCI and calculations'!$C$85 -> 697.68 | G20: 0.19 | H20: =G20*'LCI and calculations'!$D$85 -> 813.96
B21: Aggregates-coarse | C21: 0.12 | D21: =C21*'LCI and calculations'!$B$85 -> 146.88 | E21: 0.12 | F21: =E21*'LCI and calculations'!$C$85 -> 440.64 | G21: 0.12 | H21: =G21*'LCI and calculations'!$D$85 -> 514.08
B22: Sand | C22: 0.35 | D22: =C22*'LCI and calculations'!$B$85 -> 428.4 | E22: 0.3 | F22: =E22*'LCI and calculations'!$C$85 -> 1101.6 | G22: 0.3 | H22: =G22*'LCI and calculations'!$D$85 -> 1285.2
B23: Glass | C23: 0 | D23: =C23*'LCI and calculations'!$B$85 -> 0 | E23: 0 | F23: =E23*'LCI and calculations'!$C$85 -> 0 | G23: 0 | H23: =G23*'LCI and calculations'!$D$85 -> 0
B24: Plastics | C24: 0 | D24: =C24*'LCI and calculations'!$B$85 -> 0 | E24: 0 | F24: =E24*'LCI and calculations'!$C$85 -> 0 | G24: 0 | H24: =G24*'LCI and calculations'!$D$85 -> 0
B25: Toner | C25: 0 | D25: =C25*'LCI and calculations'!$B$85 -> 0 | E25: 0.05 | F25: =E25*'LCI and calculations'!$C$85 -> 183.6 | G25: 0.05 | H25: =G25*'LCI and calculations'!$D$85 -> 214.2
B26: Fly ash | C26: 0 | D26: =C26*'LCI and calculations'!$B$85 -> 0 | E26: 0 | F26: =E26*'LCI and calculations'!$C$85 -> 0 | G26: 0 | H26: =G26*'LCI and calculations'!$D$85 -> 0
B27: Recycled concrete | C27: 0 | D27: =C27*'LCI and calculations'!$B$85 -> 0 | E27: 0 | F27: =E27*'LCI and calculations'!$C$85 -> 0 | G27: 0 | H27: =G27*'LCI and calculations'!$D$85 -> 0
B28: Waste tyre | C28: 0 | D28: =C28*'LCI and calculations'!$B$85 -> 0 | E28: 0 | F28: =E28*'LCI and calculations'!$C$85 -> 0 | G28: 0 | H28: =G28*'LCI and calculations'!$D$85 -> 0
B29: Lime | C29: 0 | D29: =C29*'LCI and calculations'!$B$85 -> 0 | E29: 0 | F29: =E29*'LCI and calculations'!$C$85 -> 0 | G29: 0 | H29: =G29*'LCI and calculations'!$D$85 -> 0
B30: Cement | C30: 0 | D30: =C30*'LCI and calculations'!$B$85 -> 0 | E30: 0 | F30: =E30*'LCI and calculations'!$C$85 -> 0 | G30: 0 | H30: =G30*'LCI and calculations'!$D$85 -> 0
A32: Base course | B32: Stabilised gravel | C32: 0.92 | D32: =C32*'LCI and calculations'!$B$86 -> 2252.16 | E32: 0.92 | F32: =E32*'LCI and calculations'!$C$86 -> 3002.88 | G32: 0.92 | H32: =G32*'LCI and calculations'!$D$86 -> 0 | I32: Weight %
B33: Glass | C33: 0.03 | D33: =C33*'LCI and calculations'!$B$86 -> 73.44 | E33: 0.03 | F33: =E33*'LCI and calculations'!$C$86 -> 97.92 | G33: 0.03 | H33: =G33*'LCI and calculations'!$D$86 -> 0
B34: Plastics | C34: 0.04 | D34: =C34*'LCI and calculations'!$B$86 -> 97.92 | E34: 0.04 | F34: =E34*'LCI and calculations'!$C$86 -> 130.56 | G34: 0.04 | H34: =G34*'LCI and calculations'!$D$86 -> 0
B35: Toner | C35: 0 | D35: =C35*'LCI and calculations'!$B$86 -> 0 | E35: 0 | F35: =E35*'LCI and calculations'!$C$86 -> 0 | G35: 0 | H35: =G35*'LCI and calculations'!$D$86 -> 0
B36: Fly ash | C36: 0.01 | D36: =C36*'LCI and calculations'!$B$86 -> 24.48 | E36: 0.01 | F36: =E36*'LCI and calculations'!$C$86 -> 32.64 | G36: 0.01 | H36: =G36*'LCI and calculations'!$D$86 -> 0
B37: Recycled concrete | C37: 0 | D37: =C37*'LCI and calculations'!$B$86 -> 0 | E37: 0 | F37: =E37*'LCI and calculations'!$C$86 -> 0 | G37: 0 | H37: =G37*'LCI and calculations'!$D$86 -> 0
B38: Waste tyre | C38: 0 | D38: =C38*'LCI and calculations'!$B$86 -> 0 | E38: 0 | F38: =E38*'LCI and calculations'!$C$86 -> 0 | G38: 0 | H38: =G38*'LCI and calculations'!$D$86 -> 0
B39: RAP | C39: 0 | D39: =C39*'LCI and calculations'!$B$86 -> 0 | E39: 0 | F39: =E39*'LCI and calculations'!$C$86 -> 0 | G39: 0 | H39: =G39*'LCI and calculations'!$D$86 -> 0
B40: Crushed brick | C40: 0 | D40: =C40*'LCI and calculations'!$B$86 -> 0 | E40: 0 | F40: =E40*'LCI and calculations'!$C$86 -> 0 | G40: 0 | H40: =G40*'LCI and calculations'!$D$86 -> 0
B41: Recycled tile | C41: 0 | D41: =C41*'LCI and calculations'!$B$86 -> 0 | E41: 0 | F41: =E41*'LCI and calculations'!$C$86 -> 0 | G41: 0 | H41: =G41*'LCI and calculations'!$D$86 -> 0
A43: Sub-base course | B43: Natural gravel | C43: 0.92 | D43: =C43*'LCI and calculations'!$B$87 -> 5480.256 | E43: 0.92 | F43: =E43*'LCI and calculations'!$C$87 -> 2252.16 | G43: 0.92 | H43: =G43*'LCI and calculations'!$D$87 -> 3002.88 | I43: Weight %
B44: Glass | C44: 0.03 | D44: =C44*'LCI and calculations'!$B$87 -> 178.704 | E44: 0.03 | F44: =E44*'LCI and calculations'!$C$87 -> 73.44 | G44: 0.03 | H44: =G44*'LCI and calculations'!$D$87 -> 97.92
B45: Plastics | C45: 0.04 | D45: =C45*'LCI and calculations'!$B$87 -> 238.272 | E45: 0.04 | F45: =E45*'LCI and calculations'!$C$87 -> 97.92 | G45: 0.04 | H45: =G45*'LCI and calculations'!$D$87 -> 130.56
B46: Toner | C46: 0 | D46: =C46*'LCI and calculations'!$B$87 -> 0 | E46: 0 | F46: =E46*'LCI and calculations'!$C$87 -> 0 | G46: 0 | H46: =G46*'LCI and calculations'!$D$87 -> 0
B47: Fly ash | C47: 0.01 | D47: =C47*'LCI and calculations'!$B$87 -> 59.568 | E47: 0.01 | F47: =E47*'LCI and calculations'!$C$87 -> 24.48 | G47: 0.01 | H47: =G47*'LCI and calculations'!$D$87 -> 32.64
B48: Recycled concrete | C48: 0 | D48: =C48*'LCI and calculations'!$B$87 -> 0 | E48: 0 | F48: =E48*'LCI and calculations'!$C$87 -> 0 | G48: 0 | H48: =G48*'LCI and calculations'!$D$87 -> 0
B49: Waste tyre | C49: 0 | D49: =C49*'LCI and calculations'!$B$87 -> 0 | E49: 0 | F49: =E49*'LCI and calculations'!$C$87 -> 0 | G49: 0 | H49: =G49*'LCI and calculations'!$D$87 -> 0
B50: RAP | C50: 0 | D50: =C50*'LCI and calculations'!$B$87 -> 0 | E50: 0 | F50: =E50*'LCI and calculations'!$C$87 -> 0 | G50: 0 | H50: =G50*'LCI and calculations'!$D$87 -> 0
B51: Crushed brick | C51: 0 | D51: =C51*'LCI and calculations'!$B$87 -> 0 | E51: 0 | F51: =E51*'LCI and calculations'!$C$87 -> 0 | G51: 0 | H51: =G51*'LCI and calculations'!$D$87 -> 0
B52: Recycled tile | C52: 0 | D52: =C52*'LCI and calculations'!$B$87 -> 0 | E52: 0 | F52: =E52*'LCI and calculations'!$C$87 -> 0 | G52: 0 | H52: =G52*'LCI and calculations'!$D$87 -> 0
A55: Customisation - Other
A56: Road life span and maintenance | B56: Item | C56: Baseline | D56: Option 1 | E56: Option 2 | I56: Unit
B57: Road life span (years) | C57: 30 | D57: 30 | E57: 30 | I57: years
B58: Number of re-surfacings | C58: 2 | D58: =2/3 -> 0.6666666667 | E58: =50/175*2 -> 0.5714285714 | I58: no.
B59: Replacement rate (%) | C59: 0.01 | D59: 0.01 | E59: 0.01 | I59: per cent
A66: Electricity for material production/ waste processing | B66: Materials | C66: Baseline | D66: Option 1 | E66: Option 2 | I66: Unit
B67: Asphalt | C67: Grid | D67: Grid | E67: Grid | I67: N/A
B68: Fly ash | C68: Grid | D68: Grid | E68: Grid
B69: Glass | C69: Grid | D69: Grid | E69: Grid
B70: Plastics | C70: Grid | D70: Grid | E70: Grid
B71: Recycled concrete | C71: Grid | D71: Grid | E71: Grid
B72: Toner | C72: Grid | D72: Grid | E72: Grid
B73: Waste tyre | C73: Grid | D73: Grid | E73: Grid
B74: Crushed brick | C74: Grid | D74: Grid | E74: Grid
B75: Recycled tile | C75: Grid | D75: Grid | E75: Grid
A81: Transport distance from supplier to construction site (km) | B81: Materials/ equipment | C81: Baseline | D81: Option 1 | E81: Option 2 | I81: Unit
B82: Asphalt | C82: 100 | D82: 100 | E82: 100 | I82: km
B83: Fly ash | C83: 100 | D83: 100 | E83: 100
B84: Glass | C84: 100 | D84: 100 | E84: 100
B85: Natural gravel | C85: 100 | D85: 100 | E85: 100
B86: Plastics | C86: 100 | D86: 100 | E86: 100
B87: Recycled concrete | C87: 100 | D87: 100 | E87: 100
B88: Stabilised gravel | C88: 100 | D88: 100 | E88: 100
B89: Toner | C89: 100 | D89: 100 | E89: 100
B90: Waste tyre | C90: 100 | D90: 100 | E90: 100
B91: Lime | C91: 100 | D91: 100 | E91: 100
B92: Cement | C92: 100 | D92: 100 | E92: 100
B93: RAP | C93: 100 | D93: 100 | E93: 100
B94: Crushed brick | C94: 100 | D94: 100 | E94: 100
B95: Recycled tile | C95: 100 | D95: 100 | E95: 100
B96: Construction equipment | C96: 100 | D96: 100 | E96: 100
A97: End-of-life transport (km) | B97: Transport distance from construction site to waste processing centre | C97: Baseline | D97: Option 1 | E97: Option 2
C98: 50 | D98: 50 | E98: 50
A100: MACC
A102: Carbon offset cost ($/t CO2 eq.) | B102: 17
A104: Do you have cost data for all materials | B104: No
A106: Please insert cost data in the following table:
B108: Item | C108: Baseline | D108: Option 1 | E108: Option 2
B109: =IF(B104="Yes", _xlfn.UNIQUE('MACC assist'!A7:A24), _xlfn.UNIQUE('MACC assist'!G7:G9)) -> Wearing course ($/FU) | C109: 200000 | D109: 110000 | E109: 110000
B110: Base course ($/FU) | C110: 100000 | D110: 100000 | E110: 100000
B111: Subbase course ($/FU) | C111: 30000 | D111: 30000 | E111: 30000
C112: 85 | D112: 90 | E112: 95
C113: 1 | D113: 1.1 | E113: 1.2
C114: 1 | D114: 1.1 | E114: 1.2
C115: 24 | D115: 25 | E115: 26
C116: 100 | D116: 105 | E116: 110
C117: 1 | D117: 1.1 | E117: 1.2
C118: 1 | D118: 1.1 | E118: 1.2
C119: 1 | D119: 1.1 | E119: 1.2
C120: 1 | D120: 1.1 | E120: 1.2
C121: 1 | D121: 1.1 | E121: 1.2
C122: 15 | D122: 20 | E122: 25
C123: 1 | D123: 1.1 | E123: 1.2
C124: 1 | D124: 1.1 | E124: 1.2
C125: 1 | D125: 1.1 | E125: 1.2
C126: 1 | D126: 1 | E126: 1
U147: Baseline | V147: Option 1 | W147: Option 2
S148: Carbon footprint (t CO2 eq.) | U148: ='LCI and calculations'!N36 -> 1024.391085 | V148: ='LCI and calculations'!AJ36 -> 1219.566412 | W148: ='LCI and calculations'!BJ36 -> 1014.596543
S149: Project cost ($) | U149: ='MACC assist'!H21 -> 732000 | V149: ='MACC assist'!I21 -> 314433.3333 | W149: ='MACC assist'!J21 -> 203957.1429
S150: Carbon abatement cost ($) | U150: =U151+U152 -> 17414.64844 | V150: =V151+V152 -> -396834.0377 | W150: -510794.7159
S151: Offset cost ($) | U151: ='MACC assist'!H19 -> 17414.64844 | V151: ='MACC assist'!I19 -> 20732.62901 | W151: ='MACC assist'!J19 -> 17248.14123
S152: Initiative cost ($) | U152: ='MACC assist'!H20 -> 0 | V152: ='MACC assist'!I20 -> -417566.6667 | W152: ='MACC assist'!J20 -> -528042.8571
S157: Total - per lifecycle distribution | AE157: Materials
S160: Global warming potential (t CO2 eq./ FU) | Y160: Water use (m3 / FU) | AE160: Global warming potential (t CO2 eq./ FU) | AK160: Water use (m3 / FU)
S161: Lifecycle stage | U161: Baseline | V161: Option 1 | W161: Option 2 | Y161: Lifecycle stage | AA161: Baseline | AB161: Option 1 | AC161: Option 2 | AE161: Materials | AF161: Baseline | AG161: Option 1 | AH161: Option 2 | AK161: Materials | AL161: Baseline | AM161: Option 1 | AN161: Option 2
S162: Raw materials & manufacturing | T162: A1-A3 | U162: ='LCI and calculations'!N23 -> 268.1625421 | V162: ='LCI and calculations'!AJ23 -> 480.1649232 | W162: ='LCI and calculations'!BJ23 -> 359.7259753 | Y162: Raw materials and manufacturing | Z162: A1-A3 | AA162: ='LCI and calculations'!O23 -> 12.2899326 | AB162: ='LCI and calculations'!AK23 -> 11.21053344 | AC162: ='LCI and calculations'!BK23 -> 8.596485444 | AE162: Aggregates | AF162: ='LCI and calculations'!N42 -> 11.98858 | AG162: ='LCI and calculations'!AJ42 -> 20.03407223 | AH162: ='LCI and calculations'!BJ42 -> 22.04544529 | AK162: Aggregates | AL162: ='LCI and calculations'!O42 -> 1.609743079 | AM162: ='LCI and calculations'!AK42 -> 2.690035777 | AN162: ='LCI and calculations'!BK42 -> 2.960108952
S163: Transport to construction site | T163: A4 | U163: ='LCI and calculations'!N24 -> 175.3302271 | V163: ='LCI and calculations'!AJ24 -> 170.8929557 | W163: ='LCI and calculations'!BJ24 -> 137.6134195 | Y163: Transport to construction site | Z163: A4 | AA163: ='LCI and calculations'!O24 -> 0.9255295352 | AB163: ='LCI and calculations'!AK24 -> 0.9021061593 | AC163: ='LCI and calculations'!BK24 -> 0.7264308402 | AE163: Bitumen | AF163: ='LCI and calculations'!N43 -> 82.18608801 | AG163: ='LCI and calculations'!AJ43 -> 137.3408713 | AH163: ='LCI and calculations'!BJ43 -> 151.1295672 | AK163: Bitumen | AL163: ='LCI and calculations'!O43 -> 0.08711855442 | AM163: ='LCI and calculations'!AK43 -> 0.1455834979 | AN163: ='LCI and calculations'!BK43 -> 0.1601997338
S164: Construction | T164: A5 | U164: ='LCI and calculations'!N25 -> 42.55647331 | V164: ='LCI and calculations'!AJ25 -> 44.7632476 | W164: ='LCI and calculations'!BJ25 -> 37.7701326 | Y164: Construction | Z164: A5 | AA164: ='LCI and calculations'!O25 -> 0.1542961124 | AB164: ='LCI and calculations'!AK25 -> 0.1911553142 | AC164: ='LCI and calculations'!BK25 -> 0.1756412725 | AE164: Fly ash | AF164: ='LCI and calculations'!N44 -> 0 | AG164: ='LCI and calculations'!AJ44 -> 0 | AH164: ='LCI and calculations'!BJ44 -> 0 | AK164: Fly ash | AL164: ='LCI and calculations'!O44 -> 0 | AM164: ='LCI and calculations'!AK44 -> 0 | AN164: ='LCI and calculations'!BK44 -> 0
S165: Use and Maintenance | T165: B1 | U165: ='LCI and calculations'!N26 -> 0 | V165: ='LCI and calculations'!AJ26 -> 0 | W165: ='LCI and calculations'!BJ26 -> 0 | Y165: Use and Maintenance | Z165: B1 | AA165: ='LCI and calculations'!O26 -> 0 | AB165: ='LCI and calculations'!AK26 -> 0 | AC165: ='LCI and calculations'!BK26 -> 0 | AE165: Glass | AF165: ='LCI and calculations'!N45 -> 1.015493495 | AG165: ='LCI and calculations'!AJ45 -> 0.6901412102 | AH165: ='LCI and calculations'!BJ45 -> 0.3943664058 | AK165: Glass | AL165: ='LCI and calculations'!O45 -> 0.001508428787 | AM165: ='LCI and calculations'!AK45 -> 0.001025145778 | AN165: ='LCI and calculations'!BK45 -> 0.0005857975872
T166: B2 | U166: ='LCI and calculations'!N27 -> 3.001683249 | V166: ='LCI and calculations'!AJ27 -> 9.005049747 | W166: ='LCI and calculations'!BJ27 -> 10.50589137 | Z166: B2 | AA166: ='LCI and calculations'!O27 -> 0.160173208 | AB166: ='LCI and calculations'!AK27 -> 0.480519624 | AC166: ='LCI and calculations'!BK27 -> 0.560606228 | AE166: Natural gravel | AF166: ='LCI and calculations'!N46 -> 36.54182145 | AG166: ='LCI and calculations'!AJ46 -> 15.0171869 | AH166: ='LCI and calculations'!BJ46 -> 20.02291586 | AK166: Natural gravel | AL166: ='LCI and calculations'!O46 -> 7.720680557 | AM166: ='LCI and calculations'!AK46 -> 3.172882421 | AN166: ='LCI and calculations'!BK46 -> 4.230509894
T167: B3 | U167: ='LCI and calculations'!N28 -> 0.8536693994 | V167: ='LCI and calculations'!AJ28 -> 3.01488085 | W167: ='LCI and calculations'!BJ28 -> 3.517360991 | Z167: B3 | AA167: ='LCI and calculations'!O28 -> 0.01330263245 | AB167: ='LCI and calculations'!AK28 -> 0.03829253343 | AC167: ='LCI and calculations'!BK28 -> 0.04467462233 | AE167: Plastics | AF167: ='LCI and calculations'!N47 -> 29.52808258 | AG167: ='LCI and calculations'!AJ47 -> 20.06762894 | AH167: ='LCI and calculations'!BJ47 -> 11.46721654 | AK167: Plastics | AL167: ='LCI and calculations'!O47 -> 0.0723329359 | AM167: ='LCI and calculations'!AK47 -> 0.04915830595 | AN167: ='LCI and calculations'!BK47 -> 0.02809046054
T168: B4 | U168: ='LCI and calculations'!N29 -> 215.1065947 | V168: ='LCI and calculations'!AJ29 -> 245.3647715 | W168: ='LCI and calculations'!BJ29 -> 245.3647715 | Z168: B4 | AA168: ='LCI and calculations'!O29 -> 2.89476025 | AB168: ='LCI and calculations'!AK29 -> 2.787069321 | AC168: ='LCI and calculations'!BK29 -> 2.787069321 | AE168: RAP | AF168: ='LCI and calculations'!N48 -> 3.913794236 | AG168: ='LCI and calculations'!AJ48 -> 6.540327246 | AH168: ='LCI and calculations'!BJ48 -> 7.196960498 | AK168: RAP | AL168: ='LCI and calculations'!O48 -> 0.01071515059 | AM168: ='LCI and calculations'!AK48 -> 0.01790604899 | AN168: ='LCI and calculations'!BK48 -> 0.01970377359
S169: End-of-Life | T169: C1 | U169: ='LCI and calculations'!N30 -> 60.90470713 | V169: ='LCI and calculations'!AJ30 -> 59.79473272 | W169: ='LCI and calculations'!BJ30 -> 50.57577857 | Y169: End-of-Life | Z169: C1 | AA169: ='LCI and calculations'!O30 -> 0.3132847898 | AB169: ='LCI and calculations'!AK30 -> 0.3075752459 | AC169: ='LCI and calculations'!BK30 -> 0.2601543116 | AE169: Recycled concrete | AF169: ='LCI and calculations'!N49 -> 0 | AG169: ='LCI and calculations'!AJ49 -> 0 | AH169: ='LCI and calculations'!BJ49 -> 0 | AK169: Recycled concrete | AL169: ='LCI and calculations'!O49 -> 0 | AM169: ='LCI and calculations'!AK49 -> 0 | AN169: ='LCI and calculations'!BK49 -> 0
T170: C2 | U170: ='LCI and calculations'!N31 -> 328.6908851 | V170: ='LCI and calculations'!AJ31 -> 179.2780937 | W170: ='LCI and calculations'!BJ31 -> 142.9725849 | Z170: C2 | AA170: ='LCI and calculations'!O31 -> 1.735086568 | AB170: ='LCI and calculations'!AK31 -> 0.9463694505 | AC170: ='LCI and calculations'!BK31 -> 0.7547206903 | AE170: Sand | AF170: ='LCI and calculations'!N50 -> 6.4822665 | AG170: ='LCI and calculations'!AJ50 -> 9.284993022 | AH170: ='LCI and calculations'!BJ50 -> 10.21718417 | AK170: Sand | AL170: ='LCI and calculations'!O50 -> 1.814052152 | AM170: ='LCI and calculations'!AK50 -> 2.59839079 | AN170: ='LCI and calculations'!BK50 -> 2.859263026
T171: C3 | U171: ='LCI and calculations'!N32 -> 42.80757619 | V171: ='LCI and calculations'!AJ32 -> 42.02741787 | W171: ='LCI and calculations'!BJ32 -> 35.54776956 | Z171: C3 | AA171: ='LCI and calculations'!O32 -> 0.1171981955 | AB171: ='LCI and calculations'!AK32 -> 0.1150622851 | AC171: ='LCI and calculations'!BK32 -> 0.0973223625 | AE171: Stabilised gravel | AF171: ='LCI and calculations'!N51 -> 122.5372397 | AG171: ='LCI and calculations'!AJ51 -> 163.3829862 | AH171: ='LCI and calculations'!BJ51 -> 0 | AK171: Stabilised gravel | AL171: ='LCI and calculations'!O51 -> 3.202336845 | AM171: ='LCI and calculations'!AK51 -> 4.26978246 | AN171: ='LCI and calculations'!BK51 -> 0
T172: C4 | U172: ='LCI and calculations'!N33 -> 0 | V172: ='LCI and calculations'!AJ33 -> 0 | W172: ='LCI and calculations'!BJ33 -> 0 | Z172: C4 | AA172: ='LCI and calculations'!O33 -> 0 | AB172: ='LCI and calculations'!AK33 -> 0 | AC172: ='LCI and calculations'!BK33 -> 0 | AE172: Toner | AF172: ='LCI and calculations'!N52 -> 0 | AG172: ='LCI and calculations'!AJ52 -> 77.64681337 | AH172: ='LCI and calculations'!BJ52 -> 85.44236819 | AK172: Toner | AL172: ='LCI and calculations'!O52 -> 0 | AM172: ='LCI and calculations'!AK52 -> 0.1622224456 | AN172: ='LCI and calculations'!BK52 -> 0.1785091921
S173: Recycling Benefits | T173: D | U173: ='LCI and calculations'!N34 -> -113.0232736 | V173: ='LCI and calculations'!AJ34 -> -14.73966043 | W173: ='LCI and calculations'!BJ34 -> -8.997141201 | Y173: Recycling Benefits | Z173: D | AA173: ='LCI and calculations'!O34 -> -4.383513441 | AB173: ='LCI and calculations'!AK34 -> -3.105730023 | AC173: ='LCI and calculations'!BK34 -> -2.959746814 | AE173: Waste tyre | AF173: ='LCI and calculations'!N53 -> 0 | AG173: ='LCI and calculations'!AJ53 -> 0 | AH173: ='LCI and calculations'!BJ53 -> 0 | AK173: Waste tyre | AL173: ='LCI and calculations'!O53 -> 0 | AM173: ='LCI and calculations'!AK53 -> 0 | AN173: ='LCI and calculations'!BK53 -> 0
S174: Total | U174: =SUM(U162:U173) -> 1024.391085 | V174: =SUM(V162:V173) -> 1219.566412 | W174: =SUM(W162:W173) -> 1014.596543 | Y174: Total | AA174: =SUM(AA162:AA173) -> 14.22005045 | AB174: =SUM(AB162:AB173) -> 13.87295335 | AC174: =SUM(AC162:AC173) -> 11.04335828 | AE174: Total | AF174: =SUM(AF162:AF173) -> 294.193366 | AG174: =SUM(AG162:AG173) -> 450.0050205 | AH174: =SUM(AH162:AH173) -> 307.9160241 | AK174: Total | AL174: =SUM(AL162:AL173) -> 14.5184877 | AM174: =SUM(AM162:AM173) -> 13.10698689 | AN174: =SUM(AN162:AN173) -> 10.43697083
V175: =ROUND(V174,0)&" " & "| change compared to baseline="&ROUND(((V174-$U$174)/$U$174)*100,0)&"%" -> 1220 | change compared to baseline=19% | W175: =ROUND(W174,0)&" " & "| change compared to baseline="&ROUND(((W174-$U$174)/$U$174)*100,0)&"%" -> 1015 | change compared to baseline=-1% | AA175: =AA174 -> 14.22005045 | AB175: =ROUND(AB174,1)&" " & "| change compared to baseline="&ROUND(((AB174-$AA$174)/$AA$174)*100,0)&"%" -> 13.9 | change compared to baseline=-2% | AC175: =ROUND(AC174,1)&" " & "| change compared to baseline="&ROUND(((AC174-$AA$174)/$AA$174)*100,0)&"%" -> 11 | change compared to baseline=-22% | AF175: =AF174 -> 294.193366 | AG175: =ROUND(AG174,0)&" " & "| change compared to baseline="&ROUND(((AG174-$AF$174)/$AF$174)*100,0)&"%" -> 450 | change compared to baseline=53% | AH175: =ROUND(AH174,0)&" " & "| change compared to baseline="&ROUND(((AH174-$AF$174)/$AF$174)*100,0)&"%" -> 308 | change compared to baseline=5% | AL175: =AL174 -> 14.5184877 | AM175: =ROUND(AM174,0)&" " & "| change compared to baseline="&ROUND(((AM174-$AL$174)/$AL$174)*100,0)&"%" -> 13 | change compared to baseline=-10% | AN175: =ROUND(AN174,0)&" " & "| change compared to baseline="&ROUND(((AN174-$AL$174)/$AL$174)*100,0)&"%" -> 10 | change compared to baseline=-28%
S182: Terrestrial ecotoxicity (t 1,4 - DCB/ FU) | Y182: Freshwater ecotoxicity (t 1,4 - DCB/ FU) | AE182: Terrestrial ecotoxicity (t 1,4 - DCB/ FU) | AK182: Freshwater ecotoxicity (t 1,4 - DCB/ FU)
S183: Lifecycle stage | U183: Baseline | V183: Option 1 | W183: Option 2 | Y183: Lifecycle stage | AA183: Baseline | AB183: Option 1 | AC183: Option 2 | AE183: Materials | AF183: Baseline | AG183: Option 1 | AH183: Option 2 | AK183: Materials | AL183: Baseline | AM183: Option 1 | AN183: Option 2
S184: Raw materials and manufacturing | T184: A1-A3 | U184: ='LCI and calculations'!P23 -> 286.2740976 | V184: ='LCI and calculations'!AL23 -> 428.191666 | W184: ='LCI and calculations'!BL23 -> 245.5868922 | Y184: Raw materials and manufacturing | Z184: A1-A3 | AA184: ='LCI and calculations'!Q23 -> 2.697783558 | AB184: ='LCI and calculations'!AM23 -> 5.538859183 | AC184: ='LCI and calculations'!BM23 -> 5.616136425 | AE184: Aggregates | AF184: ='LCI and calculations'!P42 -> 19.27338162 | AG184: ='LCI and calculations'!AL42 -> 32.2076776 | AH184: ='LCI and calculations'!BL42 -> 35.44125159 | AK184: Aggregates | AL184: ='LCI and calculations'!Q42 -> 0.1825497033 | AM184: ='LCI and calculations'!AM42 -> 0.3050581421 | AN184: ='LCI and calculations'!BM42 -> 0.3356852518
S185: Transport to construction site | T185: A4 | U185: ='LCI and calculations'!P24 -> 174.3487571 | V185: ='LCI and calculations'!AL24 -> 169.9363248 | W185: ='LCI and calculations'!BL24 -> 136.8430821 | Y185: Transport to construction site | Z185: A4 | AA185: ='LCI and calculations'!Q24 -> 1.381938814 | AB185: ='LCI and calculations'!AM24 -> 1.346964595 | AC185: ='LCI and calculations'!BM24 -> 1.084657956 | AE185: Bitumen | AF185: ='LCI and calculations'!P43 -> 39.35083101 | AG185: ='LCI and calculations'!AL43 -> 65.7590299 | AH185: ='LCI and calculations'!BL43 -> 72.36107962 | AK185: Bitumen | AL185: ='LCI and calculations'!Q43 -> 3.069917443 | AM185: ='LCI and calculations'!AM43 -> 5.130127821 | AN185: ='LCI and calculations'!BM43 -> 5.645180415
S186: Construction | T186: A5 | U186: ='LCI and calculations'!P25 -> 35.46246652 | V186: ='LCI and calculations'!AL25 -> 36.5188775 | W186: ='LCI and calculations'!BL25 -> 30.4246524 | Y186: Construction | Z186: A5 | AA186: ='LCI and calculations'!Q25 -> 0.08465856626 | AB186: ='LCI and calculations'!AM25 -> 0.09554479848 | AC186: ='LCI and calculations'!BM25 -> 0.08384848172 | AE186: Fly ash | AF186: ='LCI and calculations'!P44 -> 0 | AG186: ='LCI and calculations'!AL44 -> 0 | AH186: ='LCI and calculations'!BL44 -> 0 | AK186: Fly ash | AL186: ='LCI and calculations'!Q44 -> 0 | AM186: ='LCI and calculations'!AM44 -> 0 | AN186: ='LCI and calculations'!BM44 -> 0
S187: Use and Maintenance | T187: B1 | U187: ='LCI and calculations'!P26 -> 0 | V187: ='LCI and calculations'!AL26 -> 0 | W187: ='LCI and calculations'!BL26 -> 0 | Y187: Use and Maintenance | Z187: B1 | AA187: ='LCI and calculations'!Q26 -> 0 | AB187: ='LCI and calculations'!AM26 -> 0 | AC187: ='LCI and calculations'!BM26 -> 0 | AE187: Glass | AF187: ='LCI and calculations'!P45 -> 0.5553688696 | AG187: ='LCI and calculations'!AL45 -> 0.3774351541 | AH187: ='LCI and calculations'!BL45 -> 0.2156772309 | AK187: Glass | AL187: ='LCI and calculations'!Q45 -> 0.0106751055 | AM187: ='LCI and calculations'!AM45 -> 0.007254926068 | AN187: ='LCI and calculations'!BM45 -> 0.004145672039
T188: B2 | U188: ='LCI and calculations'!P27 -> 2.775594345 | V188: ='LCI and calculations'!AL27 -> 8.326783036 | W188: ='LCI and calculations'!BL27 -> 9.714580209 | Z188: B2 | AA188: ='LCI and calculations'!Q27 -> 0.01553807641 | AB188: ='LCI and calculations'!AM27 -> 0.04661422922 | AC188: ='LCI and calculations'!BM27 -> 0.05438326742 | AE188: Natural gravel | AF188: ='LCI and calculations'!P46 -> 58.35953112 | AG188: ='LCI and calculations'!AL46 -> 23.98336895 | AH188: ='LCI and calculations'!BL46 -> 31.97782527 | AK188: Natural gravel | AL188: ='LCI and calculations'!Q46 -> 0.5525514694 | AM188: ='LCI and calculations'!AM46 -> 0.2270759463 | AN188: ='LCI and calculations'!BM46 -> 0.3027679284
T189: B3 | U189: ='LCI and calculations'!P28 -> 0.5257472336 | V189: ='LCI and calculations'!AL28 -> 1.924658933 | W189: ='LCI and calculations'!BL28 -> 2.245435422 | Z189: B3 | AA189: ='LCI and calculations'!Q28 -> 0.01331856871 | AB189: ='LCI and calculations'!AM28 -> 0.04485750108 | AC189: ='LCI and calculations'!BM28 -> 0.05233375126 | AE189: Plastics | AF189: ='LCI and calculations'!P47 -> 19.5211354 | AG189: ='LCI and calculations'!AL47 -> 13.26679105 | AH189: ='LCI and calculations'!BL47 -> 7.581023455 | AK189: Plastics | AL189: ='LCI and calculations'!Q47 -> 0.3429399113 | AM189: ='LCI and calculations'!AM47 -> 0.2330659592 | AN189: ='LCI and calculations'!BM47 -> 0.1331805481
T190: B4 | U190: ='LCI and calculations'!P29 -> 149.2737703 | V190: ='LCI and calculations'!AL29 -> 172.4349191 | W190: ='LCI and calculations'!BL29 -> 172.4349191 | Z190: B4 | AA190: ='LCI and calculations'!Q29 -> 3.013455928 | AB190: ='LCI and calculations'!AM29 -> 3.340242258 | AC190: ='LCI and calculations'!BM29 -> 3.340242258 | AE190: RAP | AF190: ='LCI and calculations'!P48 -> 3.297724797 | AG190: ='LCI and calculations'!AL48 -> 5.510815857 | AH190: ='LCI and calculations'!BL48 -> 6.064088622 | AK190: RAP | AL190: ='LCI and calculations'!Q48 -> 0.007454026542 | AM190: ='LCI and calculations'!AM48 -> 0.01245639651 | AN190: ='LCI and calculations'!BM48 -> 0.01370698901
S191: End-of-Life | T191: C1 | U191: ='LCI and calculations'!P30 -> 51.35894104 | V191: ='LCI and calculations'!AL30 -> 50.42293604 | W191: ='LCI and calculations'!BL30 -> 42.64889451 | Y191: End-of-Life | Z191: C1 | AA191: ='LCI and calculations'!Q30 -> 0.1177373574 | AB191: ='LCI and calculations'!AM30 -> 0.1155916208 | AC191: ='LCI and calculations'!BM30 -> 0.097770087 | AE191: Recycled concrete | AF191: ='LCI and calculations'!P49 -> 0 | AG191: ='LCI and calculations'!AL49 -> 0 | AH191: ='LCI and calculations'!BL49 -> 0 | AK191: Recycled concrete | AL191: ='LCI and calculations'!Q49 -> 0 | AM191: ='LCI and calculations'!AM49 -> 0 | AN191: ='LCI and calculations'!BM49 -> 0
T192: C2 | U192: ='LCI and calculations'!P31 -> 326.8509272 | V192: ='LCI and calculations'!AL31 -> 178.2745242 | W192: ='LCI and calculations'!BL31 -> 142.1722477 | Z192: C2 | AA192: ='LCI and calculations'!Q31 -> 2.590715242 | AB192: ='LCI and calculations'!AM31 -> 1.413055582 | AC192: ='LCI and calculations'!BM31 -> 1.126898468 | AE192: Sand | AF192: ='LCI and calculations'!P50 -> 10.35309695 | AG192: ='LCI and calculations'!AL50 -> 14.82944784 | AH192: ='LCI and calculations'!BL50 -> 16.31828903 | AK192: Sand | AL192: ='LCI and calculations'!Q50 -> 0.09700974205 | AM192: ='LCI and calculations'!AM50 -> 0.1389536789 | AN192: ='LCI and calculations'!BM50 -> 0.1529042968
T193: C3 | U193: ='LCI and calculations'!P32 -> 36.06924527 | V193: ='LCI and calculations'!AL32 -> 35.41189149 | W193: ='LCI and calculations'!BL32 -> 29.95220317 | Z193: C3 | AA193: ='LCI and calculations'!Q32 -> 0.08152927567 | AB193: ='LCI and calculations'!AM32 -> 0.08004342319 | AC193: ='LCI and calculations'!BM32 -> 0.06770259291 | AE193: Stabilised gravel | AF193: ='LCI and calculations'!P51 -> 160.6151034 | AG193: ='LCI and calculations'!AL51 -> 214.1534712 | AH193: ='LCI and calculations'!BL51 -> 0 | AK193: Stabilised gravel | AL193: ='LCI and calculations'!Q51 -> 0.4761410145 | AM193: ='LCI and calculations'!AM51 -> 0.634854686 | AN193: ='LCI and calculations'!BM51 -> 0
T194: C4 | U194: ='LCI and calculations'!P33 -> 0 | V194: ='LCI and calculations'!AL33 -> 0 | W194: ='LCI and calculations'!BL33 -> 0 | Z194: C4 | AA194: ='LCI and calculations'!Q33 -> 0 | AB194: ='LCI and calculations'!AM33 -> 0 | AC194: ='LCI and calculations'!BM33 -> 0 | AE194: Toner | AF194: ='LCI and calculations'!P52 -> 0 | AG194: ='LCI and calculations'!AL52 -> 60.72186387 | AH194: ='LCI and calculations'!BL52 -> 66.81819414 | AK194: Toner | AL194: ='LCI and calculations'!Q52 -> 0 | AM194: ='LCI and calculations'!AM52 -> 0.8450265663 | AN194: ='LCI and calculations'!BM52 -> 0.9298652176
S195: Recycling Benefits | T195: D | U195: ='LCI and calculations'!P34 -> -97.95463694 | V195: ='LCI and calculations'!AL34 -> -35.78722952 | W195: ='LCI and calculations'!BL34 -> -32.18859131 | Y195: Recycling Benefits | Z195: D | AA195: ='LCI and calculations'!Q34 -> -0.7673586158 | AB195: ='LCI and calculations'!AM34 -> -0.3411373584 | AC195: ='LCI and calculations'!BM34 -> -0.3161170645 | AE195: Waste tyre | AF195: ='LCI and calculations'!P53 -> 0 | AG195: ='LCI and calculations'!AL53 -> 0 | AH195: ='LCI and calculations'!BL53 -> 0 | AK195: Waste tyre | AL195: ='LCI and calculations'!Q53 -> 0 | AM195: ='LCI and calculations'!AM53 -> 0 | AN195: ='LCI and calculations'!BM53 -> 0
S196: Total | U196: =SUM(U184:U195) -> 964.9849097 | V196: =SUM(V184:V195) -> 1045.655352 | W196: =SUM(W184:W195) -> 779.8343155 | Y196: Total | AA196: =SUM(AA184:AA195) -> 9.22931677 | AB196: =SUM(AB184:AB195) -> 11.68063583 | AC196: =SUM(AC184:AC195) -> 11.20785622 | AE196: Total | AF196: =SUM(AF184:AF195) -> 311.3261731 | AG196: =SUM(AG184:AG195) -> 430.8099014 | AH196: =SUM(AH184:AH195) -> 236.777429 | AK196: Total | AL196: =SUM(AL184:AL195) -> 4.739238416 | AM196: =SUM(AM184:AM195) -> 7.533874122 | AN196: =SUM(AN184:AN195) -> 7.517436319
S199: Marine ecotoxicity (t 1,4 - DCB/ FU) | Y199: Human carcinogenic toxicity (t 1,4 - DCB/ FU) | AE199: Marine ecotoxicity (t 1,4 - DCB/ FU) | AK199: Human carcinogenic toxicity (t 1,4 - DCB/ FU)
S200: Lifecycle stage | U200: Baseline | V200: Option 1 | W200: Option 2 | Y200: Lifecycle stage | AA200: Baseline | AB200: Option 1 | AC200: Option 2 | AE200: Materials | AF200: Baseline | AG200: Option 1 | AH200: Option 2 | AK200: Materials | AL200: Baseline | AM200: Option 1 | AN200: Option 2
S201: Raw materials and manufacturing | T201: A1-A3 | U201: ='LCI and calculations'!R23 -> 3.864647232 | V201: ='LCI and calculations'!AN23 -> 7.845285013 | W201: ='LCI and calculations'!BN23 -> 7.861826559 | Y201: Raw materials and manufacturing | Z201: A1-A3 | AA201: ='LCI and calculations'!S23 -> 4.236650436 | AB201: ='LCI and calculations'!AO23 -> 6.869921126 | AC201: ='LCI and calculations'!BO23 -> 6.322754801 | AE201: Aggregates | AF201: ='LCI and calculations'!R42 -> 0.2631551975 | AG201: ='LCI and calculations'!AN42 -> 0.4397576888 | AH201: ='LCI and calculations'!BN42 -> 0.4839083117 | AK201: Aggregates | AL201: ='LCI and calculations'!S42 -> 0.4851122352 | AM201: ='LCI and calculations'!AO42 -> 0.8106692834 | AN201: ='LCI and calculations'!BO42 -> 0.8920585454
S202: Transport to construction site | T202: A4 | U202: ='LCI and calculations'!R24 -> 2.203121713 | V202: ='LCI and calculations'!AN24 -> 2.147364932 | W202: ='LCI and calculations'!BN24 -> 1.729189071 | Y202: Transport to construction site | Z202: A4 | AA202: ='LCI and calculations'!S24 -> 7.258150885 | AB202: ='LCI and calculations'!AO24 -> 7.074461019 | AC202: ='LCI and calculations'!BO24 -> 5.696787023 | AE202: Bitumen | AF202: ='LCI and calculations'!R43 -> 4.163522487 | AG202: ='LCI and calculations'!AN43 -> 6.957647212 | AH202: ='LCI and calculations'!BN43 -> 7.656178394 | AK202: Bitumen | AL202: ='LCI and calculations'!S43 -> 0.5437734723 | AM202: ='LCI and calculations'!AO43 -> 0.9086978623 | AN202: ='LCI and calculations'!BO43 -> 0.9999289598
S203: Construction | T203: A5 | U203: ='LCI and calculations'!R25 -> 0.1866424721 | V203: ='LCI and calculations'!AN25 -> 0.2013342444 | W203: ='LCI and calculations'!BN25 -> 0.1723737085 | Y203: Construction | Z203: A5 | AA203: ='LCI and calculations'!S25 -> 0.7684365522 | AB203: ='LCI and calculations'!AO25 -> 0.7817126847 | AC203: ='LCI and calculations'!BO25 -> 0.6463780186 | AE203: Fly ash | AF203: ='LCI and calculations'!R44 -> 0 | AG203: ='LCI and calculations'!AN44 -> 0 | AH203: ='LCI and calculations'!BN44 -> 0 | AK203: Fly ash | AL203: ='LCI and calculations'!S44 -> 0 | AM203: ='LCI and calculations'!AO44 -> 0 | AN203: ='LCI and calculations'!BO44 -> 0
S204: Use and Maintenance | T204: B1 | U204: ='LCI and calculations'!R26 -> 0 | V204: ='LCI and calculations'!AN26 -> 0 | W204: ='LCI and calculations'!BN26 -> 0 | Y204: Use and Maintenance | Z204: B1 | AA204: ='LCI and calculations'!S26 -> 0 | AB204: ='LCI and calculations'!AO26 -> 0 | AC204: ='LCI and calculations'!BO26 -> 0 | AE204: Glass | AF204: ='LCI and calculations'!R45 -> 0.01486385224 | AG204: ='LCI and calculations'!AN45 -> 0.01010164715 | AH204: ='LCI and calculations'!BN45 -> 0.005772369802 | AK204: Glass | AL204: ='LCI and calculations'!S45 -> 0.007929538481 | AM204: ='LCI and calculations'!AO45 -> 0.005389006735 | AN204: ='LCI and calculations'!BO45 -> 0.00307943242
T205: B2 | U205: ='LCI and calculations'!R27 -> 0.02638929104 | V205: ='LCI and calculations'!AN27 -> 0.07916787313 | W205: ='LCI and calculations'!BN27 -> 0.09236251866 | Z205: B2 | AA205: ='LCI and calculations'!S27 -> 0.08823726438 | AB205: ='LCI and calculations'!AO27 -> 0.2647117932 | AC205: ='LCI and calculations'!BO27 -> 0.3088304253 | AE205: Natural gravel | AF205: ='LCI and calculations'!R46 -> 0.7973019493 | AG205: ='LCI and calculations'!AN46 -> 0.3276583353 | AH205: ='LCI and calculations'!BN46 -> 0.4368777804 | AK205: Natural gravel | AL205: ='LCI and calculations'!S46 -> 1.477426435 | AM205: ='LCI and calculations'!AO46 -> 0.6071615486 | AN205: ='LCI and calculations'!BO46 -> 0.8095487314
T206: B3 | U206: ='LCI and calculations'!R28 -> 0.01868960701 | V206: ='LCI and calculations'!AN28 -> 0.06296148428 | W206: ='LCI and calculations'!BN28 -> 0.073455065 | Z206: B3 | AA206: ='LCI and calculations'!S28 -> 0.01505063105 | AB206: ='LCI and calculations'!AO28 -> 0.04965202621 | AC206: ='LCI and calculations'!BO28 -> 0.05792736391 | AE206: Plastics | AF206: ='LCI and calculations'!R47 -> 0.4790221626 | AG206: ='LCI and calculations'!AN47 -> 0.3255490426 | AH206: ='LCI and calculations'!BN47 -> 0.1860280243 | AK206: Plastics | AL206: ='LCI and calculations'!S47 -> 0.2800903601 | AM206: ='LCI and calculations'!AO47 -> 0.1903526719 | AN206: ='LCI and calculations'!BO47 -> 0.1087729554
T207: B4 | U207: ='LCI and calculations'!R29 -> 4.295489216 | V207: ='LCI and calculations'!AN29 -> 4.7550001 | W207: ='LCI and calculations'!BN29 -> 4.7550001 | Z207: B4 | AA207: ='LCI and calculations'!S29 -> 4.847024871 | AB207: ='LCI and calculations'!AO29 -> 5.147033741 | AC207: ='LCI and calculations'!BO29 -> 5.147033741 | AE207: RAP | AF207: ='LCI and calculations'!R48 -> 0.01689538232 | AG207: ='LCI and calculations'!AN48 -> 0.02823381165 | AH207: ='LCI and calculations'!BN48 -> 0.03106841898 | AK207: RAP | AL207: ='LCI and calculations'!S48 -> 0.07189591985 | AM207: ='LCI and calculations'!AO48 -> 0.1201450089 | AN207: ='LCI and calculations'!BO48 -> 0.1322072812
S208: End-of-Life | T208: C1 | U208: ='LCI and calculations'!R30 -> 0.2652010002 | V208: ='LCI and calculations'!AN30 -> 0.2603677724 | W208: ='LCI and calculations'!BN30 -> 0.2202251303 | Y208: End-of-Life | Z208: C1 | AA208: ='LCI and calculations'!S30 -> 1.120844618 | AB208: ='LCI and calculations'!AO30 -> 1.10041748 | AC208: ='LCI and calculations'!BO30 -> 0.9307587523 | AE208: Recycled concrete | AF208: ='LCI and calculations'!R49 -> 0 | AG208: ='LCI and calculations'!AN49 -> 0 | AH208: ='LCI and calculations'!BN49 -> 0 | AK208: Recycled concrete | AL208: ='LCI and calculations'!S49 -> 0 | AM208: ='LCI and calculations'!AO49 -> 0 | AN208: ='LCI and calculations'!BO49 -> 0
T209: C2 | U209: ='LCI and calculations'!R31 -> 4.130183584 | V209: ='LCI and calculations'!AN31 -> 2.252728849 | W209: ='LCI and calculations'!BN31 -> 1.796529961 | Z209: C2 | AA209: ='LCI and calculations'!S31 -> 13.60682683 | AB209: ='LCI and calculations'!AO31 -> 7.421580839 | AC209: ='LCI and calculations'!BO31 -> 5.91864056 | AE209: Sand | AF209: ='LCI and calculations'!R50 -> 0.1401631842 | AG209: ='LCI and calculations'!AN50 -> 0.2007653013 | AH209: ='LCI and calculations'!BN50 -> 0.2209216586 | AK209: Sand | AL209: ='LCI and calculations'!S50 -> 0.2611224958 | AM209: ='LCI and calculations'!AO50 -> 0.3740235844 | AN209: ='LCI and calculations'!BO50 -> 0.41157466
T210: C3 | U210: ='LCI and calculations'!R32 -> 0.1847951994 | V210: ='LCI and calculations'!AN32 -> 0.1814273489 | W210: ='LCI and calculations'!BN32 -> 0.1534554803 | Z210: C3 | AA210: ='LCI and calculations'!S32 -> 0.7863699215 | AB210: ='LCI and calculations'!AO32 -> 0.7720385088 | AC210: ='LCI and calculations'!BO32 -> 0.6530081646 | AE210: Stabilised gravel | AF210: ='LCI and calculations'!R51 -> 0.7366008862 | AG210: ='LCI and calculations'!AN51 -> 0.9821345149 | AH210: ='LCI and calculations'!BN51 -> 0 | AK210: Stabilised gravel | AL210: ='LCI and calculations'!S51 -> 1.077964629 | AM210: ='LCI and calculations'!AO51 -> 1.437286171 | AN210: ='LCI and calculations'!BO51 -> 0
T211: C4 | U211: ='LCI and calculations'!R33 -> 0 | V211: ='LCI and calculations'!AN33 -> 0 | W211: ='LCI and calculations'!BN33 -> 0 | Z211: C4 | AA211: ='LCI and calculations'!S33 -> 0 | AB211: ='LCI and calculations'!AO33 -> 0 | AC211: ='LCI and calculations'!BO33 -> 0 | AE211: Toner | AF211: ='LCI and calculations'!R52 -> 0 | AG211: ='LCI and calculations'!AN52 -> 1.189130757 | AH211: ='LCI and calculations'!BN52 -> 1.308516648 | AK211: Toner | AL211: ='LCI and calculations'!S52 -> 0 | AM211: ='LCI and calculations'!AO52 -> 0.8168595723 | AN211: ='LCI and calculations'!BO52 -> 0.8988703246
S212: Recycling Benefits | T212: D | Y212: Recycling Benefits | Z212: D | AA212: ='LCI and calculations'!S34 -> -2.013135105 | AB212: ='LCI and calculations'!AO34 -> -0.9319242325 | AC212: ='LCI and calculations'!BO34 -> -0.868271603 | AE212: Waste tyre | AF212: ='LCI and calculations'!R53 -> 0 | AG212: ='LCI and calculations'!AN53 -> 0 | AH212: ='LCI and calculations'!BN53 -> 0 | AK212: Waste tyre | AL212: ='LCI and calculations'!S53 -> 0 | AM212: ='LCI and calculations'!AO53 -> 0 | AN212: ='LCI and calculations'!BO53 -> 0
S213: Total | U213: =SUM(U201:U212) -> 15.17515931 | V213: =SUM(V201:V212) -> 17.78563762 | W213: =SUM(W201:W212) -> 16.85441759 | Y213: Total | AA213: =SUM(AA201:AA212) -> 30.7144569 | AB213: =SUM(AB201:AB212) -> 28.54960499 | AC213: =SUM(AC201:AC212) -> 24.81384725 | AE213: Total | AF213: =SUM(AF201:AF212) -> 6.611525101 | AG213: =SUM(AG201:AG212) -> 10.46097831 | AH213: =SUM(AH201:AH212) -> 10.32927161 | AK213: Total | AL213: =SUM(AL201:AL212) -> 4.205315085 | AM213: =SUM(AM201:AM212) -> 5.27058471 | AN213: =SUM(AN201:AN212) -> 4.25604089
S215: Human non-carcinogenic toxicity (t 1,4 - DCB/ FU) | AE215: Human non-carcinogenic toxicity (t 1,4 - DCB/ FU)
S216: Lifecycle stage | U216: Baseline | V216: Option 1 | W216: Option 2 | AE216: Lifecycle stage | AF216: Baseline | AG216: Option 1 | AH216: Option 2
S217: Raw materials and manufacturing | T217: A1-A3 | U217: ='LCI and calculations'!T23 -> 103.6878877 | V217: ='LCI and calculations'!AP23 -> 229.1935079 | W217: ='LCI and calculations'!BP23 -> 238.7903197 | AE217: A1-A3 | AF217: ='LCI and calculations'!T42 -> 5.760729354 | AG217: ='LCI and calculations'!AP42 -> 9.626733771 | AH217: ='LCI and calculations'!BP42 -> 10.59323488
S218: Transport to construction site | T218: A4 | U218: ='LCI and calculations'!T24 -> 46.53381822 | V218: ='LCI and calculations'!AP24 -> 45.35613661 | W218: ='LCI and calculations'!BP24 -> 36.52352451 | AE218: A4 | AF218: ='LCI and calculations'!T43 -> 148.9149913 | AG218: ='LCI and calculations'!AP43 -> 248.8512978 | AH218: ='LCI and calculations'!BP43 -> 273.8353744
S219: Construction | T219: A5 | U219: ='LCI and calculations'!T25 -> 2.706078255 | V219: ='LCI and calculations'!AP25 -> 3.096155514 | W219: ='LCI and calculations'!BP25 -> 2.736644604 | AE219: A5 | AF219: ='LCI and calculations'!T44 -> 0 | AG219: ='LCI and calculations'!AP44 -> 0 | AH219: ='LCI and calculations'!BP44 -> 0
S220: Use and Maintenance | T220: B1 | U220: ='LCI and calculations'!T26 -> 0 | V220: ='LCI and calculations'!AP26 -> 0 | W220: ='LCI and calculations'!BP26 -> 0 | AE220: B1 | AF220: ='LCI and calculations'!T45 -> 0.3668473818 | AG220: ='LCI and calculations'!AP45 -> 0.2493137546 | AH220: ='LCI and calculations'!BP45 -> 0.1424650026
T221: B2 | U221: ='LCI and calculations'!T27 -> 0.5136715987 | V221: ='LCI and calculations'!AP27 -> 1.541014796 | W221: ='LCI and calculations'!BP27 -> 1.797850595 | AE221: B2 | AF221: ='LCI and calculations'!T46 -> 16.92953778 | AG221: ='LCI and calculations'!AP46 -> 6.957344295 | AH221: ='LCI and calculations'!BP46 -> 9.27645906
T222: B3 | U222: ='LCI and calculations'!T28 -> 0.5959595519 | V222: ='LCI and calculations'!AP28 -> 1.944953834 | W222: ='LCI and calculations'!BP28 -> 2.269112806 | AE222: B3 | AF222: ='LCI and calculations'!T47 -> 11.21732915 | AG222: ='LCI and calculations'!AP47 -> 7.62342758 | AH222: ='LCI and calculations'!BP47 -> 4.356244332
T223: B4 | U223: ='LCI and calculations'!T29 -> 130.9687265 | V223: ='LCI and calculations'!AP29 -> 141.440405 | W223: ='LCI and calculations'!BP29 -> 141.440405 | AE223: B4 | AF223: ='LCI and calculations'!T48 -> 0.2362818539 | AG223: ='LCI and calculations'!AP48 -> 0.3948497426 | AH223: ='LCI and calculations'!BP48 -> 0.4344917148
S224: End-of-Life | T224: C1 | U224: ='LCI and calculations'!T30 -> 3.732264783 | V224: ='LCI and calculations'!AP30 -> 3.664245108 | W224: ='LCI and calculations'!BP30 -> 3.099303915 | AE224: C1 | AF224: ='LCI and calculations'!T49 -> 0 | AG224: ='LCI and calculations'!AP49 -> 0 | AH224: ='LCI and calculations'!BP49 -> 0
T225: C2 | U225: ='LCI and calculations'!T31 -> 87.23676543 | V225: ='LCI and calculations'!AP31 -> 47.58160848 | W225: ='LCI and calculations'!BP31 -> 37.94588295 | AE225: C2 | AF225: ='LCI and calculations'!T50 -> 2.891013973 | AG225: ='LCI and calculations'!AP50 -> 4.140996758 | AH225: ='LCI and calculations'!BP50 -> 4.556742954
T226: C3 | U226: ='LCI and calculations'!T32 -> 2.584359944 | V226: ='LCI and calculations'!AP32 -> 2.537260573 | W226: ='LCI and calculations'!BP32 -> 2.146074128 | AE226: C3 | AF226: ='LCI and calculations'!T51 -> 16.11996943 | AG226: ='LCI and calculations'!AP51 -> 21.49329257 | AH226: ='LCI and calculations'!BP51 -> 0
T227: C4 | U227: ='LCI and calculations'!T33 -> 0 | V227: ='LCI and calculations'!AP33 -> 0 | W227: ='LCI and calculations'!BP33 -> 0 | AE227: C4 | AF227: ='LCI and calculations'!T52 -> 0 | AG227: ='LCI and calculations'!AP52 -> 27.02643761 | AH227: ='LCI and calculations'!BP52 -> 29.73982747
S228: Recycling Benefits | T228: D | U228: ='LCI and calculations'!T34 -> -25.70818135 | V228: ='LCI and calculations'!AP34 -> -10.82052422 | W228: ='LCI and calculations'!BP34 -> -9.959450211 | AE228: D | AF228: ='LCI and calculations'!T53 -> 0 | AG228: ='LCI and calculations'!AP53 -> 0 | AH228: ='LCI and calculations'!BP53 -> 0
S229: Total | U229: =SUM(U217:U228) -> 352.8513507 | V229: =SUM(V217:V228) -> 465.5347636 | W229: =SUM(W217:W228) -> 456.7896681 | AE229: Total | AF229: =SUM(AF217:AF228) -> 202.4367002 | AG229: =SUM(AG217:AG228) -> 326.3636939 | AH229: =SUM(AH217:AH228) -> 332.9348398

Sheet LCI and calculations
G18: BASELINE - SUMMARY | AC18: OPTION 1 - SUMMARY | BC18: OPTION 2 - SUMMARY
M21: ="Environmental impact per km of a"&" "&'Input and Dasboard_draft'!$C$7&"-lane road over 40 years - Distributed per lifecyle stage" -> Environmental impact per km of a 2-lane road over 40 years - Distributed per lifecyle stage | AI21: ="Environmental impact per km of a"&" "&'Input and Dasboard_draft'!$C$7&"-lane road over 40 years - Distributed per lifecyle stage" -> Environmental impact per km of a 2-lane road over 40 years - Distributed per lifecyle stage | BI21: ="Environmental impact per km of a"&" "&'Input and Dasboard_draft'!$C$7&"-lane road over 40 years - Distributed per lifecyle stage" -> Environmental impact per km of a 2-lane road over 40 years - Distributed per lifecyle stage
M22: Lifecycle stage | N22: Global warming (t CO2 eq.) | O22: Water consumption (m3) | P22: Terrestrial ecotoxicity (t 1,4-DCB) | Q22: Freshwater ecotoxicity (t 1,4-DCB) | R22: Marine ecotoxicity (t 1,4-DCB) | S22: Human carcinogenic toxicity (t 1,4-DCB) | T22: Human non-carcinogenic toxicity (t 1,4-DCB) | AI22: Lifecycle stage | AJ22: Global warming (t CO2 eq.) | AK22: Water consumption (m3) | AL22: Terrestrial ecotoxicity (t 1,4-DCB) | AM22: Freshwater ecotoxicity (t 1,4-DCB) | AN22: Marine ecotoxicity (t 1,4-DCB) | AO22: Human carcinogenic toxicity (t 1,4-DCB) | AP22: Human non-carcinogenic toxicity (t 1,4-DCB) | BI22: Lifecycle stage | BJ22: Global warming (t CO2 eq.) | BK22: Water consumption (m3) | BL22: Terrestrial ecotoxicity (t 1,4-DCB) | BM22: Freshwater ecotoxicity (t 1,4-DCB) | BN22: Marine ecotoxicity (t 1,4-DCB) | BO22: Human carcinogenic toxicity (t 1,4-DCB) | BP22: Human non-carcinogenic toxicity (t 1,4-DCB)
M23: A1-A3 | N23: =(SUM(N85:N97)+SUM(N101:N104)+SUM(N112:N121)+SUM(N125:N134)+SUM(N143:N155))/1000 -> 268.1625421 | O23: =(SUM(O85:O97)+SUM(O101:O104)+SUM(O112:O121)+SUM(O125:O134)++SUM(O143:O155))/1000 -> 12.2899326 | P23: =(SUM(P85:P97)+SUM(P101:P104)+SUM(P112:P121)+SUM(P125:P134)++SUM(P143:P155))/1000 -> 286.2740976 | Q23: =(SUM(Q85:Q97)+SUM(Q101:Q104)+SUM(Q112:Q121)+SUM(Q125:Q134)++SUM(Q143:Q155))/1000 -> 2.697783558 | R23: =(SUM(R85:R97)+SUM(R101:R104)+SUM(R112:R121)+SUM(R125:R134)+SUM(R143:R155))/1000 -> 3.864647232 | S23: =(SUM(S85:S97)+SUM(S101:S104)+SUM(S112:S121)+SUM(S125:S134)++SUM(S143:S155))/1000 -> 4.236650436 | T23: =(SUM(T85:T97)+SUM(T101:T104)+SUM(T112:T121)+SUM(T125:T134)++SUM(T143:T155))/1000 -> 103.6878877 | AI23: A1-A3 | AJ23: =(SUM(AJ85:AJ97)+SUM(AJ101:AJ104)+SUM(AJ112:AJ121)+SUM(AJ125:AJ134)+SUM(AJ143:AJ155))/1000 -> 480.1649232 | AK23: =(SUM(AK85:AK97)+SUM(AK101:AK104)+SUM(AK112:AK121)+SUM(AK125:AK134)++SUM(AK143:AK155))/1000 -> 11.21053344 | AL23: =(SUM(AL85:AL97)+SUM(AL101:AL104)+SUM(AL112:AL121)+SUM(AL125:AL134)++SUM(AL143:AL155))/1000 -> 428.191666 | AM23: =(SUM(AM85:AM97)+SUM(AM101:AM104)+SUM(AM112:AM121)+SUM(AM125:AM134)++SUM(AM143:AM155))/1000 -> 5.538859183 | AN23: =(SUM(AN85:AN97)+SUM(AN101:AN104)+SUM(AN112:AN121)+SUM(AN125:AN134)+SUM(AN143:AN155))/1000 -> 7.845285013 | AO23: =(SUM(AO85:AO97)+SUM(AO101:AO104)+SUM(AO112:AO121)+SUM(AO125:AO134)++SUM(AO143:AO155))/1000 -> 6.869921126 | AP23: =(SUM(AP85:AP97)+SUM(AP101:AP104)+SUM(AP112:AP121)+SUM(AP125:AP134)++SUM(AP143:AP155))/1000 -> 229.1935079 | BI23: A1-A3 | BJ23: =(SUM(BJ85:BJ97)+SUM(BJ101:BJ104)+SUM(BJ112:BJ121)+SUM(BJ125:BJ134)+SUM(BJ143:BJ155))/1000 -> 359.7259753 | BK23: =(SUM(BK85:BK97)+SUM(BK101:BK104)+SUM(BK112:BK121)+SUM(BK125:BK134)++SUM(BK143:BK155))/1000 -> 8.596485444 | BL23: =(SUM(BL85:BL97)+SUM(BL101:BL104)+SUM(BL112:BL121)+SUM(BL125:BL134)++SUM(BL143:BL155))/1000 -> 245.5868922 | BM23: =(SUM(BM85:BM97)+SUM(BM101:BM104)+SUM(BM112:BM121)+SUM(BM125:BM134)++SUM(BM143:BM155))/1000 -> 5.616136425 | BN23: =(SUM(BN85:BN97)+SUM(BN101:BN104)+SUM(BN112:BN121)+SUM(BN125:BN134)+SUM(BN143:BN155))/1000 -> 7.861826559 | BO23: =(SUM(BO85:BO97)+SUM(BO101:BO104)+SUM(BO112:BO121)+SUM(BO125:BO134)++SUM(BO143:BO155))/1000 -> 6.322754801 | BP23: =(SUM(BP85:BP97)+SUM(BP101:BP104)+SUM(BP112:BP121)+SUM(BP125:BP134)++SUM(BP143:BP155))/1000 -> 238.7903197
M24: A4 | N24: =SUM(N169:N183)/1000 -> 175.3302271 | O24: 0.9255295352 | P24: 174.3487571 | Q24: 1.381938814 | R24: 2.203121713 | S24: 7.258150885 | T24: 46.53381822 | AI24: A4 | AJ24: =SUM(AJ169:AJ183)/1000 -> 170.8929557 | AK24: 0.9021061593 | AL24: 169.9363248 | AM24: 1.346964595 | AN24: 2.147364932 | AO24: 7.074461019 | AP24: 45.35613661 | BI24: A4 | BJ24: =SUM(BJ169:BJ183)/1000 -> 137.6134195 | BK24: 0.7264308402 | BL24: 136.8430821 | BM24: 1.084657956 | BN24: 1.729189071 | BO24: 5.696787023 | BP24: 36.52352451
M25: A5 | N25: =SUM(N188:N190)/1000 -> 42.55647331 | O25: 0.1542961124 | P25: 35.46246652 | Q25: 0.08465856626 | R25: 0.1866424721 | S25: 0.7684365522 | T25: 2.706078255 | AI25: A5 | AJ25: =SUM(AJ188:AJ190)/1000 -> 44.7632476 | AK25: 0.1911553142 | AL25: 36.5188775 | AM25: 0.09554479848 | AN25: 0.2013342444 | AO25: 0.7817126847 | AP25: 3.096155514 | BI25: A5 | BJ25: =SUM(BJ188:BJ190)/1000 -> 37.7701326 | BK25: 0.1756412725 | BL25: 30.4246524 | BM25: 0.08384848172 | BN25: 0.1723737085 | BO25: 0.6463780186 | BP25: 2.736644604
M26: B1 | N26: 0 | O26: 0 | P26: 0 | Q26: 0 | R26: 0 | S26: 0 | T26: 0 | AI26: B1 | AJ26: 0 | AK26: 0 | AL26: 0 | AM26: 0 | AN26: 0 | AO26: 0 | AP26: 0 | BI26: B1 | BJ26: 0 | BK26: 0 | BL26: 0 | BM26: 0 | BN26: 0 | BO26: 0 | BP26: 0
M27: B2 | N27: =SUM(N196:N198)/1000 -> 3.001683249 | O27: 0.160173208 | P27: 2.775594345 | Q27: 0.01553807641 | R27: 0.02638929104 | S27: 0.08823726438 | T27: 0.5136715987 | AI27: B2 | AJ27: =SUM(AJ196:AJ198)/1000 -> 9.005049747 | AK27: 0.480519624 | AL27: 8.326783036 | AM27: 0.04661422922 | AN27: 0.07916787313 | AO27: 0.2647117932 | AP27: 1.541014796 | BI27: B2 | BJ27: =SUM(BJ196:BJ198)/1000 -> 10.50589137 | BK27: 0.560606228 | BL27: 9.714580209 | BM27: 0.05438326742 | BN27: 0.09236251866 | BO27: 0.3088304253 | BP27: 1.797850595
M28: B3 | N28: =N202/1000 -> 0.8536693994 | O28: 0.01330263245 | P28: 0.5257472336 | Q28: 0.01331856871 | R28: 0.01868960701 | S28: 0.01505063105 | T28: 0.5959595519 | AI28: B3 | AJ28: =AJ202/1000 -> 3.01488085 | AK28: 0.03829253343 | AL28: 1.924658933 | AM28: 0.04485750108 | AN28: 0.06296148428 | AO28: 0.04965202621 | AP28: 1.944953834 | BI28: B3 | BJ28: =BJ202/1000 -> 3.517360991 | BK28: 0.04467462233 | BL28: 2.245435422 | BM28: 0.05233375126 | BN28: 0.073455065 | BO28: 0.05792736391 | BP28: 2.269112806
M29: B4 | N29: =N227/1000 -> 215.1065947 | O29: 2.89476025 | P29: 149.2737703 | Q29: 3.013455928 | R29: 4.295489216 | S29: 4.847024871 | T29: 130.9687265 | AI29: B4 | AJ29: =AJ227/1000 -> 245.3647715 | AK29: 2.787069321 | AL29: 172.4349191 | AM29: 3.340242258 | AN29: 4.7550001 | AO29: 5.147033741 | AP29: 141.440405 | BI29: B4 | BJ29: =BJ227/1000 -> 245.3647715 | BK29: 2.787069321 | BL29: 172.4349191 | BM29: 3.340242258 | BN29: 4.7550001 | BO29: 5.147033741 | BP29: 141.440405
M30: C1 | N30: =SUM(N274:N275)/1000 -> 60.90470713 | O30: 0.3132847898 | P30: 51.35894104 | Q30: 0.1177373574 | R30: 0.2652010002 | S30: 1.120844618 | T30: 3.732264783 | AI30: C1 | AJ30: =SUM(AJ274:AJ275)/1000 -> 59.79473272 | AK30: 0.3075752459 | AL30: 50.42293604 | AM30: 0.1155916208 | AN30: 0.2603677724 | AO30: 1.10041748 | AP30: 3.664245108 | BI30: C1 | BJ30: =SUM(BJ274:BJ275)/1000 -> 50.57577857 | BK30: 0.2601543116 | BL30: 42.64889451 | BM30: 0.097770087 | BN30: 0.2202251303 | BO30: 0.9307587523 | BP30: 3.099303915
M31: C2 | N31: =N281/1000 -> 328.6908851 | O31: 1.735086568 | P31: 326.8509272 | Q31: 2.590715242 | R31: 4.130183584 | S31: 13.60682683 | T31: 87.23676543 | AI31: C2 | AJ31: =AJ281/1000 -> 179.2780937 | AK31: 0.9463694505 | AL31: 178.2745242 | AM31: 1.413055582 | AN31: 2.252728849 | AO31: 7.421580839 | AP31: 47.58160848 | BI31: C2 | BJ31: =BJ281/1000 -> 142.9725849 | BK31: 0.7547206903 | BL31: 142.1722477 | BM31: 1.126898468 | BN31: 1.796529961 | BO31: 5.91864056 | BP31: 37.94588295
M32: C3 | N32: =SUM(N287:N288)/1000 -> 42.80757619 | O32: 0.1171981955 | P32: 36.06924527 | Q32: 0.08152927567 | R32: 0.1847951994 | S32: 0.7863699215 | T32: 2.584359944 | AI32: C3 | AJ32: =SUM(AJ287:AJ288)/1000 -> 42.02741787 | AK32: 0.1150622851 | AL32: 35.41189149 | AM32: 0.08004342319 | AN32: 0.1814273489 | AO32: 0.7720385088 | AP32: 2.537260573 | BI32: C3 | BJ32: =SUM(BJ287:BJ288)/1000 -> 35.54776956 | BK32: 0.0973223625 | BL32: 29.95220317 | BM32: 0.06770259291 | BN32: 0.1534554803 | BO32: 0.6530081646 | BP32: 2.146074128
M33: C4 | N33: 0 | O33: 0 | P33: 0 | Q33: 0 | R33: 0 | S33: 0 | T33: 0 | AI33: C4 | AJ33: 0 | AK33: 0 | AL33: 0 | AM33: 0 | AN33: 0 | AO33: 0 | AP33: 0 | BI33: C4 | BJ33: 0 | BK33: 0 | BL33: 0 | BM33: 0 | BN33: 0 | BO33: 0 | BP33: 0
M34: D | N34: =-SUM(N297:N306)/1000 -> -113.0232736 | O34: -4.383513441 | P34: -97.95463694 | Q34: -0.7673586158 | R34: -1.124048344 | S34: -2.013135105 | T34: -25.70818135 | AI34: D | AJ34: =-SUM(AJ297:AJ306)/1000 -> -14.73966043 | AK34: -3.105730023 | AL34: -35.78722952 | AM34: -0.3411373584 | AN34: -0.4909291956 | AO34: -0.9319242325 | AP34: -10.82052422 | BI34: D | BJ34: =-SUM(BJ297:BJ306)/1000 -> -8.997141201 | BK34: -2.959746814 | BL34: -32.18859131 | BM34: -0.3161170645 | BN34: -0.4537765162 | BO34: -0.868271603 | BP34: -9.959450211
M35: Total (w/o benefits) | N35: =SUM(N23:N33) -> 1137.414358 | O35: =SUM(O23:O33) -> 18.60356389 | P35: 1062.939547 | Q35: 9.996675386 | R35: 15.17515931 | S35: 32.72759201 | T35: 378.559532 | AI35: Total (w/o benefits) | AJ35: =SUM(AJ23:AJ33) -> 1234.306073 | AK35: =SUM(AK23:AK33) -> 16.97868337 | AL35: 1081.442581 | AM35: 12.02177319 | AN35: 17.78563762 | AO35: 29.48152922 | AP35: 476.3552879 | BI35: Total (w/o benefits) | BJ35: =SUM(BJ23:BJ33) -> 1023.593684 | BK35: =SUM(BK23:BK33) -> 14.00310509 | BL35: 812.0229068 | BM35: 11.52397329 | BN35: 16.85441759 | BO35: 25.68211885 | BP35: 466.7491183 | BU35: =BJ35/N35 -> 0.8999303348 | BV35: 0.7527108877 | BW35: 0.7639408181 | BX35: 1.152780584 | BY35: 1.110658362 | BZ35: 0.7847237537 | CA35: 1.232960945
M36: Total (w benefits) | N36: =SUM(N23:N34) -> 1024.391085 | O36: =SUM(O23:O34) -> 14.22005045 | P36: 964.9849097 | Q36: 9.22931677 | R36: 14.05111097 | S36: 30.7144569 | T36: 352.8513507 | AI36: Total (w benefits) | AJ36: =SUM(AJ23:AJ34) -> 1219.566412 | AK36: =SUM(AK23:AK34) -> 13.87295335 | AL36: 1045.655352 | AM36: 11.68063583 | AN36: 17.29470842 | AO36: 28.54960499 | AP36: 465.5347636 | BI36: Total (w benefits) | BJ36: =SUM(BJ23:BJ34) -> 1014.596543 | BK36: =SUM(BK23:BK34) -> 11.04335828 | BL36: 779.8343155 | BM36: 11.20785622 | BN36: 16.40064108 | BO36: 24.81384725 | BP36: 456.7896681 | BU36: 0.9904386696 | BV36: 0.7766047186 | BW36: 0.8081310989 | BX36: 1.214375506 | BY36: 1.16721312 | BZ36: 0.8078881982 | CA36: 1.294566868
K38: ="Environmental impact per km of a"&" "&'Input and Dasboard_draft'!$C$7&"-lane road - Distributed per material" -> Environmental impact per km of a 2-lane road - Distributed per material | AG38: ="Environmental impact per km of a"&" "&'Input and Dasboard_draft'!$C$7&"-lane road - Distributed per material" -> Environmental impact per km of a 2-lane road - Distributed per material | BG38: ="Environmental impact per km of a"&" "&'Input and Dasboard_draft'!$C$7&"-lane road - Distributed per material" -> Environmental impact per km of a 2-lane road - Distributed per material
K39: Materials | L39: Weight (t) | M39: Weight (%) | N39: Global warming (t CO2 eq.) | O39: Water consumption (m3) | P39: Terrestrial ecotoxicity (t 1,4-DCB) | Q39: Freshwater ecotoxicity (t 1,4-DCB) | R39: Marine ecotoxicity (t 1,4-DCB) | S39: Human carcinogenic toxicity (t 1,4-DCB) | T39: Human non-carcinogenic toxicity (t 1,4-DCB) | AG39: Materials | AH39: Weight (t) | AI39: Weight (%) | AJ39: Global warming (t CO2 eq.) | AK39: Water consumption (m3) | AL39: Terrestrial ecotoxicity (t 1,4-DCB) | AM39: Freshwater ecotoxicity (t 1,4-DCB) | AN39: Marine ecotoxicity (t 1,4-DCB) | AO39: Human carcinogenic toxicity (t 1,4-DCB) | AP39: Human non-carcinogenic toxicity (t 1,4-DCB) | BG39: Materials | BH39: Weight (t) | BI39: Weight (%) | BJ39: Global warming (t CO2 eq.) | BK39: Water consumption (m3) | BL39: Terrestrial ecotoxicity (t 1,4-DCB) | BM39: Freshwater ecotoxicity (t 1,4-DCB) | BN39: Marine ecotoxicity (t 1,4-DCB) | BO39: Human carcinogenic toxicity (t 1,4-DCB) | BP39: Human non-carcinogenic toxicity (t 1,4-DCB)
K40: Aggregates-coarse | L40: =SUMIF($G$85:$G$97,K40,$L$85:$L$97)+SUMIF($G$112:$G$121,K40,$L$112:$L$121)+SUMIF($G$125:$G$134,K40,$L$125:$L$134)+SUMIF($G$205:$G$221,K40,$L$205:$L$221)+SUMIF($G$229:$G$245,K40,$L$229:$L$245) -> 442.1088 | M40: =L40/$L$58 -> 0.03657104286 | N40: =(SUMIF($G$85:$G$97,$K40,N$85:N$97)+SUMIF($G$112:$G$121,$K40,N$112:N$121)+SUMIF($G$125:$G$134,$K40,N$125:N$134)+SUMIF($G$205:$G$221,$K40,N$205:N$221)+SUMIF($G$229:$G$245,$K40,N$229:N$245))/1000 -> 2.94793908 | O40: 0.6228506143 | P40: 4.708039601 | Q40: 0.04457599555 | R40: 0.06432075583 | S40: 0.1191884518 | T40: 1.365756934 | AG40: Aggregates-coarse | AH40: =SUMIF($AC$85:$AC$97,AG40,$AH$85:$AH$97)+SUMIF($AC$112:$AC$121,AG40,$AH$112:$AH$121)+SUMIF($AC$125:$AC$134,AG40,$AH$125:$AH$134)+SUMIF($AC$205:$AC$221,AG40,$AH$205:$AH$221)+SUMIF($AC$229:$AC$245,AG40,$AH$229:$AH$245) -> 738.8064 | AI40: =AH40/$AH$58 -> 0.06224819526 | AJ40: =(SUMIF($AC$85:$AC$97,$AG40,AJ$85:AJ$97)+SUMIF($AC$112:$AC$121,$AG40,AJ$112:AJ$121)+SUMIF($AC$125:$AC$134,$AG40,AJ$125:AJ$134)+SUMIF($AC$205:$AC$221,$AG40,AJ$205:AJ$221)+SUMIF($AC$229:$AC$245,$AG40,AJ$229:AJ$245))/1000 -> 4.926290224 | AK40: 1.040843385 | AL40: 7.867587772 | AM40: 0.07449078327 | AN40: 0.10748618 | AO40: 0.1991753863 | AP40: 2.282311422 | BG40: Aggregates-coarse | BH40: =SUMIF($BC$85:$BC$97,BG40,$BH$85:$BH$97)+SUMIF($BC$112:$BC$121,BG40,$BH$112:$BH$121)+SUMIF($BC$125:$BC$134,BG40,$BH$125:$BH$134)+SUMIF($BC$205:$BC$221,BG40,$BH$205:$BH$221)+SUMIF($BC$229:$BC$245,BG40,$BH$229:$BH$245) -> 812.9808 | BI40: =BH40/$BH$58 -> 0.08098353993 | BJ40: =(SUMIF($BC$85:$BC$97,$BG40,BJ$85:BJ$97)+SUMIF($BC$112:$BC$121,$BG40,BJ$112:BJ$121)+SUMIF($BC$125:$BC$134,$BG40,BJ$125:BJ$134)+SUMIF($BC$205:$BC$221,$BG40,BJ$205:BJ$221)+SUMIF($BC$229:$BC$245,$BG40,BJ$229:BJ$245))/1000 -> 5.42087801 | BK40: 1.145341578 | BL40: 8.657474814 | BM40: 0.08196948019 | BN40: 0.118277536 | BO40: 0.2191721199 | BP40: 2.511450044
K41: Aggregates-fine | L41: =SUMIF($G$85:$G$97,K41,$L$85:$L$97)+SUMIF($G$112:$G$121,K41,$L$112:$L$121)+SUMIF($G$125:$G$134,K41,$L$125:$L$134)+SUMIF($G$205:$G$221,K41,$L$205:$L$221)+SUMIF($G$229:$G$245,K41,$L$229:$L$245) -> 700.0056 | M41: 0.0579041512 | N41: 9.040640925 | O41: 0.9868924651 | P41: 14.56534202 | Q41: 0.1379737078 | R41: 0.1988344417 | S41: 0.3659237834 | T41: 4.394972419 | AG41: Aggregates-fine | AH41: =SUMIF($AC$85:$AC$97,AG41,$AH$85:$AH$97)+SUMIF($AC$112:$AC$121,AG41,$AH$112:$AH$121)+SUMIF($AC$125:$AC$134,AG41,$AH$125:$AH$134)+SUMIF($AC$205:$AC$221,AG41,$AH$205:$AH$221)+SUMIF($AC$229:$AC$245,AG41,$AH$229:$AH$245) -> 1169.7768 | AI41: =AH41/$AH$58 -> 0.09855964249 | AJ41: 15.10778201 | AK41: 1.649192392 | AL41: 24.34008982 | AM41: 0.2305673588 | AN41: 0.3322715088 | AO41: 0.6114938971 | AP41: 7.344422349 | BG41: Aggregates-fine | BH41: =SUMIF($BC$85:$BC$97,BG41,$BH$85:$BH$97)+SUMIF($BC$112:$BC$121,BG41,$BH$112:$BH$121)+SUMIF($BC$125:$BC$134,BG41,$BH$125:$BH$134)+SUMIF($BC$205:$BC$221,BG41,$BH$205:$BH$221)+SUMIF($BC$229:$BC$245,BG41,$BH$229:$BH$245) -> 1287.2196 | BI41: =BH41/$BH$58 -> 0.1282239382 | BJ41: 16.62456728 | BK41: 1.814767373 | BL41: 26.78377677 | BM41: 0.2537157716 | BN41: 0.3656307756 | BO41: 0.6728864256 | BP41: 8.081784831
K42: Aggregates | L42: =SUM(L40:L41) -> 1142.1144 | M42: 0.09447519406 | N42: =SUM(N40:N41) -> 11.98858 | O42: =SUM(O40:O41) -> 1.609743079 | P42: 19.27338162 | Q42: 0.1825497033 | R42: 0.2631551975 | S42: 0.4851122352 | T42: 5.760729354 | AG42: Aggregates | AH42: =SUM(AH40:AH41) -> 1908.5832 | AI42: =SUM(AI40:AI41) -> 0.1608078377 | AJ42: =SUM(AJ40:AJ41) -> 20.03407223 | AK42: =SUM(AK40:AK41) -> 2.690035777 | AL42: 32.2076776 | AM42: 0.3050581421 | AN42: 0.4397576888 | AO42: 0.8106692834 | AP42: 9.626733771 | BG42: Aggregates | BH42: =SUM(BH40:BH41) -> 2100.2004 | BI42: 0.2092074782 | BJ42: =SUM(BJ40:BJ41) -> 22.04544529 | BK42: =SUM(BK40:BK41) -> 2.960108952 | BL42: 35.44125159 | BM42: 0.3356852518 | BN42: 0.4839083117 | BO42: 0.8920585454 | BP42: 10.59323488
K43: Bitumen | L43: =SUMIF($G$85:$G$97,K43,$L$85:$L$97)+SUMIF($G$112:$G$121,K43,$L$112:$L$121)+SUMIF($G$125:$G$134,K43,$L$125:$L$134)+SUMIF($G$205:$G$221,K43,$L$205:$L$221)+SUMIF($G$229:$G$245,K43,$L$229:$L$245) -> 147.3696 | M43: 0.01219034762 | N43: =(SUMIF($G$85:$G$97,$K43,N$85:N$97)+SUMIF($G$112:$G$121,$K43,N$112:N$121)+SUMIF($G$125:$G$134,$K43,N$125:N$134)+SUMIF($G$205:$G$221,$K43,N$205:N$221)+SUMIF($G$229:$G$245,$K43,N$229:N$245))/1000 -> 82.18608801 | O43: 0.08711855442 | P43: 39.35083101 | Q43: 3.069917443 | R43: 4.163522487 | S43: 0.5437734723 | T43: 148.9149913 | AG43: Bitumen | AH43: =SUMIF($AC$85:$AC$97,AG43,$AH$85:$AH$97)+SUMIF($AC$112:$AC$121,AG43,$AH$112:$AH$121)+SUMIF($AC$125:$AC$134,AG43,$AH$125:$AH$134)+SUMIF($AC$205:$AC$221,AG43,$AH$205:$AH$221)+SUMIF($AC$229:$AC$245,AG43,$AH$229:$AH$245) -> 246.2688 | AI43: =AH43/$AH$58 -> 0.02074939842 | AJ43: =(SUMIF($AC$85:$AC$97,$AG43,AJ$85:AJ$97)+SUMIF($AC$112:$AC$121,$AG43,AJ$112:AJ$121)+SUMIF($AC$125:$AC$134,$AG43,AJ$125:AJ$134)+SUMIF($AC$205:$AC$221,$AG43,AJ$205:AJ$221)+SUMIF($AC$229:$AC$245,$AG43,AJ$229:AJ$245))/1000 -> 137.3408713 | AK43: 0.1455834979 | AL43: 65.7590299 | AM43: 5.130127821 | AN43: 6.957647212 | AO43: 0.9086978623 | AP43: 248.8512978 | BG43: Bitumen | BH43: =SUMIF($BC$85:$BC$97,BG43,$BH$85:$BH$97)+SUMIF($BC$112:$BC$121,BG43,$BH$112:$BH$121)+SUMIF($BC$125:$BC$134,BG43,$BH$125:$BH$134)+SUMIF($BC$205:$BC$221,BG43,$BH$205:$BH$221)+SUMIF($BC$229:$BC$245,BG43,$BH$229:$BH$245) -> 270.9936 | BI43: 0.02699451331 | BJ43: =(SUMIF($BC$85:$BC$97,$BG43,BJ$85:BJ$97)+SUMIF($BC$112:$BC$121,$BG43,BJ$112:BJ$121)+SUMIF($BC$125:$BC$134,$BG43,BJ$125:BJ$134)+SUMIF($BC$205:$BC$221,$BG43,BJ$205:BJ$221)+SUMIF($BC$229:$BC$245,$BG43,BJ$229:BJ$245))/1000 -> 151.1295672 | BK43: 0.1601997338 | BL43: 72.36107962 | BM43: 5.645180415 | BN43: 7.656178394 | BO43: 0.9999289598 | BP43: 273.8353744
K44: Fly ash | L44: 84.048 | M44: 0.006952413095 | N44: =(SUMIF($G$85:$G$97,$K44,N$85:N$97)+SUMIF($G$112:$G$121,$K44,N$112:N$121)+SUMIF($G$125:$G$134,$K44,N$125:N$134)+SUMIF($G$205:$G$221,$K44,N$205:N$221)+SUMIF($G$229:$G$245,$K44,N$229:N$245))/1000 -> 0 | O44: 0 | P44: 0 | Q44: 0 | R44: 0 | S44: 0 | T44: 0 | AG44: Fly ash | AH44: 57.12 | AI44: 0.004812650395 | AJ44: =(SUMIF($AC$85:$AC$97,$AG44,AJ$85:AJ$97)+SUMIF($AC$112:$AC$121,$AG44,AJ$112:AJ$121)+SUMIF($AC$125:$AC$134,$AG44,AJ$125:AJ$134)+SUMIF($AC$205:$AC$221,$AG44,AJ$205:AJ$221)+SUMIF($AC$229:$AC$245,$AG44,AJ$229:AJ$245))/1000 -> 0 | AK44: 0 | AL44: 0 | AM44: 0 | AN44: 0 | AO44: 0 | AP44: 0 | BG44: Fly ash | BH44: =SUMIF($BC$85:$BC$97,BG44,$BH$85:$BH$97)+SUMIF($BC$112:$BC$121,BG44,$BH$112:$BH$121)+SUMIF($BC$125:$BC$134,BG44,$BH$125:$BH$134)+SUMIF($BC$205:$BC$221,BG44,$BH$205:$BH$221)+SUMIF($BC$229:$BC$245,BG44,$BH$229:$BH$245) -> 32.64 | BI44: 0.003251371672 | BJ44: =(SUMIF($BC$85:$BC$97,$BG44,BJ$85:BJ$97)+SUMIF($BC$112:$BC$121,$BG44,BJ$112:BJ$121)+SUMIF($BC$125:$BC$134,$BG44,BJ$125:BJ$134)+SUMIF($BC$205:$BC$221,$BG44,BJ$205:BJ$221)+SUMIF($BC$229:$BC$245,$BG44,BJ$229:BJ$245))/1000 -> 0 | BK44: 0 | BL44: 0 | BM44: 0 | BN44: 0 | BO44: 0 | BP44: 0
K45: Glass | L45: 252.144 | M45: 0.02085723928 | N45: 1.015493495 | O45: 0.001508428787 | P45: 0.5553688696 | Q45: 0.0106751055 | R45: 0.01486385224 | S45: 0.007929538481 | T45: 0.3668473818 | AG45: Glass | AH45: 171.36 | AI45: 0.01443795119 | AJ45: 0.6901412102 | AK45: 0.001025145778 | AL45: 0.3774351541 | AM45: 0.007254926068 | AN45: 0.01010164715 | AO45: 0.005389006735 | AP45: 0.2493137546 | BG45: Glass | BH45: 97.92 | BI45: 0.009754115017 | BJ45: 0.3943664058 | BK45: 0.0005857975872 | BL45: 0.2156772309 | BM45: 0.004145672039 | BN45: 0.005772369802 | BO45: 0.00307943242 | BP45: 0.1424650026
K46: Natural gravel | L46: 5480.256 | M46: 0.4533243334 | N46: 36.54182145 | O46: 7.720680557 | P46: 58.35953112 | Q46: 0.5525514694 | R46: 0.7973019493 | S46: 1.477426435 | T46: 16.92953778 | AG46: Natural gravel | AH46: 2252.16 | AI46: 0.1897559299 | AJ46: 15.0171869 | AK46: 3.172882421 | AL46: 23.98336895 | AM46: 0.2270759463 | AN46: 0.3276583353 | AO46: 0.6071615486 | AP46: 6.957344295 | BG46: Natural gravel | BH46: 3002.88 | BI46: 0.2991261939 | BJ46: 20.02291586 | BK46: 4.230509894 | BL46: 31.97782527 | BM46: 0.3027679284 | BN46: 0.4368777804 | BO46: 0.8095487314 | BP46: 9.27645906
K47: Plastics | L47: 336.192 | M47: 0.02780965238 | N47: 29.52808258 | O47: 0.0723329359 | P47: 19.5211354 | Q47: 0.3429399113 | R47: 0.4790221626 | S47: 0.2800903601 | T47: 11.21732915 | AG47: Plastics | AH47: 228.48 | AI47: 0.01925060158 | AJ47: 20.06762894 | AK47: 0.04915830595 | AL47: 13.26679105 | AM47: 0.2330659592 | AN47: 0.3255490426 | AO47: 0.1903526719 | AP47: 7.62342758 | BG47: Plastics | BH47: 130.56 | BI47: 0.01300548669 | BJ47: 11.46721654 | BK47: 0.02809046054 | BL47: 7.581023455 | BM47: 0.1331805481 | BN47: 0.1860280243 | BO47: 0.1087729554 | BP47: 4.356244332
K48: RAP | L48: 1105.272 | M48: 0.09142760715 | N48: 3.913794236 | O48: 0.01071515059 | P48: 3.297724797 | Q48: 0.007454026542 | R48: 0.01689538232 | S48: 0.07189591985 | T48: 0.2362818539 | AG48: RAP | AH48: 1847.016 | AI48: 0.1556204881 | AJ48: 6.540327246 | AK48: 0.01790604899 | AL48: 5.510815857 | AM48: 0.01245639651 | AN48: 0.02823381165 | AO48: 0.1201450089 | AP48: 0.3948497426 | BG48: RAP | BH48: 2032.452 | BI48: 0.2024588498 | BJ48: 7.196960498 | BK48: 0.01970377359 | BL48: 6.064088622 | BM48: 0.01370698901 | BN48: 0.03106841898 | BO48: 0.1322072812 | BP48: 0.4344917148
K49: Recycled concrete | L49: 0 | M49: 0 | N49: 0 | O49: 0 | P49: 0 | Q49: 0 | R49: 0 | S49: 0 | T49: 0 | AG49: Recycled concrete | AH49: 0 | AI49: 0 | AJ49: 0 | AK49: 0 | AL49: 0 | AM49: 0 | AN49: 0 | AO49: 0 | AP49: 0 | BG49: Recycled concrete | BH49: 0 | BI49: 0 | BJ49: 0 | BK49: 0 | BL49: 0 | BM49: 0 | BN49: 0 | BO49: 0 | BP49: 0
K50: Sand | L50: 1289.484 | M50: 0.1066655417 | N50: 6.4822665 | O50: 1.814052152 | P50: 10.35309695 | Q50: 0.09700974205 | R50: 0.1401631842 | S50: 0.2611224958 | T50: 2.891013973 | AG50: Sand | AH50: 1847.016 | AI50: 0.1556204881 | AJ50: 9.284993022 | AK50: 2.59839079 | AL50: 14.82944784 | AM50: 0.1389536789 | AN50: 0.2007653013 | AO50: 0.3740235844 | AP50: 4.140996758 | BG50: Sand | BH50: 2032.452 | BI50: 0.2024588498 | BJ50: 10.21718417 | BK50: 2.859263026 | BL50: 16.31828903 | BM50: 0.1529042968 | BN50: 0.2209216586 | BO50: 0.41157466 | BP50: 4.556742954
K51: Stabilised gravel | L51: 2252.16 | M51: 0.1862976713 | N51: 122.5372397 | O51: 3.202336845 | P51: 160.6151034 | Q51: 0.4761410145 | R51: 0.7366008862 | S51: 1.077964629 | T51: 16.11996943 | AG51: Stabilised gravel | AH51: 3002.88 | AI51: 0.2530079065 | AJ51: 163.3829862 | AK51: 4.26978246 | AL51: 214.1534712 | AM51: 0.634854686 | AN51: 0.9821345149 | AO51: 1.437286171 | AP51: 21.49329257 | BG51: Stabilised gravel | BH51: 0 | BI51: 0 | BJ51: 0 | BK51: 0 | BL51: 0 | BM51: 0 | BN51: 0 | BO51: 0 | BP51: 0
K52: Toner | L52: 0 | M52: 0 | N52: 0 | O52: 0 | P52: 0 | Q52: 0 | R52: 0 | S52: 0 | T52: 0 | AG52: Toner | AH52: 307.836 | AI52: 0.02593674802 | AJ52: 77.64681337 | AK52: 0.1622224456 | AL52: 60.72186387 | AM52: 0.8450265663 | AN52: 1.189130757 | AO52: 0.8168595723 | AP52: 27.02643761 | BG52: Toner | BH52: 338.742 | BI52: 0.03374314164 | BJ52: 85.44236819 | BK52: 0.1785091921 | BL52: 66.81819414 | BM52: 0.9298652176 | BN52: 1.308516648 | BO52: 0.8988703246 | BP52: 29.73982747
K53: Waste tyre | L53: 0 | M53: 0 | N53: 0 | O53: 0 | P53: 0 | Q53: 0 | R53: 0 | S53: 0 | T53: 0 | AG53: Waste tyre | AH53: 0 | AI53: 0 | AJ53: 0 | AK53: 0 | AL53: 0 | AM53: 0 | AN53: 0 | AO53: 0 | AP53: 0 | BG53: Waste tyre | BH53: 0 | BI53: 0 | BJ53: 0 | BK53: 0 | BL53: 0 | BM53: 0 | BN53: 0 | BO53: 0 | BP53: 0
K54: Lime | L54: 0 | M54: 0 | N54: 0 | O54: 0 | P54: 0 | Q54: 0 | R54: 0 | S54: 0 | T54: 0 | AG54: Lime | AH54: 0 | AI54: 0 | AJ54: 0 | AK54: 0 | AL54: 0 | AM54: 0 | AN54: 0 | AO54: 0 | AP54: 0 | BG54: Lime | BH54: 0 | BI54: 0 | BJ54: 0 | BK54: 0 | BL54: 0 | BM54: 0 | BN54: 0 | BO54: 0 | BP54: 0
K55: Cement | L55: 0 | M55: 0 | N55: 0 | O55: 0 | P55: 0 | Q55: 0 | R55: 0 | S55: 0 | T55: 0 | AG55: Cement | AH55: 0 | AI55: 0 | AJ55: 0 | AK55: 0 | AL55: 0 | AM55: 0 | AN55: 0 | AO55: 0 | AP55: 0 | BG55: Cement | BH55: 0 | BI55: 0 | BJ55: 0 | BK55: 0 | BL55: 0 | BM55: 0 | BN55: 0 | BO55: 0 | BP55: 0
K56: Crushed brick | L56: 0 | M56: 0 | N56: 0 | O56: 0 | P56: 0 | Q56: 0 | R56: 0 | S56: 0 | T56: 0 | AG56: Crushed brick | AH56: 0 | AI56: 0 | AJ56: 0 | AK56: 0 | AL56: 0 | AM56: 0 | AN56: 0 | AO56: 0 | AP56: 0 | BG56: Crushed brick | BH56: 0 | BI56: 0 | BJ56: 0 | BK56: 0 | BL56: 0 | BM56: 0 | BN56: 0 | BO56: 0 | BP56: 0
K57: Recycled tile | L57: 0 | M57: 0 | N57: 0 | O57: 0 | P57: 0 | Q57: 0 | R57: 0 | S57: 0 | T57: 0 | AG57: Recycled tile | AH57: 0 | AI57: 0 | AJ57: 0 | AK57: 0 | AL57: 0 | AM57: 0 | AN57: 0 | AO57: 0 | AP57: 0 | BG57: Recycled tile | BH57: =SUMIF($BC$85:$BC$97,BG57,$BH$85:$BH$97)+SUMIF($BC$112:$BC$121,BG57,$BH$112:$BH$121)+SUMIF($BC$125:$BC$134,BG57,$BH$125:$BH$134)+SUMIF($BC$205:$BC$221,BG57,$BH$205:$BH$221)+SUMIF($BC$229:$BC$245,BG57,$BH$229:$BH$245) -> 0 | BI57: 0 | BJ57: =(SUMIF($BC$85:$BC$97,$BG57,BJ$85:BJ$97)+SUMIF($BC$112:$BC$121,$BG57,BJ$112:BJ$121)+SUMIF($BC$125:$BC$134,$BG57,BJ$125:BJ$134)+SUMIF($BC$205:$BC$221,$BG57,BJ$205:BJ$221)+SUMIF($BC$229:$BC$245,$BG57,BJ$229:BJ$245))/1000 -> 0 | BK57: 0 | BL57: 0 | BM57: 0 | BN57: 0 | BO57: 0 | BP57: 0
K58: Total | L58: =SUM(L42:L57) -> 12089.04 | M58: =SUM(M42:M57) -> 1 | N58: =SUM(N42:N53) -> 294.193366 | O58: 14.5184877 | P58: 311.3261731 | Q58: 4.739238416 | R58: 6.611525101 | S58: 4.205315085 | T58: 202.4367002 | AG58: Total | AH58: =SUM(AH42:AH57) -> 11868.72 | AI58: =SUM(AI42:AI57) -> 1 | AJ58: =SUM(AJ42:AJ53) -> 450.0050205 | AK58: =SUM(AK42:AK53) -> 13.10698689 | AL58: =SUM(AL42:AL53) -> 430.8099014 | AM58: =SUM(AM42:AM53) -> 7.533874122 | AN58: =SUM(AN42:AN53) -> 10.46097831 | AO58: =SUM(AO42:AO53) -> 5.27058471 | AP58: =SUM(AP42:AP53) -> 326.3636939 | BG58: Total | BH58: =SUM(BH42:BH57) -> 10038.84 | BI58: =SUM(BI42:BI57) -> 1 | BJ58: 307.9160241 | BK58: 10.43697083 | BL58: 236.777429 | BM58: 7.517436319 | BN58: 10.32927161 | BO58: 4.25604089 | BP58: 332.9348398
K60: ="Environmental impact per km of a"&" "&'Input and Dasboard_draft'!$C$7&"-lane road - Distributed per material" -> Environmental impact per km of a 2-lane road - Distributed per material | AG60: ="Environmental impact per km of a"&" "&'Input and Dasboard_draft'!$C$7&"-lane road - Distributed per material" -> Environmental impact per km of a 2-lane road - Distributed per material | BG60: ="Environmental impact per km of a"&" "&'Input and Dasboard_draft'!$C$7&"-lane road - Distributed per material" -> Environmental impact per km of a 2-lane road - Distributed per material
K61: Materials | L61: Weight (t) | M61: Weight (%) | N61: Global warming (t CO2 eq.) | O61: Water consumption (m3) | P61: Terrestrial ecotoxicity (t 1,4-DCB) | Q61: Freshwater ecotoxicity (t 1,4-DCB) | R61: Marine ecotoxicity (t 1,4-DCB) | S61: Human carcinogenic toxicity (t 1,4-DCB) | T61: Human non-carcinogenic toxicity (t 1,4-DCB) | AG61: Materials | AH61: Weight (t) | AI61: Weight (%) | AJ61: Global warming (t CO2 eq.) | AK61: Water consumption (m3) | AL61: Terrestrial ecotoxicity (t 1,4-DCB) | AM61: Freshwater ecotoxicity (t 1,4-DCB) | AN61: Marine ecotoxicity (t 1,4-DCB) | AO61: Human carcinogenic toxicity (t 1,4-DCB) | AP61: Human non-carcinogenic toxicity (t 1,4-DCB) | BG61: Materials | BH61: Weight (t) | BI61: Weight (%) | BJ61: Global warming (t CO2 eq.) | BK61: Water consumption (m3) | BL61: Terrestrial ecotoxicity (t 1,4-DCB) | BM61: Freshwater ecotoxicity (t 1,4-DCB) | BN61: Marine ecotoxicity (t 1,4-DCB) | BO61: Human carcinogenic toxicity (t 1,4-DCB) | BP61: Human non-carcinogenic toxicity (t 1,4-DCB)
K62: =K42 -> Aggregates | L62: 1142.1144 | M62: 0.09447519406 | N62: =N42/N$58 -> 0.04075068099 | O62: 0.1108753964 | P62: 0.06190736046 | Q62: 0.03851878452 | R62: 0.03980249541 | S62: 0.1153569294 | T62: 0.02845694159 | AG62: =AG42 -> Aggregates | AH62: 1908.5832 | AI62: 0.1608078377 | AJ62: =AJ42/AJ$58 -> 0.04451966383 | AK62: 0.2052367794 | AL62: 0.07476076453 | AM62: 0.04049153691 | AN62: 0.0420379123 | AO62: 0.1538101232 | AP62: 0.02949695065 | BG62: =BG42 -> Aggregates | BH62: 2100.2004 | BI62: 0.2092074782 | BJ62: =BJ42/BJ$58 -> 0.07159564156 | BK62: 0.283617632 | BL62: 0.1496817148 | BM62: 0.04465421955 | BN62: 0.04684825127 | BO62: 0.2095982084 | BP62: 0.03181774212
K63: Bitumen | L63: 147.3696 | M63: 0.01219034762 | N63: 0.2793607794 | O63: 0.006000525413 | P63: 0.1263974391 | Q63: 0.6477659856 | R63: 0.6297370763 | S63: 0.1293062378 | T63: 0.7356126193 | AG63: Bitumen | AH63: 246.2688 | AI63: 0.02074939842 | AJ63: 0.3051985313 | AK63: 0.01110732002 | AL63: 0.1526404795 | AM63: 0.6809415365 | AN63: 0.6651048311 | AO63: 0.1724093079 | AP63: 0.7624968784 | BG63: Bitumen | BH63: 270.9936 | BI63: 0.02699451331 | BJ63: 0.4908142329 | BK63: 0.01534925568 | BL63: 0.3056080131 | BM63: 0.7509448934 | BN63: 0.7412118381 | BO63: 0.234943457 | BP63: 0.8224893933
K64: Fly ash | L64: 84.048 | M64: 0.006952413095 | N64: 0 | O64: 0 | P64: 0 | Q64: 0 | R64: 0 | S64: 0 | T64: 0 | AG64: Fly ash | AH64: 57.12 | AI64: 0.004812650395 | AJ64: 0 | AK64: 0 | AL64: 0 | AM64: 0 | AN64: 0 | AO64: 0 | AP64: 0 | BG64: Fly ash | BH64: 32.64 | BI64: 0.003251371672 | BJ64: 0 | BK64: 0 | BL64: 0 | BM64: 0 | BN64: 0 | BO64: 0 | BP64: 0
K65: Glass | L65: 252.144 | M65: 0.02085723928 | N65: 0.00345178924 | O65: 0.0001038971013 | P65: 0.001783881079 | Q65: 0.002252493874 | R65: 0.002248173003 | S65: 0.001885599134 | T65: 0.001812158474 | AG65: Glass | AH65: 171.36 | AI65: 0.01443795119 | AJ65: 0.001533630024 | AK65: 7.821368756e-05 | AL65: 0.000876106034 | AM65: 0.0009629741552 | AN65: 0.0009656503295 | AO65: 0.00102246848 | AP65: 0.0007639138767 | BG65: Glass | BH65: 97.92 | BI65: 0.009754115017 | BJ65: 0.001280759606 | BK65: 5.612716532e-05 | BL65: 0.0009108859398 | BM65: 0.0005514741813 | BN65: 0.0005588360943 | BO65: 0.000723543899 | BP65: 0.0004279065619
K66: Natural gravel | L66: 5480.256 | M66: 0.4533243334 | N66: 0.1242102157 | O66: 0.5317826977 | P66: 0.1874546253 | Q66: 0.1165907728 | R66: 0.1205927433 | S66: 0.3513236 | T66: 0.08362879737 | AG66: Natural gravel | AH66: 2252.16 | AI66: 0.1897559299 | AJ66: 0.03337115413 | AK66: 0.2420756538 | AL66: 0.05567042186 | AM66: 0.03014066105 | AN66: 0.03132195915 | AO66: 0.1151981387 | AP66: 0.02131776428 | BG66: Natural gravel | BH66: 3002.88 | BI66: 0.2991261939 | BJ66: 0.06502719669 | BK66: 0.4053388635 | BL66: 0.1350543648 | BM66: 0.04027542311 | BN66: 0.04229511984 | BO66: 0.1902116902 | BP66: 0.02786268648
K67: Plastics | L67: 336.192 | M67: 0.02780965238 | N67: 0.1003696412 | O67: 0.004982126057 | P67: 0.06270316176 | Q67: 0.07236181877 | R67: 0.07245259684 | S67: 0.06660389398 | T67: 0.05541153921 | AG67: Plastics | AH67: 228.48 | AI67: 0.01925060158 | AJ67: 0.04459423345 | AK67: 0.003750542085 | AL67: 0.03079500031 | AM67: 0.03093573843 | AN67: 0.03112032478 | AO67: 0.03611604449 | AP67: 0.02335868764 | BG67: Plastics | BH67: 130.56 | BI67: 0.01300548669 | BJ67: 0.03724137634 | BK67: 0.002691438062 | BL67: 0.03201750897 | BM67: 0.01771621899 | BN67: 0.01800979115 | BO67: 0.02555730976 | BP67: 0.01308437511
K68: RAP | L68: 1105.272 | M68: 0.09142760715 | N68: 0.0133034755 | O68: 0.0007380348979 | P68: 0.01059250741 | Q68: 0.001572832149 | R68: 0.002555444026 | S68: 0.01709644067 | T68: 0.001167188823 | AG68: RAP | AH68: 1847.016 | AI68: 0.1556204881 | AJ68: 0.0145338984 | AK68: 0.001366145334 | AL68: 0.01279175766 | AM68: 0.001653385272 | AN68: 0.002698964744 | AO68: 0.02279538524 | AP68: 0.001209845795 | BG68: RAP | BH68: 2032.452 | BI68: 0.2024588498 | BJ68: 0.02337312752 | BK68: 0.001887882405 | BL68: 0.02561092351 | BM68: 0.001823359511 | BN68: 0.003007803471 | BO68: 0.03106344243 | BP68: 0.001305035289
K69: Recycled concrete | L69: 0 | M69: 0 | N69: 0 | O69: 0 | P69: 0 | Q69: 0 | R69: 0 | S69: 0 | T69: 0 | AG69: Recycled concrete | AH69: 0 | AI69: 0 | AJ69: 0 | AK69: 0 | AL69: 0 | AM69: 0 | AN69: 0 | AO69: 0 | AP69: 0 | BG69: Recycled concrete | BH69: 0 | BI69: 0 | BJ69: 0 | BK69: 0 | BL69: 0 | BM69: 0 | BN69: 0 | BO69: 0 | BP69: 0
K70: Sand | L70: 1289.484 | M70: 0.1066655417 | N70: 0.02203403356 | O70: 0.1249477348 | P70: 0.03325482355 | Q70: 0.02046947917 | R70: 0.02119982637 | S70: 0.06209344378 | T70: 0.01428107635 | AG70: Sand | AH70: 1847.016 | AI70: 0.1556204881 | AJ70: 0.02063308763 | AK70: 0.198244708 | AL70: 0.03442225398 | AM70: 0.01844385461 | AN70: 0.01919182847 | AO70: 0.07096434362 | AP70: 0.01268828867 | BG70: Sand | BH70: 2032.452 | BI70: 0.2024588498 | BJ70: 0.03318172284 | BK70: 0.273955257 | BL70: 0.0689182626 | BM70: 0.02033995239 | BN70: 0.02138792231 | BO70: 0.09670364327 | BP70: 0.01368659092
K71: Stabilised gravel | L71: 2252.16 | M71: 0.1862976713 | N71: 0.4165193844 | O71: 0.2205695876 | P71: 0.5159062014 | Q71: 0.1004678332 | R71: 0.1114116448 | S71: 0.2563338553 | T71: 0.07962967886 | AG71: Stabilised gravel | AH71: 3002.88 | AI71: 0.2530079065 | AJ71: 0.3630692521 | AK71: 0.325763846 | AL71: 0.4970950539 | AM71: 0.08426669675 | AN71: 0.09388553208 | AO71: 0.2726995676 | AP71: 0.06585687372 | BG71: Stabilised gravel | BH71: 0 | BI71: 0 | BJ71: 0 | BK71: 0 | BL71: 0 | BM71: 0 | BN71: 0 | BO71: 0 | BP71: 0
K72: Toner | L72: 0 | M72: 0 | N72: 0 | O72: 0 | P72: 0 | Q72: 0 | R72: 0 | S72: 0 | T72: 0 | AG72: Toner | AH72: 307.836 | AI72: 0.02593674802 | AJ72: 0.1725465491 | AK72: 0.01237679163 | AL72: 0.1409481622 | AM72: 0.1121636163 | AN72: 0.1136729971 | AO72: 0.1549846207 | AP72: 0.08281079703 | BG72: Toner | BH72: 338.742 | BI72: 0.03374314164 | BJ72: 0.2774859426 | BK72: 0.01710354422 | BL72: 0.2821983262 | BM72: 0.1236944589 | BN72: 0.1266804377 | BO72: 0.211198705 | BP72: 0.08932627023
K73: Waste tyre | L73: 0 | M73: 0 | N73: 0 | O73: 0 | P73: 0 | Q73: 0 | R73: 0 | S73: 0 | T73: 0 | AG73: Waste tyre | AH73: 0 | AI73: 0 | AJ73: 0 | AK73: 0 | AL73: 0 | AM73: 0 | AN73: 0 | AO73: 0 | AP73: 0 | BG73: Waste tyre | BH73: 0 | BI73: 0 | BJ73: 0 | BK73: 0 | BL73: 0 | BM73: 0 | BN73: 0 | BO73: 0 | BP73: 0
K74: Lime | L74: =L54 -> 0 | M74: 0 | N74: =N54/N$58 -> 0 | O74: 0 | P74: 0 | Q74: 0 | R74: 0 | S74: 0 | T74: 0 | AG74: Lime | AH74: =AH54 -> 0 | AI74: 0 | AJ74: =AJ54/AJ$58 -> 0 | AK74: 0 | AL74: 0 | AM74: 0 | AN74: 0 | AO74: 0 | AP74: 0
K75: Cement | L75: =L55 -> 0 | M75: 0 | N75: =N55/N$58 -> 0 | O75: 0 | P75: 0 | Q75: 0 | R75: 0 | S75: 0 | T75: 0 | AG75: Cement | AH75: =AH55 -> 0 | AI75: 0 | AJ75: =AJ55/AJ$58 -> 0 | AK75: 0 | AL75: 0 | AM75: 0 | AN75: 0 | AO75: 0 | AP75: 0
K76: Crushed brick | L76: =L56 -> 0 | M76: 0 | N76: =N56/N$58 -> 0 | O76: 0 | P76: 0 | Q76: 0 | R76: 0 | S76: 0 | T76: 0 | AG76: Crushed brick | AH76: =AH56 -> 0 | AI76: 0 | AJ76: =AJ56/AJ$58 -> 0 | AK76: 0 | AL76: 0 | AM76: 0 | AN76: 0 | AO76: 0 | AP76: 0
K77: Recycled tile | L77: =L57 -> 0 | M77: 0 | N77: =N57/N$58 -> 0 | O77: 0 | P77: 0 | Q77: 0 | R77: 0 | S77: 0 | T77: 0 | AG77: Recycled tile | AH77: =AH57 -> 0 | AI77: 0 | AJ77: =AJ57/AJ$58 -> 0 | AK77: 0 | AL77: 0 | AM77: 0 | AN77: 0 | AO77: 0 | AP77: 0
K78: =K58 -> Total | L78: 12089.04 | M78: 1 | N78: =N58/N$58 -> 1 | O78: 1 | P78: 1 | Q78: 1 | R78: 1 | S78: 1 | T78: 1 | AG78: =AG58 -> Total | AH78: 11868.72 | AI78: 1 | AJ78: =AJ58/AJ$58 -> 1 | AK78: 1 | AL78: 1 | AM78: 1 | AN78: 1 | AO78: 1 | AP78: 1 | BG78: =BG58 -> Total | BH78: 10038.84 | BI78: 1 | BJ78: =BJ58/BJ$58 -> 1 | BK78: 1 | BL78: 1 | BM78: 1 | BN78: 1 | BO78: 1 | BP78: 1
G80: BASELINE - CALCULATIONS | AC80: OPTION 1- CALCULATIONS | BC80: OPTION 2 - CALCULATIONS
G81: A1-A3 | AC81: A1-A3 | BC81: A1-A3
G82: Asphalt composition | AC82: Asphalt composition | BC82: Asphalt composition
A83: Flexible pavements | B83: Baseline | C83: Option 1 | D83: Option 1 | G83: Baseline
A84: Materials Inventory for flexible pavement - per km (2 lane) | B84: Amount | C84: Amount | D84: Amount | E84: Unit | G84: Item | H84: Composition | I84: Unit | J84: Electricity type | K84: Vlookup | L84: Amount | M84: Unit | N84: Global warming (kg CO2 eq.) | O84: Water consumption (m3) | P84: Terrestrial ecotoxicity (kg 1,4-DCB) | Q84: Freshwater ecotoxicity (kg 1,4-DCB) | R84: Marine ecotoxicity (kg 1,4-DCB) | S84: Human carcinogenic toxicity (kg 1,4-DCB) | T84: Human non-carcinogenic toxicity (kg 1,4-DCB) | AC84: Item | AD84: Composition | AE84: Unit | AF84: Electricity type | AG84: Vlookup | AH84: Amount | AI84: Unit | AJ84: Global warming (kg CO2 eq.) | AK84: Water consumption (m3) | AL84: Terrestrial ecotoxicity (kg 1,4-DCB) | AM84: Freshwater ecotoxicity (kg 1,4-DCB) | AN84: Marine ecotoxicity (kg 1,4-DCB) | AO84: Human carcinogenic toxicity (kg 1,4-DCB) | AP84: Human non-carcinogenic toxicity (kg 1,4-DCB) | BC84: Item | BD84: Composition | BE84: Unit | BF84: Electricity type | BG84: Vlookup | BH84: Amount | BI84: Unit | BJ84: Global warming (kg CO2 eq.) | BK84: Water consumption (m3) | BL84: Terrestrial ecotoxicity (kg 1,4-DCB) | BM84: Freshwater ecotoxicity (kg 1,4-DCB) | BN84: Marine ecotoxicity (kg 1,4-DCB) | BO84: Human carcinogenic toxicity (kg 1,4-DCB) | BP84: Human non-carcinogenic toxicity (kg 1,4-DCB)
A85: Asphalt | B85: =B146*2 -> 1224 | C85: 3672 | D85: 4284 | E85: t | G85: ='Input and Dasboard_draft'!B18 -> Bitumen | H85: ='Input and Dasboard_draft'!C18 -> 0.04 | I85: per cent | J85: =IFERROR(VLOOKUP(G85,'Input and Dasboard_draft'!$B$67:$F$73,2,FALSE),G85) -> Bitumen | K85: =IF(J85=G85,J85,G85&"-"&J85) -> Bitumen | L85: =H85*$B$85 -> 48.96 | M85: t | N85: =L85*VLOOKUP($K85,Factors_LMCC,3,FALSE) -> 27304.34818 | O85: =L85*VLOOKUP($K85,Factors_LMCC,4,FALSE) -> 28.94304133 | P85: =L85*VLOOKUP($K85,Factors_LMCC,5,FALSE) -> 13073.36579 | Q85: =L85*VLOOKUP($K85,Factors_LMCC,6,FALSE) -> 1019.906127 | R85: =L85*VLOOKUP($K85,Factors_LMCC,7,FALSE) -> 1383.230062 | S85: =L85*VLOOKUP($K85,Factors_LMCC,8,FALSE) -> 180.6556386 | T85: =L85*VLOOKUP($K85,Factors_LMCC,9,FALSE) -> 49473.41904 | AC85: ='Input and Dasboard_draft'!$B18 -> Bitumen | AD85: ='Input and Dasboard_draft'!E18 -> 0.04 | AE85: per cent | AF85: =IFERROR(VLOOKUP(AC85,'Input and Dasboard_draft'!$B$67:$F$73,3,FALSE),AC85) -> Bitumen | AG85: =IF(AF85=AC85,AF85,AC85&"-"&AF85) -> Bitumen | AH85: =AD85*$C$85 -> 146.88 | AI85: t | AJ85: =AH85*VLOOKUP($AG85,Factors_LMCC,3,FALSE) -> 81913.04453 | AK85: =AH85*VLOOKUP($AG85,Factors_LMCC,4,FALSE) -> 86.829124 | AL85: =AH85*VLOOKUP($AG85,Factors_LMCC,5,FALSE) -> 39220.09736 | AM85: =AH85*VLOOKUP($AG85,Factors_LMCC,6,FALSE) -> 3059.718382 | AN85: =AH85*VLOOKUP($AG85,Factors_LMCC,7,FALSE) -> 4149.690186 | AO85: =AH85*VLOOKUP($AG85,Factors_LMCC,8,FALSE) -> 541.9669159 | AP85: =AH85*VLOOKUP($AG85,Factors_LMCC,9,FALSE) -> 148420.2571 | BC85: ='Input and Dasboard_draft'!$B18 -> Bitumen | BD85: ='Input and Dasboard_draft'!G18 -> 0.04 | BE85: per cent | BF85: =IFERROR(VLOOKUP(BC85,'Input and Dasboard_draft'!$B$67:$F$73,4,FALSE),BC85) -> Bitumen | BG85: =IF(BF85=BC85,BF85,BC85&"-"&BF85) -> Bitumen | BH85: =BD85*$D$85 -> 171.36 | BI85: t | BJ85: =BH85*VLOOKUP($BG85,Factors_LMCC,3,FALSE) -> 95565.21862 | BK85: =BH85*VLOOKUP($BG85,Factors_LMCC,4,FALSE) -> 101.3006447 | BL85: =BH85*VLOOKUP($BG85,Factors_LMCC,5,FALSE) -> 45756.78025 | BM85: =BH85*VLOOKUP($BG85,Factors_LMCC,6,FALSE) -> 3569.671446 | BN85: =BH85*VLOOKUP($BG85,Factors_LMCC,7,FALSE) -> 4841.305217 | BO85: =BH85*VLOOKUP($BG85,Factors_LMCC,8,FALSE) -> 632.2947352 | BP85: =BH85*VLOOKUP($BG85,Factors_LMCC,9,FALSE) -> 173156.9666
A86: Base course - aggregates | B86: 2448 | C86: 3264 | D86: 0 | E86: t | G86: ='Input and Dasboard_draft'!B19 -> RAP | H86: ='Input and Dasboard_draft'!C19 -> 0.3 | I86: per cent | J86: =IFERROR(VLOOKUP(G86,'Input and Dasboard_draft'!$B$67:$F$73,2,FALSE),G86) -> RAP | K86: =IF(J86=G86,J86,G86&"-"&J86) -> RAP | L86: 367.2 | M86: t | N86: 1300.263866 | O86: 3.559850694 | P86: 1095.589634 | Q86: 2.476420778 | R86: 5.613083827 | S86: 23.88568766 | T86: 78.49895479 | AC86: ='Input and Dasboard_draft'!$B19 -> RAP | AD86: ='Input and Dasboard_draft'!E19 -> 0.3 | AE86: per cent | AF86: =IFERROR(VLOOKUP(AC86,'Input and Dasboard_draft'!$B$67:$F$73,3,FALSE),AC86) -> RAP | AG86: =IF(AF86=AC86,AF86,AC86&"-"&AF86) -> RAP | AH86: =AD86*$C$85 -> 1101.6 | AI86: t | AJ86: 3900.791598 | AK86: 10.67955208 | AL86: 3286.768901 | AM86: 7.429262334 | AN86: 16.83925148 | AO86: 71.65706297 | AP86: 235.4968644 | BC86: ='Input and Dasboard_draft'!$B19 -> RAP | BD86: ='Input and Dasboard_draft'!G19 -> 0.3 | BE86: per cent | BF86: =IFERROR(VLOOKUP(BC86,'Input and Dasboard_draft'!$B$67:$F$73,4,FALSE),BC86) -> RAP | BG86: =IF(BF86=BC86,BF86,BC86&"-"&BF86) -> RAP | BH86: =BD86*$D$85 -> 1285.2 | BI86: t | BJ86: 4550.923531 | BK86: 12.45947743 | BL86: 3834.563718 | BM86: 8.667472724 | BN86: 19.6457934 | BO86: 83.5999068 | BP86: 274.7463418
A87: Sub-base course - aggregates | B87: 5956.8 | C87: 2448 | D87: 3264 | E87: t | G87: ='Input and Dasboard_draft'!B20 -> Aggregates-fine | H87: ='Input and Dasboard_draft'!C20 -> 0.19 | I87: per cent | J87: =IFERROR(VLOOKUP(G87,'Input and Dasboard_draft'!$B$67:$F$73,2,FALSE),G87) -> Aggregates-fine | K87: Aggregates-fine | L87: 232.56 | M87: t | N87: 3003.535191 | O87: 327.8712509 | P87: 4838.98406 | Q87: 45.83844112 | R87: 66.05795404 | S87: 121.5693632 | T87: 1460.123727 | AC87: ='Input and Dasboard_draft'!$B20 -> Aggregates-fine | AD87: ='Input and Dasboard_draft'!E20 -> 0.19 | AE87: per cent | AF87: =IFERROR(VLOOKUP(AC87,'Input and Dasboard_draft'!$B$67:$F$73,3,FALSE),AC87) -> Aggregates-fine | AG87: Aggregates-fine | AH87: 697.68 | AI87: t | AJ87: 9010.605573 | AK87: 983.6137526 | AL87: 14516.95218 | AM87: 137.5153234 | AN87: 198.1738621 | AO87: 364.7080897 | AP87: 4380.371182 | BC87: ='Input and Dasboard_draft'!$B20 -> Aggregates-fine | BD87: ='Input and Dasboard_draft'!G20 -> 0.19 | BE87: per cent | BF87: =IFERROR(VLOOKUP(BC87,'Input and Dasboard_draft'!$B$67:$F$73,4,FALSE),BC87) -> Aggregates-fine | BG87: Aggregates-fine | BH87: 813.96 | BI87: t | BJ87: 10512.37317 | BK87: 1147.549378 | BL87: 16936.44421 | BM87: 160.4345439 | BN87: 231.2028391 | BO87: 425.4927714 | BP87: 5110.433046
A88: Asphalt transport | B88: =B85*B151 -> 122400 | C88: =C85*C151 -> 367200 | D88: =D85*D151 -> 428400 | E88: tkm | G88: ='Input and Dasboard_draft'!B21 -> Aggregates-coarse | H88: ='Input and Dasboard_draft'!C21 -> 0.12 | I88: per cent | J88: =IFERROR(VLOOKUP(G88,'Input and Dasboard_draft'!$B$67:$F$73,2,FALSE),G88) -> Aggregates-coarse | K88: Aggregates-coarse | L88: 146.88 | M88: t | N88: 979.3817542 | O88: 206.9271144 | P88: 1564.132758 | Q88: 14.80930085 | R88: 21.36902187 | S88: 39.5974923 | T88: 453.7398453 | AC88: ='Input and Dasboard_draft'!$B21 -> Aggregates-coarse | AD88: ='Input and Dasboard_draft'!E21 -> 0.12 | AE88: per cent | AF88: =IFERROR(VLOOKUP(AC88,'Input and Dasboard_draft'!$B$67:$F$73,3,FALSE),AC88) -> Aggregates-coarse | AG88: Aggregates-coarse | AH88: 440.64 | AI88: t | AJ88: 2938.145263 | AK88: 620.7813432 | AL88: 4692.398273 | AM88: 44.42790254 | AN88: 64.10706561 | AO88: 118.7924769 | AP88: 1361.219536 | BC88: ='Input and Dasboard_draft'!$B21 -> Aggregates-coarse | BD88: ='Input and Dasboard_draft'!G21 -> 0.12 | BE88: per cent | BF88: =IFERROR(VLOOKUP(BC88,'Input and Dasboard_draft'!$B$67:$F$73,4,FALSE),BC88) -> Aggregates-coarse | BG88: Aggregates-coarse | BH88: 514.08 | BI88: t | BJ88: 3427.83614 | BK88: 724.2449004 | BL88: 5474.464652 | BM88: 51.83255297 | BN88: 74.79157654 | BO88: 138.591223 | BP88: 1588.089459
A89: Concrete transport | B89: =B147*B151 -> 122400 | C89: =C147*C151 -> 163200 | D89: =D147*D151 -> 0 | E89: tkm | G89: ='Input and Dasboard_draft'!B22 -> Sand | H89: ='Input and Dasboard_draft'!C22 -> 0.35 | I89: per cent | J89: =IFERROR(VLOOKUP(G89,'Input and Dasboard_draft'!$B$67:$F$73,2,FALSE),G89) -> Sand | K89: Sand | L89: 428.4 | M89: t | N89: 2153.57691 | O89: 602.6751335 | P89: 3439.567094 | Q89: 32.22915018 | R89: 46.56584192 | S89: 86.75165974 | T89: 960.4697584 | AC89: ='Input and Dasboard_draft'!$B22 -> Sand | AD89: ='Input and Dasboard_draft'!E22 -> 0.3 | AE89: per cent | AF89: =IFERROR(VLOOKUP(AC89,'Input and Dasboard_draft'!$B$67:$F$73,3,FALSE),AC89) -> Sand | AG89: Sand | AH89: 1101.6 | AI89: t | AJ89: 5537.769198 | AK89: 1549.736058 | AL89: 8844.601099 | AM89: 82.87495761 | AN89: 119.7407364 | AO89: 223.0756965 | AP89: 2469.779379 | BC89: ='Input and Dasboard_draft'!$B22 -> Sand | BD89: ='Input and Dasboard_draft'!G22 -> 0.3 | BE89: per cent | BF89: =IFERROR(VLOOKUP(BC89,'Input and Dasboard_draft'!$B$67:$F$73,4,FALSE),BC89) -> Sand | BG89: Sand | BH89: 1285.2 | BI89: t | BJ89: 6460.730731 | BK89: 1808.0254 | BL89: 10318.70128 | BM89: 96.68745054 | BN89: 139.6975258 | BO89: 260.2549792 | BP89: 2881.409275
A90: Subbase transport | B90: =B148*B151 -> 297840 | C90: =C148*C151 -> 122400 | D90: =D148*D151 -> 163200 | E90: tkm | G90: ='Input and Dasboard_draft'!B23 -> Glass | H90: ='Input and Dasboard_draft'!C23 -> 0 | I90: per cent | J90: =IFERROR(VLOOKUP(G90,'Input and Dasboard_draft'!$B$67:$F$73,2,FALSE),G90) -> Grid | K90: Glass-Grid | L90: 0 | M90: t | N90: 0 | O90: 0 | P90: 0 | Q90: 0 | R90: 0 | S90: 0 | T90: 0 | AC90: ='Input and Dasboard_draft'!$B23 -> Glass | AD90: ='Input and Dasboard_draft'!E23 -> 0 | AE90: per cent | AF90: =IFERROR(VLOOKUP(AC90,'Input and Dasboard_draft'!$B$67:$F$73,3,FALSE),AC90) -> Grid | AG90: Glass-Grid | AH90: 0 | AI90: t | AJ90: 0 | AK90: 0 | AL90: 0 | AM90: 0 | AN90: 0 | AO90: 0 | AP90: 0 | BC90: ='Input and Dasboard_draft'!$B23 -> Glass | BD90: ='Input and Dasboard_draft'!G23 -> 0 | BE90: per cent | BF90: =IFERROR(VLOOKUP(BC90,'Input and Dasboard_draft'!$B$67:$F$73,4,FALSE),BC90) -> Grid | BG90: Glass-Grid | BH90: 0 | BI90: t | BJ90: 0 | BK90: 0 | BL90: 0 | BM90: 0 | BN90: 0 | BO90: 0 | BP90: 0
G91: ='Input and Dasboard_draft'!B24 -> Plastics | H91: ='Input and Dasboard_draft'!C24 -> 0 | I91: per cent | J91: =IFERROR(VLOOKUP(G91,'Input and Dasboard_draft'!$B$67:$F$73,2,FALSE),G91) -> Grid | K91: Plastics-Grid | L91: 0 | M91: t | N91: 0 | O91: 0 | P91: 0 | Q91: 0 | R91: 0 | S91: 0 | T91: 0 | AC91: ='Input and Dasboard_draft'!$B24 -> Plastics | AD91: ='Input and Dasboard_draft'!E24 -> 0 | AE91: per cent | AF91: =IFERROR(VLOOKUP(AC91,'Input and Dasboard_draft'!$B$67:$F$73,3,FALSE),AC91) -> Grid | AG91: Plastics-Grid | AH91: 0 | AI91: t | AJ91: 0 | AK91: 0 | AL91: 0 | AM91: 0 | AN91: 0 | AO91: 0 | AP91: 0 | BC91: ='Input and Dasboard_draft'!$B24 -> Plastics | BD91: ='Input and Dasboard_draft'!G24 -> 0 | BE91: per cent | BF91: =IFERROR(VLOOKUP(BC91,'Input and Dasboard_draft'!$B$67:$F$73,4,FALSE),BC91) -> Grid | BG91: Plastics-Grid | BH91: 0 | BI91: t | BJ91: 0 | BK91: 0 | BL91: 0 | BM91: 0 | BN91: 0 | BO91: 0 | BP91: 0
B92: $/t | C92: $/t | D92: $/t | G92: ='Input and Dasboard_draft'!B25 -> Toner | H92: ='Input and Dasboard_draft'!C25 -> 0 | I92: per cent | J92: =IFERROR(VLOOKUP(G92,'Input and Dasboard_draft'!$B$67:$F$73,2,FALSE),G92) -> Grid | K92: Toner-Grid | L92: 0 | M92: t | N92: 0 | O92: 0 | P92: 0 | Q92: 0 | R92: 0 | S92: 0 | T92: 0 | AC92: ='Input and Dasboard_draft'!$B25 -> Toner | AD92: ='Input and Dasboard_draft'!E25 -> 0.05 | AE92: per cent | AF92: =IFERROR(VLOOKUP(AC92,'Input and Dasboard_draft'!$B$67:$F$73,3,FALSE),AC92) -> Grid | AG92: Toner-Grid | AH92: 183.6 | AI92: t | AJ92: 46310.22666 | AK92: 96.75294966 | AL92: 36215.82338 | AM92: 503.9919878 | AN92: 709.2231156 | AO92: 487.1925878 | AP92: 16119.14768 | BC92: ='Input and Dasboard_draft'!$B25 -> Toner | BD92: ='Input and Dasboard_draft'!G25 -> 0.05 | BE92: per cent | BF92: =IFERROR(VLOOKUP(BC92,'Input and Dasboard_draft'!$B$67:$F$73,4,FALSE),BC92) -> Grid | BG92: Toner-Grid | BH92: 214.2 | BI92: t | BJ92: 54028.59777 | BK92: 112.8784413 | BL92: 42251.79395 | BM92: 587.9906525 | BN92: 827.4269682 | BO92: 568.3913525 | BP92: 18805.67229
A93: Wearing | B93: ='Input and Dasboard_draft'!C109/'LCI and calculations'!B85 -> 163.3986928 | C93: ='Input and Dasboard_draft'!D109/'LCI and calculations'!C85 -> 29.95642702 | D93: =IFERROR('Input and Dasboard_draft'!E109/'LCI and calculations'!D85, 0) -> 25.67693744 | G93: ='Input and Dasboard_draft'!B26 -> Fly ash | H93: ='Input and Dasboard_draft'!C26 -> 0 | I93: per cent | J93: =IFERROR(VLOOKUP(G93,'Input and Dasboard_draft'!$B$67:$F$73,2,FALSE),G93) -> Grid | K93: Fly ash-Grid | L93: 0 | M93: t | N93: 0 | O93: 0 | P93: 0 | Q93: 0 | R93: 0 | S93: 0 | T93: 0 | AC93: ='Input and Dasboard_draft'!$B26 -> Fly ash | AD93: ='Input and Dasboard_draft'!E26 -> 0 | AE93: per cent | AF93: =IFERROR(VLOOKUP(AC93,'Input and Dasboard_draft'!$B$67:$F$73,3,FALSE),AC93) -> Grid | AG93: Fly ash-Grid | AH93: 0 | AI93: t | AJ93: 0 | AK93: 0 | AL93: 0 | AM93: 0 | AN93: 0 | AO93: 0 | AP93: 0 | BC93: ='Input and Dasboard_draft'!$B26 -> Fly ash | BD93: ='Input and Dasboard_draft'!G26 -> 0 | BE93: per cent | BF93: =IFERROR(VLOOKUP(BC93,'Input and Dasboard_draft'!$B$67:$F$73,4,FALSE),BC93) -> Grid | BG93: Fly ash-Grid | BH93: 0 | BI93: t | BJ93: 0 | BK93: 0 | BL93: 0 | BM93: 0 | BN93: 0 | BO93: 0 | BP93: 0
A94: Base course | B94: ='Input and Dasboard_draft'!C110/'LCI and calculations'!B86 -> 40.8496732 | C94: ='Input and Dasboard_draft'!D110/'LCI and calculations'!C86 -> 30.6372549 | D94: =IFERROR('Input and Dasboard_draft'!E110/'LCI and calculations'!D86, 0) -> 0 | G94: ='Input and Dasboard_draft'!B27 -> Recycled concrete | H94: ='Input and Dasboard_draft'!C27 -> 0 | I94: per cent | J94: =IFERROR(VLOOKUP(G94,'Input and Dasboard_draft'!$B$67:$F$73,2,FALSE),G94) -> Grid | K94: Recycled concrete-Grid | L94: 0 | M94: t | N94: 0 | O94: 0 | P94: 0 | Q94: 0 | R94: 0 | S94: 0 | T94: 0 | AC94: ='Input and Dasboard_draft'!$B27 -> Recycled concrete | AD94: ='Input and Dasboard_draft'!E27 -> 0 | AE94: per cent | AF94: =IFERROR(VLOOKUP(AC94,'Input and Dasboard_draft'!$B$67:$F$73,3,FALSE),AC94) -> Grid | AG94: Recycled concrete-Grid | AH94: 0 | AI94: t | AJ94: 0 | AK94: 0 | AL94: 0 | AM94: 0 | AN94: 0 | AO94: 0 | AP94: 0 | BC94: ='Input and Dasboard_draft'!$B27 -> Recycled concrete | BD94: ='Input and Dasboard_draft'!G27 -> 0 | BE94: per cent | BF94: =IFERROR(VLOOKUP(BC94,'Input and Dasboard_draft'!$B$67:$F$73,4,FALSE),BC94) -> Grid | BG94: Recycled concrete-Grid | BH94: 0 | BI94: t | BJ94: 0 | BK94: 0 | BL94: 0 | BM94: 0 | BN94: 0 | BO94: 0 | BP94: 0
A95: Subbase | B95: ='Input and Dasboard_draft'!C111/'LCI and calculations'!B87 -> 5.03626108 | C95: ='Input and Dasboard_draft'!D111/'LCI and calculations'!C87 -> 12.25490196 | D95: =IFERROR('Input and Dasboard_draft'!E111/'LCI and calculations'!D87, 0) -> 9.191176471 | G95: ='Input and Dasboard_draft'!B28 -> Waste tyre | H95: ='Input and Dasboard_draft'!C28 -> 0 | I95: per cent | J95: =IFERROR(VLOOKUP(G95,'Input and Dasboard_draft'!$B$67:$F$73,2,FALSE),G95) -> Grid | K95: Waste tyre-Grid | L95: 0 | M95: t | N95: 0 | O95: 0 | P95: 0 | Q95: 0 | R95: 0 | S95: 0 | T95: 0 | AC95: ='Input and Dasboard_draft'!$B28 -> Waste tyre | AD95: ='Input and Dasboard_draft'!E28 -> 0 | AE95: per cent | AF95: =IFERROR(VLOOKUP(AC95,'Input and Dasboard_draft'!$B$67:$F$73,3,FALSE),AC95) -> Grid | AG95: Waste tyre-Grid | AH95: 0 | AI95: t | AJ95: 0 | AK95: 0 | AL95: 0 | AM95: 0 | AN95: 0 | AO95: 0 | AP95: 0 | BC95: ='Input and Dasboard_draft'!$B28 -> Waste tyre | BD95: ='Input and Dasboard_draft'!G28 -> 0 | BE95: per cent | BF95: =IFERROR(VLOOKUP(BC95,'Input and Dasboard_draft'!$B$67:$F$73,4,FALSE),BC95) -> Grid | BG95: Waste tyre-Grid | BH95: 0 | BI95: t | BJ95: 0 | BK95: 0 | BL95: 0 | BM95: 0 | BN95: 0 | BO95: 0 | BP95: 0
G96: ='Input and Dasboard_draft'!B29 -> Lime | H96: ='Input and Dasboard_draft'!C29 -> 0 | I96: per cent | J96: =IFERROR(VLOOKUP(G96,'Input and Dasboard_draft'!$B$67:$F$73,2,FALSE),G96) -> Lime | K96: Lime | L96: 0 | M96: t | N96: 0 | O96: =L96*VLOOKUP($K96,Factors_LMCC,4,FALSE) -> 0 | P96: =L96*VLOOKUP($K96,Factors_LMCC,5,FALSE) -> 0 | Q96: =L96*VLOOKUP($K96,Factors_LMCC,6,FALSE) -> 0 | R96: =L96*VLOOKUP($K96,Factors_LMCC,7,FALSE) -> 0 | S96: =L96*VLOOKUP($K96,Factors_LMCC,8,FALSE) -> 0 | T96: =L96*VLOOKUP($K96,Factors_LMCC,9,FALSE) -> 0 | AC96: ='Input and Dasboard_draft'!$B29 -> Lime | AD96: ='Input and Dasboard_draft'!E29 -> 0 | AE96: per cent | AF96: =IFERROR(VLOOKUP(AC96,'Input and Dasboard_draft'!$B$67:$F$73,3,FALSE),AC96) -> Lime | AG96: =IF(AF96=AC96,AF96,AC96&"-"&AF96) -> Lime | AH96: =AD96*$C$85 -> 0 | AI96: t | AJ96: =AH96*VLOOKUP($AG96,Factors_LMCC,3,FALSE) -> 0 | AK96: =AH96*VLOOKUP($AG96,Factors_LMCC,4,FALSE) -> 0 | AL96: =AH96*VLOOKUP($AG96,Factors_LMCC,5,FALSE) -> 0 | AM96: =AH96*VLOOKUP($AG96,Factors_LMCC,6,FALSE) -> 0 | AN96: =AH96*VLOOKUP($AG96,Factors_LMCC,7,FALSE) -> 0 | AO96: =AH96*VLOOKUP($AG96,Factors_LMCC,8,FALSE) -> 0 | AP96: =AH96*VLOOKUP($AG96,Factors_LMCC,9,FALSE) -> 0 | BC96: ='Input and Dasboard_draft'!$B29 -> Lime | BD96: ='Input and Dasboard_draft'!G29 -> 0 | BE96: per cent | BF96: =IFERROR(VLOOKUP(BC96,'Input and Dasboard_draft'!$B$67:$F$73,4,FALSE),BC96) -> Lime | BG96: =IF(BF96=BC96,BF96,BC96&"-"&BF96) -> Lime | BH96: =BD96*$D$85 -> 0 | BI96: t | BJ96: =BH96*VLOOKUP($BG96,Factors_LMCC,3,FALSE) -> 0 | BK96: =BH96*VLOOKUP($BG96,Factors_LMCC,4,FALSE) -> 0 | BL96: =BH96*VLOOKUP($BG96,Factors_LMCC,5,FALSE) -> 0 | BM96: =BH96*VLOOKUP($BG96,Factors_LMCC,6,FALSE) -> 0 | BN96: =BH96*VLOOKUP($BG96,Factors_LMCC,7,FALSE) -> 0 | BO96: =BH96*VLOOKUP($BG96,Factors_LMCC,8,FALSE) -> 0 | BP96: =BH96*VLOOKUP($BG96,Factors_LMCC,9,FALSE) -> 0
G97: ='Input and Dasboard_draft'!B30 -> Cement | H97: ='Input and Dasboard_draft'!C30 -> 0 | I97: per cent | J97: =IFERROR(VLOOKUP(G97,'Input and Dasboard_draft'!$B$67:$F$73,2,FALSE),G97) -> Cement | K97: Cement | L97: 0 | M97: t | N97: 0 | O97: 0 | P97: 0 | Q97: 0 | R97: 0 | S97: 0 | T97: 0 | AC97: ='Input and Dasboard_draft'!$B30 -> Cement | AD97: ='Input and Dasboard_draft'!E30 -> 0 | AE97: per cent | AF97: =IFERROR(VLOOKUP(AC97,'Input and Dasboard_draft'!$B$67:$F$73,3,FALSE),AC97) -> Cement | AG97: Cement | AH97: 0 | AI97: t | AJ97: 0 | AK97: 0 | AL97: 0 | AM97: 0 | AN97: 0 | AO97: 0 | AP97: 0 | BC97: ='Input and Dasboard_draft'!$B30 -> Cement | BD97: ='Input and Dasboard_draft'!G30 -> 0 | BE97: per cent | BF97: =IFERROR(VLOOKUP(BC97,'Input and Dasboard_draft'!$B$67:$F$73,4,FALSE),BC97) -> Cement | BG97: Cement | BH97: 0 | BI97: t | BJ97: 0 | BK97: 0 | BL97: 0 | BM97: 0 | BN97: 0 | BO97: 0 | BP97: 0
G98: Utilities - Asphalt manufacturing | AC98: Utilities - Asphalt manufacturing | BC98: Utilities - Asphalt manufacturing
C99: Asphalt | D99: Base course | E99: Sub-base | Y99: Asphalt | Z99: Base course | AA99: Sub-base | AY99: Asphalt | AZ99: Base course | BA99: Sub-base
B100: Global warming (kg CO2 eq.) | C100: =SUM(N85:N97)+SUM(N101:N104)+SUM(N143:N155)+(SUM(C169:C183)+(SUM(N188:N190)/3)+SUM(N196:N198)+N202+SUM(N205:N221)+N227+(SUM(N274:N275)/3)+(N281/3)+(SUM(N287:N288)/3)-SUM(C297:C306)) -> 371078.1421 | D100: =SUM(N112:N121)+SUM(D169:D183)+(SUM(N188:N190)/3)+(SUM(N274:N275)/3)+(N281/3)+(SUM(N287:N288)/3)-SUM(D297:D306) -> 332795.7365 | E100: =SUM(N125:N134)+SUM(E169:E183)+(SUM(N188:N190)/3)+(SUM(N274:N275)/3)+(N281/3)+(SUM(N287:N288)/3)-SUM(E297:E306) -> 320864.6172 | G100: Item | H100: Amount per t | I100: Unit | J100: Electricity type | K100: Vlookup | L100: Amount | M100: Unit | N100: Global warming (kg CO2 eq.) | O100: Water consumption (m3) | P100: Terrestrial ecotoxicity (kg 1,4-DCB) | Q100: Freshwater ecotoxicity (kg 1,4-DCB) | R100: Marine ecotoxicity (kg 1,4-DCB) | S100: Human carcinogenic toxicity (kg 1,4-DCB) | T100: Human non-carcinogenic toxicity (kg 1,4-DCB) | X100: Global warming (kg CO2 eq.) | Y100: =SUM(AJ85:AJ97)+SUM(AJ101:AJ104)+SUM(AJ143:AJ155)+(SUM(Y169:Y183)+(SUM(AJ188:AJ190)/3)+SUM(AJ196:AJ198)+AJ202+SUM(AJ205:AJ221)+AJ227+(SUM(AJ274:AJ275)/3)+(AJ281/3)+(SUM(AJ287:AJ288)/3)-SUM(Y297:Y306)) -> 705730.3912 | Z100: =SUM(AJ112:AJ121)+SUM(Z169:Z183)+(SUM(AJ188:AJ190)/3)+(SUM(AJ274:AJ275)/3)+(AJ281/3)+(SUM(AJ287:AJ288)/3)-SUM(Z297:Z306) -> 327056.0712 | AA100: =SUM(AJ125:AJ134)+SUM(AA169:AA183)+(SUM(AJ188:AJ190)/3)+(SUM(AJ274:AJ275)/3)+(AJ281/3)+(SUM(AJ287:AJ288)/3)-SUM(AA297:AA306) -> 236254.0554 | AC100: Item | AD100: Amount per t | AE100: Unit | AF100: Electricity type | AG100: Vlookup | AH100: Amount | AI100: Unit | AJ100: Global warming (kg CO2 eq.) | AK100: Water consumption (m3) | AL100: Terrestrial ecotoxicity (kg 1,4-DCB) | AM100: Freshwater ecotoxicity (kg 1,4-DCB) | AN100: Marine ecotoxicity (kg 1,4-DCB) | AO100: Human carcinogenic toxicity (kg 1,4-DCB) | AP100: Human non-carcinogenic toxicity (kg 1,4-DCB) | AX100: Global warming (kg CO2 eq.) | AY100: =SUM(BJ85:BJ97)+SUM(BJ101:BJ104)+SUM(BJ143:BJ155)+(SUM(AY169:AY183)+(SUM(BJ188:BJ190)/3)+SUM(BJ196:BJ198)+BJ202+SUM(BJ205:BJ221)+BJ227+(SUM(BJ274:BJ275)/3)+(BJ281/3)+(SUM(BJ287:BJ288)/3)-SUM(AY297:AY306)) -> 750523.3045 | AZ100: =SUM(BJ112:BJ121)+SUM(AZ169:AZ183)+(SUM(BJ188:BJ190)/3)+(SUM(BJ274:BJ275)/3)+(BJ281/3)+(SUM(BJ287:BJ288)/3)-SUM(AZ297:AZ306) -> 131554.1238 | BA100: =SUM(BJ125:BJ134)+SUM(BA169:BA183)+(SUM(BJ188:BJ190)/3)+(SUM(BJ274:BJ275)/3)+(BJ281/3)+(SUM(BJ287:BJ288)/3)-SUM(BA297:BA306) -> 224707.3471 | BC100: Item | BD100: Amount per t | BE100: Unit | BF100: Electricity type | BG100: Vlookup | BH100: Amount | BI100: Unit | BJ100: Global warming (kg CO2 eq.) | BK100: Water consumption (m3) | BL100: Terrestrial ecotoxicity (kg 1,4-DCB) | BM100: Freshwater ecotoxicity (kg 1,4-DCB) | BN100: Marine ecotoxicity (kg 1,4-DCB) | BO100: Human carcinogenic toxicity (kg 1,4-DCB) | BP100: Human non-carcinogenic toxicity (kg 1,4-DCB)
G101: Electricity | H101: =IF('Input and Dasboard_draft'!C67="Renewable",0,'Assumptions and data for tool'!B3) -> 2.704 | I101: kWh/t | J101: =IFERROR(VLOOKUP(G101,'Input and Dasboard_draft'!$B$67:$F$73,2,FALSE),G101) -> Electricity | K101: =J101 -> Electricity | L101: =H101*$B$85 -> 3309.696 | M101: kWh | N101: =L101*VLOOKUP($K101,Factors_LMCC,3,FALSE) -> 2312.0779 | O101: =L101*VLOOKUP($K101,Factors_LMCC,4,FALSE) -> 4.96443809 | P101: =L101*VLOOKUP($K101,Factors_LMCC,5,FALSE) -> 371.7573006 | Q101: =L101*VLOOKUP($K101,Factors_LMCC,6,FALSE) -> 17.94709928 | R101: =L101*VLOOKUP($K101,Factors_LMCC,7,FALSE) -> 24.65751785 | S101: =L101*VLOOKUP($K101,Factors_LMCC,8,FALSE) -> 4.458202545 | T101: =L101*VLOOKUP($K101,Factors_LMCC,9,FALSE) -> 500.8977 | AC101: Electricity | AD101: =IF('Input and Dasboard_draft'!AK67="Renewable",0,'Assumptions and data for tool'!C3) -> 2.704 | AE101: kWh/t | AF101: =IFERROR(VLOOKUP(AC101,'Input and Dasboard_draft'!$B$67:$F$73,3,FALSE),AC101) -> Electricity | AG101: =AF101 -> Electricity | AH101: =AD101*$C$85 -> 9929.088 | AI101: kWh | AJ101: =AH101*VLOOKUP($AG101,Factors_LMCC,3,FALSE) -> 6936.233699 | AK101: =AH101*VLOOKUP($AG101,Factors_LMCC,4,FALSE) -> 14.89331427 | AL101: =AH101*VLOOKUP($AG101,Factors_LMCC,5,FALSE) -> 1115.271902 | AM101: =AH101*VLOOKUP($AG101,Factors_LMCC,6,FALSE) -> 53.84129784 | AN101: =AH101*VLOOKUP($AG101,Factors_LMCC,7,FALSE) -> 73.97255354 | AO101: =AH101*VLOOKUP($AG101,Factors_LMCC,8,FALSE) -> 13.37460764 | AP101: =AH101*VLOOKUP($AG101,Factors_LMCC,9,FALSE) -> 1502.6931 | BC101: Electricity | BD101: =IF('Input and Dasboard_draft'!E67="Renewable",0,'Assumptions and data for tool'!D3) -> 2.704 | BE101: kWh/t | BF101: =IFERROR(VLOOKUP(BC101,'Input and Dasboard_draft'!$B$67:$F$73,4,FALSE),BC101) -> Electricity | BG101: =BF101 -> Electricity | BH101: =BD101*$D$85 -> 11583.936 | BI101: kWh | BJ101: =BH101*VLOOKUP($BG101,Factors_LMCC,3,FALSE) -> 8092.272649 | BK101: =BH101*VLOOKUP($BG101,Factors_LMCC,4,FALSE) -> 17.37553331 | BL101: =BH101*VLOOKUP($BG101,Factors_LMCC,5,FALSE) -> 1301.150552 | BM101: =BH101*VLOOKUP($BG101,Factors_LMCC,6,FALSE) -> 62.81484748 | BN101: =BH101*VLOOKUP($BG101,Factors_LMCC,7,FALSE) -> 86.30131247 | BO101: =BH101*VLOOKUP($BG101,Factors_LMCC,8,FALSE) -> 15.60370891 | BP101: =BH101*VLOOKUP($BG101,Factors_LMCC,9,FALSE) -> 1753.14195
G102: Gas | H102: ='Assumptions and data for tool'!B4 -> 250 | I102: MJ/t | J102: =IFERROR(VLOOKUP(G102,'Input and Dasboard_draft'!$B$67:$F$73,2,FALSE),G102) -> Gas | K102: =J102 -> Gas | L102: =H102*$B$85 -> 306000 | M102: MJ | N102: =L102*VLOOKUP($K102,Factors_LMCC,3,FALSE) -> 19300.3637 | O102: =L102*VLOOKUP($K102,Factors_LMCC,4,FALSE) -> 1.01612502 | P102: =L102*VLOOKUP($K102,Factors_LMCC,5,FALSE) -> 777.4003746 | Q102: =L102*VLOOKUP($K102,Factors_LMCC,6,FALSE) -> 7.398424242 | R102: =L102*VLOOKUP($K102,Factors_LMCC,7,FALSE) -> 10.58099346 | S102: =L102*VLOOKUP($K102,Factors_LMCC,8,FALSE) -> 17.87209952 | T102: =L102*VLOOKUP($K102,Factors_LMCC,9,FALSE) -> 238.6468908 | AC102: Gas | AD102: ='Assumptions and data for tool'!C4 -> 250 | AE102: MJ/t | AF102: =IFERROR(VLOOKUP(AC102,'Input and Dasboard_draft'!$B$67:$F$73,3,FALSE),AC102) -> Gas | AG102: =AF102 -> Gas | AH102: =AD102*$C$85 -> 918000 | AI102: MJ | AJ102: =AH102*VLOOKUP($AG102,Factors_LMCC,3,FALSE) -> 57901.09111 | AK102: =AH102*VLOOKUP($AG102,Factors_LMCC,4,FALSE) -> 3.04837506 | AL102: =AH102*VLOOKUP($AG102,Factors_LMCC,5,FALSE) -> 2332.201124 | AM102: =AH102*VLOOKUP($AG102,Factors_LMCC,6,FALSE) -> 22.19527273 | AN102: =AH102*VLOOKUP($AG102,Factors_LMCC,7,FALSE) -> 31.74298038 | AO102: =AH102*VLOOKUP($AG102,Factors_LMCC,8,FALSE) -> 53.61629857 | AP102: =AH102*VLOOKUP($AG102,Factors_LMCC,9,FALSE) -> 715.9406724 | BC102: Gas | BD102: ='Assumptions and data for tool'!D4 -> 250 | BE102: MJ/t | BF102: =IFERROR(VLOOKUP(BC102,'Input and Dasboard_draft'!$B$67:$F$73,4,FALSE),BC102) -> Gas | BG102: =BF102 -> Gas | BH102: =BD102*$D$85 -> 1071000 | BI102: MJ | BJ102: =BH102*VLOOKUP($BG102,Factors_LMCC,3,FALSE) -> 67551.27296 | BK102: =BH102*VLOOKUP($BG102,Factors_LMCC,4,FALSE) -> 3.55643757 | BL102: =BH102*VLOOKUP($BG102,Factors_LMCC,5,FALSE) -> 2720.901311 | BM102: =BH102*VLOOKUP($BG102,Factors_LMCC,6,FALSE) -> 25.89448485 | BN102: =BH102*VLOOKUP($BG102,Factors_LMCC,7,FALSE) -> 37.03347711 | BO102: =BH102*VLOOKUP($BG102,Factors_LMCC,8,FALSE) -> 62.55234833 | BP102: =BH102*VLOOKUP($BG102,Factors_LMCC,9,FALSE) -> 835.2641178
G103: Diesel | H103: ='Assumptions and data for tool'!B5 -> 0 | I103: L/t | J103: =IFERROR(VLOOKUP(G103,'Input and Dasboard_draft'!$B$67:$F$73,2,FALSE),G103) -> Diesel | K103: Diesel | L103: =H103*$B$85 -> 0 | M103: L | N103: =L103*VLOOKUP($K103,Factors_LMCC,3,FALSE) -> 0 | O103: =L103*VLOOKUP($K103,Factors_LMCC,4,FALSE) -> 0 | P103: =L103*VLOOKUP($K103,Factors_LMCC,5,FALSE) -> 0 | Q103: =L103*VLOOKUP($K103,Factors_LMCC,6,FALSE) -> 0 | R103: =L103*VLOOKUP($K103,Factors_LMCC,7,FALSE) -> 0 | S103: =L103*VLOOKUP($K103,Factors_LMCC,8,FALSE) -> 0 | T103: =L103*VLOOKUP($K103,Factors_LMCC,9,FALSE) -> 0 | AC103: Diesel | AD103: ='Assumptions and data for tool'!C5 -> 0 | AE103: L/t | AF103: =IFERROR(VLOOKUP(AC103,'Input and Dasboard_draft'!$B$67:$F$73,3,FALSE),AC103) -> Diesel | AG103: Diesel | AH103: 0 | AI103: L | AJ103: =AH103*VLOOKUP($AG103,Factors_LMCC,3,FALSE) -> 0 | AK103: =AH103*VLOOKUP($AG103,Factors_LMCC,4,FALSE) -> 0 | AL103: =AH103*VLOOKUP($AG103,Factors_LMCC,5,FALSE) -> 0 | AM103: =AH103*VLOOKUP($AG103,Factors_LMCC,6,FALSE) -> 0 | AN103: =AH103*VLOOKUP($AG103,Factors_LMCC,7,FALSE) -> 0 | AO103: =AH103*VLOOKUP($AG103,Factors_LMCC,8,FALSE) -> 0 | AP103: =AH103*VLOOKUP($AG103,Factors_LMCC,9,FALSE) -> 0 | BC103: Diesel | BD103: ='Assumptions and data for tool'!D5 -> 0 | BE103: L/t | BF103: =IFERROR(VLOOKUP(BC103,'Input and Dasboard_draft'!$B$67:$F$73,4,FALSE),BC103) -> Diesel | BG103: Diesel | BH103: 0 | BI103: L | BJ103: =BH103*VLOOKUP($BG103,Factors_LMCC,3,FALSE) -> 0 | BK103: =BH103*VLOOKUP($BG103,Factors_LMCC,4,FALSE) -> 0 | BL103: =BH103*VLOOKUP($BG103,Factors_LMCC,5,FALSE) -> 0 | BM103: =BH103*VLOOKUP($BG103,Factors_LMCC,6,FALSE) -> 0 | BN103: =BH103*VLOOKUP($BG103,Factors_LMCC,7,FALSE) -> 0 | BO103: =BH103*VLOOKUP($BG103,Factors_LMCC,8,FALSE) -> 0 | BP103: =BH103*VLOOKUP($BG103,Factors_LMCC,9,FALSE) -> 0
G104: Water | H104: ='Assumptions and data for tool'!B6 -> 0 | I104: L/t | J104: =IFERROR(VLOOKUP(G104,'Input and Dasboard_draft'!$B$67:$F$73,2,FALSE),G104) -> Water | K104: Water | L104: =H104*$B$85 -> 0 | M104: L | N104: =L104*VLOOKUP($K104,Factors_LMCC,3,FALSE) -> 0 | O104: =L104*VLOOKUP($K104,Factors_LMCC,4,FALSE) -> 0 | P104: =L104*VLOOKUP($K104,Factors_LMCC,5,FALSE) -> 0 | Q104: =L104*VLOOKUP($K104,Factors_LMCC,6,FALSE) -> 0 | R104: =L104*VLOOKUP($K104,Factors_LMCC,7,FALSE) -> 0 | S104: =L104*VLOOKUP($K104,Factors_LMCC,8,FALSE) -> 0 | T104: =L104*VLOOKUP($K104,Factors_LMCC,9,FALSE) -> 0 | AC104: Water | AD104: ='Assumptions and data for tool'!C6 -> 0 | AE104: L/t | AF104: =IFERROR(VLOOKUP(AC104,'Input and Dasboard_draft'!$B$67:$F$73,3,FALSE),AC104) -> Water | AG104: Water | AH104: 0 | AI104: L | AJ104: =AH104*VLOOKUP($AG104,Factors_LMCC,3,FALSE) -> 0 | AK104: =AH104*VLOOKUP($AG104,Factors_LMCC,4,FALSE) -> 0 | AL104: =AH104*VLOOKUP($AG104,Factors_LMCC,5,FALSE) -> 0 | AM104: =AH104*VLOOKUP($AG104,Factors_LMCC,6,FALSE) -> 0 | AN104: =AH104*VLOOKUP($AG104,Factors_LMCC,7,FALSE) -> 0 | AO104: =AH104*VLOOKUP($AG104,Factors_LMCC,8,FALSE) -> 0 | AP104: =AH104*VLOOKUP($AG104,Factors_LMCC,9,FALSE) -> 0 | BC104: Water | BD104: ='Assumptions and data for tool'!D6 -> 0 | BE104: L/t | BF104: =IFERROR(VLOOKUP(BC104,'Input and Dasboard_draft'!$B$67:$F$73,4,FALSE),BC104) -> Water | BG104: Water | BH104: 0 | BI104: L | BJ104: =BH104*VLOOKUP($BG104,Factors_LMCC,3,FALSE) -> 0 | BK104: =BH104*VLOOKUP($BG104,Factors_LMCC,4,FALSE) -> 0 | BL104: =BH104*VLOOKUP($BG104,Factors_LMCC,5,FALSE) -> 0 | BM104: =BH104*VLOOKUP($BG104,Factors_LMCC,6,FALSE) -> 0 | BN104: =BH104*VLOOKUP($BG104,Factors_LMCC,7,FALSE) -> 0 | BO104: =BH104*VLOOKUP($BG104,Factors_LMCC,8,FALSE) -> 0 | BP104: =BH104*VLOOKUP($BG104,Factors_LMCC,9,FALSE) -> 0
A105: Lifecycle BOM | B105: Tonnes
A108: Wearing | B108: =B85+SUM(L205:L221)+SUM(L229:L245) -> 3684.24 | C108: =C85+SUM(AH205:AH221)+SUM(AH229:AH245) -> 6156.72 | D108: =D85+SUM(BH205:BH221)+SUM(BH229:BH245) -> 6774.84
A109: Base | B109: =B86 -> 2448 | C109: =C86 -> 3264 | D109: 0 | G109: Basecourse composition | AC109: Basecourse composition | BC109: Basecourse composition
A110: Subbase | B110: =B87 -> 5956.8 | C110: =C87 -> 2448 | D110: 3264
A111: Project cost | G111: Item | H111: Amount per t | I111: Unit | J111: Electricity type | K111: Vlookup | L111: Amount | M111: Unit | N111: Global warming (kg CO2 eq.) | O111: Water consumption (m3) | P111: Terrestrial ecotoxicity (kg 1,4-DCB) | Q111: Freshwater ecotoxicity (kg 1,4-DCB) | R111: Marine ecotoxicity (kg 1,4-DCB) | S111: Human carcinogenic toxicity (kg 1,4-DCB) | T111: Human non-carcinogenic toxicity (kg 1,4-DCB) | AC111: Item | AD111: Amount per t | AE111: Unit | AF111: Electricity type | AG111: Vlookup | AH111: Amount | AI111: Unit | AJ111: Global warming (kg CO2 eq.) | AK111: Water consumption (m3) | AL111: Terrestrial ecotoxicity (kg 1,4-DCB) | AM111: Freshwater ecotoxicity (kg 1,4-DCB) | AN111: Marine ecotoxicity (kg 1,4-DCB) | AO111: Human carcinogenic toxicity (kg 1,4-DCB) | AP111: Human non-carcinogenic toxicity (kg 1,4-DCB) | BC111: Item | BD111: Amount per t | BE111: Unit | BF111: Electricity type | BG111: Vlookup | BH111: Amount | BI111: Unit | BJ111: Global warming (kg CO2 eq.) | BK111: Water consumption (m3) | BL111: Terrestrial ecotoxicity (kg 1,4-DCB) | BM111: Freshwater ecotoxicity (kg 1,4-DCB) | BN111: Marine ecotoxicity (kg 1,4-DCB) | BO111: Human carcinogenic toxicity (kg 1,4-DCB) | BP111: Human non-carcinogenic toxicity (kg 1,4-DCB)
A112: Wearing | B112: =B108*B93 -> 602000 | C112: 184433.3333 | D112: 173957.1429 | G112: ='Input and Dasboard_draft'!B32 -> Stabilised gravel | H112: ='Input and Dasboard_draft'!C32 -> 0.92 | I112: per cent | J112: =IFERROR(VLOOKUP(G112,'Input and Dasboard_draft'!$B$67:$F$73,2,FALSE),G112) -> Stabilised gravel | K112: =IF(J112=G112,J112,G112&"-"&J112) -> Stabilised gravel | L112: =H112*$B$86 -> 2252.16 | M112: t | N112: =L112*VLOOKUP($K112,Factors_LMCC,3,FALSE) -> 122537.2397 | O112: =L112*VLOOKUP($K112,Factors_LMCC,4,FALSE) -> 3202.336845 | P112: =L112*VLOOKUP($K112,Factors_LMCC,5,FALSE) -> 160615.1034 | Q112: =L112*VLOOKUP($K112,Factors_LMCC,6,FALSE) -> 476.1410145 | R112: =L112*VLOOKUP($K112,Factors_LMCC,7,FALSE) -> 736.6008862 | S112: =L112*VLOOKUP($K112,Factors_LMCC,8,FALSE) -> 1077.964629 | T112: =L112*VLOOKUP($K112,Factors_LMCC,9,FALSE) -> 16119.96943 | AC112: ='Input and Dasboard_draft'!$B32 -> Stabilised gravel | AD112: ='Input and Dasboard_draft'!E32 -> 0.92 | AE112: per cent | AF112: =IFERROR(VLOOKUP(AC112,'Input and Dasboard_draft'!$B$67:$F$73,3,FALSE),AC112) -> Stabilised gravel | AG112: =IF(AF112=AC112,AF112,AC112&"-"&AF112) -> Stabilised gravel | AH112: =AD112*$C$86 -> 3002.88 | AI112: t | AJ112: =AH112*VLOOKUP($AG112,Factors_LMCC,3,FALSE) -> 163382.9862 | AK112: =AH112*VLOOKUP($AG112,Factors_LMCC,4,FALSE) -> 4269.78246 | AL112: =AH112*VLOOKUP($AG112,Factors_LMCC,5,FALSE) -> 214153.4712 | AM112: =AH112*VLOOKUP($AG112,Factors_LMCC,6,FALSE) -> 634.854686 | AN112: =AH112*VLOOKUP($AG112,Factors_LMCC,7,FALSE) -> 982.1345149 | AO112: =AH112*VLOOKUP($AG112,Factors_LMCC,8,FALSE) -> 1437.286171 | AP112: =AH112*VLOOKUP($AG112,Factors_LMCC,9,FALSE) -> 21493.29257 | BC112: ='Input and Dasboard_draft'!$B32 -> Stabilised gravel | BD112: ='Input and Dasboard_draft'!G32 -> 0.92 | BE112: per cent | BF112: =IFERROR(VLOOKUP(BC112,'Input and Dasboard_draft'!$B$67:$F$73,4,FALSE),BC112) -> Stabilised gravel | BG112: =IF(BF112=BC112,BF112,BC112&"-"&BF112) -> Stabilised gravel | BH112: =BD112*$D$86 -> 0 | BI112: t | BJ112: =BH112*VLOOKUP($BG112,Factors_LMCC,3,FALSE) -> 0 | BK112: =BH112*VLOOKUP($BG112,Factors_LMCC,4,FALSE) -> 0 | BL112: =BH112*VLOOKUP($BG112,Factors_LMCC,5,FALSE) -> 0 | BM112: =BH112*VLOOKUP($BG112,Factors_LMCC,6,FALSE) -> 0 | BN112: =BH112*VLOOKUP($BG112,Factors_LMCC,7,FALSE) -> 0 | BO112: =BH112*VLOOKUP($BG112,Factors_LMCC,8,FALSE) -> 0 | BP112: =BH112*VLOOKUP($BG112,Factors_LMCC,9,FALSE) -> 0
A113: Base | B113: 100000 | C113: 100000 | D113: 0 | G113: ='Input and Dasboard_draft'!B33 -> Glass | H113: ='Input and Dasboard_draft'!C33 -> 0.03 | I113: per cent | J113: =IFERROR(VLOOKUP(G113,'Input and Dasboard_draft'!$B$67:$F$73,2,FALSE),G113) -> Grid | K113: =IF(J113=G113,J113,G113&"-"&J113) -> Glass-Grid | L113: 73.44 | M113: t | N113: 295.7748044 | O113: 0.4393481904 | P113: 161.7579232 | Q113: 3.109254029 | R113: 4.329277351 | S113: 2.309574315 | T113: 106.848752 | AC113: ='Input and Dasboard_draft'!$B33 -> Glass | AD113: ='Input and Dasboard_draft'!E33 -> 0.03 | AE113: per cent | AF113: =IFERROR(VLOOKUP(AC113,'Input and Dasboard_draft'!$B$67:$F$73,3,FALSE),AC113) -> Grid | AG113: =IF(AF113=AC113,AF113,AC113&"-"&AF113) -> Glass-Grid | AH113: =AD113*$C$86 -> 97.92 | AI113: t | AJ113: 394.3664058 | AK113: 0.5857975872 | AL113: 215.6772309 | AM113: 4.145672039 | AN113: 5.772369802 | AO113: 3.07943242 | AP113: 142.4650026 | BC113: ='Input and Dasboard_draft'!$B33 -> Glass | BD113: ='Input and Dasboard_draft'!G33 -> 0.03 | BE113: per cent | BF113: =IFERROR(VLOOKUP(BC113,'Input and Dasboard_draft'!$B$67:$F$73,4,FALSE),BC113) -> Grid | BG113: =IF(BF113=BC113,BF113,BC113&"-"&BF113) -> Glass-Grid | BH113: =BD113*$D$86 -> 0 | BI113: t | BJ113: 0 | BK113: 0 | BL113: 0 | BM113: 0 | BN113: 0 | BO113: 0 | BP113: 0
A114: Subbase | B114: 30000 | C114: 30000 | D114: 30000 | G114: ='Input and Dasboard_draft'!B34 -> Plastics | H114: ='Input and Dasboard_draft'!C34 -> 0.04 | I114: per cent | J114: =IFERROR(VLOOKUP(G114,'Input and Dasboard_draft'!$B$67:$F$73,2,FALSE),G114) -> Grid | K114: Plastics-Grid | L114: 97.92 | M114: t | N114: 8600.412401 | O114: 21.06784541 | P114: 5685.767591 | Q114: 99.88541107 | R114: 139.5210182 | S114: 81.57971652 | T114: 3267.183249 | AC114: ='Input and Dasboard_draft'!$B34 -> Plastics | AD114: ='Input and Dasboard_draft'!E34 -> 0.04 | AE114: per cent | AF114: =IFERROR(VLOOKUP(AC114,'Input and Dasboard_draft'!$B$67:$F$73,3,FALSE),AC114) -> Grid | AG114: Plastics-Grid | AH114: 130.56 | AI114: t | AJ114: 11467.21654 | AK114: 28.09046054 | AL114: 7581.023455 | AM114: 133.1805481 | AN114: 186.0280243 | AO114: 108.7729554 | AP114: 4356.244332 | BC114: ='Input and Dasboard_draft'!$B34 -> Plastics | BD114: ='Input and Dasboard_draft'!G34 -> 0.04 | BE114: per cent | BF114: =IFERROR(VLOOKUP(BC114,'Input and Dasboard_draft'!$B$67:$F$73,4,FALSE),BC114) -> Grid | BG114: Plastics-Grid | BH114: 0 | BI114: t | BJ114: 0 | BK114: 0 | BL114: 0 | BM114: 0 | BN114: 0 | BO114: 0 | BP114: 0
B115: =SUM(B112:B114) -> 732000 | C115: =SUM(C112:C114) -> 314433.3333 | D115: 203957.1429 | G115: ='Input and Dasboard_draft'!B35 -> Toner | H115: ='Input and Dasboard_draft'!C35 -> 0 | I115: per cent | J115: =IFERROR(VLOOKUP(G115,'Input and Dasboard_draft'!$B$67:$F$73,2,FALSE),G115) -> Grid | K115: Toner-Grid | L115: 0 | M115: t | N115: 0 | O115: 0 | P115: 0 | Q115: 0 | R115: 0 | S115: 0 | T115: 0 | AC115: ='Input and Dasboard_draft'!$B35 -> Toner | AD115: ='Input and Dasboard_draft'!E35 -> 0 | AE115: per cent | AF115: =IFERROR(VLOOKUP(AC115,'Input and Dasboard_draft'!$B$67:$F$73,3,FALSE),AC115) -> Grid | AG115: Toner-Grid | AH115: 0 | AI115: t | AJ115: 0 | AK115: 0 | AL115: 0 | AM115: 0 | AN115: 0 | AO115: 0 | AP115: 0 | BC115: ='Input and Dasboard_draft'!$B35 -> Toner | BD115: ='Input and Dasboard_draft'!G35 -> 0 | BE115: per cent | BF115: =IFERROR(VLOOKUP(BC115,'Input and Dasboard_draft'!$B$67:$F$73,4,FALSE),BC115) -> Grid | BG115: Toner-Grid | BH115: 0 | BI115: t | BJ115: 0 | BK115: 0 | BL115: 0 | BM115: 0 | BN115: 0 | BO115: 0 | BP115: 0
G116: ='Input and Dasboard_draft'!B36 -> Fly ash | H116: ='Input and Dasboard_draft'!C36 -> 0.01 | I116: per cent | J116: =IFERROR(VLOOKUP(G116,'Input and Dasboard_draft'!$B$67:$F$73,2,FALSE),G116) -> Grid | K116: Fly ash-Grid | L116: 24.48 | M116: t | N116: 0 | O116: 0 | P116: 0 | Q116: 0 | R116: 0 | S116: 0 | T116: 0 | AC116: ='Input and Dasboard_draft'!$B36 -> Fly ash | AD116: ='Input and Dasboard_draft'!E36 -> 0.01 | AE116: per cent | AF116: =IFERROR(VLOOKUP(AC116,'Input and Dasboard_draft'!$B$67:$F$73,3,FALSE),AC116) -> Grid | AG116: Fly ash-Grid | AH116: 32.64 | AI116: t | AJ116: 0 | AK116: 0 | AL116: 0 | AM116: 0 | AN116: 0 | AO116: 0 | AP116: 0 | BC116: ='Input and Dasboard_draft'!$B36 -> Fly ash | BD116: ='Input and Dasboard_draft'!G36 -> 0.01 | BE116: per cent | BF116: =IFERROR(VLOOKUP(BC116,'Input and Dasboard_draft'!$B$67:$F$73,4,FALSE),BC116) -> Grid | BG116: Fly ash-Grid | BH116: 0 | BI116: t | BJ116: 0 | BK116: 0 | BL116: 0 | BM116: 0 | BN116: 0 | BO116: 0 | BP116: 0
G117: ='Input and Dasboard_draft'!B37 -> Recycled concrete | H117: ='Input and Dasboard_draft'!C37 -> 0 | I117: per cent | J117: =IFERROR(VLOOKUP(G117,'Input and Dasboard_draft'!$B$67:$F$73,2,FALSE),G117) -> Grid | K117: Recycled concrete-Grid | L117: 0 | N117: 0 | O117: 0 | P117: 0 | Q117: 0 | R117: 0 | S117: 0 | T117: 0 | AC117: ='Input and Dasboard_draft'!$B37 -> Recycled concrete | AD117: ='Input and Dasboard_draft'!E37 -> 0 | AE117: per cent | AF117: =IFERROR(VLOOKUP(AC117,'Input and Dasboard_draft'!$B$67:$F$73,3,FALSE),AC117) -> Grid | AG117: Recycled concrete-Grid | AH117: 0 | AJ117: 0 | AK117: 0 | AL117: 0 | AM117: 0 | AN117: 0 | AO117: 0 | AP117: 0 | BC117: ='Input and Dasboard_draft'!$B37 -> Recycled concrete | BD117: ='Input and Dasboard_draft'!G37 -> 0 | BE117: per cent | BF117: =IFERROR(VLOOKUP(BC117,'Input and Dasboard_draft'!$B$67:$F$73,4,FALSE),BC117) -> Grid | BG117: Recycled concrete-Grid | BH117: 0 | BJ117: 0 | BK117: 0 | BL117: 0 | BM117: 0 | BN117: 0 | BO117: 0 | BP117: 0
G118: ='Input and Dasboard_draft'!B38 -> Waste tyre | H118: ='Input and Dasboard_draft'!C38 -> 0 | I118: per cent | J118: =IFERROR(VLOOKUP(G118,'Input and Dasboard_draft'!$B$67:$F$73,2,FALSE),G118) -> Grid | K118: Waste tyre-Grid | L118: 0 | N118: 0 | O118: 0 | P118: 0 | Q118: 0 | R118: 0 | S118: 0 | T118: 0 | AC118: ='Input and Dasboard_draft'!$B38 -> Waste tyre | AD118: ='Input and Dasboard_draft'!E38 -> 0 | AE118: per cent | AF118: =IFERROR(VLOOKUP(AC118,'Input and Dasboard_draft'!$B$67:$F$73,3,FALSE),AC118) -> Grid | AG118: Waste tyre-Grid | AH118: 0 | AJ118: 0 | AK118: 0 | AL118: 0 | AM118: 0 | AN118: 0 | AO118: 0 | AP118: 0 | BC118: ='Input and Dasboard_draft'!$B38 -> Waste tyre | BD118: ='Input and Dasboard_draft'!G38 -> 0 | BE118: per cent | BF118: =IFERROR(VLOOKUP(BC118,'Input and Dasboard_draft'!$B$67:$F$73,4,FALSE),BC118) -> Grid | BG118: Waste tyre-Grid | BH118: 0 | BJ118: 0 | BK118: 0 | BL118: 0 | BM118: 0 | BN118: 0 | BO118: 0 | BP118: 0
G119: ='Input and Dasboard_draft'!B39 -> RAP | H119: ='Input and Dasboard_draft'!C39 -> 0 | I119: per cent | J119: =IFERROR(VLOOKUP(G119,'Input and Dasboard_draft'!$B$67:$F$75,2,FALSE),G119) -> RAP | K119: RAP | L119: =H119*$B$86 -> 0 | N119: =L119*VLOOKUP($K119,Factors_LMCC,3,FALSE) -> 0 | O119: =L119*VLOOKUP($K119,Factors_LMCC,4,FALSE) -> 0 | P119: =L119*VLOOKUP($K119,Factors_LMCC,5,FALSE) -> 0 | Q119: =L119*VLOOKUP($K119,Factors_LMCC,6,FALSE) -> 0 | R119: =L119*VLOOKUP($K119,Factors_LMCC,7,FALSE) -> 0 | S119: =L119*VLOOKUP($K119,Factors_LMCC,8,FALSE) -> 0 | T119: =L119*VLOOKUP($K119,Factors_LMCC,9,FALSE) -> 0 | AC119: ='Input and Dasboard_draft'!$B39 -> RAP | AD119: ='Input and Dasboard_draft'!E39 -> 0 | AE119: per cent | AF119: =IFERROR(VLOOKUP(AC119,'Input and Dasboard_draft'!$B$67:$F$75,3,FALSE),AC119) -> RAP | AG119: RAP | AH119: =AD119*$C$86 -> 0 | AJ119: =AH119*VLOOKUP($AG119,Factors_LMCC,3,FALSE) -> 0 | AK119: =AH119*VLOOKUP($AG119,Factors_LMCC,4,FALSE) -> 0 | AL119: =AH119*VLOOKUP($AG119,Factors_LMCC,5,FALSE) -> 0 | AM119: =AH119*VLOOKUP($AG119,Factors_LMCC,6,FALSE) -> 0 | AN119: =AH119*VLOOKUP($AG119,Factors_LMCC,7,FALSE) -> 0 | AO119: =AH119*VLOOKUP($AG119,Factors_LMCC,8,FALSE) -> 0 | AP119: =AH119*VLOOKUP($AG119,Factors_LMCC,9,FALSE) -> 0 | BC119: ='Input and Dasboard_draft'!$B39 -> RAP | BD119: ='Input and Dasboard_draft'!G39 -> 0 | BE119: per cent | BF119: =IFERROR(VLOOKUP(BC119,'Input and Dasboard_draft'!$B$67:$F$75,4,FALSE),BC119) -> RAP | BG119: =IF(BF119=BC119,BF119,BC119&"-"&BF119) -> RAP | BH119: =BD119*$D$86 -> 0 | BJ119: =BH119*VLOOKUP($BG119,Factors_LMCC,3,FALSE) -> 0 | BK119: =BH119*VLOOKUP($BG119,Factors_LMCC,4,FALSE) -> 0 | BL119: =BH119*VLOOKUP($BG119,Factors_LMCC,5,FALSE) -> 0 | BM119: =BH119*VLOOKUP($BG119,Factors_LMCC,6,FALSE) -> 0 | BN119: =BH119*VLOOKUP($BG119,Factors_LMCC,7,FALSE) -> 0 | BO119: =BH119*VLOOKUP($BG119,Factors_LMCC,8,FALSE) -> 0 | BP119: =BH119*VLOOKUP($BG119,Factors_LMCC,9,FALSE) -> 0
G120: ='Input and Dasboard_draft'!B40 -> Crushed brick | H120: ='Input and Dasboard_draft'!C40 -> 0 | I120: per cent | J120: =IFERROR(VLOOKUP(G120,'Input and Dasboard_draft'!$B$67:$F$75,2,FALSE),G120) -> Grid | K120: Crushed brick-Grid | L120: 0 | N120: 0 | O120: =L120*VLOOKUP($K120,Factors_LMCC,4,FALSE) -> 0 | P120: 0 | Q120: 0 | R120: 0 | S120: 0 | T120: 0 | AC120: ='Input and Dasboard_draft'!$B40 -> Crushed brick | AD120: ='Input and Dasboard_draft'!E40 -> 0 | AE120: per cent | AF120: =IFERROR(VLOOKUP(AC120,'Input and Dasboard_draft'!$B$67:$F$75,3,FALSE),AC120) -> Grid | AG120: Crushed brick-Grid | AH120: 0 | AJ120: 0 | AK120: 0 | AL120: 0 | AM120: 0 | AN120: 0 | AO120: 0 | AP120: 0 | BC120: ='Input and Dasboard_draft'!$B40 -> Crushed brick | BD120: ='Input and Dasboard_draft'!G40 -> 0 | BE120: per cent | BF120: =IFERROR(VLOOKUP(BC120,'Input and Dasboard_draft'!$B$67:$F$75,4,FALSE),BC120) -> Grid | BG120: Crushed brick-Grid | BH120: 0 | BJ120: 0 | BK120: 0 | BL120: 0 | BM120: 0 | BN120: 0 | BO120: 0 | BP120: 0
G121: ='Input and Dasboard_draft'!B41 -> Recycled tile | H121: ='Input and Dasboard_draft'!C41 -> 0 | I121: per cent | J121: =IFERROR(VLOOKUP(G121,'Input and Dasboard_draft'!$B$67:$F$75,2,FALSE),G121) -> Grid | K121: Recycled tile-Grid | L121: 0 | N121: 0 | O121: 0 | P121: 0 | Q121: 0 | R121: 0 | S121: 0 | T121: 0 | AC121: ='Input and Dasboard_draft'!$B41 -> Recycled tile | AD121: ='Input and Dasboard_draft'!E41 -> 0 | AE121: per cent | AF121: =IFERROR(VLOOKUP(AC121,'Input and Dasboard_draft'!$B$67:$F$75,3,FALSE),AC121) -> Grid | AG121: Recycled tile-Grid | AH121: 0 | AJ121: 0 | AK121: 0 | AL121: 0 | AM121: 0 | AN121: 0 | AO121: 0 | AP121: 0 | BC121: ='Input and Dasboard_draft'!$B41 -> Recycled tile | BD121: ='Input and Dasboard_draft'!G41 -> 0 | BE121: per cent | BF121: =IFERROR(VLOOKUP(BC121,'Input and Dasboard_draft'!$B$67:$F$75,4,FALSE),BC121) -> Grid | BG121: Recycled tile-Grid | BH121: 0 | BJ121: 0 | BK121: 0 | BL121: 0 | BM121: 0 | BN121: 0 | BO121: 0 | BP121: 0
G122: Subbase composition | AC122: Subbase composition | BC122: Subbase composition
G124: Item | H124: Composition | I124: Unit | J124: Electricity type | K124: Vlookup | L124: Amount | M124: Unit | N124: Global warming (kg CO2 eq.) | O124: Water consumption (m3) | P124: Terrestrial ecotoxicity (kg 1,4-DCB) | Q124: Freshwater ecotoxicity (kg 1,4-DCB) | R124: Marine ecotoxicity (kg 1,4-DCB) | S124: Human carcinogenic toxicity (kg 1,4-DCB) | T124: Human non-carcinogenic toxicity (kg 1,4-DCB) | AC124: Item | AD124: Composition | AE124: Unit | AF124: Electricity type | AG124: Vlookup | AH124: Amount | AI124: Unit | AJ124: Global warming (kg CO2 eq.) | AK124: Water consumption (m3) | AL124: Terrestrial ecotoxicity (kg 1,4-DCB) | AM124: Freshwater ecotoxicity (kg 1,4-DCB) | AN124: Marine ecotoxicity (kg 1,4-DCB) | AO124: Human carcinogenic toxicity (kg 1,4-DCB) | AP124: Human non-carcinogenic toxicity (kg 1,4-DCB) | BC124: Item | BD124: Composition | BE124: Unit | BF124: Electricity type | BG124: Vlookup | BH124: Amount | BI124: Unit | BJ124: Global warming (kg CO2 eq.) | BK124: Water consumption (m3) | BL124: Terrestrial ecotoxicity (kg 1,4-DCB) | BM124: Freshwater ecotoxicity (kg 1,4-DCB) | BN124: Marine ecotoxicity (kg 1,4-DCB) | BO124: Human carcinogenic toxicity (kg 1,4-DCB) | BP124: Human non-carcinogenic toxicity (kg 1,4-DCB)
G125: ='Input and Dasboard_draft'!B43 -> Natural gravel | H125: ='Input and Dasboard_draft'!C43 -> 0.92 | I125: per cent | J125: =IFERROR(VLOOKUP(G125,'Input and Dasboard_draft'!$B$67:$F$73,2,FALSE),G125) -> Natural gravel | K125: =IF(J125=G125,J125,G125&"-"&J125) -> Natural gravel | L125: =H125*$B$87 -> 5480.256 | M125: t | N125: =L125*VLOOKUP($K125,Factors_LMCC,3,FALSE) -> 36541.82145 | O125: =L125*VLOOKUP($K125,Factors_LMCC,4,FALSE) -> 7720.680557 | P125: =L125*VLOOKUP($K125,Factors_LMCC,5,FALSE) -> 58359.53112 | Q125: =L125*VLOOKUP($K125,Factors_LMCC,6,FALSE) -> 552.5514694 | R125: =L125*VLOOKUP($K125,Factors_LMCC,7,FALSE) -> 797.3019493 | S125: =L125*VLOOKUP($K125,Factors_LMCC,8,FALSE) -> 1477.426435 | T125: =L125*VLOOKUP($K125,Factors_LMCC,9,FALSE) -> 16929.53778 | AC125: ='Input and Dasboard_draft'!$B43 -> Natural gravel | AD125: ='Input and Dasboard_draft'!E43 -> 0.92 | AE125: per cent | AF125: =IFERROR(VLOOKUP(AC125,'Input and Dasboard_draft'!$B$67:$F$73,3,FALSE),AC125) -> Natural gravel | AG125: =IF(AF125=AC125,AF125,AC125&"-"&AF125) -> Natural gravel | AH125: =AD125*$C$87 -> 2252.16 | AI125: t | AJ125: =AH125*VLOOKUP($AG125,Factors_LMCC,3,FALSE) -> 15017.1869 | AK125: =AH125*VLOOKUP($AG125,Factors_LMCC,4,FALSE) -> 3172.882421 | AL125: =AH125*VLOOKUP($AG125,Factors_LMCC,5,FALSE) -> 23983.36895 | AM125: =AH125*VLOOKUP($AG125,Factors_LMCC,6,FALSE) -> 227.0759463 | AN125: =AH125*VLOOKUP($AG125,Factors_LMCC,7,FALSE) -> 327.6583353 | AO125: =AH125*VLOOKUP($AG125,Factors_LMCC,8,FALSE) -> 607.1615486 | AP125: =AH125*VLOOKUP($AG125,Factors_LMCC,9,FALSE) -> 6957.344295 | BC125: ='Input and Dasboard_draft'!$B43 -> Natural gravel | BD125: ='Input and Dasboard_draft'!G43 -> 0.92 | BE125: per cent | BF125: =IFERROR(VLOOKUP(BC125,'Input and Dasboard_draft'!$B$67:$F$73,4,FALSE),BC125) -> Natural gravel | BG125: =IF(BF125=BC125,BF125,BC125&"-"&BF125) -> Natural gravel | BH125: =BD125*$D$87 -> 3002.88 | BI125: t | BJ125: =BH125*VLOOKUP($BG125,Factors_LMCC,3,FALSE) -> 20022.91586 | BK125: =BH125*VLOOKUP($BG125,Factors_LMCC,4,FALSE) -> 4230.509894 | BL125: =BH125*VLOOKUP($BG125,Factors_LMCC,5,FALSE) -> 31977.82527 | BM125: =BH125*VLOOKUP($BG125,Factors_LMCC,6,FALSE) -> 302.7679284 | BN125: =BH125*VLOOKUP($BG125,Factors_LMCC,7,FALSE) -> 436.8777804 | BO125: =BH125*VLOOKUP($BG125,Factors_LMCC,8,FALSE) -> 809.5487314 | BP125: =BH125*VLOOKUP($BG125,Factors_LMCC,9,FALSE) -> 9276.45906
G126: ='Input and Dasboard_draft'!B44 -> Glass | H126: ='Input and Dasboard_draft'!C44 -> 0.03 | I126: per cent | J126: =IFERROR(VLOOKUP(G126,'Input and Dasboard_draft'!$B$67:$F$73,2,FALSE),G126) -> Grid | K126: =IF(J126=G126,J126,G126&"-"&J126) -> Glass-Grid | L126: 178.704 | M126: t | N126: 719.7186906 | O126: 1.069080597 | P126: 393.6109464 | Q126: 7.565851471 | R126: 10.53457489 | S126: 5.619964166 | T126: 259.9986298 | AC126: ='Input and Dasboard_draft'!$B44 -> Glass | AD126: ='Input and Dasboard_draft'!E44 -> 0.03 | AE126: per cent | AF126: =IFERROR(VLOOKUP(AC126,'Input and Dasboard_draft'!$B$67:$F$73,3,FALSE),AC126) -> Grid | AG126: =IF(AF126=AC126,AF126,AC126&"-"&AF126) -> Glass-Grid | AH126: =AD126*$C$87 -> 73.44 | AI126: t | AJ126: 295.7748044 | AK126: 0.4393481904 | AL126: 161.7579232 | AM126: 3.109254029 | AN126: 4.329277351 | AO126: 2.309574315 | AP126: 106.848752 | BC126: ='Input and Dasboard_draft'!$B44 -> Glass | BD126: ='Input and Dasboard_draft'!G44 -> 0.03 | BE126: per cent | BF126: =IFERROR(VLOOKUP(BC126,'Input and Dasboard_draft'!$B$67:$F$73,4,FALSE),BC126) -> Grid | BG126: =IF(BF126=BC126,BF126,BC126&"-"&BF126) -> Glass-Grid | BH126: =BD126*$D$87 -> 97.92 | BI126: t | BJ126: 394.3664058 | BK126: 0.5857975872 | BL126: 215.6772309 | BM126: 4.145672039 | BN126: 5.772369802 | BO126: 3.07943242 | BP126: 142.4650026
A127: Assumption for flexible pavements | B127: Baseline | C127: Option 1 | D127: Option 1 | G127: ='Input and Dasboard_draft'!B45 -> Plastics | H127: ='Input and Dasboard_draft'!C45 -> 0.04 | I127: per cent | J127: =IFERROR(VLOOKUP(G127,'Input and Dasboard_draft'!$B$67:$F$73,2,FALSE),G127) -> Grid | K127: Plastics-Grid | L127: 238.272 | M127: t | N127: 20927.67018 | O127: 51.26509049 | P127: 13835.3678 | Q127: 243.0545003 | R127: 339.5011444 | S127: 198.5106435 | T127: 7950.145905 | AC127: ='Input and Dasboard_draft'!$B45 -> Plastics | AD127: ='Input and Dasboard_draft'!E45 -> 0.04 | AE127: per cent | AF127: =IFERROR(VLOOKUP(AC127,'Input and Dasboard_draft'!$B$67:$F$73,3,FALSE),AC127) -> Grid | AG127: Plastics-Grid | AH127: 97.92 | AI127: t | AJ127: 8600.412401 | AK127: 21.06784541 | AL127: 5685.767591 | AM127: 99.88541107 | AN127: 139.5210182 | AO127: 81.57971652 | AP127: 3267.183249 | BC127: ='Input and Dasboard_draft'!$B45 -> Plastics | BD127: ='Input and Dasboard_draft'!G45 -> 0.04 | BE127: per cent | BF127: =IFERROR(VLOOKUP(BC127,'Input and Dasboard_draft'!$B$67:$F$73,4,FALSE),BC127) -> Grid | BG127: Plastics-Grid | BH127: 130.56 | BI127: t | BJ127: 11467.21654 | BK127: 28.09046054 | BL127: 7581.023455 | BM127: 133.1805481 | BN127: 186.0280243 | BO127: 108.7729554 | BP127: 4356.244332
A128: Flexible pavements structure - selecting the 4th one | B128: https://www.rms.nsw.gov.au/business-industry/partners-suppliers/documents/austroads-supplements/agpt-part2.pdf | C128: https://www.rms.nsw.gov.au/business-industry/partners-suppliers/documents/austroads-supplements/agpt-part2.pdf | D128: https://www.rms.nsw.gov.au/business-industry/partners-suppliers/documents/austroads-supplements/agpt-part2.pdf | E128: Reference link | G128: ='Input and Dasboard_draft'!B46 -> Toner | H128: ='Input and Dasboard_draft'!C46 -> 0 | I128: per cent | J128: =IFERROR(VLOOKUP(G128,'Input and Dasboard_draft'!$B$67:$F$73,2,FALSE),G128) -> Grid | K128: Toner-Grid | L128: 0 | M128: t | N128: 0 | O128: 0 | P128: 0 | Q128: 0 | R128: 0 | S128: 0 | T128: 0 | AC128: ='Input and Dasboard_draft'!$B46 -> Toner | AD128: ='Input and Dasboard_draft'!E46 -> 0 | AE128: per cent | AF128: =IFERROR(VLOOKUP(AC128,'Input and Dasboard_draft'!$B$67:$F$73,3,FALSE),AC128) -> Grid | AG128: Toner-Grid | AH128: 0 | AI128: t | AJ128: 0 | AK128: 0 | AL128: 0 | AM128: 0 | AN128: 0 | AO128: 0 | AP128: 0 | BC128: ='Input and Dasboard_draft'!$B46 -> Toner | BD128: ='Input and Dasboard_draft'!G46 -> 0 | BE128: per cent | BF128: =IFERROR(VLOOKUP(BC128,'Input and Dasboard_draft'!$B$67:$F$73,4,FALSE),BC128) -> Grid | BG128: Toner-Grid | BH128: 0 | BI128: t | BJ128: 0 | BK128: 0 | BL128: 0 | BM128: 0 | BN128: 0 | BO128: 0 | BP128: 0
B129: Amount | C129: Amount | D129: Amount | E129: Unit | G129: ='Input and Dasboard_draft'!B47 -> Fly ash | H129: ='Input and Dasboard_draft'!C47 -> 0.01 | I129: per cent | J129: =IFERROR(VLOOKUP(G129,'Input and Dasboard_draft'!$B$67:$F$73,2,FALSE),G129) -> Grid | K129: Fly ash-Grid | L129: 59.568 | M129: t | N129: 0 | O129: 0 | P129: 0 | Q129: 0 | R129: 0 | S129: 0 | T129: 0 | AC129: ='Input and Dasboard_draft'!$B47 -> Fly ash | AD129: ='Input and Dasboard_draft'!E47 -> 0.01 | AE129: per cent | AF129: =IFERROR(VLOOKUP(AC129,'Input and Dasboard_draft'!$B$67:$F$73,3,FALSE),AC129) -> Grid | AG129: Fly ash-Grid | AH129: 24.48 | AI129: t | AJ129: 0 | AK129: 0 | AL129: 0 | AM129: 0 | AN129: 0 | AO129: 0 | AP129: 0 | BC129: ='Input and Dasboard_draft'!$B47 -> Fly ash | BD129: ='Input and Dasboard_draft'!G47 -> 0.01 | BE129: per cent | BF129: =IFERROR(VLOOKUP(BC129,'Input and Dasboard_draft'!$B$67:$F$73,4,FALSE),BC129) -> Grid | BG129: Fly ash-Grid | BH129: 32.64 | BI129: t | BJ129: 0 | BK129: 0 | BL129: 0 | BM129: 0 | BN129: 0 | BO129: 0 | BP129: 0
A130: Wearing course thickness - asphalt | B130: ='Input and Dasboard_draft'!C3 -> 50 | C130: ='Input and Dasboard_draft'!D3 -> 150 | D130: ='Input and Dasboard_draft'!E3 -> 175 | E130: mm | G130: ='Input and Dasboard_draft'!B48 -> Recycled concrete | H130: ='Input and Dasboard_draft'!C48 -> 0 | I130: per cent | J130: =IFERROR(VLOOKUP(G130,'Input and Dasboard_draft'!$B$67:$F$73,2,FALSE),G130) -> Grid | K130: Recycled concrete-Grid | L130: 0 | M130: t | N130: 0 | O130: 0 | P130: 0 | Q130: 0 | R130: 0 | S130: 0 | T130: 0 | AC130: ='Input and Dasboard_draft'!$B48 -> Recycled concrete | AD130: ='Input and Dasboard_draft'!E48 -> 0 | AE130: per cent | AF130: =IFERROR(VLOOKUP(AC130,'Input and Dasboard_draft'!$B$67:$F$73,3,FALSE),AC130) -> Grid | AG130: Recycled concrete-Grid | AH130: 0 | AI130: t | AJ130: 0 | AK130: 0 | AL130: 0 | AM130: 0 | AN130: 0 | AO130: 0 | AP130: 0 | BC130: ='Input and Dasboard_draft'!$B48 -> Recycled concrete | BD130: ='Input and Dasboard_draft'!G48 -> 0 | BE130: per cent | BF130: =IFERROR(VLOOKUP(BC130,'Input and Dasboard_draft'!$B$67:$F$73,4,FALSE),BC130) -> Grid | BG130: Recycled concrete-Grid | BH130: 0 | BI130: t | BJ130: 0 | BK130: 0 | BL130: 0 | BM130: 0 | BN130: 0 | BO130: 0 | BP130: 0
B131: =B130/1000 -> 0.05 | C131: =C130/1000 -> 0.15 | D131: =D130/1000 -> 0.175 | E131: m | G131: ='Input and Dasboard_draft'!B49 -> Waste tyre | H131: ='Input and Dasboard_draft'!C49 -> 0 | I131: per cent | J131: =IFERROR(VLOOKUP(G131,'Input and Dasboard_draft'!$B$67:$F$73,2,FALSE),G131) -> Grid | K131: Waste tyre-Grid | L131: 0 | M131: t | N131: 0 | O131: 0 | P131: 0 | Q131: 0 | R131: 0 | S131: 0 | T131: 0 | AC131: ='Input and Dasboard_draft'!$B49 -> Waste tyre | AD131: ='Input and Dasboard_draft'!E49 -> 0 | AE131: per cent | AF131: =IFERROR(VLOOKUP(AC131,'Input and Dasboard_draft'!$B$67:$F$73,3,FALSE),AC131) -> Grid | AG131: Waste tyre-Grid | AH131: 0 | AI131: t | AJ131: 0 | AK131: 0 | AL131: 0 | AM131: 0 | AN131: 0 | AO131: 0 | AP131: 0 | BC131: ='Input and Dasboard_draft'!$B49 -> Waste tyre | BD131: ='Input and Dasboard_draft'!G49 -> 0 | BE131: per cent | BF131: =IFERROR(VLOOKUP(BC131,'Input and Dasboard_draft'!$B$67:$F$73,4,FALSE),BC131) -> Grid | BG131: Waste tyre-Grid | BH131: 0 | BI131: t | BJ131: 0 | BK131: 0 | BL131: 0 | BM131: 0 | BN131: 0 | BO131: 0 | BP131: 0
A132: Base course thickness - aggegates | B132: ='Input and Dasboard_draft'!C4 -> 150 | C132: ='Input and Dasboard_draft'!D4 -> 200 | D132: ='Input and Dasboard_draft'!E4 -> 0 | E132: mm | G132: ='Input and Dasboard_draft'!B50 -> RAP | H132: ='Input and Dasboard_draft'!C50 -> 0 | I132: per cent | J132: =IFERROR(VLOOKUP(G132,'Input and Dasboard_draft'!$B$67:$F$75,2,FALSE),G132) -> RAP | K132: =IF(J132=G132,J132,G132&"-"&J132) -> RAP | L132: =H132*$B$87 -> 0 | M132: t | N132: =L132*VLOOKUP($K132,Factors_LMCC,3,FALSE) -> 0 | O132: =L132*VLOOKUP($K132,Factors_LMCC,4,FALSE) -> 0 | P132: =L132*VLOOKUP($K132,Factors_LMCC,5,FALSE) -> 0 | Q132: =L132*VLOOKUP($K132,Factors_LMCC,6,FALSE) -> 0 | R132: =L132*VLOOKUP($K132,Factors_LMCC,7,FALSE) -> 0 | S132: =L132*VLOOKUP($K132,Factors_LMCC,8,FALSE) -> 0 | T132: =L132*VLOOKUP($K132,Factors_LMCC,9,FALSE) -> 0 | AC132: ='Input and Dasboard_draft'!$B50 -> RAP | AD132: ='Input and Dasboard_draft'!E50 -> 0 | AE132: per cent | AF132: =IFERROR(VLOOKUP(AC132,'Input and Dasboard_draft'!$B$67:$F$75,3,FALSE),AC132) -> RAP | AG132: =IF(AF132=AC132,AF132,AC132&"-"&AF132) -> RAP | AH132: =AD132*$C$87 -> 0 | AI132: t | AJ132: =AH132*VLOOKUP($AG132,Factors_LMCC,3,FALSE) -> 0 | AK132: =AH132*VLOOKUP($AG132,Factors_LMCC,4,FALSE) -> 0 | AL132: =AH132*VLOOKUP($AG132,Factors_LMCC,5,FALSE) -> 0 | AM132: =AH132*VLOOKUP($AG132,Factors_LMCC,6,FALSE) -> 0 | AN132: =AH132*VLOOKUP($AG132,Factors_LMCC,7,FALSE) -> 0 | AO132: =AH132*VLOOKUP($AG132,Factors_LMCC,8,FALSE) -> 0 | AP132: =AH132*VLOOKUP($AG132,Factors_LMCC,9,FALSE) -> 0 | BC132: ='Input and Dasboard_draft'!$B50 -> RAP | BD132: ='Input and Dasboard_draft'!G50 -> 0 | BE132: per cent | BF132: =IFERROR(VLOOKUP(BC132,'Input and Dasboard_draft'!$B$67:$F$75,4,FALSE),BC132) -> RAP | BG132: =IF(BF132=BC132,BF132,BC132&"-"&BF132) -> RAP | BH132: =BD132*$D$87 -> 0 | BI132: t | BJ132: =BH132*VLOOKUP($BG132,Factors_LMCC,3,FALSE) -> 0 | BK132: =BH132*VLOOKUP($BG132,Factors_LMCC,4,FALSE) -> 0 | BL132: =BH132*VLOOKUP($BG132,Factors_LMCC,5,FALSE) -> 0 | BM132: =BH132*VLOOKUP($BG132,Factors_LMCC,6,FALSE) -> 0 | BN132: =BH132*VLOOKUP($BG132,Factors_LMCC,7,FALSE) -> 0 | BO132: =BH132*VLOOKUP($BG132,Factors_LMCC,8,FALSE) -> 0 | BP132: =BH132*VLOOKUP($BG132,Factors_LMCC,9,FALSE) -> 0
B133: =B132/1000 -> 0.15 | C133: =C132/1000 -> 0.2 | D133: =D132/1000 -> 0 | E133: m | G133: ='Input and Dasboard_draft'!B51 -> Crushed brick | H133: ='Input and Dasboard_draft'!C51 -> 0 | I133: per cent | J133: =IFERROR(VLOOKUP(G133,'Input and Dasboard_draft'!$B$67:$F$75,2,FALSE),G133) -> Grid | K133: Crushed brick-Grid | L133: 0 | M133: t | N133: 0 | O133: 0 | P133: 0 | Q133: 0 | R133: 0 | S133: 0 | T133: 0 | AC133: ='Input and Dasboard_draft'!$B51 -> Crushed brick | AD133: ='Input and Dasboard_draft'!E51 -> 0 | AE133: per cent | AF133: =IFERROR(VLOOKUP(AC133,'Input and Dasboard_draft'!$B$67:$F$75,3,FALSE),AC133) -> Grid | AG133: Crushed brick-Grid | AH133: 0 | AI133: t | AJ133: 0 | AK133: 0 | AL133: 0 | AM133: 0 | AN133: 0 | AO133: 0 | AP133: 0 | BC133: ='Input and Dasboard_draft'!$B51 -> Crushed brick | BD133: ='Input and Dasboard_draft'!G51 -> 0 | BE133: per cent | BF133: =IFERROR(VLOOKUP(BC133,'Input and Dasboard_draft'!$B$67:$F$75,4,FALSE),BC133) -> Grid | BG133: Crushed brick-Grid | BH133: 0 | BI133: t | BJ133: 0 | BK133: 0 | BL133: 0 | BM133: 0 | BN133: 0 | BO133: 0 | BP133: 0
A134: Sub-base course thickness - aggregates | B134: ='Input and Dasboard_draft'!C5 -> 365 | C134: ='Input and Dasboard_draft'!D5 -> 150 | D134: ='Input and Dasboard_draft'!E5 -> 200 | E134: mm | G134: ='Input and Dasboard_draft'!B52 -> Recycled tile | H134: ='Input and Dasboard_draft'!C52 -> 0 | I134: per cent | J134: =IFERROR(VLOOKUP(G134,'Input and Dasboard_draft'!$B$67:$F$745,2,FALSE),G134) -> Grid | K134: Recycled tile-Grid | L134: 0 | M134: t | N134: 0 | O134: 0 | P134: 0 | Q134: 0 | R134: 0 | S134: 0 | T134: 0 | AC134: ='Input and Dasboard_draft'!$B52 -> Recycled tile | AD134: ='Input and Dasboard_draft'!E52 -> 0 | AE134: per cent | AF134: =IFERROR(VLOOKUP(AC134,'Input and Dasboard_draft'!$B$67:$F$75,3,FALSE),AC134) -> Grid | AG134: Recycled tile-Grid | AH134: 0 | AI134: t | AJ134: 0 | AK134: 0 | AL134: 0 | AM134: 0 | AN134: 0 | AO134: 0 | AP134: 0 | BC134: ='Input and Dasboard_draft'!$B52 -> Recycled tile | BD134: ='Input and Dasboard_draft'!G52 -> 0 | BE134: per cent | BF134: =IFERROR(VLOOKUP(BC134,'Input and Dasboard_draft'!$B$67:$F$75,4,FALSE),BC134) -> Grid | BG134: Recycled tile-Grid | BH134: 0 | BI134: t | BJ134: 0 | BK134: 0 | BL134: 0 | BM134: 0 | BN134: 0 | BO134: 0 | BP134: 0
B135: =B134/1000 -> 0.365 | C135: =C134/1000 -> 0.15 | D135: =D134/1000 -> 0.2 | E135: m
A137: Width of 1 lane | B137: ='Input and Dasboard_draft'!C6 -> 5.1 | C137: ='Input and Dasboard_draft'!D6 -> 5.1 | D137: ='Input and Dasboard_draft'!E6 -> 5.1 | E137: m
A138: Length of road | B138: 1000 | C138: 1000 | D138: 1000 | E138: m
A140: Volume | G140: Sourcing distances for asphalt mix contents | AC140: Sourcing distances for asphalt mix contents | BC140: Sourcing distances for asphalt mix contents
A141: Wearing course - asphalt | B141: =B131*B137*B138 -> 255 | C141: =C131*C137*C138 -> 765 | D141: =D131*D137*D138 -> 892.5 | E141: m3
A142: Base course - aggregates | B142: =B133*B137*B138 -> 765 | C142: =C133*C137*C138 -> 1020 | D142: =D133*D137*D138 -> 0 | E142: m3 | G142: Item | H142: Distance | I142: Unit | J142: Electricity type | K142: Vlookup | L142: Amount | M142: Unit | N142: Global warming (kg CO2 eq.) | O142: Water consumption (m3) | P142: Terrestrial ecotoxicity (kg 1,4-DCB) | Q142: Freshwater ecotoxicity (kg 1,4-DCB) | R142: Marine ecotoxicity (kg 1,4-DCB) | S142: Human carcinogenic toxicity (kg 1,4-DCB) | T142: Human non-carcinogenic toxicity (kg 1,4-DCB) | AC142: Item | AD142: Distance | AE142: Unit | AF142: Electricity type | AG142: Vlookup | AH142: Amount | AI142: Unit | AJ142: Global warming (kg CO2 eq.) | AK142: Water consumption (m3) | AL142: Terrestrial ecotoxicity (kg 1,4-DCB) | AM142: Freshwater ecotoxicity (kg 1,4-DCB) | AN142: Marine ecotoxicity (kg 1,4-DCB) | AO142: Human carcinogenic toxicity (kg 1,4-DCB) | AP142: Human non-carcinogenic toxicity (kg 1,4-DCB) | BC142: Item | BD142: Distance | BE142: Unit | BF142: Electricity type | BG142: Vlookup | BH142: Amount | BI142: Unit | BJ142: Global warming (kg CO2 eq.) | BK142: Water consumption (m3) | BL142: Terrestrial ecotoxicity (kg 1,4-DCB) | BM142: Freshwater ecotoxicity (kg 1,4-DCB) | BN142: Marine ecotoxicity (kg 1,4-DCB) | BO142: Human carcinogenic toxicity (kg 1,4-DCB) | BP142: Human non-carcinogenic toxicity (kg 1,4-DCB)
A143: Sub-base course - aggregates | B143: =B135*B137*B138 -> 1861.5 | C143: =C135*C137*C138 -> 765 | D143: =D135*D137*D138 -> 1020 | E143: m3 | G143: =G85 -> Bitumen | H143: =IFERROR(VLOOKUP(G143,'Input and Dasboard_draft'!$B$82:$F$96,2,FALSE),$B$151) -> 100 | I143: km | K143: Truck | L143: =VLOOKUP(G143,$G$85:$M$97,6,FALSE)*H143 -> 4896 | M143: tkm | N143: =L143*VLOOKUP($K143,Factors_LMCC,3,FALSE) -> 887.4542966 | O143: =L143*VLOOKUP($K143,Factors_LMCC,4,FALSE) -> 4.684675176 | P143: =L143*VLOOKUP($K143,Factors_LMCC,5,FALSE) -> 882.4864723 | Q143: =L143*VLOOKUP($K143,Factors_LMCC,6,FALSE) -> 6.994843718 | R143: =L143*VLOOKUP($K143,Factors_LMCC,7,FALSE) -> 11.15135628 | S143: =L143*VLOOKUP($K143,Factors_LMCC,8,FALSE) -> 36.73797322 | T143: =L143*VLOOKUP($K143,Factors_LMCC,9,FALSE) -> 235.5363225 | AC143: =AC85 -> Bitumen | AD143: =IFERROR(VLOOKUP(AC143,'Input and Dasboard_draft'!$B$82:$F$96,3,FALSE),$C$151) -> 100 | AE143: km | AG143: Truck | AH143: =VLOOKUP(AC143,$AC$85:$AI$97,6,FALSE)*AD143 -> 14688 | AI143: tkm | AJ143: =AH143*VLOOKUP($AG143,Factors_LMCC,3,FALSE) -> 2662.36289 | AK143: =AH143*VLOOKUP($AG143,Factors_LMCC,4,FALSE) -> 14.05402553 | AL143: =AH143*VLOOKUP($AG143,Factors_LMCC,5,FALSE) -> 2647.459417 | AM143: =AH143*VLOOKUP($AG143,Factors_LMCC,6,FALSE) -> 20.98453116 | AN143: =AH143*VLOOKUP($AG143,Factors_LMCC,7,FALSE) -> 33.45406885 | AO143: =AH143*VLOOKUP($AG143,Factors_LMCC,8,FALSE) -> 110.2139196 | AP143: =AH143*VLOOKUP($AG143,Factors_LMCC,9,FALSE) -> 706.6089674 | BC143: =BC85 -> Bitumen | BD143: =IFERROR(VLOOKUP(BC143,'Input and Dasboard_draft'!$B$82:$F$96,4,FALSE),$D$151) -> 100 | BE143: km | BG143: Truck | BH143: =VLOOKUP(BC143,$BC$85:$BI$97,6,FALSE)*BD143 -> 17136 | BI143: tkm | BJ143: =BH143*VLOOKUP($BG143,Factors_LMCC,3,FALSE) -> 3106.090038 | BK143: =BH143*VLOOKUP($BG143,Factors_LMCC,4,FALSE) -> 16.39636312 | BL143: =BH143*VLOOKUP($BG143,Factors_LMCC,5,FALSE) -> 3088.702653 | BM143: =BH143*VLOOKUP($BG143,Factors_LMCC,6,FALSE) -> 24.48195301 | BN143: =BH143*VLOOKUP($BG143,Factors_LMCC,7,FALSE) -> 39.029747 | BO143: =BH143*VLOOKUP($BG143,Factors_LMCC,8,FALSE) -> 128.5829063 | BP143: =BH143*VLOOKUP($BG143,Factors_LMCC,9,FALSE) -> 824.3771286
G144: RAP | H144: =IFERROR(VLOOKUP(G144,'Input and Dasboard_draft'!$B$82:$F$96,2,FALSE),$B$151) -> 100 | I144: km | K144: Truck | L144: 36720 | M144: tkm | N144: 6655.907225 | O144: 35.13506382 | P144: 6618.648542 | Q144: 52.46132789 | R144: 83.63517214 | S144: 275.5347991 | T144: 1766.522418 | AC144: RAP | AD144: =IFERROR(VLOOKUP(AC144,'Input and Dasboard_draft'!$B$82:$F$96,3,FALSE),$C$151) -> 100 | AE144: km | AG144: Truck | AH144: =VLOOKUP(AC144,$AC$85:$AI$97,6,FALSE)*AD144 -> 110160 | AI144: tkm | AJ144: 19967.72167 | AK144: 105.4051915 | AL144: 19855.94563 | AM144: 157.3839837 | AN144: 250.9055164 | AO144: 826.6043974 | AP144: 5299.567255 | BC144: RAP | BD144: =IFERROR(VLOOKUP(BC144,'Input and Dasboard_draft'!$B$82:$F$96,4,FALSE),$D$151) -> 100 | BE144: km | BG144: Truck | BH144: =VLOOKUP(BC144,$BC$85:$BI$97,6,FALSE)*BD144 -> 128520 | BI144: tkm | BJ144: 23295.67529 | BK144: 122.9727234 | BL144: 23165.2699 | BM144: 183.6146476 | BN144: 292.7231025 | BO144: 964.3717969 | BP144: 6182.828465
A145: Weight | G145: Aggregates-fine | H145: =IFERROR(VLOOKUP(G145,'Input and Dasboard_draft'!$B$82:$F$96,2,FALSE),$B$151) -> 100 | I145: km | K145: Truck | L145: 23256 | M145: tkm | N145: 4215.407909 | O145: 22.25220709 | P145: 4191.810744 | Q145: 33.22550766 | R145: 52.96894235 | S145: 174.5053728 | T145: 1118.797532 | AC145: Aggregates-fine | AD145: =IFERROR(VLOOKUP(AC145,'Input and Dasboard_draft'!$B$82:$F$96,3,FALSE),$C$151) -> 100 | AE145: km | AG145: Truck | AH145: 69768 | AI145: tkm | AJ145: 12646.22373 | AK145: 66.75662126 | AL145: 12575.43223 | AM145: 99.67652299 | AN145: 158.9068271 | AO145: 523.5161183 | AP145: 3356.392595 | BC145: Aggregates-fine | BD145: =IFERROR(VLOOKUP(BC145,'Input and Dasboard_draft'!$B$82:$F$96,4,FALSE),$D$151) -> 100 | BE145: km | BG145: Truck | BH145: 81396 | BI145: tkm | BJ145: 14753.92768 | BK145: 77.8827248 | BL145: 14671.3376 | BM145: 116.2892768 | BN145: 185.3912982 | BO145: 610.7688047 | BP145: 3915.791361
A146: Wearing course - asphalt | B146: =B141*2.4 -> 612 | C146: =C141*2.4 -> 1836 | D146: =D141*2.4 -> 2142 | E146: t | G146: Aggregates-coarse | H146: =IFERROR(VLOOKUP(G146,'Input and Dasboard_draft'!$B$82:$F$96,2,FALSE),$B$151) -> 100 | I146: km | K146: Truck | L146: 14688 | M146: tkm | N146: 2662.36289 | O146: 14.05402553 | P146: 2647.459417 | Q146: 20.98453116 | R146: 33.45406885 | S146: 110.2139196 | T146: 706.6089674 | AC146: Aggregates-coarse | AD146: =IFERROR(VLOOKUP(AC146,'Input and Dasboard_draft'!$B$82:$F$96,3,FALSE),$C$151) -> 100 | AE146: km | AG146: Truck | AH146: 44064 | AI146: tkm | AJ146: 7987.08867 | AK146: 42.16207658 | AL146: 7942.378251 | AM146: 62.95359347 | AN146: 100.3622066 | AO146: 330.6417589 | AP146: 2119.826902 | BC146: Aggregates-coarse | BD146: =IFERROR(VLOOKUP(BC146,'Input and Dasboard_draft'!$B$82:$F$96,4,FALSE),$D$151) -> 100 | BE146: km | BG146: Truck | BH146: 51408 | BI146: tkm | BJ146: 9318.270115 | BK146: 49.18908935 | BL146: 9266.107959 | BM146: 73.44585904 | BN146: 117.089241 | BO146: 385.7487188 | BP146: 2473.131386
A147: Base course - aggregates | B147: =B142*1.6 -> 1224 | C147: 1632 | D147: 0 | E147: t | G147: Sand | H147: =IFERROR(VLOOKUP(G147,'Input and Dasboard_draft'!$B$82:$F$96,2,FALSE),$B$151) -> 100 | I147: km | K147: Truck | L147: 42840 | M147: tkm | N147: 7765.225096 | O147: 40.99090779 | P147: 7721.756633 | Q147: 61.20488254 | R147: 97.57436749 | S147: 321.4572656 | T147: 2060.942822 | AC147: Sand | AD147: =IFERROR(VLOOKUP(AC147,'Input and Dasboard_draft'!$B$82:$F$96,3,FALSE),$C$151) -> 100 | AE147: km | AG147: Truck | AH147: 110160 | AI147: tkm | AJ147: 19967.72167 | AK147: 105.4051915 | AL147: 19855.94563 | AM147: 157.3839837 | AN147: 250.9055164 | AO147: 826.6043974 | AP147: 5299.567255 | BC147: Sand | BD147: =IFERROR(VLOOKUP(BC147,'Input and Dasboard_draft'!$B$82:$F$96,4,FALSE),$D$151) -> 100 | BE147: km | BG147: Truck | BH147: 128520 | BI147: tkm | BJ147: 23295.67529 | BK147: 122.9727234 | BL147: 23165.2699 | BM147: 183.6146476 | BN147: 292.7231025 | BO147: 964.3717969 | BP147: 6182.828465
A148: Sub-base course - aggregates | B148: 2978.4 | C148: 1224 | D148: 1632 | E148: t | G148: Glass | H148: =IFERROR(VLOOKUP(G148,'Input and Dasboard_draft'!$B$82:$F$96,2,FALSE),$B$151) -> 100 | I148: km | K148: Truck | L148: 0 | M148: tkm | N148: 0 | O148: 0 | P148: 0 | Q148: 0 | R148: 0 | S148: 0 | T148: 0 | AC148: Glass | AD148: =IFERROR(VLOOKUP(AC148,'Input and Dasboard_draft'!$B$82:$F$96,3,FALSE),$C$151) -> 100 | AE148: km | AG148: Truck | AH148: 0 | AI148: tkm | AJ148: 0 | AK148: 0 | AL148: 0 | AM148: 0 | AN148: 0 | AO148: 0 | AP148: 0 | BC148: Glass | BD148: =IFERROR(VLOOKUP(BC148,'Input and Dasboard_draft'!$B$82:$F$96,4,FALSE),$D$151) -> 100 | BE148: km | BG148: Truck | BH148: 0 | BI148: tkm | BJ148: 0 | BK148: 0 | BL148: 0 | BM148: 0 | BN148: 0 | BO148: 0 | BP148: 0
G149: Plastics | H149: =IFERROR(VLOOKUP(G149,'Input and Dasboard_draft'!$B$82:$F$96,2,FALSE),$B$151) -> 100 | I149: km | K149: Truck | L149: 0 | M149: tkm | N149: 0 | O149: 0 | P149: 0 | Q149: 0 | R149: 0 | S149: 0 | T149: 0 | AC149: Plastics | AD149: =IFERROR(VLOOKUP(AC149,'Input and Dasboard_draft'!$B$82:$F$96,3,FALSE),$C$151) -> 100 | AE149: km | AG149: Truck | AH149: 0 | AI149: tkm | AJ149: 0 | AK149: 0 | AL149: 0 | AM149: 0 | AN149: 0 | AO149: 0 | AP149: 0 | BC149: Plastics | BD149: =IFERROR(VLOOKUP(BC149,'Input and Dasboard_draft'!$B$82:$F$96,4,FALSE),$D$151) -> 100 | BE149: km | BG149: Truck | BH149: 0 | BI149: tkm | BJ149: 0 | BK149: 0 | BL149: 0 | BM149: 0 | BN149: 0 | BO149: 0 | BP149: 0
A150: Transport | G150: Toner | H150: =IFERROR(VLOOKUP(G150,'Input and Dasboard_draft'!$B$82:$F$96,2,FALSE),$B$151) -> 100 | I150: km | K150: Truck | L150: 0 | M150: tkm | N150: 0 | O150: 0 | P150: 0 | Q150: 0 | R150: 0 | S150: 0 | T150: 0 | AC150: Toner | AD150: =IFERROR(VLOOKUP(AC150,'Input and Dasboard_draft'!$B$82:$F$96,3,FALSE),$C$151) -> 100 | AE150: km | AG150: Truck | AH150: 18360 | AI150: tkm | AJ150: 3327.953612 | AK150: 17.56753191 | AL150: 3309.324271 | AM150: 26.23066394 | AN150: 41.81758607 | AO150: 137.7673996 | AP150: 883.2612092 | BC150: Toner | BD150: =IFERROR(VLOOKUP(BC150,'Input and Dasboard_draft'!$B$82:$F$96,4,FALSE),$D$151) -> 100 | BE150: km | BG150: Truck | BH150: 21420 | BI150: tkm | BJ150: 3882.612548 | BK150: 20.49545389 | BL150: 3860.878316 | BM150: 30.60244127 | BN150: 48.78718375 | BO150: 160.7286328 | BP150: 1030.471411
A151: Distance assumed - normal transport | B151: 100 | C151: 100 | D151: 100 | E151: km | G151: Fly ash | H151: =IFERROR(VLOOKUP(G151,'Input and Dasboard_draft'!$B$82:$F$96,2,FALSE),$B$151) -> 100 | I151: km | K151: Truck | L151: 0 | M151: tkm | N151: 0 | O151: 0 | P151: 0 | Q151: 0 | R151: 0 | S151: 0 | T151: 0 | AC151: Fly ash | AD151: =IFERROR(VLOOKUP(AC151,'Input and Dasboard_draft'!$B$82:$F$96,3,FALSE),$C$151) -> 100 | AE151: km | AG151: Truck | AH151: 0 | AI151: tkm | AJ151: 0 | AK151: 0 | AL151: 0 | AM151: 0 | AN151: 0 | AO151: 0 | AP151: 0 | BC151: Fly ash | BD151: =IFERROR(VLOOKUP(BC151,'Input and Dasboard_draft'!$B$82:$F$96,4,FALSE),$D$151) -> 100 | BE151: km | BG151: Truck | BH151: 0 | BI151: tkm | BJ151: 0 | BK151: 0 | BL151: 0 | BM151: 0 | BN151: 0 | BO151: 0 | BP151: 0
A152: Distance assumed - local batching | B152: ='[1]Road - footprint'!B28 -> 10 | C152: ='[1]Road - footprint'!C28 -> km | D152: ='[1]Road - footprint'!D28 -> 0 | E152: km | G152: Recycled concrete | H152: =IFERROR(VLOOKUP(G152,'Input and Dasboard_draft'!$B$82:$F$96,2,FALSE),$B$151) -> 100 | I152: km | K152: Truck | L152: 0 | M152: tkm | N152: 0 | O152: 0 | P152: 0 | Q152: 0 | R152: 0 | S152: 0 | T152: 0 | AC152: Recycled concrete | AD152: =IFERROR(VLOOKUP(AC152,'Input and Dasboard_draft'!$B$82:$F$96,3,FALSE),$C$151) -> 100 | AE152: km | AG152: Truck | AH152: 0 | AI152: tkm | AJ152: 0 | AK152: 0 | AL152: 0 | AM152: 0 | AN152: 0 | AO152: 0 | AP152: 0 | BC152: Recycled concrete | BD152: =IFERROR(VLOOKUP(BC152,'Input and Dasboard_draft'!$B$82:$F$96,4,FALSE),$D$151) -> 100 | BE152: km | BG152: Truck | BH152: 0 | BI152: tkm | BJ152: 0 | BK152: 0 | BL152: 0 | BM152: 0 | BN152: 0 | BO152: 0 | BP152: 0
G153: Waste tyre | H153: =IFERROR(VLOOKUP(G153,'Input and Dasboard_draft'!$B$82:$F$96,2,FALSE),$B$151) -> 100 | I153: km | K153: Truck | L153: 0 | M153: tkm | N153: 0 | O153: 0 | P153: 0 | Q153: 0 | R153: 0 | S153: 0 | T153: 0 | AC153: Waste tyre | AD153: =IFERROR(VLOOKUP(AC153,'Input and Dasboard_draft'!$B$82:$F$96,3,FALSE),$C$151) -> 100 | AE153: km | AG153: Truck | AH153: 0 | AI153: tkm | AJ153: 0 | AK153: 0 | AL153: 0 | AM153: 0 | AN153: 0 | AO153: 0 | AP153: 0 | BC153: Waste tyre | BD153: =IFERROR(VLOOKUP(BC153,'Input and Dasboard_draft'!$B$82:$F$96,4,FALSE),$D$151) -> 100 | BE153: km | BG153: Truck | BH153: 0 | BI153: tkm | BJ153: 0 | BK153: 0 | BL153: 0 | BM153: 0 | BN153: 0 | BO153: 0 | BP153: 0
G154: Lime | H154: =IFERROR(VLOOKUP(G154,'Input and Dasboard_draft'!$B$82:$F$96,2,FALSE),$B$151) -> 100 | I154: km | K154: Truck | L154: 0 | M154: tkm | N154: =L154*VLOOKUP($K154,Factors_LMCC,3,FALSE) -> 0 | O154: =L154*VLOOKUP($K154,Factors_LMCC,4,FALSE) -> 0 | P154: =L154*VLOOKUP($K154,Factors_LMCC,5,FALSE) -> 0 | Q154: =L154*VLOOKUP($K154,Factors_LMCC,6,FALSE) -> 0 | R154: =L154*VLOOKUP($K154,Factors_LMCC,7,FALSE) -> 0 | S154: =L154*VLOOKUP($K154,Factors_LMCC,8,FALSE) -> 0 | T154: =L154*VLOOKUP($K154,Factors_LMCC,9,FALSE) -> 0 | AC154: Lime | AD154: =IFERROR(VLOOKUP(AC154,'Input and Dasboard_draft'!$B$82:$F$96,3,FALSE),$C$151) -> 100 | AE154: km | AG154: Truck | AH154: 0 | AI154: tkm | AJ154: =AH154*VLOOKUP($K154,Factors_LMCC,3,FALSE) -> 0 | AK154: =AH154*VLOOKUP($K154,Factors_LMCC,4,FALSE) -> 0 | AL154: =AH154*VLOOKUP($K154,Factors_LMCC,5,FALSE) -> 0 | AM154: =AH154*VLOOKUP($K154,Factors_LMCC,6,FALSE) -> 0 | AN154: =AH154*VLOOKUP($K154,Factors_LMCC,7,FALSE) -> 0 | AO154: =AH154*VLOOKUP($K154,Factors_LMCC,8,FALSE) -> 0 | AP154: =AH154*VLOOKUP($K154,Factors_LMCC,9,FALSE) -> 0 | BC154: Lime | BD154: =IFERROR(VLOOKUP(BC154,'Input and Dasboard_draft'!$B$82:$F$96,4,FALSE),$D$151) -> 100 | BE154: km | BG154: Truck | BH154: 0 | BI154: tkm | BJ154: =BH154*VLOOKUP($K154,Factors_LMCC,3,FALSE) -> 0 | BK154: =BH154*VLOOKUP($K154,Factors_LMCC,4,FALSE) -> 0 | BL154: =BH154*VLOOKUP($K154,Factors_LMCC,5,FALSE) -> 0 | BM154: =BH154*VLOOKUP($K154,Factors_LMCC,6,FALSE) -> 0 | BN154: =BH154*VLOOKUP($K154,Factors_LMCC,7,FALSE) -> 0 | BO154: =BH154*VLOOKUP($K154,Factors_LMCC,8,FALSE) -> 0 | BP154: =BH154*VLOOKUP($K154,Factors_LMCC,9,FALSE) -> 0
A155: Aggregate amount per t of asphalt w/o RAP | B155: 0.93 | C155: t | G155: Cement | H155: =IFERROR(VLOOKUP(G155,'Input and Dasboard_draft'!$B$82:$F$96,2,FALSE),$B$151) -> 100 | I155: km | K155: Truck | L155: =VLOOKUP(G155,$G$85:$M$97,6,FALSE)*H155 -> 0 | M155: tkm | N155: 0 | O155: 0 | P155: 0 | Q155: 0 | R155: 0 | S155: 0 | T155: 0 | AC155: Cement | AD155: =IFERROR(VLOOKUP(AC155,'Input and Dasboard_draft'!$B$82:$F$96,3,FALSE),$C$151) -> 100 | AE155: km | AG155: Truck | AH155: 0 | AI155: tkm | AJ155: 0 | AK155: 0 | AL155: 0 | AM155: 0 | AN155: 0 | AO155: 0 | AP155: 0 | BC155: Cement | BD155: =IFERROR(VLOOKUP(BC155,'Input and Dasboard_draft'!$B$82:$F$96,4,FALSE),$D$151) -> 100 | BE155: km | BG155: Truck | BH155: 0 | BI155: tkm | BJ155: 0 | BK155: 0 | BL155: 0 | BM155: 0 | BN155: 0 | BO155: 0 | BP155: 0
G161: A4 - Downstream transport | AC161: A4 - Downstream transport | BC161: A4 - Downstream transport
G162: Total weight of paving and construction equipment | AC162: Total weight of paving and construction equipment | BC162: Total weight of paving and construction equipment
G164: Item | H164: Weight | I164: Unit | AC164: Item | AD164: Weight | AE164: Unit | BC164: Item | BD164: Weight | BE164: Unit
G165: Weight of construction equipment | H165: 44 | I165: t | AC165: Weight of construction equipment | AD165: 44 | AE165: t | BC165: Weight of construction equipment | BD165: 44 | BE165: t
G166: Distance to construction site | AC166: Distance to construction site | BC166: Distance to construction site
C168: Asphalt | D168: Base course | E168: Sub-base | G168: Item | H168: Distance | I168: Unit | J168: Electricity type | K168: Vlookup | L168: Amount | M168: Unit | N168: Global warming (kg CO2 eq.) | O168: Water consumption (m3) | P168: Terrestrial ecotoxicity (kg 1,4-DCB) | Q168: Freshwater ecotoxicity (kg 1,4-DCB) | R168: Marine ecotoxicity (kg 1,4-DCB) | S168: Human carcinogenic toxicity (kg 1,4-DCB) | T168: Human non-carcinogenic toxicity (kg 1,4-DCB) | Y168: Asphalt | Z168: Base course | AA168: Sub-base | AC168: Item | AD168: Distance | AE168: Unit | AF168: Electricity type | AG168: Vlookup | AH168: Amount | AI168: Unit | AJ168: Global warming (kg CO2 eq.) | AK168: Water consumption (m3) | AL168: Terrestrial ecotoxicity (kg 1,4-DCB) | AM168: Freshwater ecotoxicity (kg 1,4-DCB) | AN168: Marine ecotoxicity (kg 1,4-DCB) | AO168: Human carcinogenic toxicity (kg 1,4-DCB) | AP168: Human non-carcinogenic toxicity (kg 1,4-DCB) | AY168: Asphalt | AZ168: Base course | BA168: Sub-base | BC168: Item | BD168: Distance | BE168: Unit | BF168: Electricity type | BG168: Vlookup | BH168: Amount | BI168: Unit | BJ168: Global warming (kg CO2 eq.) | BK168: Water consumption (m3) | BL168: Terrestrial ecotoxicity (kg 1,4-DCB) | BM168: Freshwater ecotoxicity (kg 1,4-DCB) | BN168: Marine ecotoxicity (kg 1,4-DCB) | BO168: Human carcinogenic toxicity (kg 1,4-DCB) | BP168: Human non-carcinogenic toxicity (kg 1,4-DCB)
C169: =$N$169/3 -> 265.8495987 | D169: =$N$169/3 -> 265.8495987 | E169: 265.8495987 | G169: Construction equipment | H169: =IFERROR(VLOOKUP('LCI and calculations'!G169,'Input and Dasboard_draft'!$B$82:$F$96,2,FALSE),100) -> 100 | I169: km | K169: Truck | L169: =H169*H165 -> 4400 | M169: tkm | N169: =L169*VLOOKUP($K169,Factors_LMCC,3,FALSE) -> 797.548796 | O169: =L169*VLOOKUP($K169,Factors_LMCC,4,FALSE) -> 4.2100839 | P169: =L169*VLOOKUP($K169,Factors_LMCC,5,FALSE) -> 793.084248 | Q169: =L169*VLOOKUP($K169,Factors_LMCC,6,FALSE) -> 6.28621576 | R169: =L169*VLOOKUP($K169,Factors_LMCC,7,FALSE) -> 10.02164372 | S169: =L169*VLOOKUP($K169,Factors_LMCC,8,FALSE) -> 33.0161524 | T169: =L169*VLOOKUP($K169,Factors_LMCC,9,FALSE) -> 211.6747996 | Y169: =$N$169/3 -> 265.8495987 | Z169: =$N$169/3 -> 265.8495987 | AA169: 265.8495987 | AC169: Construction equipment | AD169: ='Input and Dasboard_draft'!D91 -> 100 | AE169: km | AG169: Truck | AH169: =AD169*AD165 -> 4400 | AI169: tkm | AJ169: =AH169*VLOOKUP($K169,Factors_LMCC,3,FALSE) -> 797.548796 | AK169: =AH169*VLOOKUP($K169,Factors_LMCC,4,FALSE) -> 4.2100839 | AL169: =AH169*VLOOKUP($K169,Factors_LMCC,5,FALSE) -> 793.084248 | AM169: =AH169*VLOOKUP($K169,Factors_LMCC,6,FALSE) -> 6.28621576 | AN169: =AH169*VLOOKUP($K169,Factors_LMCC,7,FALSE) -> 10.02164372 | AO169: =AH169*VLOOKUP($K169,Factors_LMCC,8,FALSE) -> 33.0161524 | AP169: =AH169*VLOOKUP($K169,Factors_LMCC,9,FALSE) -> 211.6747996 | AY169: =$N$169/3 -> 265.8495987 | AZ169: =$N$169/3 -> 265.8495987 | BA169: 265.8495987 | BC169: Construction equipment | BD169: ='Input and Dasboard_draft'!E91 -> 100 | BE169: km | BG169: Truck | BH169: =BD169*BD165 -> 4400 | BI169: tkm | BJ169: =BH169*VLOOKUP($K169,Factors_LMCC,3,FALSE) -> 797.548796 | BK169: =BH169*VLOOKUP($K169,Factors_LMCC,4,FALSE) -> 4.2100839 | BL169: =BH169*VLOOKUP($K169,Factors_LMCC,5,FALSE) -> 793.084248 | BM169: =BH169*VLOOKUP($K169,Factors_LMCC,6,FALSE) -> 6.28621576 | BN169: =BH169*VLOOKUP($K169,Factors_LMCC,7,FALSE) -> 10.02164372 | BO169: =BH169*VLOOKUP($K169,Factors_LMCC,8,FALSE) -> 33.0161524 | BP169: =BH169*VLOOKUP($K169,Factors_LMCC,9,FALSE) -> 211.6747996
C170: =N170 -> 22186.35742 | D170: 0 | E170: 0 | G170: ='Input and Dasboard_draft'!B82 -> Asphalt | H170: =IFERROR(VLOOKUP('LCI and calculations'!G170,'Input and Dasboard_draft'!$B$82:$F$95,2,FALSE),100) -> 100 | I170: km | K170: Truck | L170: =IF(G170="Asphalt",H170*$B$85,H170*(SUMIF($G$112:$G$121,G170,$L$112:$L$121)+SUMIF($G$125:$G$134,G170,$L$125:$L$134))) -> 122400 | M170: tkm | N170: 22186.35742 | O170: 117.1168794 | P170: 22062.16181 | Q170: 174.871093 | R170: 278.7839071 | S170: 918.4493304 | T170: 5888.408062 | Y170: =AJ170 -> 66559.07225 | Z170: 0 | AA170: 0 | AC170: ='Input and Dasboard_draft'!$B82 -> Asphalt | AD170: =IFERROR(VLOOKUP('LCI and calculations'!AC170,'Input and Dasboard_draft'!$B$82:$F$95,3,FALSE),100) -> 100 | AE170: km | AG170: Truck | AH170: =IF(AC170="Asphalt",AD170*$C$85,AD170*(SUMIF($AC$112:$AC$121,AC170,$AH$112:AH$121)+SUMIF($AC$125:$AC$134,AC170,$AH$125:$AH$134))) -> 367200 | AI170: tkm | AJ170: =AH170*VLOOKUP($AG170,Factors_LMCC,3,FALSE) -> 66559.07225 | AK170: =AH170*VLOOKUP($AG170,Factors_LMCC,4,FALSE) -> 351.3506382 | AL170: =AH170*VLOOKUP($AG170,Factors_LMCC,5,FALSE) -> 66186.48542 | AM170: =AH170*VLOOKUP($AG170,Factors_LMCC,6,FALSE) -> 524.6132789 | AN170: =AH170*VLOOKUP($AG170,Factors_LMCC,7,FALSE) -> 836.3517214 | AO170: =AH170*VLOOKUP($AG170,Factors_LMCC,8,FALSE) -> 2755.347991 | AP170: =AH170*VLOOKUP($AG170,Factors_LMCC,9,FALSE) -> 17665.22418 | AY170: =BJ170 -> 77652.25096 | AZ170: 0 | BA170: 0 | BC170: ='Input and Dasboard_draft'!$B82 -> Asphalt | BD170: =IFERROR(VLOOKUP('LCI and calculations'!BC170,'Input and Dasboard_draft'!$B$82:$F$95,4,FALSE),100) -> 100 | BE170: km | BG170: Truck | BH170: =IF(BC170="Asphalt",BD170*$D$85,BD170*(SUMIF($BC$112:$BC$121,BC170,$BH$112:BH$121)+SUMIF($BC$125:$BC$134,BC170,$BH$125:$BH$134))) -> 428400 | BI170: tkm | BJ170: =BH170*VLOOKUP($BG170,Factors_LMCC,3,FALSE) -> 77652.25096 | BK170: =BH170*VLOOKUP($BG170,Factors_LMCC,4,FALSE) -> 409.9090779 | BL170: =BH170*VLOOKUP($BG170,Factors_LMCC,5,FALSE) -> 77217.56633 | BM170: =BH170*VLOOKUP($BG170,Factors_LMCC,6,FALSE) -> 612.0488254 | BN170: =BH170*VLOOKUP($BG170,Factors_LMCC,7,FALSE) -> 975.7436749 | BO170: =BH170*VLOOKUP($BG170,Factors_LMCC,8,FALSE) -> 3214.572656 | BP170: =BH170*VLOOKUP($BG170,Factors_LMCC,9,FALSE) -> 20609.42822
C171: 0 | D171: =L116*H171*VLOOKUP($K171,Factors_LMCC,3,FALSE) -> 443.7271483 | E171: =L129*H171*VLOOKUP($K171,Factors_LMCC,3,FALSE) -> 1079.736061 | G171: ='Input and Dasboard_draft'!B83 -> Fly ash | H171: =IFERROR(VLOOKUP('LCI and calculations'!G171,'Input and Dasboard_draft'!$B$82:$F$95,2,FALSE),100) -> 100 | I171: km | K171: Truck | L171: =IF(G171="Asphalt",H171*$B$85,H171*(SUMIF($G$112:$G$121,G171,$L$112:$L$121)+SUMIF($G$125:$G$134,G171,$L$125:$L$134))) -> 8404.8 | M171: tkm | N171: 1523.463209 | O171: 8.042025719 | P171: 1514.935111 | Q171: 12.00781505 | R171: 19.14316162 | S171: 63.06685402 | T171: 404.3373536 | Y171: 0 | Z171: =AH116*AD171*VLOOKUP($K171,Factors_LMCC,3,FALSE) -> 591.6361978 | AA171: =AH129*AD171*VLOOKUP($K171,Factors_LMCC,3,FALSE) -> 443.7271483 | AC171: ='Input and Dasboard_draft'!$B83 -> Fly ash | AD171: =IFERROR(VLOOKUP('LCI and calculations'!AC171,'Input and Dasboard_draft'!$B$82:$F$95,3,FALSE),100) -> 100 | AE171: km | AG171: Truck | AH171: =IF(AC171="Asphalt",AD171*$C$85,AD171*(SUMIF($AC$112:$AC$121,AC171,$AH$112:AH$121)+SUMIF($AC$125:$AC$134,AC171,$AH$125:$AH$134))) -> 5712 | AI171: tkm | AJ171: 1035.363346 | AK171: 5.465454372 | AL171: 1029.567551 | AM171: 8.160651005 | AN171: 13.00991567 | AO171: 42.86096875 | AP171: 274.7923762 | AY171: 0 | AZ171: =BH116*BD171*VLOOKUP($K171,Factors_LMCC,3,FALSE) -> 0 | BA171: =BH129*BD171*VLOOKUP($K171,Factors_LMCC,3,FALSE) -> 591.6361978 | BC171: ='Input and Dasboard_draft'!$B83 -> Fly ash | BD171: =IFERROR(VLOOKUP('LCI and calculations'!BC171,'Input and Dasboard_draft'!$B$82:$F$95,4,FALSE),100) -> 100 | BE171: km | BG171: Truck | BH171: =IF(BC171="Asphalt",BD171*$D$85,BD171*(SUMIF($BC$112:$BC$121,BC171,$BH$112:BH$121)+SUMIF($BC$125:$BC$134,BC171,$BH$125:$BH$134))) -> 3264 | BI171: tkm | BJ171: 591.6361978 | BK171: 3.123116784 | BL171: 588.3243149 | BM171: 4.663229146 | BN171: 7.434237523 | BO171: 24.49198214 | BP171: 157.024215
C172: 0 | D172: =H172*VLOOKUP(G172, $G$112:$L$121, 6, FALSE)*VLOOKUP($K172,Factors_LMCC,3,FALSE) -> 1331.181445 | E172: =H172*VLOOKUP(G172,$G$125:$L$134, 6, FALSE)*VLOOKUP($K172,Factors_LMCC,3,FALSE) -> 3239.208183 | G172: ='Input and Dasboard_draft'!B84 -> Glass | H172: =IFERROR(VLOOKUP('LCI and calculations'!G172,'Input and Dasboard_draft'!$B$82:$F$95,2,FALSE),100) -> 100 | I172: km | K172: Truck | L172: 25214.4 | M172: tkm | N172: 4570.389628 | O172: 24.12607716 | P172: 4544.805332 | Q172: 36.02344515 | R172: 57.42948487 | S172: 189.2005621 | T172: 1213.012061 | Y172: 0 | Z172: =AD172*VLOOKUP(AC172, $G$112:$L$121, 6, FALSE)*VLOOKUP($K172,Factors_LMCC,3,FALSE) -> 1331.181445 | AA172: =AD172*VLOOKUP(AC172,$G$125:$L$134, 6, FALSE)*VLOOKUP($K172,Factors_LMCC,3,FALSE) -> 3239.208183 | AC172: ='Input and Dasboard_draft'!$B84 -> Glass | AD172: =IFERROR(VLOOKUP('LCI and calculations'!AC172,'Input and Dasboard_draft'!$B$82:$F$95,3,FALSE),100) -> 100 | AE172: km | AG172: Truck | AH172: =IF(AC172="Asphalt",AD172*$C$85,AD172*(SUMIF($AC$112:$AC$121,AC172,$AH$112:AH$121)+SUMIF($AC$125:$AC$134,AC172,$AH$125:$AH$134))) -> 17136 | AI172: tkm | AJ172: 3106.090038 | AK172: 16.39636312 | AL172: 3088.702653 | AM172: 24.48195301 | AN172: 39.029747 | AO172: 128.5829063 | AP172: 824.3771286 | AY172: 0 | AZ172: =BD172*VLOOKUP(BC172, $G$112:$L$121, 6, FALSE)*VLOOKUP($K172,Factors_LMCC,3,FALSE) -> 1331.181445 | BA172: =BD172*VLOOKUP(BC172,$G$125:$L$134, 6, FALSE)*VLOOKUP($K172,Factors_LMCC,3,FALSE) -> 3239.208183 | BC172: ='Input and Dasboard_draft'!$B84 -> Glass | BD172: =IFERROR(VLOOKUP('LCI and calculations'!BC172,'Input and Dasboard_draft'!$B$82:$F$95,4,FALSE),100) -> 100 | BE172: km | BG172: Truck | BH172: =IF(BC172="Asphalt",BD172*$D$85,BD172*(SUMIF($BC$112:$BC$121,BC172,$BH$112:BH$121)+SUMIF($BC$125:$BC$134,BC172,$BH$125:$BH$134))) -> 9792 | BI172: tkm | BJ172: 1774.908593 | BK172: 9.369350352 | BL172: 1764.972945 | BM172: 13.98968744 | BN172: 22.30271257 | BO172: 73.47594643 | BP172: 471.0726449
C173: 0 | D173: 0 | E173: =H173*VLOOKUP(G173,$G$125:$L$134, 6, FALSE)*VLOOKUP($K173,Factors_LMCC,3,FALSE) -> 99335.7176 | G173: ='Input and Dasboard_draft'!B85 -> Natural gravel | H173: =IFERROR(VLOOKUP('LCI and calculations'!G173,'Input and Dasboard_draft'!$B$82:$F$95,2,FALSE),100) -> 100 | I173: km | K173: Truck | L173: 548025.6 | M173: tkm | N173: 99335.7176 | O173: 524.371308 | P173: 98779.65247 | Q173: 782.9561735 | R173: 1248.20848 | S173: 4112.203802 | T173: 26364.36569 | Y173: 0 | Z173: 0 | AA173: =AD173*VLOOKUP(AC173,$G$125:$L$134, 6, FALSE)*VLOOKUP($K173,Factors_LMCC,3,FALSE) -> 99335.7176 | AC173: ='Input and Dasboard_draft'!$B85 -> Natural gravel | AD173: =IFERROR(VLOOKUP('LCI and calculations'!AC173,'Input and Dasboard_draft'!$B$82:$F$95,3,FALSE),100) -> 100 | AE173: km | AG173: Truck | AH173: =IF(AC173="Asphalt",AD173*$C$85,AD173*(SUMIF($AC$112:$AC$121,AC173,$AH$112:AH$121)+SUMIF($AC$125:$AC$134,AC173,$AH$125:$AH$134))) -> 225216 | AI173: tkm | AJ173: 40822.89765 | AK173: 215.4950581 | AL173: 40594.37773 | AM173: 321.762811 | AN173: 512.9623891 | AO173: 1689.946768 | AP173: 10834.67083 | AY173: 0 | AZ173: 0 | BA173: =BD173*VLOOKUP(BC173,$G$125:$L$134, 6, FALSE)*VLOOKUP($K173,Factors_LMCC,3,FALSE) -> 99335.7176 | BC173: ='Input and Dasboard_draft'!$B85 -> Natural gravel | BD173: =IFERROR(VLOOKUP('LCI and calculations'!BC173,'Input and Dasboard_draft'!$B$82:$F$95,4,FALSE),100) -> 100 | BE173: km | BG173: Truck | BH173: =IF(BC173="Asphalt",BD173*$D$85,BD173*(SUMIF($BC$112:$BC$121,BC173,$BH$112:BH$121)+SUMIF($BC$125:$BC$134,BC173,$BH$125:$BH$134))) -> 300288 | BI173: tkm | BJ173: 54430.53019 | BK173: 287.3267441 | BL173: 54125.83697 | BM173: 429.0170814 | BN173: 683.9498521 | BO173: 2253.262357 | BP173: 14446.22778
C174: 0 | D174: =H174*VLOOKUP(G174, $G$112:$L$121, 6, FALSE)*VLOOKUP($K174,Factors_LMCC,3,FALSE) -> 1774.908593 | E174: =H174*VLOOKUP(G174,$G$125:$L$134, 6, FALSE)*VLOOKUP($K174,Factors_LMCC,3,FALSE) -> 4318.944244 | G174: ='Input and Dasboard_draft'!B86 -> Plastics | H174: =IFERROR(VLOOKUP('LCI and calculations'!G174,'Input and Dasboard_draft'!$B$82:$F$95,2,FALSE),100) -> 100 | I174: km | K174: Truck | L174: 33619.2 | M174: tkm | N174: 6093.852837 | O174: 32.16810288 | P174: 6059.740443 | Q174: 48.0312602 | R174: 76.57264649 | S174: 252.2674161 | T174: 1617.349414 | Y174: 0 | Z174: =AD174*VLOOKUP(AC174, $G$112:$L$121, 6, FALSE)*VLOOKUP($K174,Factors_LMCC,3,FALSE) -> 1774.908593 | AA174: =AD174*VLOOKUP(AC174,$G$125:$L$134, 6, FALSE)*VLOOKUP($K174,Factors_LMCC,3,FALSE) -> 4318.944244 | AC174: ='Input and Dasboard_draft'!$B86 -> Plastics | AD174: =IFERROR(VLOOKUP('LCI and calculations'!AC174,'Input and Dasboard_draft'!$B$82:$F$95,3,FALSE),100) -> 100 | AE174: km | AG174: Truck | AH174: =IF(AC174="Asphalt",AD174*$C$85,AD174*(SUMIF($AC$112:$AC$121,AC174,$AH$112:AH$121)+SUMIF($AC$125:$AC$134,AC174,$AH$125:$AH$134))) -> 22848 | AI174: tkm | AJ174: 4141.453384 | AK174: 21.86181749 | AL174: 4118.270204 | AM174: 32.64260402 | AN174: 52.03966266 | AO174: 171.443875 | AP174: 1099.169505 | AY174: 0 | AZ174: =BD174*VLOOKUP(BC174, $G$112:$L$121, 6, FALSE)*VLOOKUP($K174,Factors_LMCC,3,FALSE) -> 1774.908593 | BA174: =BD174*VLOOKUP(BC174,$G$125:$L$134, 6, FALSE)*VLOOKUP($K174,Factors_LMCC,3,FALSE) -> 4318.944244 | BC174: ='Input and Dasboard_draft'!$B86 -> Plastics | BD174: =IFERROR(VLOOKUP('LCI and calculations'!BC174,'Input and Dasboard_draft'!$B$82:$F$95,4,FALSE),100) -> 100 | BE174: km | BG174: Truck | BH174: =IF(BC174="Asphalt",BD174*$D$85,BD174*(SUMIF($BC$112:$BC$121,BC174,$BH$112:BH$121)+SUMIF($BC$125:$BC$134,BC174,$BH$125:$BH$134))) -> 13056 | BI174: tkm | BJ174: 2366.544791 | BK174: 12.49246714 | BL174: 2353.29726 | BM174: 18.65291658 | BN174: 29.73695009 | BO174: 97.96792858 | BP174: 628.0968599
C175: 0 | D175: =H175*VLOOKUP(G175, $G$112:$L$121, 6, FALSE)*VLOOKUP($K175,Factors_LMCC,3,FALSE) -> 0 | E175: =H175*VLOOKUP(G175,$G$125:$L$134, 6, FALSE)*VLOOKUP($K175,Factors_LMCC,3,FALSE) -> 0 | G175: ='Input and Dasboard_draft'!B87 -> Recycled concrete | H175: =IFERROR(VLOOKUP('LCI and calculations'!G175,'Input and Dasboard_draft'!$B$82:$F$95,2,FALSE),100) -> 100 | I175: km | K175: Truck | L175: 0 | M175: tkm | N175: 0 | O175: 0 | P175: 0 | Q175: 0 | R175: 0 | S175: 0 | T175: 0 | Y175: 0 | Z175: =AD175*VLOOKUP(AC175, $G$112:$L$121, 6, FALSE)*VLOOKUP($K175,Factors_LMCC,3,FALSE) -> 0 | AA175: =AD175*VLOOKUP(AC175,$G$125:$L$134, 6, FALSE)*VLOOKUP($K175,Factors_LMCC,3,FALSE) -> 0 | AC175: ='Input and Dasboard_draft'!$B87 -> Recycled concrete | AD175: =IFERROR(VLOOKUP('LCI and calculations'!AC175,'Input and Dasboard_draft'!$B$82:$F$95,3,FALSE),100) -> 100 | AE175: km | AG175: Truck | AH175: =IF(AC175="Asphalt",AD175*$C$85,AD175*(SUMIF($AC$112:$AC$121,AC175,$AH$112:AH$121)+SUMIF($AC$125:$AC$134,AC175,$AH$125:$AH$134))) -> 0 | AI175: tkm | AJ175: 0 | AK175: 0 | AL175: 0 | AM175: 0 | AN175: 0 | AO175: 0 | AP175: 0 | AY175: 0 | AZ175: =BD175*VLOOKUP(BC175, $G$112:$L$121, 6, FALSE)*VLOOKUP($K175,Factors_LMCC,3,FALSE) -> 0 | BA175: =BD175*VLOOKUP(BC175,$G$125:$L$134, 6, FALSE)*VLOOKUP($K175,Factors_LMCC,3,FALSE) -> 0 | BC175: ='Input and Dasboard_draft'!$B87 -> Recycled concrete | BD175: =IFERROR(VLOOKUP('LCI and calculations'!BC175,'Input and Dasboard_draft'!$B$82:$F$95,4,FALSE),100) -> 100 | BE175: km | BG175: Truck | BH175: =IF(BC175="Asphalt",BD175*$D$85,BD175*(SUMIF($BC$112:$BC$121,BC175,$BH$112:BH$121)+SUMIF($BC$125:$BC$134,BC175,$BH$125:$BH$134))) -> 0 | BI175: tkm | BJ175: 0 | BK175: 0 | BL175: 0 | BM175: 0 | BN175: 0 | BO175: 0 | BP175: 0
C176: 0 | D176: =H176*VLOOKUP(G176, $G$112:$L$121, 6, FALSE)*VLOOKUP($K176,Factors_LMCC,3,FALSE) -> 40822.89765 | E176: 0 | G176: ='Input and Dasboard_draft'!B88 -> Stabilised gravel | H176: =IFERROR(VLOOKUP('LCI and calculations'!G176,'Input and Dasboard_draft'!$B$82:$F$95,2,FALSE),100) -> 100 | I176: km | K176: Truck | L176: 225216 | M176: tkm | N176: 40822.89765 | O176: 215.4950581 | P176: 40594.37773 | Q176: 321.762811 | R176: 512.9623891 | S176: 1689.946768 | T176: 10834.67083 | Y176: 0 | Z176: =AD176*VLOOKUP(AC176, $G$112:$L$121, 6, FALSE)*VLOOKUP($K176,Factors_LMCC,3,FALSE) -> 40822.89765 | AA176: 0 | AC176: ='Input and Dasboard_draft'!$B88 -> Stabilised gravel | AD176: =IFERROR(VLOOKUP('LCI and calculations'!AC176,'Input and Dasboard_draft'!$B$82:$F$95,3,FALSE),100) -> 100 | AE176: km | AG176: Truck | AH176: =IF(AC176="Asphalt",AD176*$C$85,AD176*(SUMIF($AC$112:$AC$121,AC176,$AH$112:AH$121)+SUMIF($AC$125:$AC$134,AC176,$AH$125:$AH$134))) -> 300288 | AI176: tkm | AJ176: 54430.53019 | AK176: 287.3267441 | AL176: 54125.83697 | AM176: 429.0170814 | AN176: 683.9498521 | AO176: 2253.262357 | AP176: 14446.22778 | AY176: 0 | AZ176: =BD176*VLOOKUP(BC176, $G$112:$L$121, 6, FALSE)*VLOOKUP($K176,Factors_LMCC,3,FALSE) -> 40822.89765 | BA176: 0 | BC176: ='Input and Dasboard_draft'!$B88 -> Stabilised gravel | BD176: =IFERROR(VLOOKUP('LCI and calculations'!BC176,'Input and Dasboard_draft'!$B$82:$F$95,4,FALSE),100) -> 100 | BE176: km | BG176: Truck | BH176: =IF(BC176="Asphalt",BD176*$D$85,BD176*(SUMIF($BC$112:$BC$121,BC176,$BH$112:BH$121)+SUMIF($BC$125:$BC$134,BC176,$BH$125:$BH$134))) -> 0 | BI176: tkm | BJ176: 0 | BK176: 0 | BL176: 0 | BM176: 0 | BN176: 0 | BO176: 0 | BP176: 0
C177: 0 | D177: =H177*VLOOKUP(G177, $G$112:$L$121, 6, FALSE)*VLOOKUP($K177,Factors_LMCC,3,FALSE) -> 0 | E177: =H177*VLOOKUP(G177,$G$125:$L$134, 6, FALSE)*VLOOKUP($K177,Factors_LMCC,3,FALSE) -> 0 | G177: ='Input and Dasboard_draft'!B89 -> Toner | H177: =IFERROR(VLOOKUP('LCI and calculations'!G177,'Input and Dasboard_draft'!$B$82:$F$95,2,FALSE),100) -> 100 | I177: km | K177: Truck | L177: 0 | M177: tkm | N177: 0 | O177: 0 | P177: 0 | Q177: 0 | R177: 0 | S177: 0 | T177: 0 | Y177: 0 | Z177: =AD177*VLOOKUP(AC177, $G$112:$L$121, 6, FALSE)*VLOOKUP($K177,Factors_LMCC,3,FALSE) -> 0 | AA177: =AD177*VLOOKUP(AC177,$G$125:$L$134, 6, FALSE)*VLOOKUP($K177,Factors_LMCC,3,FALSE) -> 0 | AC177: ='Input and Dasboard_draft'!$B89 -> Toner | AD177: =IFERROR(VLOOKUP('LCI and calculations'!AC177,'Input and Dasboard_draft'!$B$82:$F$95,3,FALSE),100) -> 100 | AE177: km | AG177: Truck | AH177: =IF(AC177="Asphalt",AD177*$C$85,AD177*(SUMIF($AC$112:$AC$121,AC177,$AH$112:AH$121)+SUMIF($AC$125:$AC$134,AC177,$AH$125:$AH$134))) -> 0 | AI177: tkm | AJ177: 0 | AK177: 0 | AL177: 0 | AM177: 0 | AN177: 0 | AO177: 0 | AP177: 0 | AY177: 0 | AZ177: =BD177*VLOOKUP(BC177, $G$112:$L$121, 6, FALSE)*VLOOKUP($K177,Factors_LMCC,3,FALSE) -> 0 | BA177: =BD177*VLOOKUP(BC177,$G$125:$L$134, 6, FALSE)*VLOOKUP($K177,Factors_LMCC,3,FALSE) -> 0 | BC177: ='Input and Dasboard_draft'!$B89 -> Toner | BD177: =IFERROR(VLOOKUP('LCI and calculations'!BC177,'Input and Dasboard_draft'!$B$82:$F$95,4,FALSE),100) -> 100 | BE177: km | BG177: Truck | BH177: =IF(BC177="Asphalt",BD177*$D$85,BD177*(SUMIF($BC$112:$BC$121,BC177,$BH$112:BH$121)+SUMIF($BC$125:$BC$134,BC177,$BH$125:$BH$134))) -> 0 | BI177: tkm | BJ177: 0 | BK177: 0 | BL177: 0 | BM177: 0 | BN177: 0 | BO177: 0 | BP177: 0
C178: 0 | D178: =H178*VLOOKUP(G178, $G$112:$L$121, 6, FALSE)*VLOOKUP($K178,Factors_LMCC,3,FALSE) -> 0 | E178: =H178*VLOOKUP(G178,$G$125:$L$134, 6, FALSE)*VLOOKUP($K178,Factors_LMCC,3,FALSE) -> 0 | G178: ='Input and Dasboard_draft'!B90 -> Waste tyre | H178: =IFERROR(VLOOKUP('LCI and calculations'!G178,'Input and Dasboard_draft'!$B$82:$F$95,2,FALSE),100) -> 100 | I178: km | K178: Truck | L178: 0 | M178: tkm | N178: 0 | O178: 0 | P178: 0 | Q178: 0 | R178: 0 | S178: 0 | T178: 0 | Y178: 0 | Z178: =AD178*VLOOKUP(AC178, $G$112:$L$121, 6, FALSE)*VLOOKUP($K178,Factors_LMCC,3,FALSE) -> 0 | AA178: =AD178*VLOOKUP(AC178,$G$125:$L$134, 6, FALSE)*VLOOKUP($K178,Factors_LMCC,3,FALSE) -> 0 | AC178: ='Input and Dasboard_draft'!$B90 -> Waste tyre | AD178: =IFERROR(VLOOKUP('LCI and calculations'!AC178,'Input and Dasboard_draft'!$B$82:$F$95,3,FALSE),100) -> 100 | AE178: km | AG178: Truck | AH178: =IF(AC178="Asphalt",AD178*$C$85,AD178*(SUMIF($AC$112:$AC$121,AC178,$AH$112:AH$121)+SUMIF($AC$125:$AC$134,AC178,$AH$125:$AH$134))) -> 0 | AI178: tkm | AJ178: 0 | AK178: 0 | AL178: 0 | AM178: 0 | AN178: 0 | AO178: 0 | AP178: 0 | AY178: 0 | AZ178: =BD178*VLOOKUP(BC178, $G$112:$L$121, 6, FALSE)*VLOOKUP($K178,Factors_LMCC,3,FALSE) -> 0 | BA178: =BD178*VLOOKUP(BC178,$G$125:$L$134, 6, FALSE)*VLOOKUP($K178,Factors_LMCC,3,FALSE) -> 0 | BC178: ='Input and Dasboard_draft'!$B90 -> Waste tyre | BD178: =IFERROR(VLOOKUP('LCI and calculations'!BC178,'Input and Dasboard_draft'!$B$82:$F$95,4,FALSE),100) -> 100 | BE178: km | BG178: Truck | BH178: =IF(BC178="Asphalt",BD178*$D$85,BD178*(SUMIF($BC$112:$BC$121,BC178,$BH$112:BH$121)+SUMIF($BC$125:$BC$134,BC178,$BH$125:$BH$134))) -> 0 | BI178: tkm | BJ178: 0 | BK178: 0 | BL178: 0 | BM178: 0 | BN178: 0 | BO178: 0 | BP178: 0
C179: 0 | D179: 0 | E179: 0 | G179: ='Input and Dasboard_draft'!B91 -> Lime | H179: =IFERROR(VLOOKUP('LCI and calculations'!G179,'Input and Dasboard_draft'!$B$82:$F$95,2,FALSE),100) -> 100 | I179: km | K179: Truck | L179: 0 | M179: tkm | N179: =L179*VLOOKUP($K179,Factors_LMCC,3,FALSE) -> 0 | O179: =L179*VLOOKUP($K179,Factors_LMCC,4,FALSE) -> 0 | P179: =L179*VLOOKUP($K179,Factors_LMCC,5,FALSE) -> 0 | Q179: =L179*VLOOKUP($K179,Factors_LMCC,6,FALSE) -> 0 | R179: =L179*VLOOKUP($K179,Factors_LMCC,7,FALSE) -> 0 | S179: =L179*VLOOKUP($K179,Factors_LMCC,8,FALSE) -> 0 | T179: =L179*VLOOKUP($K179,Factors_LMCC,9,FALSE) -> 0 | Y179: 0 | Z179: 0 | AA179: 0 | AC179: ='Input and Dasboard_draft'!$B91 -> Lime | AD179: =IFERROR(VLOOKUP('LCI and calculations'!AC179,'Input and Dasboard_draft'!$B$82:$F$95,3,FALSE),100) -> 100 | AE179: km | AG179: Truck | AH179: =IF(AC179="Asphalt",AD179*$C$85,AD179*(SUMIF($AC$112:$AC$121,AC179,$AH$112:AH$121)+SUMIF($AC$125:$AC$134,AC179,$AH$125:$AH$134))) -> 0 | AI179: tkm | AJ179: =AH179*VLOOKUP($AG179,Factors_LMCC,3,FALSE) -> 0 | AK179: =AH179*VLOOKUP($AG179,Factors_LMCC,4,FALSE) -> 0 | AL179: =AH179*VLOOKUP($AG179,Factors_LMCC,5,FALSE) -> 0 | AM179: =AH179*VLOOKUP($AG179,Factors_LMCC,6,FALSE) -> 0 | AN179: =AH179*VLOOKUP($AG179,Factors_LMCC,7,FALSE) -> 0 | AO179: =AH179*VLOOKUP($AG179,Factors_LMCC,8,FALSE) -> 0 | AP179: =AH179*VLOOKUP($AG179,Factors_LMCC,9,FALSE) -> 0 | AY179: 0 | AZ179: 0 | BA179: 0 | BC179: ='Input and Dasboard_draft'!$B91 -> Lime | BD179: =IFERROR(VLOOKUP('LCI and calculations'!BC179,'Input and Dasboard_draft'!$B$82:$F$95,4,FALSE),100) -> 100 | BE179: km | BG179: Truck | BH179: =IF(BC179="Asphalt",BD179*$D$85,BD179*(SUMIF($BC$112:$BC$121,BC179,$BH$112:BH$121)+SUMIF($BC$125:$BC$134,BC179,$BH$125:$BH$134))) -> 0 | BI179: tkm | BJ179: =BH179*VLOOKUP($BG179,Factors_LMCC,3,FALSE) -> 0 | BK179: =BH179*VLOOKUP($BG179,Factors_LMCC,4,FALSE) -> 0 | BL179: =BH179*VLOOKUP($BG179,Factors_LMCC,5,FALSE) -> 0 | BM179: =BH179*VLOOKUP($BG179,Factors_LMCC,6,FALSE) -> 0 | BN179: =BH179*VLOOKUP($BG179,Factors_LMCC,7,FALSE) -> 0 | BO179: =BH179*VLOOKUP($BG179,Factors_LMCC,8,FALSE) -> 0 | BP179: =BH179*VLOOKUP($BG179,Factors_LMCC,9,FALSE) -> 0
C180: 0 | D180: 0 | E180: 0 | G180: ='Input and Dasboard_draft'!B92 -> Cement | H180: =IFERROR(VLOOKUP('LCI and calculations'!G180,'Input and Dasboard_draft'!$B$82:$F$95,2,FALSE),100) -> 100 | I180: km | K180: Truck | L180: 0 | M180: tkm | N180: 0 | O180: 0 | P180: 0 | Q180: 0 | R180: 0 | S180: 0 | T180: 0 | Y180: 0 | Z180: 0 | AA180: 0 | AC180: ='Input and Dasboard_draft'!$B92 -> Cement | AD180: =IFERROR(VLOOKUP('LCI and calculations'!AC180,'Input and Dasboard_draft'!$B$82:$F$95,3,FALSE),100) -> 100 | AE180: km | AG180: Truck | AH180: =IF(AC180="Asphalt",AD180*$C$85,AD180*(SUMIF($AC$112:$AC$121,AC180,$AH$112:AH$121)+SUMIF($AC$125:$AC$134,AC180,$AH$125:$AH$134))) -> 0 | AI180: tkm | AJ180: 0 | AK180: 0 | AL180: 0 | AM180: 0 | AN180: 0 | AO180: 0 | AP180: 0 | AY180: 0 | AZ180: 0 | BA180: 0 | BC180: ='Input and Dasboard_draft'!$B92 -> Cement | BD180: =IFERROR(VLOOKUP('LCI and calculations'!BC180,'Input and Dasboard_draft'!$B$82:$F$95,4,FALSE),100) -> 100 | BE180: km | BG180: Truck | BH180: =IF(BC180="Asphalt",BD180*$D$85,BD180*(SUMIF($BC$112:$BC$121,BC180,$BH$112:BH$121)+SUMIF($BC$125:$BC$134,BC180,$BH$125:$BH$134))) -> 0 | BI180: tkm | BJ180: 0 | BK180: 0 | BL180: 0 | BM180: 0 | BN180: 0 | BO180: 0 | BP180: 0
C181: 0 | D181: =H181*VLOOKUP(G181, $G$112:$L$121, 6, FALSE)*VLOOKUP($K181,Factors_LMCC,3,FALSE) -> 0 | E181: =H181*VLOOKUP(G181,$G$125:$L$134, 6, FALSE)*VLOOKUP($K181,Factors_LMCC,3,FALSE) -> 0 | G181: ='Input and Dasboard_draft'!B93 -> RAP | H181: =IFERROR(VLOOKUP('LCI and calculations'!G181,'Input and Dasboard_draft'!$B$82:$F$95,2,FALSE),100) -> 100 | I181: km | K181: Truck | L181: 0 | M181: tkm | N181: =L181*VLOOKUP($K181,Factors_LMCC,3,FALSE) -> 0 | O181: =L181*VLOOKUP($K181,Factors_LMCC,4,FALSE) -> 0 | P181: =L181*VLOOKUP($K181,Factors_LMCC,5,FALSE) -> 0 | Q181: =L181*VLOOKUP($K181,Factors_LMCC,6,FALSE) -> 0 | R181: =L181*VLOOKUP($K181,Factors_LMCC,7,FALSE) -> 0 | S181: =L181*VLOOKUP($K181,Factors_LMCC,8,FALSE) -> 0 | T181: =L181*VLOOKUP($K181,Factors_LMCC,9,FALSE) -> 0 | Y181: 0 | Z181: =AD181*VLOOKUP(AC181, $G$112:$L$121, 6, FALSE)*VLOOKUP($K181,Factors_LMCC,3,FALSE) -> 0 | AA181: =AD181*VLOOKUP(AC181,$G$125:$L$134, 6, FALSE)*VLOOKUP($K181,Factors_LMCC,3,FALSE) -> 0 | AC181: ='Input and Dasboard_draft'!$B93 -> RAP | AD181: =IFERROR(VLOOKUP('LCI and calculations'!AC181,'Input and Dasboard_draft'!$B$82:$F$95,3,FALSE),100) -> 100 | AE181: km | AG181: Truck | AH181: =IF(AC181="Asphalt",AD181*$C$85,AD181*(SUMIF($AC$112:$AC$121,AC181,$AH$112:AH$121)+SUMIF($AC$125:$AC$134,AC181,$AH$125:$AH$134))) -> 0 | AI181: tkm | AJ181: 0 | AK181: 0 | AL181: 0 | AM181: 0 | AN181: 0 | AO181: 0 | AP181: 0 | AY181: 0 | AZ181: =BD181*VLOOKUP(BC181, $G$112:$L$121, 6, FALSE)*VLOOKUP($K181,Factors_LMCC,3,FALSE) -> 0 | BA181: =BD181*VLOOKUP(BC181,$G$125:$L$134, 6, FALSE)*VLOOKUP($K181,Factors_LMCC,3,FALSE) -> 0 | BC181: ='Input and Dasboard_draft'!$B93 -> RAP | BD181: =IFERROR(VLOOKUP('LCI and calculations'!BC181,'Input and Dasboard_draft'!$B$82:$F$95,4,FALSE),100) -> 100 | BE181: km | BG181: Truck | BH181: =IF(BC181="Asphalt",BD181*$D$85,BD181*(SUMIF($BC$112:$BC$121,BC181,$BH$112:BH$121)+SUMIF($BC$125:$BC$134,BC181,$BH$125:$BH$134))) -> 0 | BI181: tkm | BJ181: 0 | BK181: 0 | BL181: 0 | BM181: 0 | BN181: 0 | BO181: 0 | BP181: 0
C182: 0 | D182: =H182*VLOOKUP(G182, $G$112:$L$121, 6, FALSE)*VLOOKUP($K182,Factors_LMCC,3,FALSE) -> 0 | E182: =H182*VLOOKUP(G182,$G$125:$L$134, 6, FALSE)*VLOOKUP($K182,Factors_LMCC,3,FALSE) -> 0 | G182: ='Input and Dasboard_draft'!B94 -> Crushed brick | H182: =IFERROR(VLOOKUP('LCI and calculations'!G182,'Input and Dasboard_draft'!$B$82:$F$95,2,FALSE),100) -> 100 | I182: km | K182: Truck | L182: 0 | M182: tkm | N182: 0 | O182: 0 | P182: 0 | Q182: 0 | R182: 0 | S182: 0 | T182: 0 | Y182: 0 | Z182: =AD182*VLOOKUP(AC182, $G$112:$L$121, 6, FALSE)*VLOOKUP($K182,Factors_LMCC,3,FALSE) -> 0 | AA182: =AD182*VLOOKUP(AC182,$G$125:$L$134, 6, FALSE)*VLOOKUP($K182,Factors_LMCC,3,FALSE) -> 0 | AC182: ='Input and Dasboard_draft'!$B94 -> Crushed brick | AD182: =IFERROR(VLOOKUP('LCI and calculations'!AC182,'Input and Dasboard_draft'!$B$82:$F$95,3,FALSE),100) -> 100 | AE182: km | AG182: Truck | AH182: =IF(AC182="Asphalt",AD182*$C$85,AD182*(SUMIF($AC$112:$AC$121,AC182,$AH$112:AH$121)+SUMIF($AC$125:$AC$134,AC182,$AH$125:$AH$134))) -> 0 | AI182: tkm | AJ182: 0 | AK182: 0 | AL182: 0 | AM182: 0 | AN182: 0 | AO182: 0 | AP182: 0 | AY182: 0 | AZ182: =BD182*VLOOKUP(BC182, $G$112:$L$121, 6, FALSE)*VLOOKUP($K182,Factors_LMCC,3,FALSE) -> 0 | BA182: =BD182*VLOOKUP(BC182,$G$125:$L$134, 6, FALSE)*VLOOKUP($K182,Factors_LMCC,3,FALSE) -> 0 | BC182: ='Input and Dasboard_draft'!$B94 -> Crushed brick | BD182: =IFERROR(VLOOKUP('LCI and calculations'!BC182,'Input and Dasboard_draft'!$B$82:$F$95,4,FALSE),100) -> 100 | BE182: km | BG182: Truck | BH182: =IF(BC182="Asphalt",BD182*$D$85,BD182*(SUMIF($BC$112:$BC$121,BC182,$BH$112:BH$121)+SUMIF($BC$125:$BC$134,BC182,$BH$125:$BH$134))) -> 0 | BI182: tkm | BJ182: 0 | BK182: 0 | BL182: 0 | BM182: 0 | BN182: 0 | BO182: 0 | BP182: 0
C183: 0 | D183: =H183*VLOOKUP(G183, $G$112:$L$121, 6, FALSE)*VLOOKUP($K183,Factors_LMCC,3,FALSE) -> 0 | E183: =H183*VLOOKUP(G183,$G$125:$L$134, 6, FALSE)*VLOOKUP($K183,Factors_LMCC,3,FALSE) -> 0 | G183: ='Input and Dasboard_draft'!B95 -> Recycled tile | H183: =IFERROR(VLOOKUP('LCI and calculations'!G183,'Input and Dasboard_draft'!$B$82:$F$95,2,FALSE),100) -> 100 | I183: km | K183: Truck | L183: 0 | M183: tkm | N183: =L183*VLOOKUP($K183,Factors_LMCC,3,FALSE) -> 0 | O183: =L183*VLOOKUP($K183,Factors_LMCC,4,FALSE) -> 0 | P183: =L183*VLOOKUP($K183,Factors_LMCC,5,FALSE) -> 0 | Q183: =L183*VLOOKUP($K183,Factors_LMCC,6,FALSE) -> 0 | R183: =L183*VLOOKUP($K183,Factors_LMCC,7,FALSE) -> 0 | S183: =L183*VLOOKUP($K183,Factors_LMCC,8,FALSE) -> 0 | T183: =L183*VLOOKUP($K183,Factors_LMCC,9,FALSE) -> 0 | Y183: 0 | Z183: =AD183*VLOOKUP(AC183, $G$112:$L$121, 6, FALSE)*VLOOKUP($K183,Factors_LMCC,3,FALSE) -> 0 | AA183: =AD183*VLOOKUP(AC183,$G$125:$L$134, 6, FALSE)*VLOOKUP($K183,Factors_LMCC,3,FALSE) -> 0 | AC183: ='Input and Dasboard_draft'!$B95 -> Recycled tile | AD183: =IFERROR(VLOOKUP('LCI and calculations'!AC183,'Input and Dasboard_draft'!$B$82:$F$95,3,FALSE),100) -> 100 | AE183: km | AG183: Truck | AH183: =IF(AC183="Asphalt",AD183*$C$85,AD183*(SUMIF($AC$112:$AC$121,AC183,$AH$112:AH$121)+SUMIF($AC$125:$AC$134,AC183,$AH$125:$AH$134))) -> 0 | AI183: tkm | AJ183: 0 | AK183: 0 | AL183: 0 | AM183: 0 | AN183: 0 | AO183: 0 | AP183: 0 | AY183: 0 | AZ183: =BD183*VLOOKUP(BC183, $G$112:$L$121, 6, FALSE)*VLOOKUP($K183,Factors_LMCC,3,FALSE) -> 0 | BA183: =BD183*VLOOKUP(BC183,$G$125:$L$134, 6, FALSE)*VLOOKUP($K183,Factors_LMCC,3,FALSE) -> 0 | BC183: ='Input and Dasboard_draft'!$B95 -> Recycled tile | BD183: =IFERROR(VLOOKUP('LCI and calculations'!BC183,'Input and Dasboard_draft'!$B$82:$F$95,4,FALSE),100) -> 100 | BE183: km | BG183: Truck | BH183: =IF(BC183="Asphalt",BD183*$D$85,BD183*(SUMIF($BC$112:$BC$121,BC183,$BH$112:BH$121)+SUMIF($BC$125:$BC$134,BC183,$BH$125:$BH$134))) -> 0 | BI183: tkm | BJ183: 0 | BK183: 0 | BL183: 0 | BM183: 0 | BN183: 0 | BO183: 0 | BP183: 0
G184: A5 - Construction | AC184: A5 - Construction | BC184: A5 - Construction
G185: Construction utilities | AC185: Construction utilities | BC185: Construction utilities
G187: Item | H187: Amount per t | I187: Unit | J187: Electricity type | K187: Vlookup | L187: Amount | M187: Unit | N187: Global warming (kg CO2 eq.) | O187: Water consumption (m3) | P187: Terrestrial ecotoxicity (kg 1,4-DCB) | Q187: Freshwater ecotoxicity (kg 1,4-DCB) | R187: Marine ecotoxicity (kg 1,4-DCB) | S187: Human carcinogenic toxicity (kg 1,4-DCB) | T187: Human non-carcinogenic toxicity (kg 1,4-DCB) | AC187: Item | AD187: Amount per t | AE187: Unit | AF187: Electricity type | AG187: Vlookup | AH187: Amount | AI187: Unit | AJ187: Global warming (kg CO2 eq.) | AK187: Water consumption (m3) | AL187: Terrestrial ecotoxicity (kg 1,4-DCB) | AM187: Freshwater ecotoxicity (kg 1,4-DCB) | AN187: Marine ecotoxicity (kg 1,4-DCB) | AO187: Human carcinogenic toxicity (kg 1,4-DCB) | AP187: Human non-carcinogenic toxicity (kg 1,4-DCB) | BC187: Item | BD187: Amount per t | BE187: Unit | BF187: Electricity type | BG187: Vlookup | BH187: Amount | BI187: Unit | BJ187: Global warming (kg CO2 eq.) | BK187: Water consumption (m3) | BL187: Terrestrial ecotoxicity (kg 1,4-DCB) | BM187: Freshwater ecotoxicity (kg 1,4-DCB) | BN187: Marine ecotoxicity (kg 1,4-DCB) | BO187: Human carcinogenic toxicity (kg 1,4-DCB) | BP187: Human non-carcinogenic toxicity (kg 1,4-DCB)
G188: Diesel - construction | H188: 1.2 | I188: L/t | K188: Diesel | L188: =H188*SUM($B$85:$B$87) -> 11554.56 | M188: L | N188: =L188*VLOOKUP($K188,Factors_LMCC,3,FALSE) -> 40907.14837 | O188: =L188*VLOOKUP($K188,Factors_LMCC,4,FALSE) -> 102.2777194 | P188: =L188*VLOOKUP($K188,Factors_LMCC,5,FALSE) -> 34465.22928 | Q188: =L188*VLOOKUP($K188,Factors_LMCC,6,FALSE) -> 77.79435092 | R188: =L188*VLOOKUP($K188,Factors_LMCC,7,FALSE) -> 176.4399106 | S188: =L188*VLOOKUP($K188,Factors_LMCC,8,FALSE) -> 751.3245067 | T188: =L188*VLOOKUP($K188,Factors_LMCC,9,FALSE) -> 2465.957557 | AC188: Diesel - construction | AD188: 1.2 | AE188: L/t | AG188: Diesel | AH188: =AD188*SUM($C$85:$C$87) -> 11260.8 | AI188: L | AJ188: =AH188*VLOOKUP($AG188,Factors_LMCC,3,FALSE) -> 39867.13612 | AK188: =AH188*VLOOKUP($AG188,Factors_LMCC,4,FALSE) -> 99.67743844 | AL188: =AH188*VLOOKUP($AG188,Factors_LMCC,5,FALSE) -> 33588.99463 | AM188: =AH188*VLOOKUP($AG188,Factors_LMCC,6,FALSE) -> 75.81652844 | AN188: =AH188*VLOOKUP($AG188,Factors_LMCC,7,FALSE) -> 171.9541502 | AO188: =AH188*VLOOKUP($AG188,Factors_LMCC,8,FALSE) -> 732.2230362 | AP188: =AH188*VLOOKUP($AG188,Factors_LMCC,9,FALSE) -> 2403.26372 | BC188: Diesel - construction | BD188: 1.2 | BE188: L/t | BG188: Diesel | BH188: =BD188*SUM($D$85:$D$87) -> 9057.6 | BI188: L | BJ188: =BH188*VLOOKUP($BG188,Factors_LMCC,3,FALSE) -> 32067.04427 | BK188: =BH188*VLOOKUP($BG188,Factors_LMCC,4,FALSE) -> 80.17533092 | BL188: =BH188*VLOOKUP($BG188,Factors_LMCC,5,FALSE) -> 27017.23481 | BM188: =BH188*VLOOKUP($BG188,Factors_LMCC,6,FALSE) -> 60.98285983 | BN188: =BH188*VLOOKUP($BG188,Factors_LMCC,7,FALSE) -> 138.3109469 | BO188: =BH188*VLOOKUP($BG188,Factors_LMCC,8,FALSE) -> 588.9620074 | BP188: =BH188*VLOOKUP($BG188,Factors_LMCC,9,FALSE) -> 1933.059949
G189: Water - construction | H189: 3.3 | I189: L/t | K189: Water | L189: =H189*SUM($B$85:$B$87) -> 31775.04 | M189: L | N189: =L189*VLOOKUP($K189,Factors_LMCC,3,FALSE) -> 25.60616891 | O189: =L189*VLOOKUP($K189,Factors_LMCC,4,FALSE) -> 31.88335476 | P189: =L189*VLOOKUP($K189,Factors_LMCC,5,FALSE) -> 30.52637848 | Q189: =L189*VLOOKUP($K189,Factors_LMCC,6,FALSE) -> 0.4267630316 | R189: =L189*VLOOKUP($K189,Factors_LMCC,7,FALSE) -> 0.6060905856 | S189: =L189*VLOOKUP($K189,Factors_LMCC,8,FALSE) -> 0.9116550671 | T189: =L189*VLOOKUP($K189,Factors_LMCC,9,FALSE) -> 13.56274337 | AC189: Water - construction | AD189: 3.3 | AE189: L/t | AG189: Water | AH189: =AD189*SUM($C$85:$C$87) -> 30967.2 | AI189: L | AJ189: =AH189*VLOOKUP($AG189,Factors_LMCC,3,FALSE) -> 24.95516462 | AK189: =AH189*VLOOKUP($AG189,Factors_LMCC,4,FALSE) -> 31.07276099 | AL189: =AH189*VLOOKUP($AG189,Factors_LMCC,5,FALSE) -> 29.75028411 | AM189: =AH189*VLOOKUP($AG189,Factors_LMCC,6,FALSE) -> 0.415913124 | AN189: =AH189*VLOOKUP($AG189,Factors_LMCC,7,FALSE) -> 0.5906815029 | AO189: =AH189*VLOOKUP($AG189,Factors_LMCC,8,FALSE) -> 0.8884773959 | AP189: =AH189*VLOOKUP($AG189,Factors_LMCC,9,FALSE) -> 13.21792786 | BC189: Water - construction | BD189: 3.3 | BE189: L/t | BG189: Water | BH189: =BD189*SUM($D$85:$D$87) -> 24908.4 | BI189: L | BJ189: =BH189*VLOOKUP($BG189,Factors_LMCC,3,FALSE) -> 20.07263241 | BK189: =BH189*VLOOKUP($BG189,Factors_LMCC,4,FALSE) -> 24.99330775 | BL189: =BH189*VLOOKUP($BG189,Factors_LMCC,5,FALSE) -> 23.92957635 | BM189: =BH189*VLOOKUP($BG189,Factors_LMCC,6,FALSE) -> 0.3345388171 | BN189: =BH189*VLOOKUP($BG189,Factors_LMCC,7,FALSE) -> 0.4751133828 | BO189: =BH189*VLOOKUP($BG189,Factors_LMCC,8,FALSE) -> 0.7146448619 | BP189: =BH189*VLOOKUP($BG189,Factors_LMCC,9,FALSE) -> 10.63181154
G190: Track coat | H190: 3.1 | I190: L/t | K190: Track coat | L190: =H190*$B$85 -> 3794.4 | M190: L | N190: =L190*VLOOKUP($K190,Factors_LMCC,3,FALSE) -> 1623.718772 | O190: =L190*VLOOKUP($K190,Factors_LMCC,4,FALSE) -> 20.13503824 | P190: =L190*VLOOKUP($K190,Factors_LMCC,5,FALSE) -> 966.7108609 | Q190: =L190*VLOOKUP($K190,Factors_LMCC,6,FALSE) -> 6.437452307 | R190: =L190*VLOOKUP($K190,Factors_LMCC,7,FALSE) -> 9.59647092 | S190: =L190*VLOOKUP($K190,Factors_LMCC,8,FALSE) -> 16.20039039 | T190: =L190*VLOOKUP($K190,Factors_LMCC,9,FALSE) -> 226.5579552 | AC190: Track coat | AD190: 3.1 | AE190: L/t | AG190: Track coat | AH190: =AD190*$C$85 -> 11383.2 | AI190: L | AJ190: =AH190*VLOOKUP($AG190,Factors_LMCC,3,FALSE) -> 4871.156315 | AK190: =AH190*VLOOKUP($AG190,Factors_LMCC,4,FALSE) -> 60.40511472 | AL190: =AH190*VLOOKUP($AG190,Factors_LMCC,5,FALSE) -> 2900.132583 | AM190: =AH190*VLOOKUP($AG190,Factors_LMCC,6,FALSE) -> 19.31235692 | AN190: =AH190*VLOOKUP($AG190,Factors_LMCC,7,FALSE) -> 28.78941276 | AO190: =AH190*VLOOKUP($AG190,Factors_LMCC,8,FALSE) -> 48.60117116 | AP190: =AH190*VLOOKUP($AG190,Factors_LMCC,9,FALSE) -> 679.6738655 | BC190: Track coat | BD190: 3.1 | BE190: L/t | BG190: Track coat | BH190: =BD190*$D$85 -> 13280.4 | BI190: L | BJ190: =BH190*VLOOKUP($BG190,Factors_LMCC,3,FALSE) -> 5683.015701 | BK190: =BH190*VLOOKUP($BG190,Factors_LMCC,4,FALSE) -> 70.47263384 | BL190: =BH190*VLOOKUP($BG190,Factors_LMCC,5,FALSE) -> 3383.488013 | BM190: =BH190*VLOOKUP($BG190,Factors_LMCC,6,FALSE) -> 22.53108307 | BN190: =BH190*VLOOKUP($BG190,Factors_LMCC,7,FALSE) -> 33.58764822 | BO190: =BH190*VLOOKUP($BG190,Factors_LMCC,8,FALSE) -> 56.70136635 | BP190: =BH190*VLOOKUP($BG190,Factors_LMCC,9,FALSE) -> 792.9528431
G191: Wastage rate | H191: 0.02 | I191: per cent of (A1 to A4 of total) | AC191: Wastage rate | AD191: 0.02 | AE191: per cent of (A1 to A4 of total) | BC191: Wastage rate | BD191: 0.02 | BE191: per cent of (A1 to A4 of total)
G192: B1-B4 | AC192: B1-B4 | BC192: B1-B4
G193: Maintenance - B2 | AC193: Maintenance - B2 | BC193: Maintenance - B2
G195: Item | H195: Amount per t | I195: Unit | J195: Electricity type | K195: Vlookup | L195: Amount | M195: Unit | N195: Global warming (kg CO2 eq.) | O195: Water consumption (m3) | P195: Terrestrial ecotoxicity (kg 1,4-DCB) | Q195: Freshwater ecotoxicity (kg 1,4-DCB) | R195: Marine ecotoxicity (kg 1,4-DCB) | S195: Human carcinogenic toxicity (kg 1,4-DCB) | T195: Human non-carcinogenic toxicity (kg 1,4-DCB) | AC195: Item | AD195: Amount per t | AE195: Unit | AF195: Electricity type | AG195: Vlookup | AH195: Amount | AI195: Unit | AJ195: Global warming (kg CO2 eq.) | AK195: Water consumption (m3) | AL195: Terrestrial ecotoxicity (kg 1,4-DCB) | AM195: Freshwater ecotoxicity (kg 1,4-DCB) | AN195: Marine ecotoxicity (kg 1,4-DCB) | AO195: Human carcinogenic toxicity (kg 1,4-DCB) | AP195: Human non-carcinogenic toxicity (kg 1,4-DCB) | BC195: Item | BD195: Amount per t | BE195: Unit | BF195: Electricity type | BG195: Vlookup | BH195: Amount | BI195: Unit | BJ195: Global warming (kg CO2 eq.) | BK195: Water consumption (m3) | BL195: Terrestrial ecotoxicity (kg 1,4-DCB) | BM195: Freshwater ecotoxicity (kg 1,4-DCB) | BN195: Marine ecotoxicity (kg 1,4-DCB) | BO195: Human carcinogenic toxicity (kg 1,4-DCB) | BP195: Human non-carcinogenic toxicity (kg 1,4-DCB)
G196: Diesel - washing (vehicle consumption) | H196: =0.472/40 -> 0.0118 | I196: L/t/y | K196: Diesel | L196: =H196*'LCI and calculations'!$B$85*'Input and Dasboard_draft'!$C$57 -> 433.296 | M196: L | N196: =L196*VLOOKUP($K196,Factors_LMCC,3,FALSE) -> 1534.018064 | O196: =L196*VLOOKUP($K196,Factors_LMCC,4,FALSE) -> 3.835414479 | P196: =L196*VLOOKUP($K196,Factors_LMCC,5,FALSE) -> 1292.446098 | Q196: =L196*VLOOKUP($K196,Factors_LMCC,6,FALSE) -> 2.917288159 | R196: =L196*VLOOKUP($K196,Factors_LMCC,7,FALSE) -> 6.616496648 | S196: =L196*VLOOKUP($K196,Factors_LMCC,8,FALSE) -> 28.174669 | T196: =L196*VLOOKUP($K196,Factors_LMCC,9,FALSE) -> 92.47340837 | AC196: Diesel - washing (vehicle consumption) | AD196: =0.472/40 -> 0.0118 | AE196: L/t/y | AG196: Diesel | AH196: =AD196*'LCI and calculations'!$C$85*'Input and Dasboard_draft'!$D$57 -> 1299.888 | AI196: L | AJ196: =AH196*VLOOKUP($AG196,Factors_LMCC,3,FALSE) -> 4602.054191 | AK196: =AH196*VLOOKUP($AG196,Factors_LMCC,4,FALSE) -> 11.50624344 | AL196: =AH196*VLOOKUP($AG196,Factors_LMCC,5,FALSE) -> 3877.338294 | AM196: =AH196*VLOOKUP($AG196,Factors_LMCC,6,FALSE) -> 8.751864478 | AN196: =AH196*VLOOKUP($AG196,Factors_LMCC,7,FALSE) -> 19.84948994 | AO196: =AH196*VLOOKUP($AG196,Factors_LMCC,8,FALSE) -> 84.524007 | AP196: =AH196*VLOOKUP($AG196,Factors_LMCC,9,FALSE) -> 277.4202251 | BC196: Diesel - washing (vehicle consumption) | BD196: =0.472/40 -> 0.0118 | BE196: L/t/y | BG196: Diesel | BH196: =BD196*'LCI and calculations'!$D$85*'Input and Dasboard_draft'!$E$57 -> 1516.536 | BI196: L | BJ196: =BH196*VLOOKUP($BG196,Factors_LMCC,3,FALSE) -> 5369.063223 | BK196: =BH196*VLOOKUP($BG196,Factors_LMCC,4,FALSE) -> 13.42395068 | BL196: =BH196*VLOOKUP($BG196,Factors_LMCC,5,FALSE) -> 4523.561343 | BM196: =BH196*VLOOKUP($BG196,Factors_LMCC,6,FALSE) -> 10.21050856 | BN196: =BH196*VLOOKUP($BG196,Factors_LMCC,7,FALSE) -> 23.15773827 | BO196: =BH196*VLOOKUP($BG196,Factors_LMCC,8,FALSE) -> 98.6113415 | BP196: =BH196*VLOOKUP($BG196,Factors_LMCC,9,FALSE) -> 323.6569293
G197: Water - washing | H197: =162/40 -> 4.05 | I197: L/t/y | K197: Water | L197: =H197*'LCI and calculations'!$B$85*'Input and Dasboard_draft'!$C$57 -> 148716 | M197: L | N197: =L197*VLOOKUP($K197,Factors_LMCC,3,FALSE) -> 119.8439724 | O197: =L197*VLOOKUP($K197,Factors_LMCC,4,FALSE) -> 149.2229431 | P197: =L197*VLOOKUP($K197,Factors_LMCC,5,FALSE) -> 142.8719178 | Q197: =L197*VLOOKUP($K197,Factors_LMCC,6,FALSE) -> 1.99736935 | R197: =L197*VLOOKUP($K197,Factors_LMCC,7,FALSE) -> 2.83667204 | S197: =L197*VLOOKUP($K197,Factors_LMCC,8,FALSE) -> 4.266798561 | T197: =L197*VLOOKUP($K197,Factors_LMCC,9,FALSE) -> 63.47740058 | AC197: Water - washing | AD197: =162/40 -> 4.05 | AE197: L/t/y | AG197: Water | AH197: =AD197*'LCI and calculations'!$C$85*'Input and Dasboard_draft'!$D$57 -> 446148 | AI197: L | AJ197: =AH197*VLOOKUP($AG197,Factors_LMCC,3,FALSE) -> 359.5319171 | AK197: =AH197*VLOOKUP($AG197,Factors_LMCC,4,FALSE) -> 447.6688293 | AL197: =AH197*VLOOKUP($AG197,Factors_LMCC,5,FALSE) -> 428.6157533 | AM197: =AH197*VLOOKUP($AG197,Factors_LMCC,6,FALSE) -> 5.992108051 | AN197: =AH197*VLOOKUP($AG197,Factors_LMCC,7,FALSE) -> 8.510016119 | AO197: =AH197*VLOOKUP($AG197,Factors_LMCC,8,FALSE) -> 12.80039568 | AP197: =AH197*VLOOKUP($AG197,Factors_LMCC,9,FALSE) -> 190.4322017 | BC197: Water - washing | BD197: =162/40 -> 4.05 | BE197: L/t/y | BG197: Water | BH197: =BD197*'LCI and calculations'!$D$85*'Input and Dasboard_draft'!$E$57 -> 520506 | BI197: L | BJ197: =BH197*VLOOKUP($BG197,Factors_LMCC,3,FALSE) -> 419.4539033 | BK197: =BH197*VLOOKUP($BG197,Factors_LMCC,4,FALSE) -> 522.2803009 | BL197: =BH197*VLOOKUP($BG197,Factors_LMCC,5,FALSE) -> 500.0517122 | BM197: =BH197*VLOOKUP($BG197,Factors_LMCC,6,FALSE) -> 6.990792726 | BN197: =BH197*VLOOKUP($BG197,Factors_LMCC,7,FALSE) -> 9.928352139 | BO197: =BH197*VLOOKUP($BG197,Factors_LMCC,8,FALSE) -> 14.93379496 | BP197: =BH197*VLOOKUP($BG197,Factors_LMCC,9,FALSE) -> 222.170902
G198: Water transport distance | H198: 50 | I198: km | K198: Truck | L198: =(L197/1000)*H198 -> 7435.8 | M198: tkm | N198: =L198*VLOOKUP($K198,Factors_LMCC,3,FALSE) -> 1347.821213 | O198: =L198*VLOOKUP($K198,Factors_LMCC,4,FALSE) -> 7.114850424 | P198: =L198*VLOOKUP($K198,Factors_LMCC,5,FALSE) -> 1340.27633 | Q198: =L198*VLOOKUP($K198,Factors_LMCC,6,FALSE) -> 10.6234189 | R198: =L198*VLOOKUP($K198,Factors_LMCC,7,FALSE) -> 16.93612236 | S198: =L198*VLOOKUP($K198,Factors_LMCC,8,FALSE) -> 55.79579682 | T198: =L198*VLOOKUP($K198,Factors_LMCC,9,FALSE) -> 357.7207897 | AC198: Water transport distance | AD198: 50 | AE198: km | AG198: Truck | AH198: =(AH197/1000)*AD198 -> 22307.4 | AI198: tkm | AJ198: =AH198*VLOOKUP($AG198,Factors_LMCC,3,FALSE) -> 4043.463639 | AK198: =AH198*VLOOKUP($AG198,Factors_LMCC,4,FALSE) -> 21.34455127 | AL198: =AH198*VLOOKUP($AG198,Factors_LMCC,5,FALSE) -> 4020.82899 | AM198: =AH198*VLOOKUP($AG198,Factors_LMCC,6,FALSE) -> 31.87025669 | AN198: =AH198*VLOOKUP($AG198,Factors_LMCC,7,FALSE) -> 50.80836707 | AO198: =AH198*VLOOKUP($AG198,Factors_LMCC,8,FALSE) -> 167.3873905 | AP198: =AH198*VLOOKUP($AG198,Factors_LMCC,9,FALSE) -> 1073.162369 | BC198: Water transport distance | BD198: 50 | BE198: km | BG198: Truck | BH198: =(BH197/1000)*BD198 -> 26025.3 | BI198: tkm | BJ198: =BH198*VLOOKUP($BG198,Factors_LMCC,3,FALSE) -> 4717.374246 | BK198: =BH198*VLOOKUP($BG198,Factors_LMCC,4,FALSE) -> 24.90197648 | BL198: =BH198*VLOOKUP($BG198,Factors_LMCC,5,FALSE) -> 4690.967154 | BM198: =BH198*VLOOKUP($BG198,Factors_LMCC,6,FALSE) -> 37.18196614 | BN198: =BH198*VLOOKUP($BG198,Factors_LMCC,7,FALSE) -> 59.27642825 | BO198: =BH198*VLOOKUP($BG198,Factors_LMCC,8,FALSE) -> 195.2852889 | BP198: =BH198*VLOOKUP($BG198,Factors_LMCC,9,FALSE) -> 1252.022764
G199: Repair - B3 | AC199: Repair - B3 | BC199: Repair - B3
G201: Item | H201: Amount | I201: Unit | J201: Electricity type | K201: Vlookup | L201: Amount | M201: Unit | N201: Global warming (kg CO2 eq.) | O201: Water consumption (m3) | P201: Terrestrial ecotoxicity (kg 1,4-DCB) | Q201: Freshwater ecotoxicity (kg 1,4-DCB) | R201: Marine ecotoxicity (kg 1,4-DCB) | S201: Human carcinogenic toxicity (kg 1,4-DCB) | T201: Human non-carcinogenic toxicity (kg 1,4-DCB) | AC201: Item | AD201: Amount | AE201: Unit | AF201: Electricity type | AG201: Vlookup | AH201: Amount | AI201: Unit | AJ201: Global warming (kg CO2 eq.) | AK201: Water consumption (m3) | AL201: Terrestrial ecotoxicity (kg 1,4-DCB) | AM201: Freshwater ecotoxicity (kg 1,4-DCB) | AN201: Marine ecotoxicity (kg 1,4-DCB) | AO201: Human carcinogenic toxicity (kg 1,4-DCB) | AP201: Human non-carcinogenic toxicity (kg 1,4-DCB) | BC201: Item | BD201: Amount | BE201: Unit | BF201: Electricity type | BG201: Vlookup | BH201: Amount | BI201: Unit | BJ201: Global warming (kg CO2 eq.) | BK201: Water consumption (m3) | BL201: Terrestrial ecotoxicity (kg 1,4-DCB) | BM201: Freshwater ecotoxicity (kg 1,4-DCB) | BN201: Marine ecotoxicity (kg 1,4-DCB) | BO201: Human carcinogenic toxicity (kg 1,4-DCB) | BP201: Human non-carcinogenic toxicity (kg 1,4-DCB)
G202: Replacement rate | H202: 0.01 | I202: per cent of (A1 to A3 & A5 of asphalt) | N202: =$H$202*(SUM(N85:N95)+SUM(N101:N104)+SUM(N143:N153)+($H$188*$B$85*'Factors - SimaPro'!C89)+($H$189*$B$85*'Factors - SimaPro'!C117)+($H$190*$B$85*'Factors - SimaPro'!C88)) -> 853.6693994 | O202: =$H$202*(SUM(O85:O95)+SUM(O101:O104)+SUM(O143:O153)+($H$188*$B$85*'Factors - SimaPro'!D89)+($H$189*$B$85*'Factors - SimaPro'!D117)+($H$190*$B$85*'Factors - SimaPro'!D88)) -> 13.30263245 | P202: =$H$202*(SUM(P85:P95)+SUM(P101:P104)+SUM(P143:P153)+($H$188*$B$85*'Factors - SimaPro'!E89)+($H$189*$B$85*'Factors - SimaPro'!E117)+($H$190*$B$85*'Factors - SimaPro'!E88)) -> 525.7472336 | Q202: =$H$202*(SUM(Q85:Q95)+SUM(Q101:Q104)+SUM(Q143:Q153)+($H$188*$B$85*'Factors - SimaPro'!F89)+($H$189*$B$85*'Factors - SimaPro'!F117)+($H$190*$B$85*'Factors - SimaPro'!F88)) -> 13.31856871 | R202: =$H$202*(SUM(R85:R95)+SUM(R101:R104)+SUM(R143:R153)+($H$188*$B$85*'Factors - SimaPro'!G89)+($H$189*$B$85*'Factors - SimaPro'!G117)+($H$190*$B$85*'Factors - SimaPro'!G88)) -> 18.68960701 | S202: =$H$202*(SUM(S85:S95)+SUM(S101:S104)+SUM(S143:S153)+($H$188*$B$85*'Factors - SimaPro'!H89)+($H$189*$B$85*'Factors - SimaPro'!H117)+($H$190*$B$85*'Factors - SimaPro'!H88)) -> 15.05063105 | T202: =$H$202*(SUM(T85:T95)+SUM(T101:T104)+SUM(T143:T153)+($H$188*$B$85*'Factors - SimaPro'!I89)+($H$189*$B$85*'Factors - SimaPro'!I117)+($H$190*$B$85*'Factors - SimaPro'!I88)) -> 595.9595519 | AC202: Replacement rate | AD202: ='Input and Dasboard_draft'!D59 -> 0.01 | AE202: per cent of (A1 to A3 & A5 of asphalt) | AJ202: =$AD$202*(SUM(AJ85:AJ95)+SUM(AJ101:AJ104)+SUM(AJ143:AJ153)+($AD$188*$C$85*'Factors - SimaPro'!C89)+($AD$189*$C$85*'Factors - SimaPro'!C117)+($AD$190*$C$85*'Factors - SimaPro'!C88)) -> 3014.88085 | AK202: =$AD$202*(SUM(AK85:AK95)+SUM(AK101:AK104)+SUM(AK143:AK153)+($AD$188*$C$85*'Factors - SimaPro'!D89)+($AD$189*$C$85*'Factors - SimaPro'!D117)+($AD$190*$C$85*'Factors - SimaPro'!D88)) -> 38.29253343 | AL202: =$AD$202*(SUM(AL85:AL95)+SUM(AL101:AL104)+SUM(AL143:AL153)+($AD$188*$C$85*'Factors - SimaPro'!E89)+($AD$189*$C$85*'Factors - SimaPro'!E117)+($AD$190*$C$85*'Factors - SimaPro'!E88)) -> 1924.658933 | AM202: =$AD$202*(SUM(AM85:AM95)+SUM(AM101:AM104)+SUM(AM143:AM153)+($AD$188*$C$85*'Factors - SimaPro'!F89)+($AD$189*$C$85*'Factors - SimaPro'!F117)+($AD$190*$C$85*'Factors - SimaPro'!F88)) -> 44.85750108 | AN202: =$AD$202*(SUM(AN85:AN95)+SUM(AN101:AN104)+SUM(AN143:AN153)+($AD$188*$C$85*'Factors - SimaPro'!G89)+($AD$189*$C$85*'Factors - SimaPro'!G117)+($AD$190*$C$85*'Factors - SimaPro'!G88)) -> 62.96148428 | AO202: =$AD$202*(SUM(AO85:AO95)+SUM(AO101:AO104)+SUM(AO143:AO153)+($AD$188*$C$85*'Factors - SimaPro'!H89)+($AD$189*$C$85*'Factors - SimaPro'!H117)+($AD$190*$C$85*'Factors - SimaPro'!H88)) -> 49.65202621 | AP202: =$AD$202*(SUM(AP85:AP95)+SUM(AP101:AP104)+SUM(AP143:AP153)+($AD$188*$C$85*'Factors - SimaPro'!I89)+($AD$189*$C$85*'Factors - SimaPro'!I117)+($AD$190*$C$85*'Factors - SimaPro'!I88)) -> 1944.953834 | BC202: Replacement rate | BD202: ='Input and Dasboard_draft'!E59 -> 0.01 | BE202: per cent of (A1 to A3 & A5 of asphalt) | BJ202: =$BD$202*(SUM(BJ85:BJ95)+SUM(BJ101:BJ104)+SUM(BJ143:BJ153)+($BD$188*$D$85*'Factors - SimaPro'!C89)+($BD$189*$D$85*'Factors - SimaPro'!C117)+($BD$190*$D$85*'Factors - SimaPro'!C88)) -> 3517.360991 | BK202: =$BD$202*(SUM(BK85:BK95)+SUM(BK101:BK104)+SUM(BK143:BK153)+($BD$188*$D$85*'Factors - SimaPro'!D89)+($BD$189*$D$85*'Factors - SimaPro'!D117)+($BD$190*$D$85*'Factors - SimaPro'!D88)) -> 44.67462233 | BL202: =$BD$202*(SUM(BL85:BL95)+SUM(BL101:BL104)+SUM(BL143:BL153)+($BD$188*$D$85*'Factors - SimaPro'!E89)+($BD$189*$D$85*'Factors - SimaPro'!E117)+($BD$190*$D$85*'Factors - SimaPro'!E88)) -> 2245.435422 | BM202: =$BD$202*(SUM(BM85:BM95)+SUM(BM101:BM104)+SUM(BM143:BM153)+($BD$188*$D$85*'Factors - SimaPro'!F89)+($BD$189*$D$85*'Factors - SimaPro'!F117)+($BD$190*$D$85*'Factors - SimaPro'!F88)) -> 52.33375126 | BN202: =$BD$202*(SUM(BN85:BN95)+SUM(BN101:BN104)+SUM(BN143:BN153)+($BD$188*$D$85*'Factors - SimaPro'!G89)+($BD$189*$D$85*'Factors - SimaPro'!G117)+($BD$190*$D$85*'Factors - SimaPro'!G88)) -> 73.455065 | BO202: =$BD$202*(SUM(BO85:BO95)+SUM(BO101:BO104)+SUM(BO143:BO153)+($BD$188*$D$85*'Factors - SimaPro'!H89)+($BD$189*$D$85*'Factors - SimaPro'!H117)+($BD$190*$D$85*'Factors - SimaPro'!H88)) -> 57.92736391 | BP202: =$BD$202*(SUM(BP85:BP95)+SUM(BP101:BP104)+SUM(BP143:BP153)+($BD$188*$D$85*'Factors - SimaPro'!I89)+($BD$189*$D$85*'Factors - SimaPro'!I117)+($BD$190*$D$85*'Factors - SimaPro'!I88)) -> 2269.112806
G204: Material wise impact (Asphalt) - B3 | H204: Amount per t | I204: Unit | J204: Electricity type | K204: Vlookup | L204: Amount | M204: Unit | N204: Global warming (kg CO2 eq.) | O204: Water consumption (m3) | P204: Terrestrial ecotoxicity (kg 1,4-DCB) | Q204: Freshwater ecotoxicity (kg 1,4-DCB) | R204: Marine ecotoxicity (kg 1,4-DCB) | S204: Human carcinogenic toxicity (kg 1,4-DCB) | T204: Human non-carcinogenic toxicity (kg 1,4-DCB) | AC204: Material wise impact (Asphalt) - B3 | AD204: Amount per t | AE204: Unit | AF204: Electricity type | AG204: Vlookup | AH204: Amount | AI204: Unit | AJ204: Global warming (kg CO2 eq.) | AK204: Water consumption (m3) | AL204: Terrestrial ecotoxicity (kg 1,4-DCB) | AM204: Freshwater ecotoxicity (kg 1,4-DCB) | AN204: Marine ecotoxicity (kg 1,4-DCB) | AO204: Human carcinogenic toxicity (kg 1,4-DCB) | AP204: Human non-carcinogenic toxicity (kg 1,4-DCB) | BC204: Material wise impact (Asphalt) - B3 | BD204: Amount per t | BE204: Unit | BF204: Electricity type | BG204: Vlookup | BH204: Amount | BI204: Unit | BJ204: Global warming (kg CO2 eq.) | BK204: Water consumption (m3) | BL204: Terrestrial ecotoxicity (kg 1,4-DCB) | BM204: Freshwater ecotoxicity (kg 1,4-DCB) | BN204: Marine ecotoxicity (kg 1,4-DCB) | BO204: Human carcinogenic toxicity (kg 1,4-DCB) | BP204: Human non-carcinogenic toxicity (kg 1,4-DCB)
G205: Aggregates-coarse | J205: =IFERROR(VLOOKUP(G205,'Input and Dasboard_draft'!$B$67:$F$75,2,FALSE),G205) -> Aggregates-coarse | K205: =IF(J205=G205,J205,G205&"-"&J205) -> Aggregates-coarse | L205: =$H$202*SUMIF($G$85:$G$97,G205,$L$85:$L$97) -> 1.4688 | M205: t | N205: =L205*VLOOKUP($K205,Factors_LMCC,3,FALSE) -> 9.793817542 | O205: =L205*VLOOKUP($K205,Factors_LMCC,4,FALSE) -> 2.069271144 | P205: =L205*VLOOKUP($K205,Factors_LMCC,5,FALSE) -> 15.64132758 | Q205: =L205*VLOOKUP($K205,Factors_LMCC,6,FALSE) -> 0.1480930085 | R205: =L205*VLOOKUP($K205,Factors_LMCC,7,FALSE) -> 0.2136902187 | S205: =L205*VLOOKUP($K205,Factors_LMCC,8,FALSE) -> 0.395974923 | T205: =L205*VLOOKUP($K205,Factors_LMCC,9,FALSE) -> 4.537398453 | AC205: Aggregates-coarse | AF205: =IFERROR(VLOOKUP(AC205,'Input and Dasboard_draft'!$B$67:$F$75,3,FALSE),AC205) -> Aggregates-coarse | AG205: =IF(AF205=AC205,AF205,AC205&"-"&AF205) -> Aggregates-coarse | AH205: =$AD$202*SUMIF($AC$85:$AC$97,AC205,$AH$85:$AH$97) -> 4.4064 | AI205: t | AJ205: =AH205*VLOOKUP($AG205,Factors_LMCC,3,FALSE) -> 29.38145263 | AK205: =AH205*VLOOKUP($AG205,Factors_LMCC,4,FALSE) -> 6.207813432 | AL205: =AH205*VLOOKUP($AG205,Factors_LMCC,5,FALSE) -> 46.92398273 | AM205: =AH205*VLOOKUP($AG205,Factors_LMCC,6,FALSE) -> 0.4442790254 | AN205: =AH205*VLOOKUP($AG205,Factors_LMCC,7,FALSE) -> 0.6410706561 | AO205: =AH205*VLOOKUP($AG205,Factors_LMCC,8,FALSE) -> 1.187924769 | AP205: =AH205*VLOOKUP($AG205,Factors_LMCC,9,FALSE) -> 13.61219536 | BC205: Aggregates-coarse | BF205: =IFERROR(VLOOKUP(BC205,'Input and Dasboard_draft'!$B$67:$F$75,4,FALSE),BC205) -> Aggregates-coarse | BG205: =IF(BF205=BC205,BF205,BC205&"-"&BF205) -> Aggregates-coarse | BH205: =$BD$202*SUMIF($BC$85:$BC$97,BC205,$BH$85:$BH$97) -> 5.1408 | BI205: t | BJ205: =BH205*VLOOKUP($BG205,Factors_LMCC,3,FALSE) -> 34.2783614 | BK205: =BH205*VLOOKUP($BG205,Factors_LMCC,4,FALSE) -> 7.242449004 | BL205: =BH205*VLOOKUP($BG205,Factors_LMCC,5,FALSE) -> 54.74464652 | BM205: =BH205*VLOOKUP($BG205,Factors_LMCC,6,FALSE) -> 0.5183255297 | BN205: =BH205*VLOOKUP($BG205,Factors_LMCC,7,FALSE) -> 0.7479157654 | BO205: =BH205*VLOOKUP($BG205,Factors_LMCC,8,FALSE) -> 1.38591223 | BP205: =BH205*VLOOKUP($BG205,Factors_LMCC,9,FALSE) -> 15.88089459
G206: Aggregates-fine | J206: =IFERROR(VLOOKUP(G206,'Input and Dasboard_draft'!$B$67:$F$75,2,FALSE),G206) -> Aggregates-fine | K206: Aggregates-fine | L206: 2.3256 | M206: t | N206: 30.03535191 | O206: 3.278712509 | P206: 48.3898406 | Q206: 0.4583844112 | R206: 0.6605795404 | S206: 1.215693632 | T206: 14.60123727 | AC206: Aggregates-fine | AF206: =IFERROR(VLOOKUP(AC206,'Input and Dasboard_draft'!$B$67:$F$75,3,FALSE),AC206) -> Aggregates-fine | AG206: Aggregates-fine | AH206: =$AD$202*SUMIF($AC$85:$AC$97,AC206,$AH$85:$AH$97) -> 6.9768 | AI206: t | AJ206: 90.10605573 | AK206: 9.836137526 | AL206: 145.1695218 | AM206: 1.375153234 | AN206: 1.981738621 | AO206: 3.647080897 | AP206: 43.80371182 | BC206: Aggregates-fine | BF206: =IFERROR(VLOOKUP(BC206,'Input and Dasboard_draft'!$B$67:$F$75,4,FALSE),BC206) -> Aggregates-fine | BG206: Aggregates-fine | BH206: =$BD$202*SUMIF($BC$85:$BC$97,BC206,$BH$85:$BH$97) -> 8.1396 | BI206: t | BJ206: 105.1237317 | BK206: 11.47549378 | BL206: 169.3644421 | BM206: 1.604345439 | BN206: 2.312028391 | BO206: 4.254927714 | BP206: 51.10433046
G207: Bitumen | J207: =IFERROR(VLOOKUP(G207,'Input and Dasboard_draft'!$B$67:$F$75,2,FALSE),G207) -> Bitumen | K207: Bitumen | L207: 0.4896 | M207: t | N207: 273.0434818 | O207: 0.2894304133 | P207: 130.7336579 | Q207: 10.19906127 | R207: 13.83230062 | S207: 1.806556386 | T207: 494.7341904 | AC207: Bitumen | AF207: =IFERROR(VLOOKUP(AC207,'Input and Dasboard_draft'!$B$67:$F$75,3,FALSE),AC207) -> Bitumen | AG207: Bitumen | AH207: 1.4688 | AI207: t | AJ207: 819.1304453 | AK207: 0.86829124 | AL207: 392.2009736 | AM207: 30.59718382 | AN207: 41.49690186 | AO207: 5.419669159 | AP207: 1484.202571 | BC207: Bitumen | BF207: =IFERROR(VLOOKUP(BC207,'Input and Dasboard_draft'!$B$67:$F$75,4,FALSE),BC207) -> Bitumen | BG207: Bitumen | BH207: 1.7136 | BI207: t | BJ207: 955.6521862 | BK207: 1.013006447 | BL207: 457.5678025 | BM207: 35.69671446 | BN207: 48.41305217 | BO207: 6.322947352 | BP207: 1731.569666
G208: Fly ash | J208: =IFERROR(VLOOKUP(G208,'Input and Dasboard_draft'!$B$67:$F$75,2,FALSE),G208) -> Grid | K208: Fly ash-Grid | L208: 0 | M208: t | N208: 0 | O208: 0 | P208: 0 | Q208: 0 | R208: 0 | S208: 0 | T208: 0 | AC208: Fly ash | AF208: =IFERROR(VLOOKUP(AC208,'Input and Dasboard_draft'!$B$67:$F$75,3,FALSE),AC208) -> Grid | AG208: Fly ash-Grid | AH208: 0 | AI208: t | AJ208: 0 | AK208: 0 | AL208: 0 | AM208: 0 | AN208: 0 | AO208: 0 | AP208: 0 | BC208: Fly ash | BF208: =IFERROR(VLOOKUP(BC208,'Input and Dasboard_draft'!$B$67:$F$75,4,FALSE),BC208) -> Grid | BG208: Fly ash-Grid | BH208: 0 | BI208: t | BJ208: 0 | BK208: 0 | BL208: 0 | BM208: 0 | BN208: 0 | BO208: 0 | BP208: 0
G209: Glass | J209: =IFERROR(VLOOKUP(G209,'Input and Dasboard_draft'!$B$67:$F$75,2,FALSE),G209) -> Grid | K209: Glass-Grid | L209: 0 | M209: t | N209: 0 | O209: 0 | P209: 0 | Q209: 0 | R209: 0 | S209: 0 | T209: 0 | AC209: Glass | AF209: =IFERROR(VLOOKUP(AC209,'Input and Dasboard_draft'!$B$67:$F$75,3,FALSE),AC209) -> Grid | AG209: Glass-Grid | AH209: 0 | AI209: t | AJ209: 0 | AK209: 0 | AL209: 0 | AM209: 0 | AN209: 0 | AO209: 0 | AP209: 0 | BC209: Glass | BF209: =IFERROR(VLOOKUP(BC209,'Input and Dasboard_draft'!$B$67:$F$75,4,FALSE),BC209) -> Grid | BG209: Glass-Grid | BH209: 0 | BI209: t | BJ209: 0 | BK209: 0 | BL209: 0 | BM209: 0 | BN209: 0 | BO209: 0 | BP209: 0
G210: Natural gravel | J210: =IFERROR(VLOOKUP(G210,'Input and Dasboard_draft'!$B$67:$F$75,2,FALSE),G210) -> Natural gravel | K210: Natural gravel | L210: 0 | M210: t | N210: 0 | O210: 0 | P210: 0 | Q210: 0 | R210: 0 | S210: 0 | T210: 0 | AC210: Natural gravel | AF210: =IFERROR(VLOOKUP(AC210,'Input and Dasboard_draft'!$B$67:$F$75,3,FALSE),AC210) -> Natural gravel | AG210: Natural gravel | AH210: 0 | AI210: t | AJ210: 0 | AK210: 0 | AL210: 0 | AM210: 0 | AN210: 0 | AO210: 0 | AP210: 0 | BC210: Natural gravel | BF210: =IFERROR(VLOOKUP(BC210,'Input and Dasboard_draft'!$B$67:$F$75,4,FALSE),BC210) -> Natural gravel | BG210: Natural gravel | BH210: 0 | BI210: t | BJ210: 0 | BK210: 0 | BL210: 0 | BM210: 0 | BN210: 0 | BO210: 0 | BP210: 0
G211: Plastics | J211: =IFERROR(VLOOKUP(G211,'Input and Dasboard_draft'!$B$67:$F$75,2,FALSE),G211) -> Grid | K211: Plastics-Grid | L211: 0 | M211: t | N211: 0 | O211: 0 | P211: 0 | Q211: 0 | R211: 0 | S211: 0 | T211: 0 | AC211: Plastics | AF211: =IFERROR(VLOOKUP(AC211,'Input and Dasboard_draft'!$B$67:$F$75,3,FALSE),AC211) -> Grid | AG211: Plastics-Grid | AH211: 0 | AI211: t | AJ211: 0 | AK211: 0 | AL211: 0 | AM211: 0 | AN211: 0 | AO211: 0 | AP211: 0 | BC211: Plastics | BF211: =IFERROR(VLOOKUP(BC211,'Input and Dasboard_draft'!$B$67:$F$75,4,FALSE),BC211) -> Grid | BG211: Plastics-Grid | BH211: 0 | BI211: t | BJ211: 0 | BK211: 0 | BL211: 0 | BM211: 0 | BN211: 0 | BO211: 0 | BP211: 0
G212: RAP | J212: =IFERROR(VLOOKUP(G212,'Input and Dasboard_draft'!$B$67:$F$75,2,FALSE),G212) -> RAP | K212: RAP | L212: 3.672 | M212: t | N212: 13.00263866 | O212: 0.03559850694 | P212: 10.95589634 | Q212: 0.02476420778 | R212: 0.05613083827 | S212: 0.2388568766 | T212: 0.7849895479 | AC212: RAP | AF212: =IFERROR(VLOOKUP(AC212,'Input and Dasboard_draft'!$B$67:$F$75,3,FALSE),AC212) -> RAP | AG212: RAP | AH212: 11.016 | AI212: t | AJ212: 39.00791598 | AK212: 0.1067955208 | AL212: 32.86768901 | AM212: 0.07429262334 | AN212: 0.1683925148 | AO212: 0.7165706297 | AP212: 2.354968644 | BC212: RAP | BF212: =IFERROR(VLOOKUP(BC212,'Input and Dasboard_draft'!$B$67:$F$75,4,FALSE),BC212) -> RAP | BG212: RAP | BH212: 12.852 | BI212: t | BJ212: 45.50923531 | BK212: 0.1245947743 | BL212: 38.34563718 | BM212: 0.08667472724 | BN212: 0.196457934 | BO212: 0.835999068 | BP212: 2.747463418
G213: Recycled concrete | J213: =IFERROR(VLOOKUP(G213,'Input and Dasboard_draft'!$B$67:$F$75,2,FALSE),G213) -> Grid | K213: Recycled concrete-Grid | L213: 0 | M213: t | N213: 0 | O213: 0 | P213: 0 | Q213: 0 | R213: 0 | S213: 0 | T213: 0 | AC213: Recycled concrete | AF213: =IFERROR(VLOOKUP(AC213,'Input and Dasboard_draft'!$B$67:$F$75,3,FALSE),AC213) -> Grid | AG213: Recycled concrete-Grid | AH213: 0 | AI213: t | AJ213: 0 | AK213: 0 | AL213: 0 | AM213: 0 | AN213: 0 | AO213: 0 | AP213: 0 | BC213: Recycled concrete | BF213: =IFERROR(VLOOKUP(BC213,'Input and Dasboard_draft'!$B$67:$F$75,4,FALSE),BC213) -> Grid | BG213: Recycled concrete-Grid | BH213: 0 | BI213: t | BJ213: 0 | BK213: 0 | BL213: 0 | BM213: 0 | BN213: 0 | BO213: 0 | BP213: 0
G214: Sand | J214: =IFERROR(VLOOKUP(G214,'Input and Dasboard_draft'!$B$67:$F$75,2,FALSE),G214) -> Sand | K214: Sand | L214: 4.284 | M214: t | N214: 21.5357691 | O214: 6.026751335 | P214: 34.39567094 | Q214: 0.3222915018 | R214: 0.4656584192 | S214: 0.8675165974 | T214: 9.604697584 | AC214: Sand | AF214: =IFERROR(VLOOKUP(AC214,'Input and Dasboard_draft'!$B$67:$F$75,3,FALSE),AC214) -> Sand | AG214: Sand | AH214: 11.016 | AI214: t | AJ214: 55.37769198 | AK214: 15.49736058 | AL214: 88.44601099 | AM214: 0.8287495761 | AN214: 1.197407364 | AO214: 2.230756965 | AP214: 24.69779379 | BC214: Sand | BF214: =IFERROR(VLOOKUP(BC214,'Input and Dasboard_draft'!$B$67:$F$75,4,FALSE),BC214) -> Sand | BG214: Sand | BH214: 12.852 | BI214: t | BJ214: 64.60730731 | BK214: 18.080254 | BL214: 103.1870128 | BM214: 0.9668745054 | BN214: 1.396975258 | BO214: 2.602549792 | BP214: 28.81409275
G215: Stabilised gravel | J215: =IFERROR(VLOOKUP(G215,'Input and Dasboard_draft'!$B$67:$F$75,2,FALSE),G215) -> Stabilised gravel | K215: Stabilised gravel | L215: 0 | M215: t | N215: 0 | O215: 0 | P215: 0 | Q215: 0 | R215: 0 | S215: 0 | T215: 0 | AC215: Stabilised gravel | AF215: =IFERROR(VLOOKUP(AC215,'Input and Dasboard_draft'!$B$67:$F$75,3,FALSE),AC215) -> Stabilised gravel | AG215: Stabilised gravel | AH215: 0 | AI215: t | AJ215: 0 | AK215: 0 | AL215: 0 | AM215: 0 | AN215: 0 | AO215: 0 | AP215: 0 | BC215: Stabilised gravel | BF215: =IFERROR(VLOOKUP(BC215,'Input and Dasboard_draft'!$B$67:$F$75,4,FALSE),BC215) -> Stabilised gravel | BG215: Stabilised gravel | BH215: 0 | BI215: t | BJ215: 0 | BK215: 0 | BL215: 0 | BM215: 0 | BN215: 0 | BO215: 0 | BP215: 0
G216: Toner | J216: =IFERROR(VLOOKUP(G216,'Input and Dasboard_draft'!$B$67:$F$75,2,FALSE),G216) -> Grid | K216: Toner-Grid | L216: 0 | M216: t | N216: 0 | O216: 0 | P216: 0 | Q216: 0 | R216: 0 | S216: 0 | T216: 0 | AC216: Toner | AF216: =IFERROR(VLOOKUP(AC216,'Input and Dasboard_draft'!$B$67:$F$75,3,FALSE),AC216) -> Grid | AG216: Toner-Grid | AH216: 1.836 | AI216: t | AJ216: 463.1022666 | AK216: 0.9675294966 | AL216: 362.1582338 | AM216: 5.039919878 | AN216: 7.092231156 | AO216: 4.871925878 | AP216: 161.1914768 | BC216: Toner | BF216: =IFERROR(VLOOKUP(BC216,'Input and Dasboard_draft'!$B$67:$F$75,4,FALSE),BC216) -> Grid | BG216: Toner-Grid | BH216: 2.142 | BI216: t | BJ216: 540.2859777 | BK216: 1.128784413 | BL216: 422.5179395 | BM216: 5.879906525 | BN216: 8.274269682 | BO216: 5.683913525 | BP216: 188.0567229
G217: Waste tyre | J217: =IFERROR(VLOOKUP(G217,'Input and Dasboard_draft'!$B$67:$F$75,2,FALSE),G217) -> Grid | K217: Waste tyre-Grid | L217: 0 | M217: t | N217: 0 | O217: 0 | P217: 0 | Q217: 0 | R217: 0 | S217: 0 | T217: 0 | AC217: Waste tyre | AF217: =IFERROR(VLOOKUP(AC217,'Input and Dasboard_draft'!$B$67:$F$75,3,FALSE),AC217) -> Grid | AG217: Waste tyre-Grid | AH217: 0 | AI217: t | AJ217: 0 | AK217: 0 | AL217: 0 | AM217: 0 | AN217: 0 | AO217: 0 | AP217: 0 | BC217: Waste tyre | BF217: =IFERROR(VLOOKUP(BC217,'Input and Dasboard_draft'!$B$67:$F$75,4,FALSE),BC217) -> Grid | BG217: Waste tyre-Grid | BH217: 0 | BI217: t | BJ217: 0 | BK217: 0 | BL217: 0 | BM217: 0 | BN217: 0 | BO217: 0 | BP217: 0
G218: Lime | J218: =IFERROR(VLOOKUP(G218,'Input and Dasboard_draft'!$B$67:$F$75,2,FALSE),G218) -> Lime | K218: =IF(J218=G218,J218,G218&"-"&J218) -> Lime | L218: 0 | M218: t | N218: =L218*VLOOKUP($K218,Factors_LMCC,3,FALSE) -> 0 | O218: =L218*VLOOKUP($K218,Factors_LMCC,4,FALSE) -> 0 | P218: =L218*VLOOKUP($K218,Factors_LMCC,5,FALSE) -> 0 | Q218: =L218*VLOOKUP($K218,Factors_LMCC,6,FALSE) -> 0 | R218: =L218*VLOOKUP($K218,Factors_LMCC,7,FALSE) -> 0 | S218: =L218*VLOOKUP($K218,Factors_LMCC,8,FALSE) -> 0 | T218: =L218*VLOOKUP($K218,Factors_LMCC,9,FALSE) -> 0 | AC218: Lime | AF218: =IFERROR(VLOOKUP(AC218,'Input and Dasboard_draft'!$B$67:$F$75,3,FALSE),AC218) -> Lime | AG218: =IF(AF218=AC218,AF218,AC218&"-"&AF218) -> Lime | AH218: 0 | AI218: t | AJ218: =AH218*VLOOKUP($AG218,Factors_LMCC,3,FALSE) -> 0 | AK218: =AH218*VLOOKUP($AG218,Factors_LMCC,4,FALSE) -> 0 | AL218: =AH218*VLOOKUP($AG218,Factors_LMCC,5,FALSE) -> 0 | AM218: =AH218*VLOOKUP($AG218,Factors_LMCC,6,FALSE) -> 0 | AN218: =AH218*VLOOKUP($AG218,Factors_LMCC,7,FALSE) -> 0 | AO218: =AH218*VLOOKUP($AG218,Factors_LMCC,8,FALSE) -> 0 | AP218: =AH218*VLOOKUP($AG218,Factors_LMCC,9,FALSE) -> 0 | BC218: Lime | BF218: =IFERROR(VLOOKUP(BC218,'Input and Dasboard_draft'!$B$67:$F$75,4,FALSE),BC218) -> Lime | BG218: =IF(BF218=BC218,BF218,BC218&"-"&BF218) -> Lime | BH218: 0 | BI218: t | BJ218: =BH218*VLOOKUP($BG218,Factors_LMCC,3,FALSE) -> 0 | BK218: =BH218*VLOOKUP($BG218,Factors_LMCC,4,FALSE) -> 0 | BL218: =BH218*VLOOKUP($BG218,Factors_LMCC,5,FALSE) -> 0 | BM218: =BH218*VLOOKUP($BG218,Factors_LMCC,6,FALSE) -> 0 | BN218: =BH218*VLOOKUP($BG218,Factors_LMCC,7,FALSE) -> 0 | BO218: =BH218*VLOOKUP($BG218,Factors_LMCC,8,FALSE) -> 0 | BP218: =BH218*VLOOKUP($BG218,Factors_LMCC,9,FALSE) -> 0
G219: Cement | J219: =IFERROR(VLOOKUP(G219,'Input and Dasboard_draft'!$B$67:$F$75,2,FALSE),G219) -> Cement | K219: Cement | L219: 0 | M219: t | N219: 0 | O219: 0 | P219: 0 | Q219: 0 | R219: 0 | S219: 0 | T219: 0 | AC219: Cement | AF219: =IFERROR(VLOOKUP(AC219,'Input and Dasboard_draft'!$B$67:$F$75,3,FALSE),AC219) -> Cement | AG219: Cement | AH219: 0 | AI219: t | AJ219: 0 | AK219: 0 | AL219: 0 | AM219: 0 | AN219: 0 | AO219: 0 | AP219: 0 | BC219: Cement | BF219: =IFERROR(VLOOKUP(BC219,'Input and Dasboard_draft'!$B$67:$F$75,4,FALSE),BC219) -> Cement | BG219: Cement | BH219: 0 | BI219: t | BJ219: 0 | BK219: 0 | BL219: 0 | BM219: 0 | BN219: 0 | BO219: 0 | BP219: 0
G220: Crushed brick | J220: =IFERROR(VLOOKUP(G220,'Input and Dasboard_draft'!$B$67:$F$75,2,FALSE),G220) -> Grid | K220: Crushed brick-Grid | L220: 0 | M220: t | N220: 0 | O220: 0 | P220: 0 | Q220: 0 | R220: 0 | S220: 0 | T220: 0 | AC220: Crushed brick | AF220: =IFERROR(VLOOKUP(AC220,'Input and Dasboard_draft'!$B$67:$F$75,3,FALSE),AC220) -> Grid | AG220: Crushed brick-Grid | AH220: 0 | AI220: t | AJ220: 0 | AK220: 0 | AL220: 0 | AM220: 0 | AN220: 0 | AO220: 0 | AP220: 0 | BC220: Crushed brick | BF220: =IFERROR(VLOOKUP(BC220,'Input and Dasboard_draft'!$B$67:$F$75,4,FALSE),BC220) -> Grid | BG220: Crushed brick-Grid | BH220: 0 | BI220: t | BJ220: 0 | BK220: 0 | BL220: 0 | BM220: 0 | BN220: 0 | BO220: 0 | BP220: 0
G221: Recycled tile | J221: =IFERROR(VLOOKUP(G221,'Input and Dasboard_draft'!$B$67:$F$75,2,FALSE),G221) -> Grid | K221: Recycled tile-Grid | L221: 0 | M221: t | N221: 0 | O221: 0 | P221: 0 | Q221: 0 | R221: 0 | S221: 0 | T221: 0 | AC221: Recycled tile | AF221: =IFERROR(VLOOKUP(AC221,'Input and Dasboard_draft'!$B$67:$F$75,3,FALSE),AC221) -> Grid | AG221: Recycled tile-Grid | AH221: 0 | AI221: t | AJ221: 0 | AK221: 0 | AL221: 0 | AM221: 0 | AN221: 0 | AO221: 0 | AP221: 0 | BC221: Recycled tile | BF221: =IFERROR(VLOOKUP(BC221,'Input and Dasboard_draft'!$B$67:$F$75,4,FALSE),BC221) -> Grid | BG221: Recycled tile-Grid | BH221: 0 | BI221: t | BJ221: 0 | BK221: 0 | BL221: 0 | BM221: 0 | BN221: 0 | BO221: 0 | BP221: 0
AF222: =IFERROR(VLOOKUP(AC222,'Input and Dasboard_draft'!$B$67:$F$75,3,FALSE),AC222) -> 0
AF223: =IFERROR(VLOOKUP(AC223,'Input and Dasboard_draft'!$B$67:$F$75,3,FALSE),AC223) -> 0
G224: Replacement - B4 | AC224: Replacement - B4 | BC224: Replacement - B4
G226: Item | H226: No. | I226: Unit | J226: Electricity type | K226: Vlookup | L226: Amount | M226: Unit | N226: Global warming (kg CO2 eq.) | O226: Water consumption (m3) | P226: Terrestrial ecotoxicity (kg 1,4-DCB) | Q226: Freshwater ecotoxicity (kg 1,4-DCB) | R226: Marine ecotoxicity (kg 1,4-DCB) | S226: Human carcinogenic toxicity (kg 1,4-DCB) | T226: Human non-carcinogenic toxicity (kg 1,4-DCB) | AC226: Item | AD226: No. | AE226: Unit | AF226: Electricity type | AG226: Vlookup | AH226: Amount | AI226: Unit | AJ226: Global warming (kg CO2 eq.) | AK226: Water consumption (m3) | AL226: Terrestrial ecotoxicity (kg 1,4-DCB) | AM226: Freshwater ecotoxicity (kg 1,4-DCB) | AN226: Marine ecotoxicity (kg 1,4-DCB) | AO226: Human carcinogenic toxicity (kg 1,4-DCB) | AP226: Human non-carcinogenic toxicity (kg 1,4-DCB) | BC226: Item | BD226: No. | BE226: Unit | BF226: Electricity type | BG226: Vlookup | BH226: Amount | BI226: Unit | BJ226: Global warming (kg CO2 eq.) | BK226: Water consumption (m3) | BL226: Terrestrial ecotoxicity (kg 1,4-DCB) | BM226: Freshwater ecotoxicity (kg 1,4-DCB) | BN226: Marine ecotoxicity (kg 1,4-DCB) | BO226: Human carcinogenic toxicity (kg 1,4-DCB) | BP226: Human non-carcinogenic toxicity (kg 1,4-DCB)
G227: Number of wearing course replacements during the lfespan on the road | H227: ='Input and Dasboard_draft'!C58 -> 2 | I227: no. | N227: =$H$227*(SUM(N85:N97)+SUM(N101:N104)+SUM(N143:N155)+N170+($H$188*$B$85*'Factors - SimaPro'!C89)+($H$189*$B$85*'Factors - SimaPro'!C117)+($H$190*$B$85*'Factors - SimaPro'!C88)) -> 215106.5947 | O227: =$H$227*(SUM(O85:O97)+SUM(O101:O104)+SUM(O143:O155)+O170+($H$188*$B$85*'Factors - SimaPro'!D89)+($H$189*$B$85*'Factors - SimaPro'!D117)+($H$190*$B$85*'Factors - SimaPro'!D88)) -> 2894.76025 | P227: =$H$227*(SUM(P85:P97)+SUM(P101:P104)+SUM(P143:P155)+P170+($H$188*$B$85*'Factors - SimaPro'!E89)+($H$189*$B$85*'Factors - SimaPro'!E117)+($H$190*$B$85*'Factors - SimaPro'!E88)) -> 149273.7703 | Q227: =$H$227*(SUM(Q85:Q97)+SUM(Q101:Q104)+SUM(Q143:Q155)+Q170+($H$188*$B$85*'Factors - SimaPro'!F89)+($H$189*$B$85*'Factors - SimaPro'!F117)+($H$190*$B$85*'Factors - SimaPro'!F88)) -> 3013.455928 | R227: =$H$227*(SUM(R85:R97)+SUM(R101:R104)+SUM(R143:R155)+R170+($H$188*$B$85*'Factors - SimaPro'!G89)+($H$189*$B$85*'Factors - SimaPro'!G117)+($H$190*$B$85*'Factors - SimaPro'!G88)) -> 4295.489216 | S227: =$H$227*(SUM(S85:S97)+SUM(S101:S104)+SUM(S143:S155)+S170+($H$188*$B$85*'Factors - SimaPro'!H89)+($H$189*$B$85*'Factors - SimaPro'!H117)+($H$190*$B$85*'Factors - SimaPro'!H88)) -> 4847.024871 | T227: =$H$227*(SUM(T85:T97)+SUM(T101:T104)+SUM(T143:T155)+T170+($H$188*$B$85*'Factors - SimaPro'!I89)+($H$189*$B$85*'Factors - SimaPro'!I117)+($H$190*$B$85*'Factors - SimaPro'!I88)) -> 130968.7265 | AC227: Number of wearing course replacements during the lfespan on the road | AD227: ='Input and Dasboard_draft'!D58 -> 0.6666666667 | AE227: no. | AJ227: =$AD$227*(SUM(AJ85:AJ97)+SUM(AJ101:AJ104)+SUM(AJ143:AJ155)+AJ170+($AD$188*$C$85*'Factors - SimaPro'!C89)+($AD$189*$C$85*'Factors - SimaPro'!C117)+($AD$190*$C$85*'Factors - SimaPro'!C88)) -> 245364.7715 | AK227: =$AD$227*(SUM(AK85:AK97)+SUM(AK101:AK104)+SUM(AK143:AK155)+AK170+($AD$188*$C$85*'Factors - SimaPro'!D89)+($AD$189*$C$85*'Factors - SimaPro'!D117)+($AD$190*$C$85*'Factors - SimaPro'!D88)) -> 2787.069321 | AL227: =$AD$227*(SUM(AL85:AL97)+SUM(AL101:AL104)+SUM(AL143:AL155)+AL170+($AD$188*$C$85*'Factors - SimaPro'!E89)+($AD$189*$C$85*'Factors - SimaPro'!E117)+($AD$190*$C$85*'Factors - SimaPro'!E88)) -> 172434.9191 | AM227: =$AD$227*(SUM(AM85:AM97)+SUM(AM101:AM104)+SUM(AM143:AM155)+AM170+($AD$188*$C$85*'Factors - SimaPro'!F89)+($AD$189*$C$85*'Factors - SimaPro'!F117)+($AD$190*$C$85*'Factors - SimaPro'!F88)) -> 3340.242258 | AN227: =$AD$227*(SUM(AN85:AN97)+SUM(AN101:AN104)+SUM(AN143:AN155)+AN170+($AD$188*$C$85*'Factors - SimaPro'!G89)+($AD$189*$C$85*'Factors - SimaPro'!G117)+($AD$190*$C$85*'Factors - SimaPro'!G88)) -> 4755.0001 | AO227: =$AD$227*(SUM(AO85:AO97)+SUM(AO101:AO104)+SUM(AO143:AO155)+AO170+($AD$188*$C$85*'Factors - SimaPro'!H89)+($AD$189*$C$85*'Factors - SimaPro'!H117)+($AD$190*$C$85*'Factors - SimaPro'!H88)) -> 5147.033741 | AP227: =$AD$227*(SUM(AP85:AP97)+SUM(AP101:AP104)+SUM(AP143:AP155)+AP170+($AD$188*$C$85*'Factors - SimaPro'!I89)+($AD$189*$C$85*'Factors - SimaPro'!I117)+($AD$190*$C$85*'Factors - SimaPro'!I88)) -> 141440.405 | BC227: Number of wearing course replacements during the lfespan on the road | BD227: ='Input and Dasboard_draft'!E58 -> 0.5714285714 | BE227: no. | BJ227: =$BD$227*(SUM(BJ85:BJ97)+SUM(BJ101:BJ104)+SUM(BJ143:BJ155)+BJ170+($BD$188*$D$85*'Factors - SimaPro'!C89)+($BD$189*$D$85*'Factors - SimaPro'!C117)+($BD$190*$D$85*'Factors - SimaPro'!C88)) -> 245364.7715 | BK227: =$BD$227*(SUM(BK85:BK97)+SUM(BK101:BK104)+SUM(BK143:BK155)+BK170+($BD$188*$D$85*'Factors - SimaPro'!D89)+($BD$189*$D$85*'Factors - SimaPro'!D117)+($BD$190*$D$85*'Factors - SimaPro'!D88)) -> 2787.069321 | BL227: =$BD$227*(SUM(BL85:BL97)+SUM(BL101:BL104)+SUM(BL143:BL155)+BL170+($BD$188*$D$85*'Factors - SimaPro'!E89)+($BD$189*$D$85*'Factors - SimaPro'!E117)+($BD$190*$D$85*'Factors - SimaPro'!E88)) -> 172434.9191 | BM227: =$BD$227*(SUM(BM85:BM97)+SUM(BM101:BM104)+SUM(BM143:BM155)+BM170+($BD$188*$D$85*'Factors - SimaPro'!F89)+($BD$189*$D$85*'Factors - SimaPro'!F117)+($BD$190*$D$85*'Factors - SimaPro'!F88)) -> 3340.242258 | BN227: =$BD$227*(SUM(BN85:BN97)+SUM(BN101:BN104)+SUM(BN143:BN155)+BN170+($BD$188*$D$85*'Factors - SimaPro'!G89)+($BD$189*$D$85*'Factors - SimaPro'!G117)+($BD$190*$D$85*'Factors - SimaPro'!G88)) -> 4755.0001 | BO227: =$BD$227*(SUM(BO85:BO97)+SUM(BO101:BO104)+SUM(BO143:BO155)+BO170+($BD$188*$D$85*'Factors - SimaPro'!H89)+($BD$189*$D$85*'Factors - SimaPro'!H117)+($BD$190*$D$85*'Factors - SimaPro'!H88)) -> 5147.033741 | BP227: =$BD$227*(SUM(BP85:BP97)+SUM(BP101:BP104)+SUM(BP143:BP155)+BP170+($BD$188*$D$85*'Factors - SimaPro'!I89)+($BD$189*$D$85*'Factors - SimaPro'!I117)+($BD$190*$D$85*'Factors - SimaPro'!I88)) -> 141440.405
G228: Material wise impact (Asphalt replacement) - B4 | H228: Amount per t | I228: Unit | J228: Electricity type | K228: Vlookup | L228: Amount | M228: Unit | AC228: Material wise impact (Asphalt replacement) - B4 | AD228: Amount per t | AE228: Unit | AF228: Electricity type | AG228: Vlookup | AH228: Amount | AI228: Unit | BC228: Material wise impact (Asphalt replacement) - B4 | BD228: Amount per t | BE228: Unit | BF228: Electricity type | BG228: Vlookup | BH228: Amount | BI228: Unit
G229: Aggregates-coarse | J229: =IFERROR(VLOOKUP(G229,'Input and Dasboard_draft'!$B$67:$F$75,2,FALSE),G229) -> Aggregates-coarse | K229: =IF(J229=G229,J229,G229&"-"&J229) -> Aggregates-coarse | L229: =$H$227*SUMIF($G$85:$G$97,G229,$L$85:$L$97) -> 293.76 | M229: t | N229: =L229*VLOOKUP($K229,Factors_LMCC,3,FALSE) -> 1958.763508 | O229: =L229*VLOOKUP($K229,Factors_LMCC,4,FALSE) -> 413.8542288 | P229: =L229*VLOOKUP($K229,Factors_LMCC,5,FALSE) -> 3128.265516 | Q229: =L229*VLOOKUP($K229,Factors_LMCC,6,FALSE) -> 29.6186017 | R229: =L229*VLOOKUP($K229,Factors_LMCC,7,FALSE) -> 42.73804374 | S229: =L229*VLOOKUP($K229,Factors_LMCC,8,FALSE) -> 79.1949846 | T229: =L229*VLOOKUP($K229,Factors_LMCC,9,FALSE) -> 907.4796906 | AC229: Aggregates-coarse | AF229: =IFERROR(VLOOKUP(AC229,'Input and Dasboard_draft'!$B$67:$F$75,3,FALSE),AC229) -> Aggregates-coarse | AG229: =IF(AF229=AC229,AF229,AC229&"-"&AF229) -> Aggregates-coarse | AH229: =$AD$227*SUMIF($AC$85:$AC$97,AC229,$AH$85:$AH$97) -> 293.76 | AI229: t | AJ229: =AH229*VLOOKUP($AG229,Factors_LMCC,3,FALSE) -> 1958.763508 | AK229: =AH229*VLOOKUP($AG229,Factors_LMCC,4,FALSE) -> 413.8542288 | AL229: =AH229*VLOOKUP($AG229,Factors_LMCC,5,FALSE) -> 3128.265516 | AM229: =AH229*VLOOKUP($AG229,Factors_LMCC,6,FALSE) -> 29.6186017 | AN229: =AH229*VLOOKUP($AG229,Factors_LMCC,7,FALSE) -> 42.73804374 | AO229: =AH229*VLOOKUP($AG229,Factors_LMCC,8,FALSE) -> 79.1949846 | AP229: =AH229*VLOOKUP($AG229,Factors_LMCC,9,FALSE) -> 907.4796906 | BC229: Aggregates-coarse | BF229: =IFERROR(VLOOKUP(BC229,'Input and Dasboard_draft'!$B$67:$F$75,4,FALSE),BC229) -> Aggregates-coarse | BG229: =IF(BF229=BC229,BF229,BC229&"-"&BF229) -> Aggregates-coarse | BH229: =$BD$227*SUMIF($BC$85:$BC$97,BC229,$BH$85:$BH$97) -> 293.76 | BI229: t | BJ229: =BH229*VLOOKUP($BG229,Factors_LMCC,3,FALSE) -> 1958.763508 | BK229: =BH229*VLOOKUP($BG229,Factors_LMCC,4,FALSE) -> 413.8542288 | BL229: =BH229*VLOOKUP($BG229,Factors_LMCC,5,FALSE) -> 3128.265516 | BM229: =BH229*VLOOKUP($BG229,Factors_LMCC,6,FALSE) -> 29.6186017 | BN229: =BH229*VLOOKUP($BG229,Factors_LMCC,7,FALSE) -> 42.73804374 | BO229: =BH229*VLOOKUP($BG229,Factors_LMCC,8,FALSE) -> 79.1949846 | BP229: =BH229*VLOOKUP($BG229,Factors_LMCC,9,FALSE) -> 907.4796906
G230: Aggregates-fine | J230: =IFERROR(VLOOKUP(G230,'Input and Dasboard_draft'!$B$67:$F$75,2,FALSE),G230) -> Aggregates-fine | K230: Aggregates-fine | L230: =$H$227*SUMIF($G$85:$G$97,G230,$L$85:$L$97) -> 465.12 | M230: t | N230: 6007.070382 | O230: 655.7425017 | P230: 9677.968121 | Q230: 91.67688225 | R230: 132.1159081 | S230: 243.1387265 | T230: 2920.247455 | AC230: Aggregates-fine | AF230: =IFERROR(VLOOKUP(AC230,'Input and Dasboard_draft'!$B$67:$F$75,3,FALSE),AC230) -> Aggregates-fine | AG230: Aggregates-fine | AH230: =$AD$227*SUMIF($AC$85:$AC$97,AC230,$AH$85:$AH$97) -> 465.12 | AI230: t | AJ230: 6007.070382 | AK230: 655.7425017 | AL230: 9677.968121 | AM230: 91.67688225 | AN230: 132.1159081 | AO230: 243.1387265 | AP230: 2920.247455 | BC230: Aggregates-fine | BF230: =IFERROR(VLOOKUP(BC230,'Input and Dasboard_draft'!$B$67:$F$75,4,FALSE),BC230) -> Aggregates-fine | BG230: Aggregates-fine | BH230: =$BD$227*SUMIF($BC$85:$BC$97,BC230,$BH$85:$BH$97) -> 465.12 | BI230: t | BJ230: 6007.070382 | BK230: 655.7425017 | BL230: 9677.968121 | BM230: 91.67688225 | BN230: 132.1159081 | BO230: 243.1387265 | BP230: 2920.247455
G231: Bitumen | J231: =IFERROR(VLOOKUP(G231,'Input and Dasboard_draft'!$B$67:$F$75,2,FALSE),G231) -> Bitumen | K231: Bitumen | L231: 97.92 | M231: t | N231: 54608.69635 | O231: 57.88608267 | P231: 26146.73157 | Q231: 2039.812255 | R231: 2766.460124 | S231: 361.3112772 | T231: 98946.83808 | AC231: Bitumen | AF231: =IFERROR(VLOOKUP(AC231,'Input and Dasboard_draft'!$B$67:$F$75,3,FALSE),AC231) -> Bitumen | AG231: Bitumen | AH231: 97.92 | AI231: t | AJ231: 54608.69635 | AK231: 57.88608267 | AL231: 26146.73157 | AM231: 2039.812255 | AN231: 2766.460124 | AO231: 361.3112772 | AP231: 98946.83808 | BC231: Bitumen | BF231: =IFERROR(VLOOKUP(BC231,'Input and Dasboard_draft'!$B$67:$F$75,4,FALSE),BC231) -> Bitumen | BG231: Bitumen | BH231: 97.92 | BI231: t | BJ231: 54608.69635 | BK231: 57.88608267 | BL231: 26146.73157 | BM231: 2039.812255 | BN231: 2766.460124 | BO231: 361.3112772 | BP231: 98946.83808
G232: Fly ash | J232: =IFERROR(VLOOKUP(G232,'Input and Dasboard_draft'!$B$67:$F$75,2,FALSE),G232) -> Grid | K232: Fly ash-Grid | L232: 0 | M232: t | N232: 0 | O232: 0 | P232: 0 | Q232: 0 | R232: 0 | S232: 0 | T232: 0 | AC232: Fly ash | AF232: =IFERROR(VLOOKUP(AC232,'Input and Dasboard_draft'!$B$67:$F$75,3,FALSE),AC232) -> Grid | AG232: Fly ash-Grid | AH232: 0 | AI232: t | AJ232: 0 | AK232: 0 | AL232: 0 | AM232: 0 | AN232: 0 | AO232: 0 | AP232: 0 | BC232: Fly ash | BF232: =IFERROR(VLOOKUP(BC232,'Input and Dasboard_draft'!$B$67:$F$75,4,FALSE),BC232) -> Grid | BG232: Fly ash-Grid | BH232: 0 | BI232: t | BJ232: 0 | BK232: 0 | BL232: 0 | BM232: 0 | BN232: 0 | BO232: 0 | BP232: 0
G233: Glass | J233: =IFERROR(VLOOKUP(G233,'Input and Dasboard_draft'!$B$67:$F$75,2,FALSE),G233) -> Grid | K233: Glass-Grid | L233: 0 | M233: t | N233: 0 | O233: 0 | P233: 0 | Q233: 0 | R233: 0 | S233: 0 | T233: 0 | AC233: Glass | AF233: =IFERROR(VLOOKUP(AC233,'Input and Dasboard_draft'!$B$67:$F$75,3,FALSE),AC233) -> Grid | AG233: Glass-Grid | AH233: 0 | AI233: t | AJ233: 0 | AK233: 0 | AL233: 0 | AM233: 0 | AN233: 0 | AO233: 0 | AP233: 0 | BC233: Glass | BF233: =IFERROR(VLOOKUP(BC233,'Input and Dasboard_draft'!$B$67:$F$75,4,FALSE),BC233) -> Grid | BG233: Glass-Grid | BH233: 0 | BI233: t | BJ233: 0 | BK233: 0 | BL233: 0 | BM233: 0 | BN233: 0 | BO233: 0 | BP233: 0
G234: Natural gravel | J234: =IFERROR(VLOOKUP(G234,'Input and Dasboard_draft'!$B$67:$F$75,2,FALSE),G234) -> Natural gravel | K234: Natural gravel | L234: 0 | M234: t | N234: 0 | O234: 0 | P234: 0 | Q234: 0 | R234: 0 | S234: 0 | T234: 0 | AC234: Natural gravel | AF234: =IFERROR(VLOOKUP(AC234,'Input and Dasboard_draft'!$B$67:$F$75,3,FALSE),AC234) -> Natural gravel | AG234: Natural gravel | AH234: 0 | AI234: t | AJ234: 0 | AK234: 0 | AL234: 0 | AM234: 0 | AN234: 0 | AO234: 0 | AP234: 0 | BC234: Natural gravel | BF234: =IFERROR(VLOOKUP(BC234,'Input and Dasboard_draft'!$B$67:$F$75,4,FALSE),BC234) -> Natural gravel | BG234: Natural gravel | BH234: 0 | BI234: t | BJ234: 0 | BK234: 0 | BL234: 0 | BM234: 0 | BN234: 0 | BO234: 0 | BP234: 0
G235: Plastics | J235: =IFERROR(VLOOKUP(G235,'Input and Dasboard_draft'!$B$67:$F$75,2,FALSE),G235) -> Grid | K235: Plastics-Grid | L235: 0 | M235: t | N235: 0 | O235: 0 | P235: 0 | Q235: 0 | R235: 0 | S235: 0 | T235: 0 | AC235: Plastics | AF235: =IFERROR(VLOOKUP(AC235,'Input and Dasboard_draft'!$B$67:$F$75,3,FALSE),AC235) -> Grid | AG235: Plastics-Grid | AH235: 0 | AI235: t | AJ235: 0 | AK235: 0 | AL235: 0 | AM235: 0 | AN235: 0 | AO235: 0 | AP235: 0 | BC235: Plastics | BF235: =IFERROR(VLOOKUP(BC235,'Input and Dasboard_draft'!$B$67:$F$75,4,FALSE),BC235) -> Grid | BG235: Plastics-Grid | BH235: 0 | BI235: t | BJ235: 0 | BK235: 0 | BL235: 0 | BM235: 0 | BN235: 0 | BO235: 0 | BP235: 0
G236: RAP | J236: =IFERROR(VLOOKUP(G236,'Input and Dasboard_draft'!$B$67:$F$75,2,FALSE),G236) -> RAP | K236: RAP | L236: 734.4 | M236: t | N236: 2600.527732 | O236: 7.119701388 | P236: 2191.179267 | Q236: 4.952841556 | R236: 11.22616765 | S236: 47.77137531 | T236: 156.9979096 | AC236: RAP | AF236: =IFERROR(VLOOKUP(AC236,'Input and Dasboard_draft'!$B$67:$F$75,3,FALSE),AC236) -> RAP | AG236: RAP | AH236: 734.4 | AI236: t | AJ236: 2600.527732 | AK236: 7.119701388 | AL236: 2191.179267 | AM236: 4.952841556 | AN236: 11.22616765 | AO236: 47.77137531 | AP236: 156.9979096 | BC236: RAP | BF236: =IFERROR(VLOOKUP(BC236,'Input and Dasboard_draft'!$B$67:$F$75,4,FALSE),BC236) -> RAP | BG236: RAP | BH236: 734.4 | BI236: t | BJ236: 2600.527732 | BK236: 7.119701388 | BL236: 2191.179267 | BM236: 4.952841556 | BN236: 11.22616765 | BO236: 47.77137531 | BP236: 156.9979096
G237: Recycled concrete | J237: =IFERROR(VLOOKUP(G237,'Input and Dasboard_draft'!$B$67:$F$75,2,FALSE),G237) -> Grid | K237: Recycled concrete-Grid | L237: 0 | M237: t | N237: 0 | O237: 0 | P237: 0 | Q237: 0 | R237: 0 | S237: 0 | T237: 0 | AC237: Recycled concrete | AF237: =IFERROR(VLOOKUP(AC237,'Input and Dasboard_draft'!$B$67:$F$75,3,FALSE),AC237) -> Grid | AG237: Recycled concrete-Grid | AH237: 0 | AI237: t | AJ237: 0 | AK237: 0 | AL237: 0 | AM237: 0 | AN237: 0 | AO237: 0 | AP237: 0 | BC237: Recycled concrete | BF237: =IFERROR(VLOOKUP(BC237,'Input and Dasboard_draft'!$B$67:$F$75,4,FALSE),BC237) -> Grid | BG237: Recycled concrete-Grid | BH237: 0 | BI237: t | BJ237: 0 | BK237: 0 | BL237: 0 | BM237: 0 | BN237: 0 | BO237: 0 | BP237: 0
G238: Sand | J238: =IFERROR(VLOOKUP(G238,'Input and Dasboard_draft'!$B$67:$F$75,2,FALSE),G238) -> Sand | K238: Sand | L238: 856.8 | M238: t | N238: 4307.15382 | O238: 1205.350267 | P238: 6879.134188 | Q238: 64.45830036 | R238: 93.13168385 | S238: 173.5033195 | T238: 1920.939517 | AC238: Sand | AF238: =IFERROR(VLOOKUP(AC238,'Input and Dasboard_draft'!$B$67:$F$75,3,FALSE),AC238) -> Sand | AG238: Sand | AH238: 734.4 | AI238: t | AJ238: 3691.846132 | AK238: 1033.157372 | AL238: 5896.400733 | AM238: 55.24997174 | AN238: 79.82715758 | AO238: 148.717131 | AP238: 1646.519586 | BC238: Sand | BF238: =IFERROR(VLOOKUP(BC238,'Input and Dasboard_draft'!$B$67:$F$75,4,FALSE),BC238) -> Sand | BG238: Sand | BH238: 734.4 | BI238: t | BJ238: 3691.846132 | BK238: 1033.157372 | BL238: 5896.400733 | BM238: 55.24997174 | BN238: 79.82715758 | BO238: 148.717131 | BP238: 1646.519586
G239: Stabilised gravel | J239: =IFERROR(VLOOKUP(G239,'Input and Dasboard_draft'!$B$67:$F$75,2,FALSE),G239) -> Stabilised gravel | K239: Stabilised gravel | L239: 0 | M239: t | N239: 0 | O239: 0 | P239: 0 | Q239: 0 | R239: 0 | S239: 0 | T239: 0 | AC239: Stabilised gravel | AF239: =IFERROR(VLOOKUP(AC239,'Input and Dasboard_draft'!$B$67:$F$75,3,FALSE),AC239) -> Stabilised gravel | AG239: Stabilised gravel | AH239: 0 | AI239: t | AJ239: 0 | AK239: 0 | AL239: 0 | AM239: 0 | AN239: 0 | AO239: 0 | AP239: 0 | BC239: Stabilised gravel | BF239: =IFERROR(VLOOKUP(BC239,'Input and Dasboard_draft'!$B$67:$F$75,4,FALSE),BC239) -> Stabilised gravel | BG239: Stabilised gravel | BH239: 0 | BI239: t | BJ239: 0 | BK239: 0 | BL239: 0 | BM239: 0 | BN239: 0 | BO239: 0 | BP239: 0
... 65 more rows

Sheet MACC data layers (hidden)
A3: Layer | B3: Option 1 | E3: Layer | F3: Option 2 | M3: =F4 -> Carbon abated (t CO₂ eq.) | N3: =H4 -> Abatement cost ($/tonne CO₂ eq.)
B4: Carbon abated (t CO2 eq.) | C4: Total abatement cost ($) | D4: Abatement cost ($/tonne CO2 eq.) | F4: Carbon abated (t CO₂ eq.) | G4: Total abatement cost ($) | H4: Abatement cost ($/tonne CO₂ eq.) | L4: =A9 -> Option 1 Total | M4: =IF(B9>0, B9, 0) -> 0 | N4: =D9 -> 1247.762918
A5: Wearing course | B5: =VLOOKUP(A5,$A$16:$D$18, 2, FALSE)-VLOOKUP(A5, $A$16:$D$18, 3, FALSE) -> -334.652249 | C5: =IF('MACC assist'!H7="See Table - Materials", "N/A", (F16-E16)) -> -417566.6667 | D5: =IF(C5="N/A", "N/A", IFERROR(C5/B5, 0)) -> 1247.762918 | E5: Wearing course | F5: =VLOOKUP(E5,$A$16:$D$18, 2, FALSE)-VLOOKUP(E5, $A$16:$D$18, 4, FALSE) -> -379.4451624 | G5: =IF('MACC assist'!H7="See Table - Materials", "N/A", (G16-E16)) -> -428042.8571 | H5: =IF(G5="N/A", "N/A", IFERROR(G5/F5, 0)) -> 1128.075674 | L5: =E9 -> Option 2 Total | M5: =IF(F9>0, F9, 0) -> 0 | N5: =H9 -> 631.1605542
A6: Base course | B6: =VLOOKUP(A6,$A$16:$D$18, 2, FALSE)-VLOOKUP(A6, $A$16:$D$18, 3, FALSE) -> 5.739665285 | C6: =IF('MACC assist'!H8="See Table - Materials", "N/A", (F17-E17)) -> 1.455191523e-11 | D6: =IF(C6="N/A", "N/A", IFERROR(C6/B6, 0)) -> 2.535324711e-12 | E6: Base course | F6: =VLOOKUP(E6,$A$16:$D$18, 2, FALSE)-VLOOKUP(E6, $A$16:$D$18, 4, FALSE) -> 201.2416127 | G6: =IF('MACC assist'!H8="See Table - Materials", "N/A", (G17-E17)) -> -100000 | H6: =IF(G6="N/A", "N/A", IFERROR(G6/F6, 0)) -> -496.9151193
A7: Subbase course | B7: =VLOOKUP(A7,$A$16:$D$18, 2, FALSE)-VLOOKUP(A7, $A$16:$D$18, 3, FALSE) -> 84.61056176 | C7: =IF('MACC assist'!H9="See Table - Materials", "N/A", (F18-E18)) -> 0 | D7: 0 | E7: Subbase course | F7: 96.15727008 | G7: =IF('MACC assist'!H9="See Table - Materials", "N/A", (G18-E18)) -> 0 | H7: 0
A9: Option 1 Total | B9: =SUM(B5:B8) -> -244.302022 | C9: =SUM(C5:C8) -> -417566.6667 | D9: =SUM(D5:D8) -> 1247.762918 | E9: Option 2 Total | F9: =SUM(F5:F8) -> -82.0462796 | G9: =SUM(G5:G8) -> -528042.8571 | H9: =SUM(H5:H8) -> 631.1605542 | M9: =F4 -> Carbon abated (t CO₂ eq.) | N9: =H4 -> Abatement cost ($/tonne CO₂ eq.)
L10: =_xlfn._xlws.SORT(L4:N5, 3, 1) -> Option 2 Total | M10: 0 | N10: 631.1605542
L11: Option 1 Total | M11: 0 | N11: 1247.762918
A15: Layer | B15: Baeline (t CO2 eq.) | C15: Option 1 (t CO2 eq.) | D15: Option 2 (t CO2 eq.) | E15: Baeline Project Cost ($) | F15: Option 1 Project Cost ($) | G15: Option 2 Project Cost ($)
A16: Wearing course | B16: ='LCI and calculations'!C100/1000 -> 371.0781421 | C16: ='LCI and calculations'!Y100/1000 -> 705.7303912 | D16: ='LCI and calculations'!AY100/1000 -> 750.5233045 | E16: ='LCI and calculations'!B112 -> 602000 | F16: ='LCI and calculations'!C112 -> 184433.3333 | G16: ='LCI and calculations'!D112 -> 173957.1429 | M16: Baseline | N16: Option 1 | O16: Option 2
A17: Base course | B17: ='LCI and calculations'!D100/1000 -> 332.7957365 | C17: ='LCI and calculations'!Z100/1000 -> 327.0560712 | D17: ='LCI and calculations'!AZ100/1000 -> 131.5541238 | E17: ='LCI and calculations'!B113 -> 100000 | F17: ='LCI and calculations'!C113 -> 100000 | G17: ='LCI and calculations'!D113 -> 0 | L17: Offeset cost | M17: ='LCI and calculations'!N36*'Input and Dasboard_draft'!$B$102 -> 17414.64844 | N17: ='LCI and calculations'!AJ36*'Input and Dasboard_draft'!$B$102 -> 20732.62901 | O17: ='LCI and calculations'!BJ36*'Input and Dasboard_draft'!$B$102 -> 17248.14123
A18: Subbase course | B18: ='LCI and calculations'!E100/1000 -> 320.8646172 | C18: ='LCI and calculations'!AA100/1000 -> 236.2540554 | D18: ='LCI and calculations'!BA100/1000 -> 224.7073471 | E18: ='LCI and calculations'!B114 -> 30000 | F18: ='LCI and calculations'!C114 -> 30000 | G18: ='LCI and calculations'!D114 -> 30000 | L18: Initiative Cost | M18: 0 | N18: =C9 -> -417566.6667 | O18: =G9 -> -528042.8571
A19: Total | B19: =SUM(B16:B18) -> 1024.738496 | C19: =SUM(C16:C18) -> 1269.040518 | D19: 1106.784775 | E19: 732000 | F19: 314433.3333 | G19: 203957.1429 | L19: Project Cost | M19: =E19 -> 732000 | N19: =F19 -> 314433.3333 | O19: =G19 -> 203957.1429

Sheet MACC data materials (hidden)
A1: Material/Transport/Utility | B1: Option 1 | D1: Material/Transport/Utility | E1: Option 2
B2: Carbon abated (t CO2 eq.) | C2: Abatement cost ($/tonne CO2 eq.) | E2: Carbon abated (t CO₂ eq.) | F2: Abatement cost ($/tonne CO₂ eq.) | G2: Option 1 Project Cost | H2: Option 2 Project Cost | J2: Option 1 | M2: Option 1
A3: =_xlfn._xlws.FILTER($A$26:$C$44, (B26:B44>K5)*(C26:C44>K9)*(C26:C44<K13), "No results") ->  | D3: =_xlfn._xlws.FILTER($D$26:$F$44, (E26:E44>K18)*(F26:F44>K22)*(F26:F44<K26),"No results") -> No results | G3: =IFERROR(VLOOKUP(A3, $A$72:$D$90, 3, FALSE), 0) -> 0 | H3: =IFERROR(VLOOKUP(D3, $A$72:$G$90, 6, FALSE), 0) -> 0 | J3: Max t CO2 | K3: =MAX(B72:B90) -> 21.52463455 | P3: N | Q3: O | R3: P | S3: Q | T3: R | U3: S | V3: T | W3: U | X3: V | Y3: W | Z3: X | AA3: Y | AB3: Z | AC3: AA | AD3: AB | AE3: AC | AF3: AD | AG3: AE | AH3: AF | AI3: AG
G4: 0 | H4: 0 | J4: Cutoff | K4: 0.001 | M4: t CO2 eq. scale | N4: t CO2 eq. scale | O4: St line data | P4: t CO2 eq. | Q4: =TRANSPOSE(A3:A21) ->  | R4: 0 | S4: 0 | T4: 0 | U4: 0 | V4: 0 | W4: 0 | X4: 0 | Y4: 0 | Z4: 0 | AA4: 0 | AB4: 0 | AC4: 0 | AD4: 0 | AE4: 0 | AF4: 0 | AG4: 0 | AH4: 0 | AI4: 0 | AK4: Columns | AL4: =COUNTIF(Q4:AH4, "*") -> 0 | AN4: =_xlfn.UNIQUE(P4:INDIRECT(AL6&AL5)) -> 
G5: 0 | H5: 0 | J5: Cutoff value | K5: =K3*K4 -> 0.02152463455 | M5: 0 | N5: =ROUND(M5,0) -> 0 | O5: -3 | P5: 0 | Q5: =IFERROR(VLOOKUP(Q4, $A$3:$C$21, 3, FALSE), 0) -> 0 | R5: 0 | S5: 0 | T5: 0 | U5: 0 | V5: 0 | W5: 0 | X5: 0 | Y5: 0 | Z5: 0 | AA5: 0 | AB5: 0 | AC5: 0 | AD5: 0 | AE5: 0 | AF5: 0 | AG5: 0 | AH5: 0 | AI5: 0 | AK5: Rows | AL5: =3+AL4*3 -> 3
G6: 0 | H6: 0 | M6: =(M12-M5)/7 ->  | N6: =ROUND(M6,0) ->  | O6: -3 | P6: =IF(Q4>0, VLOOKUP(Q4, $A$3:$C$21, 2, FALSE), 0) ->  | Q6: =IFERROR(VLOOKUP(Q4, $A$3:$C$21, 3, FALSE), 0) -> 0 | R6: 0 | S6: 0 | T6: 0 | U6: 0 | V6: 0 | W6: 0 | X6: 0 | Y6: 0 | Z6: 0 | AA6: 0 | AB6: 0 | AC6: 0 | AD6: 0 | AE6: 0 | AF6: 0 | AG6: 0 | AH6: 0 | AI6: 0 | AK6: Last Column | AL6: =OFFSET($P$3, 0, AL4) -> N
G7: 0 | H7: 0 | J7: Min $/t CO2 | K7: =MIN(D72:D90) -> 0 | M7: =M6+M6 ->  | O7: -3 | P7: =IF(Q4>0, VLOOKUP(Q4, $A$3:$C$21, 2, FALSE), 0) ->  | Q7: 0 | R7: 0 | S7: 0 | T7: 0 | U7: 0 | V7: 0 | W7: 0 | X7: 0 | Y7: 0 | Z7: 0 | AA7: 0 | AB7: 0 | AC7: 0 | AD7: 0 | AE7: 0 | AF7: 0 | AG7: 0 | AH7: 0 | AI7: 0
G8: 0 | H8: 0 | J8: Cutoff | K8: 0.05 | M8: =M7+$M$6 ->  | O8: -3 | P8: =IF(Q4>0, VLOOKUP(Q4, $A$3:$C$21, 2, FALSE), 0) ->  | Q8: 0 | R8: =IFERROR(VLOOKUP(R4, $A$3:$C$21, 3, FALSE), 0) -> 0 | S8: 0 | T8: 0 | U8: 0 | V8: 0 | W8: 0 | X8: 0 | Y8: 0 | Z8: 0 | AA8: 0 | AB8: 0 | AC8: 0 | AD8: 0 | AE8: 0 | AF8: 0 | AG8: 0 | AH8: 0 | AI8: 0
G9: 0 | H9: 0 | J9: Cutoff value | K9: =K7*K8 -> 0 | M9: =M8+$M$6 ->  | O9: -3 | P9: =IF(R4>0, P6+VLOOKUP(R4, $A$3:$C$21, 2, FALSE), 0) -> 0 | Q9: 0 | R9: =IFERROR(VLOOKUP(R4, $A$3:$C$21, 3, FALSE), 0) -> 0 | S9: 0 | T9: 0 | U9: 0 | V9: 0 | W9: 0 | X9: 0 | Y9: 0 | Z9: 0 | AA9: 0 | AB9: 0 | AC9: 0 | AD9: 0 | AE9: 0 | AF9: 0 | AG9: 0 | AH9: 0 | AI9: 0
G10: 0 | H10: 0 | M10: =M9+$M$6 ->  | O10: -3 | P10: =IF(R4>0, P6+VLOOKUP(R4, $A$3:$C$21, 2, FALSE), 0) -> 0 | Q10: 0 | R10: 0 | S10: 0 | T10: 0 | U10: 0 | V10: 0 | W10: 0 | X10: 0 | Y10: 0 | Z10: 0 | AA10: 0 | AB10: 0 | AC10: 0 | AD10: 0 | AE10: 0 | AF10: 0 | AG10: 0 | AH10: 0 | AI10: 0
G11: 0 | H11: 0 | J11: Max $/t CO2 | K11: =MAX(D72:D90) -> 0 | M11: =M10+$M$6 ->  | O11: -3 | P11: =IF(R4>0, P6+VLOOKUP(R4, $A$3:$C$21, 2, FALSE), 0) -> 0 | Q11: 0 | R11: 0 | S11: =IFERROR(VLOOKUP(S4, $A$3:$C$21, 3, FALSE), 0) -> 0 | T11: 0 | U11: 0 | V11: 0 | W11: 0 | X11: 0 | Y11: 0 | Z11: 0 | AA11: 0 | AB11: 0 | AC11: 0 | AD11: 0 | AE11: 0 | AF11: 0 | AG11: 0 | AH11: 0 | AI11: 0
G12: 0 | H12: 0 | J12: Cutoff | K12: 0.05 | M12: =MAX(P5:P60) ->  | O12: -3 | P12: =IF(S4>0, P9+VLOOKUP(S4, $A$3:$C$21, 2, FALSE), 0) -> 0 | Q12: 0 | R12: 0 | S12: =IFERROR(VLOOKUP(S4, $A$3:$C$21, 3, FALSE), 0) -> 0 | T12: 0 | U12: 0 | V12: 0 | W12: 0 | X12: 0 | Y12: 0 | Z12: 0 | AA12: 0 | AB12: 0 | AC12: 0 | AD12: 0 | AE12: 0 | AF12: 0 | AG12: 0 | AH12: 0 | AI12: 0
G13: 0 | H13: 0 | J13: Cutoff value | K13: =K11*K12 -> 0 | P13: =IF(S4>0, P9+VLOOKUP(S4, $A$3:$C$21, 2, FALSE), 0) -> 0 | Q13: 0 | R13: 0 | S13: 0 | T13: 0 | U13: 0 | V13: 0 | W13: 0 | X13: 0 | Y13: 0 | Z13: 0 | AA13: 0 | AB13: 0 | AC13: 0 | AD13: 0 | AE13: 0 | AF13: 0 | AG13: 0 | AH13: 0 | AI13: 0
G14: 0 | H14: 0 | P14: =IF(S4>0, P9+VLOOKUP(S4, $A$3:$C$21, 2, FALSE), 0) -> 0 | Q14: 0 | R14: 0 | S14: 0 | T14: =IFERROR(VLOOKUP(T4, $A$3:$C$21, 3, FALSE), 0) -> 0 | U14: 0 | V14: 0 | W14: 0 | X14: 0 | Y14: 0 | Z14: 0 | AA14: 0 | AB14: 0 | AC14: 0 | AD14: 0 | AE14: 0 | AF14: 0 | AG14: 0 | AH14: 0 | AI14: 0
G15: 0 | H15: 0 | J15: Option 2 | P15: =IF(T4>0, P12+VLOOKUP(T4, $A$3:$C$21, 2, FALSE), 0) -> 0 | Q15: 0 | R15: 0 | S15: 0 | T15: =IFERROR(VLOOKUP(T4, $A$3:$C$21, 3, FALSE), 0) -> 0 | U15: 0 | V15: 0 | W15: 0 | X15: 0 | Y15: 0 | Z15: 0 | AA15: 0 | AB15: 0 | AC15: 0 | AD15: 0 | AE15: 0 | AF15: 0 | AG15: 0 | AH15: 0 | AI15: 0
G16: 0 | H16: 0 | J16: Max t CO2 | K16: =MAX(E72:E90) -> 122.5372397 | P16: =IF(T4>0, P12+VLOOKUP(T4, $A$3:$C$21, 2, FALSE), 0) -> 0 | Q16: 0 | R16: 0 | S16: 0 | T16: 0 | U16: 0 | V16: 0 | W16: 0 | X16: 0 | Y16: 0 | Z16: 0 | AA16: 0 | AB16: 0 | AC16: 0 | AD16: 0 | AE16: 0 | AF16: 0 | AG16: 0 | AH16: 0 | AI16: 0
G17: 0 | H17: 0 | J17: Cutoff | K17: 0.001 | P17: =IF(T4>0, P12+VLOOKUP(T4, $A$3:$C$21, 2, FALSE), 0) -> 0 | Q17: 0 | R17: 0 | S17: 0 | T17: 0 | U17: =IFERROR(VLOOKUP(U4, $A$3:$C$21, 3, FALSE), 0) -> 0 | V17: 0 | W17: 0 | X17: 0 | Y17: 0 | Z17: 0 | AA17: 0 | AB17: 0 | AC17: 0 | AD17: 0 | AE17: 0 | AF17: 0 | AG17: 0 | AH17: 0 | AI17: 0
G18: 0 | H18: 0 | J18: Cutoff value | K18: =K16*K17 -> 0.1225372397 | P18: =IF(U4>0, P15+VLOOKUP(U4, $A$3:$C$21, 2, FALSE), 0) -> 0 | Q18: 0 | R18: 0 | S18: 0 | T18: 0 | U18: =IFERROR(VLOOKUP(U4, $A$3:$C$21, 3, FALSE), 0) -> 0 | V18: 0 | W18: 0 | X18: 0 | Y18: 0 | Z18: 0 | AA18: 0 | AB18: 0 | AC18: 0 | AD18: 0 | AE18: 0 | AF18: 0 | AG18: 0 | AH18: 0 | AI18: 0
G19: 0 | H19: 0 | P19: =IF(U4>0, P15+VLOOKUP(U4, $A$3:$C$21, 2, FALSE), 0) -> 0 | Q19: 0 | R19: 0 | S19: 0 | T19: 0 | U19: 0 | V19: 0 | W19: 0 | X19: 0 | Y19: 0 | Z19: 0 | AA19: 0 | AB19: 0 | AC19: 0 | AD19: 0 | AE19: 0 | AF19: 0 | AG19: 0 | AH19: 0 | AI19: 0
G20: 0 | H20: 0 | J20: Min $/t CO2 | K20: =MIN(G72:G90) -> 0 | P20: =IF(U4>0, P15+VLOOKUP(U4, $A$3:$C$21, 2, FALSE), 0) -> 0 | Q20: 0 | R20: 0 | S20: 0 | T20: 0 | U20: 0 | V20: =IFERROR(VLOOKUP(V4, $A$3:$C$21, 3, FALSE), 0) -> 0 | W20: 0 | X20: 0 | Y20: 0 | Z20: 0 | AA20: 0 | AB20: 0 | AC20: 0 | AD20: 0 | AE20: 0 | AF20: 0 | AG20: 0 | AH20: 0 | AI20: 0
G21: 0 | H21: 0 | J21: Cutoff | K21: 0.05 | P21: =IF(V4>0, P18+VLOOKUP(V4, $A$3:$C$21, 2, FALSE), 0) -> 0 | Q21: 0 | R21: 0 | S21: 0 | T21: 0 | U21: 0 | V21: =IFERROR(VLOOKUP(V4, $A$3:$C$21, 3, FALSE), 0) -> 0 | W21: 0 | X21: 0 | Y21: 0 | Z21: 0 | AA21: 0 | AB21: 0 | AC21: 0 | AD21: 0 | AE21: 0 | AF21: 0 | AG21: 0 | AH21: 0 | AI21: 0
A22: Option 1 Total | B22: =SUM(B3:B21) -> 0 | C22: =SUM(C3:C21) -> 0 | D22: Option 2 Total | E22: 0 | F22: 0 | G22: =SUM(G3:G21) -> 0 | H22: =SUM(H3:H21) -> 0 | J22: Cutoff value | K22: =K20*K21 -> 0 | P22: =IF(V4>0, P18+VLOOKUP(V4, $A$3:$C$21, 2, FALSE), 0) -> 0 | Q22: 0 | R22: 0 | S22: 0 | T22: 0 | U22: 0 | V22: 0 | W22: 0 | X22: 0 | Y22: 0 | Z22: 0 | AA22: 0 | AB22: 0 | AC22: 0 | AD22: 0 | AE22: 0 | AF22: 0 | AG22: 0 | AH22: 0 | AI22: 0
P23: =IF(V4>0, P18+VLOOKUP(V4, $A$3:$C$21, 2, FALSE), 0) -> 0 | Q23: 0 | R23: 0 | S23: 0 | T23: 0 | U23: 0 | V23: 0 | W23: =IFERROR(VLOOKUP(W4, $A$3:$C$21, 3, FALSE), 0) -> 0 | X23: 0 | Y23: 0 | Z23: 0 | AA23: 0 | AB23: 0 | AC23: 0 | AD23: 0 | AE23: 0 | AF23: 0 | AG23: 0 | AH23: 0 | AI23: 0
A24: Material/Transport/Utility | B24: Option 1 | D24: Material/Transport/Utility | E24: Option 2 | J24: Max $/t CO2 | K24: =MAX(G72:G90) -> 0 | P24: =IF(W4>0, P21+VLOOKUP(W4, $A$3:$C$21, 2, FALSE), 0) -> 0 | Q24: 0 | R24: 0 | S24: 0 | T24: 0 | U24: 0 | V24: 0 | W24: =IFERROR(VLOOKUP(W4, $A$3:$C$21, 3, FALSE), 0) -> 0 | X24: 0 | Y24: 0 | Z24: 0 | AA24: 0 | AB24: 0 | AC24: 0 | AD24: 0 | AE24: 0 | AF24: 0 | AG24: 0 | AH24: 0 | AI24: 0
B25: Carbon abated (t CO2 eq.) | C25: Abatement cost ($/tonne CO2 eq.) | E25: Carbon abated (t CO2 eq.) | F25: Abatement cost ($/tonne CO2 eq.) | J25: Cutoff | K25: 0.05 | P25: =IF(W4>0, P21+VLOOKUP(W4, $A$3:$C$21, 2, FALSE), 0) -> 0 | Q25: 0 | R25: 0 | S25: 0 | T25: 0 | U25: 0 | V25: 0 | W25: 0 | X25: 0 | Y25: 0 | Z25: 0 | AA25: 0 | AB25: 0 | AC25: 0 | AD25: 0 | AE25: 0 | AF25: 0 | AG25: 0 | AH25: 0 | AI25: 0
A26: =_xlfn._xlws.SORT(A49:C67, 3, 1) ->  | D26: =_xlfn._xlws.SORT(D49:F67, 3, 1) -> 0 | E26: 0 | F26: 0 | J26: Cutoff value | K26: =K24*K25 -> 0 | P26: =IF(W4>0, P21+VLOOKUP(W4, $A$3:$C$21, 2, FALSE), 0) -> 0 | Q26: 0 | R26: 0 | S26: 0 | T26: 0 | U26: 0 | V26: 0 | W26: 0 | X26: =IFERROR(VLOOKUP(X4, $A$3:$C$21, 3, FALSE), 0) -> 0 | Y26: 0 | Z26: 0 | AA26: 0 | AB26: 0 | AC26: 0 | AD26: 0 | AE26: 0 | AF26: 0 | AG26: 0 | AH26: 0 | AI26: 0
D27: 0 | E27: 0 | F27: 0 | P27: =IF(X4>0, P24+VLOOKUP(X4, $A$3:$C$21, 2, FALSE), 0) -> 0 | Q27: 0 | R27: 0 | S27: 0 | T27: 0 | U27: 0 | V27: 0 | W27: 0 | X27: =IFERROR(VLOOKUP(X4, $A$3:$C$21, 3, FALSE), 0) -> 0 | Y27: 0 | Z27: 0 | AA27: 0 | AB27: 0 | AC27: 0 | AD27: 0 | AE27: 0 | AF27: 0 | AG27: 0 | AH27: 0 | AI27: 0
D28: 0 | E28: 0 | F28: 0 | P28: =IF(X4>0, P24+VLOOKUP(X4, $A$3:$C$21, 2, FALSE), 0) -> 0 | Q28: 0 | R28: 0 | S28: 0 | T28: 0 | U28: 0 | V28: 0 | W28: 0 | X28: 0 | Y28: 0 | Z28: 0 | AA28: 0 | AB28: 0 | AC28: 0 | AD28: 0 | AE28: 0 | AF28: 0 | AG28: 0 | AH28: 0 | AI28: 0
D29: 0 | E29: 0 | F29: 0 | J29: =E2 -> Carbon abated (t CO₂ eq.) | K29: =F2 -> Abatement cost ($/tonne CO₂ eq.) | P29: =IF(X4>0, P24+VLOOKUP(X4, $A$3:$C$21, 2, FALSE), 0) -> 0 | Q29: 0 | R29: 0 | S29: 0 | T29: 0 | U29: 0 | V29: 0 | W29: 0 | X29: 0 | Y29: =IFERROR(VLOOKUP(Y4, $A$3:$C$21, 3, FALSE), 0) -> 0 | Z29: 0 | AA29: 0 | AB29: 0 | AC29: 0 | AD29: 0 | AE29: 0 | AF29: 0 | AG29: 0 | AH29: 0 | AI29: 0
D30: 0 | E30: 0 | F30: 0 | I30: =A22 -> Option 1 Total | J30: =IF(B91>0, B91, 0) -> 0 | K30: =C91 -> 0 | P30: =IF(Y4>0, P27+VLOOKUP(Y4, $A$3:$C$21, 2, FALSE), 0) -> 0 | Q30: 0 | R30: 0 | S30: 0 | T30: 0 | U30: 0 | V30: 0 | W30: 0 | X30: 0 | Y30: =IFERROR(VLOOKUP(Y4, $A$3:$C$21, 3, FALSE), 0) -> 0 | Z30: 0 | AA30: 0 | AB30: 0 | AC30: 0 | AD30: 0 | AE30: 0 | AF30: 0 | AG30: 0 | AH30: 0 | AI30: 0
D31: 0 | E31: 0 | F31: 0 | I31: =D22 -> Option 2 Total | J31: =IF(E91>0, E91, 0) -> 0 | K31: =F91 -> 0 | P31: =IF(Y4>0, P27+VLOOKUP(Y4, $A$3:$C$21, 2, FALSE), 0) -> 0 | Q31: 0 | R31: 0 | S31: 0 | T31: 0 | U31: 0 | V31: 0 | W31: 0 | X31: 0 | Y31: 0 | Z31: 0 | AA31: 0 | AB31: 0 | AC31: 0 | AD31: 0 | AE31: 0 | AF31: 0 | AG31: 0 | AH31: 0 | AI31: 0
D32: 0 | E32: 0 | F32: 0 | P32: =IF(Y4>0, P27+VLOOKUP(Y4, $A$3:$C$21, 2, FALSE), 0) -> 0 | Q32: 0 | R32: 0 | S32: 0 | T32: 0 | U32: 0 | V32: 0 | W32: 0 | X32: 0 | Y32: 0 | Z32: =IFERROR(VLOOKUP(Z4, $A$3:$C$21, 3, FALSE), 0) -> 0 | AA32: 0 | AB32: 0 | AC32: 0 | AD32: 0 | AE32: 0 | AF32: 0 | AG32: 0 | AH32: 0 | AI32: 0
D33: 0 | E33: 0 | F33: 0 | P33: =IF(Z4>0, P30+VLOOKUP(Z4, $A$3:$C$21, 2, FALSE), 0) -> 0 | Q33: 0 | R33: 0 | S33: 0 | T33: 0 | U33: 0 | V33: 0 | W33: 0 | X33: 0 | Y33: 0 | Z33: =IFERROR(VLOOKUP(Z4, $A$3:$C$21, 3, FALSE), 0) -> 0 | AA33: 0 | AB33: 0 | AC33: 0 | AD33: 0 | AE33: 0 | AF33: 0 | AG33: 0 | AH33: 0 | AI33: 0
D34: 0 | E34: 0 | F34: 0 | J34: =E2 -> Carbon abated (t CO₂ eq.) | K34: =F2 -> Abatement cost ($/tonne CO₂ eq.) | P34: =IF(Z4>0, P30+VLOOKUP(Z4, $A$3:$C$21, 2, FALSE), 0) -> 0 | Q34: 0 | R34: 0 | S34: 0 | T34: 0 | U34: 0 | V34: 0 | W34: 0 | X34: 0 | Y34: 0 | Z34: 0 | AA34: 0 | AB34: 0 | AC34: 0 | AD34: 0 | AE34: 0 | AF34: 0 | AG34: 0 | AH34: 0 | AI34: 0
D35: 0 | E35: 0 | F35: 0 | I35: =_xlfn._xlws.SORT(I30:K31, 3, 1) -> Option 1 Total | J35: 0 | K35: 0 | P35: =IF(Z4>0, P30+VLOOKUP(Z4, $A$3:$C$21, 2, FALSE), 0) -> 0 | Q35: 0 | R35: 0 | S35: 0 | T35: 0 | U35: 0 | V35: 0 | W35: 0 | X35: 0 | Y35: 0 | Z35: 0 | AA35: =IFERROR(VLOOKUP(AA4, $A$3:$C$21, 3, FALSE), 0) -> 0 | AB35: 0 | AC35: 0 | AD35: 0 | AE35: 0 | AF35: 0 | AG35: 0 | AH35: 0 | AI35: 0
D36: 0 | E36: 0 | F36: 0 | I36: Option 2 Total | J36: 0 | K36: 0 | P36: =IF(AA4>0, P33+VLOOKUP(AA4, $A$3:$C$21, 2, FALSE), 0) -> 0 | Q36: 0 | R36: 0 | S36: 0 | T36: 0 | U36: 0 | V36: 0 | W36: 0 | X36: 0 | Y36: 0 | Z36: 0 | AA36: =IFERROR(VLOOKUP(AA4, $A$3:$C$21, 3, FALSE), 0) -> 0 | AB36: 0 | AC36: 0 | AD36: 0 | AE36: 0 | AF36: 0 | AG36: 0 | AH36: 0 | AI36: 0
D37: 0 | E37: 0 | F37: 0 | P37: =IF(AA4>0, P33+VLOOKUP(AA4, $A$3:$C$21, 2, FALSE), 0) -> 0 | Q37: 0 | R37: 0 | S37: 0 | T37: 0 | U37: 0 | V37: 0 | W37: 0 | X37: 0 | Y37: 0 | Z37: 0 | AA37: 0 | AB37: 0 | AC37: 0 | AD37: 0 | AE37: 0 | AF37: 0 | AG37: 0 | AH37: 0 | AI37: 0
D38: 0 | E38: 0 | F38: 0 | P38: =IF(AA4>0, P33+VLOOKUP(AA4, $A$3:$C$21, 2, FALSE), 0) -> 0 | Q38: 0 | R38: 0 | S38: 0 | T38: 0 | U38: 0 | V38: 0 | W38: 0 | X38: 0 | Y38: 0 | Z38: 0 | AA38: 0 | AB38: =IFERROR(VLOOKUP(AB4, $A$3:$C$21, 3, FALSE), 0) -> 0 | AC38: 0 | AD38: 0 | AE38: 0 | AF38: 0 | AG38: 0 | AH38: 0 | AI38: 0
D39: 0 | E39: 0 | F39: 0 | P39: =IF(AB4>0, P36+VLOOKUP(AB4, $A$3:$C$21, 2, FALSE), 0) -> 0 | Q39: 0 | R39: 0 | S39: 0 | T39: 0 | U39: 0 | V39: 0 | W39: 0 | X39: 0 | Y39: 0 | Z39: 0 | AA39: 0 | AB39: =IFERROR(VLOOKUP(AB4, $A$3:$C$21, 3, FALSE), 0) -> 0 | AC39: 0 | AD39: 0 | AE39: 0 | AF39: 0 | AG39: 0 | AH39: 0 | AI39: 0
D40: 0 | E40: 0 | F40: 0 | P40: =IF(AB4>0, P36+VLOOKUP(AB4, $A$3:$C$21, 2, FALSE), 0) -> 0 | Q40: 0 | R40: 0 | S40: 0 | T40: 0 | U40: 0 | V40: 0 | W40: 0 | X40: 0 | Y40: 0 | Z40: 0 | AA40: 0 | AB40: 0 | AC40: 0 | AD40: 0 | AE40: 0 | AF40: 0 | AG40: 0 | AH40: 0 | AI40: 0
D41: 0 | E41: 0 | F41: 0 | J41: Baseline | K41: Option 1 | L41: Option 2 | P41: =IF(AB4>0, P36+VLOOKUP(AB4, $A$3:$C$21, 2, FALSE), 0) -> 0 | Q41: 0 | R41: 0 | S41: 0 | T41: 0 | U41: 0 | V41: 0 | W41: 0 | X41: 0 | Y41: 0 | Z41: 0 | AA41: 0 | AB41: 0 | AC41: =IFERROR(VLOOKUP(AC4, $A$3:$C$21, 3, FALSE), 0) -> 0 | AD41: 0 | AE41: 0 | AF41: 0 | AG41: 0 | AH41: 0 | AI41: 0
D42: Glass | E42: 0.6211270892 | F42: N/A | I42: Offeset cost | J42: ='LCI and calculations'!N36*'Input and Dasboard_draft'!$B$102 -> 17414.64844 | K42: ='LCI and calculations'!AJ36*'Input and Dasboard_draft'!$B$102 -> 20732.62901 | L42: ='LCI and calculations'!BJ36*'Input and Dasboard_draft'!$B$102 -> 17248.14123 | P42: =IF(AC4>0, P39+VLOOKUP(AC4, $A$3:$C$21, 2, FALSE), 0) -> 0 | Q42: 0 | R42: 0 | S42: 0 | T42: 0 | U42: 0 | V42: 0 | W42: 0 | X42: 0 | Y42: 0 | Z42: 0 | AA42: 0 | AB42: 0 | AC42: =IFERROR(VLOOKUP(AC4, $A$3:$C$21, 3, FALSE), 0) -> 0 | AD42: 0 | AE42: 0 | AF42: 0 | AG42: 0 | AH42: 0 | AI42: 0
D43: Natural gravel | E43: 16.51890559 | F43: N/A | I43: Initiative Cost | J43: 0 | K43: =C91 -> 0 | L43: =F91 -> 0 | P43: =IF(AC4>0, P39+VLOOKUP(AC4, $A$3:$C$21, 2, FALSE), 0) -> 0 | Q43: 0 | R43: 0 | S43: 0 | T43: 0 | U43: 0 | V43: 0 | W43: 0 | X43: 0 | Y43: 0 | Z43: 0 | AA43: 0 | AB43: 0 | AC43: 0 | AD43: 0 | AE43: 0 | AF43: 0 | AG43: 0 | AH43: 0 | AI43: 0
D44: Plastics | E44: 18.06086604 | F44: N/A | I44: Project Cost | J44: 0 | K44: =H91 -> 0 | L44: =I91 -> 0 | P44: =IF(AC4>0, P39+VLOOKUP(AC4, $A$3:$C$21, 2, FALSE), 0) -> 0 | Q44: 0 | R44: 0 | S44: 0 | T44: 0 | U44: 0 | V44: 0 | W44: 0 | X44: 0 | Y44: 0 | Z44: 0 | AA44: 0 | AB44: 0 | AC44: 0 | AD44: =IFERROR(VLOOKUP(AD4, $A$3:$C$21, 3, FALSE), 0) -> 0 | AE44: 0 | AF44: 0 | AG44: 0 | AH44: 0 | AI44: 0
P45: =IF(AD4>0, P42+VLOOKUP(AD4, $A$3:$C$21, 2, FALSE), 0) -> 0 | Q45: 0 | R45: 0 | S45: 0 | T45: 0 | U45: 0 | V45: 0 | W45: 0 | X45: 0 | Y45: 0 | Z45: 0 | AA45: 0 | AB45: 0 | AC45: 0 | AD45: =IFERROR(VLOOKUP(AD4, $A$3:$C$21, 3, FALSE), 0) -> 0 | AE45: 0 | AF45: 0 | AG45: 0 | AH45: 0 | AI45: 0
P46: =IF(AD4>0, P42+VLOOKUP(AD4, $A$3:$C$21, 2, FALSE), 0) -> 0 | Q46: 0 | R46: 0 | S46: 0 | T46: 0 | U46: 0 | V46: 0 | W46: 0 | X46: 0 | Y46: 0 | Z46: 0 | AA46: 0 | AB46: 0 | AC46: 0 | AD46: 0 | AE46: 0 | AF46: 0 | AG46: 0 | AH46: 0 | AI46: 0
A47: Material/Transport/Utility | B47: Option 1 | D47: Material/Transport/Utility | E47: Option 2 | P47: =IF(AD4>0, P42+VLOOKUP(AD4, $A$3:$C$21, 2, FALSE), 0) -> 0 | Q47: 0 | R47: 0 | S47: 0 | T47: 0 | U47: 0 | V47: 0 | W47: 0 | X47: 0 | Y47: 0 | Z47: 0 | AA47: 0 | AB47: 0 | AC47: 0 | AD47: 0 | AE47: =IFERROR(VLOOKUP(AE4, $A$3:$C$21, 3, FALSE), 0) -> 0 | AF47: 0 | AG47: 0 | AH47: 0 | AI47: 0
B48: Carbon abated (t CO2 eq.) | C48: Abatement cost ($/tonne CO2 eq.) | E48: Carbon abated (t CO2 eq.) | F48: Abatement cost ($/tonne CO2 eq.) | P48: =IF(AE4>0, P45+VLOOKUP(AE4, $A$3:$C$21, 2, FALSE), 0) -> 0 | Q48: 0 | R48: 0 | S48: 0 | T48: 0 | U48: 0 | V48: 0 | W48: 0 | X48: 0 | Y48: 0 | Z48: 0 | AA48: 0 | AB48: 0 | AC48: 0 | AD48: 0 | AE48: =IFERROR(VLOOKUP(AE4, $A$3:$C$21, 3, FALSE), 0) -> 0 | AF48: 0 | AG48: 0 | AH48: 0 | AI48: 0
A49: =IF(B72>0, A72, 0) -> 0 | B49: =IFERROR(VLOOKUP(A49, $A$72:$G$90, 2, FALSE), 0) -> 0 | C49: =IFERROR(VLOOKUP(A49, $A$72:$G$90, 4, FALSE), 0) -> 0 | D49: =IF(B72>0, A72, 0) -> 0 | E49: =IFERROR(VLOOKUP(D49, $A$72:$G$90, 5, FALSE), 0) -> 0 | F49: =IFERROR(VLOOKUP(D49, $A$72:$G$90, 7, FALSE), 0) -> 0 | P49: =IF(AE4>0, P45+VLOOKUP(AE4, $A$3:$C$21, 2, FALSE), 0) -> 0 | Q49: 0 | R49: 0 | S49: 0 | T49: 0 | U49: 0 | V49: 0 | W49: 0 | X49: 0 | Y49: 0 | Z49: 0 | AA49: 0 | AB49: 0 | AC49: 0 | AD49: 0 | AE49: 0 | AF49: 0 | AG49: 0 | AH49: 0 | AI49: 0
A50: =IF(B73>0, A73, 0) -> 0 | B50: 0 | C50: 0 | D50: =IF(B73>0, A73, 0) -> 0 | E50: 0 | F50: 0 | P50: =IF(AE4>0, P45+VLOOKUP(AE4, $A$3:$C$21, 2, FALSE), 0) -> 0 | Q50: 0 | R50: 0 | S50: 0 | T50: 0 | U50: 0 | V50: 0 | W50: 0 | X50: 0 | Y50: 0 | Z50: 0 | AA50: 0 | AB50: 0 | AC50: 0 | AD50: 0 | AE50: 0 | AF50: =IFERROR(VLOOKUP(AF4, $A$3:$C$21, 3, FALSE), 0) -> 0 | AG50: 0 | AH50: 0 | AI50: 0
A51: 0 | B51: 0 | C51: 0 | D51: 0 | E51: 0 | F51: 0 | P51: =IF(AF4>0, P48+VLOOKUP(AF4, $A$3:$C$21, 2, FALSE), 0) -> 0 | Q51: 0 | R51: 0 | S51: 0 | T51: 0 | U51: 0 | V51: 0 | W51: 0 | X51: 0 | Y51: 0 | Z51: 0 | AA51: 0 | AB51: 0 | AC51: 0 | AD51: 0 | AE51: 0 | AF51: =IFERROR(VLOOKUP(AF4, $A$3:$C$21, 3, FALSE), 0) -> 0 | AG51: 0 | AH51: 0 | AI51: 0
A52: 0 | B52: 0 | C52: 0 | D52: 0 | E52: 0 | F52: 0 | P52: =IF(AF4>0, P48+VLOOKUP(AF4, $A$3:$C$21, 2, FALSE), 0) -> 0 | Q52: 0 | R52: 0 | S52: 0 | T52: 0 | U52: 0 | V52: 0 | W52: 0 | X52: 0 | Y52: 0 | Z52: 0 | AA52: 0 | AB52: 0 | AC52: 0 | AD52: 0 | AE52: 0 | AF52: 0 | AG52: 0 | AH52: 0 | AI52: 0
A53: 0 | B53: 0 | C53: 0 | D53: 0 | E53: 0 | F53: 0 | P53: =IF(AF4>0, P48+VLOOKUP(AF4, $A$3:$C$21, 2, FALSE), 0) -> 0 | Q53: 0 | R53: 0 | S53: 0 | T53: 0 | U53: 0 | V53: 0 | W53: 0 | X53: 0 | Y53: 0 | Z53: 0 | AA53: 0 | AB53: 0 | AC53: 0 | AD53: 0 | AE53: 0 | AF53: 0 | AG53: =IFERROR(VLOOKUP(AG4, $A$3:$C$21, 3, FALSE), 0) -> 0 | AH53: 0 | AI53: 0
A54: 0 | B54: 0 | C54: 0 | D54: 0 | E54: 0 | F54: 0 | P54: =IF(AG4>0, P51+VLOOKUP(AG4, $A$3:$C$21, 2, FALSE), 0) -> 0 | Q54: 0 | R54: 0 | S54: 0 | T54: 0 | U54: 0 | V54: 0 | W54: 0 | X54: 0 | Y54: 0 | Z54: 0 | AA54: 0 | AB54: 0 | AC54: 0 | AD54: 0 | AE54: 0 | AF54: 0 | AG54: =IFERROR(VLOOKUP(AG4, $A$3:$C$21, 3, FALSE), 0) -> 0 | AH54: 0 | AI54: 0
A55: Glass | B55: 0.3253522848 | C55: N/A | D55: Glass | E55: 0.6211270892 | F55: N/A | P55: =IF(AG4>0, P51+VLOOKUP(AG4, $A$3:$C$21, 2, FALSE), 0) -> 0 | Q55: 0 | R55: 0 | S55: 0 | T55: 0 | U55: 0 | V55: 0 | W55: 0 | X55: 0 | Y55: 0 | Z55: 0 | AA55: 0 | AB55: 0 | AC55: 0 | AD55: 0 | AE55: 0 | AF55: 0 | AG55: 0 | AH55: 0 | AI55: 0
A56: 0 | B56: 0 | C56: 0 | D56: 0 | E56: 0 | F56: 0 | P56: =IF(AG4>0, P51+VLOOKUP(AG4, $A$3:$C$21, 2, FALSE), 0) -> 0 | Q56: 0 | R56: 0 | S56: 0 | T56: 0 | U56: 0 | V56: 0 | W56: 0 | X56: 0 | Y56: 0 | Z56: 0 | AA56: 0 | AB56: 0 | AC56: 0 | AD56: 0 | AE56: 0 | AF56: 0 | AG56: 0 | AH56: =IFERROR(VLOOKUP(AH4, $A$3:$C$21, 3, FALSE), 0) -> 0 | AI56: 0
A57: Natural gravel | B57: 21.52463455 | C57: N/A | D57: Natural gravel | E57: 16.51890559 | F57: N/A | P57: =IF(AH4>0, P54+VLOOKUP(AH4, $A$3:$C$21, 2, FALSE), 0) -> 0 | Q57: 0 | R57: 0 | S57: 0 | T57: 0 | U57: 0 | V57: 0 | W57: 0 | X57: 0 | Y57: 0 | Z57: 0 | AA57: 0 | AB57: 0 | AC57: 0 | AD57: 0 | AE57: 0 | AF57: 0 | AG57: 0 | AH57: =IFERROR(VLOOKUP(AH4, $A$3:$C$21, 3, FALSE), 0) -> 0 | AI57: 0
A58: Plastics | B58: 9.460453641 | C58: N/A | D58: Plastics | E58: 18.06086604 | F58: N/A | P58: =IF(AH4>0, P54+VLOOKUP(AH4, $A$3:$C$21, 2, FALSE), 0) -> 0 | Q58: 0 | R58: 0 | S58: 0 | T58: 0 | U58: 0 | V58: 0 | W58: 0 | X58: 0 | Y58: 0 | Z58: 0 | AA58: 0 | AB58: 0 | AC58: 0 | AD58: 0 | AE58: 0 | AF58: 0 | AG58: 0 | AH58: 0 | AI58: 0
A59: 0 | B59: 0 | C59: 0 | D59: 0 | E59: 0 | F59: 0 | P59: =IF(AH4>0, P54+VLOOKUP(AH4, $A$3:$C$21, 2, FALSE), 0) -> 0 | Q59: 0 | R59: 0 | S59: 0 | T59: 0 | U59: 0 | V59: 0 | W59: 0 | X59: 0 | Y59: 0 | Z59: 0 | AA59: 0 | AB59: 0 | AC59: 0 | AD59: 0 | AE59: 0 | AF59: 0 | AG59: 0 | AH59: =IFERROR(VLOOKUP(AH6, $A$3:$C$21, 3, FALSE), 0) -> 0 | AI59: =IFERROR(VLOOKUP(AI4, $A$3:$C$21, 3, FALSE), 0) -> 0
A60: 0 | B60: 0 | C60: 0 | D60: 0 | E60: 0 | F60: 0 | P60: =IF(AI4>0, P57+VLOOKUP(AI4, $A$3:$C$21, 2, FALSE), 0) -> 0 | Q60: 0 | R60: 0 | S60: 0 | T60: 0 | U60: 0 | V60: 0 | W60: 0 | X60: 0 | Y60: 0 | Z60: 0 | AA60: 0 | AB60: 0 | AC60: 0 | AD60: 0 | AE60: 0 | AF60: 0 | AG60: 0 | AH60: =IFERROR(VLOOKUP(AH7, $A$3:$C$21, 3, FALSE), 0) -> 0 | AI60: =IFERROR(VLOOKUP(AI4, $A$3:$C$21, 3, FALSE), 0) -> 0
A61: 0 | B61: 0 | C61: 0 | D61: 0 | E61: 0 | F61: 0
A62: 0 | B62: 0 | C62: 0 | D62: 0 | E62: 0 | F62: 0
A63: 0 | B63: 0 | C63: 0 | D63: 0 | E63: 0 | F63: 0
A64: 0 | B64: 0 | C64: 0 | D64: 0 | E64: 0 | F64: 0 | M64: Option 2
A65: 0 | B65: 0 | C65: 0 | D65: 0 | E65: 0 | F65: 0 | P65: N | Q65: O | R65: P | S65: Q | T65: R | U65: S | V65: T | W65: U | X65: V | Y65: W | Z65: X | AA65: Y | AB65: Z | AC65: AA | AD65: AB | AE65: AC | AF65: AD | AG65: AE | AH65: AF | AI65: AG
A66: 0 | B66: 0 | C66: 0 | D66: 0 | E66: 0 | F66: 0 | M66: t CO2 eq. scale | N66: t CO2 eq. scale | O66: St line data | P66: t CO2 eq. | Q66: =TRANSPOSE(D3:D21) -> No results | R66: 0 | S66: 0 | T66: 0 | U66: 0 | V66: 0 | W66: 0 | X66: 0 | Y66: 0 | Z66: 0 | AA66: 0 | AB66: 0 | AC66: 0 | AD66: 0 | AE66: 0 | AF66: 0 | AG66: 0 | AH66: 0 | AI66: 0 | AK66: Columns | AL66: =COUNTIF(Q66:AH66, "*") -> 1 | AN66: =_xlfn.UNIQUE(P66:INDIRECT(AL68&AL67)) -> 
A67: =IF(B90>0, A90, 0) -> 0 | B67: 0 | C67: 0 | D67: =IF(B90>0, A90, 0) -> 0 | E67: 0 | F67: 0 | M67: 0 | N67: =ROUND(M67,0) -> 0 | O67: -5 | P67: 0 | Q67: =IFERROR(VLOOKUP(Q66, $D$3:$F$21, 3, FALSE), 0) -> 0 | R67: 0 | S67: 0 | T67: 0 | U67: 0 | V67: 0 | W67: 0 | X67: 0 | Y67: 0 | Z67: 0 | AA67: 0 | AB67: 0 | AC67: 0 | AD67: 0 | AE67: 0 | AF67: 0 | AG67: 0 | AH67: 0 | AI67: 0 | AK67: Rows | AL67: =65+AL66*3 -> 68
M68: =(M74-M67)/7 -> 0 | N68: =ROUND(M68,0) -> 0 | O68: -5 | P68: =IF(Q66>0, VLOOKUP(Q66, $D$3:$F$21, 2, FALSE), 0) -> 0 | Q68: =IFERROR(VLOOKUP(Q66, $D$3:$F$21, 3, FALSE), 0) -> 0 | R68: 0 | S68: 0 | T68: 0 | U68: 0 | V68: 0 | W68: 0 | X68: 0 | Y68: 0 | Z68: 0 | AA68: 0 | AB68: 0 | AC68: 0 | AD68: 0 | AE68: 0 | AF68: 0 | AG68: 0 | AH68: 0 | AI68: 0 | AK68: Last Column | AL68: =OFFSET($P$3, 0, AL66) -> O
M69: =M68+M68 -> 0 | N69: 0 | O69: -5 | P69: =IF(Q66>0, VLOOKUP(Q66, $D$3:$F$21, 2, FALSE), 0) -> 0 | Q69: 0 | R69: 0 | S69: 0 | T69: 0 | U69: 0 | V69: 0 | W69: 0 | X69: 0 | Y69: 0 | Z69: 0 | AA69: 0 | AB69: 0 | AC69: 0 | AD69: 0 | AE69: 0 | AF69: 0 | AG69: 0 | AH69: 0 | AI69: 0
A70: Material/Transport/Utility | B70: Option 1 | E70: Option 2 | H70: Option 1 | I70: Opiton 2 | M70: =M69+$M$6 ->  | O70: -5 | P70: =IF(Q66>0, VLOOKUP(Q66, $D$3:$F$21, 2, FALSE), 0) -> 0 | Q70: 0 | R70: =IFERROR(VLOOKUP(R66, $D$3:$F$21, 3, FALSE), 0) -> 0 | S70: 0 | T70: 0 | U70: 0 | V70: 0 | W70: 0 | X70: 0 | Y70: 0 | Z70: 0 | AA70: 0 | AB70: 0 | AC70: 0 | AD70: 0 | AE70: 0 | AF70: 0 | AG70: 0 | AH70: 0 | AI70: 0
B71: Carbon abated (t CO2 eq.) | C71: Total Abatement cost ($) | D71: Abatement cost ($/tonne CO2 eq.) | E71: Carbon abated (t CO2 eq.) | F71: Total Abatement cost ($) | G71: Abatement cost ($/tonne CO2 eq.) | H71: Project cost ($) | I71: Project cost ($) | M71: =M70+$M$6 ->  | O71: -5 | P71: =IF(R66>0, P68+VLOOKUP(R66, $D$3:$F$21, 2, FALSE), 0) -> 0 | Q71: 0 | R71: =IFERROR(VLOOKUP(R66, $D$3:$F$21, 3, FALSE), 0) -> 0 | S71: 0 | T71: 0 | U71: 0 | V71: 0 | W71: 0 | X71: 0 | Y71: 0 | Z71: 0 | AA71: 0 | AB71: 0 | AC71: 0 | AD71: 0 | AE71: 0 | AF71: 0 | AG71: 0 | AH71: 0 | AI71: 0
A72: Aggregates-coarse | B72: =VLOOKUP(A72, 'LCI and calculations'!$K$40:$N$58, 4, FALSE)-VLOOKUP(A72, 'LCI and calculations'!$AG$40:$AJ$58, 4, FALSE) -> -1.978351144 | C72: =IF('MACC assist'!B7="See Table - Layers", "N/A", (VLOOKUP(A72, 'LCI and calculations'!$AG$40:$AJ$58, 2, FALSE)*'MACC assist'!C7-VLOOKUP(A72, 'LCI and calculations'!$K$40:$N$58, 2, FALSE)*'MACC assist'!B7)) -> N/A | D72: =IF(C72="N/A", "N/A", IFERROR(C72/B72, 0)) -> N/A | E72: =VLOOKUP(A72, 'LCI and calculations'!$K$40:$N$58, 4, FALSE)-VLOOKUP(A72, 'LCI and calculations'!$BG$40:$BJ$58, 4, FALSE) -> -2.472938929 | F72: =IF('MACC assist'!B7="See Table - Layers","N/A", (VLOOKUP(A72,'LCI and calculations'!$BG$40:$BJ$58,2,FALSE)*'MACC assist'!D7-VLOOKUP(A72,'LCI and calculations'!$K$40:$N$58,2,FALSE)*'MACC assist'!B7)) -> N/A | G72: =IF(F72="N/A", "N/A", IFERROR(F72/E72, 0)) -> N/A | H72: =IF('MACC assist'!B7="See Table - Layers","N/A",VLOOKUP(A72,'LCI and calculations'!$AG$40:$AJ$58,2,FALSE)*'MACC assist'!C7) -> N/A | I72: =IF('MACC assist'!B7="See Table - Layers","N/A", VLOOKUP(A72,'LCI and calculations'!$BG$40:$BJ$58,2,FALSE)*'MACC assist'!D7) -> N/A | M72: =M71+$M$6 ->  | O72: -5 | P72: =IF(R66>0, P68+VLOOKUP(R66, $D$3:$F$21, 2, FALSE), 0) -> 0 | Q72: 0 | R72: 0 | S72: 0 | T72: 0 | U72: 0 | V72: 0 | W72: 0 | X72: 0 | Y72: 0 | Z72: 0 | AA72: 0 | AB72: 0 | AC72: 0 | AD72: 0 | AE72: 0 | AF72: 0 | AG72: 0 | AH72: 0 | AI72: 0
A73: Aggregates-fine | B73: =VLOOKUP(A73, 'LCI and calculations'!$K$40:$N$58, 4, FALSE)-VLOOKUP(A73, 'LCI and calculations'!$AG$40:$AJ$58, 4, FALSE) -> -6.067141086 | C73: =IF('MACC assist'!B8="See Table - Layers", "N/A", (VLOOKUP(A73, 'LCI and calculations'!$AG$40:$AJ$58, 2, FALSE)*'MACC assist'!C8-VLOOKUP(A73, 'LCI and calculations'!$K$40:$N$58, 2, FALSE)*'MACC assist'!B8)) -> N/A | D73: N/A | E73: =VLOOKUP(A73, 'LCI and calculations'!$K$40:$N$58, 4, FALSE)-VLOOKUP(A73, 'LCI and calculations'!$BG$40:$BJ$58, 4, FALSE) -> -7.583926357 | F73: =IF('MACC assist'!B8="See Table - Layers","N/A", (VLOOKUP(A73,'LCI and calculations'!$BG$40:$BJ$58,2,FALSE)*'MACC assist'!D8-VLOOKUP(A73,'LCI and calculations'!$K$40:$N$58,2,FALSE)*'MACC assist'!B8)) -> N/A | G73: =IF(F73="N/A", "N/A", IFERROR(F73/E73, 0)) -> N/A | H73: =IF('MACC assist'!B8="See Table - Layers","N/A",VLOOKUP(A73,'LCI and calculations'!$AG$40:$AJ$58,2,FALSE)*'MACC assist'!C8) -> N/A | I73: =IF('MACC assist'!B8="See Table - Layers","N/A", VLOOKUP(A73,'LCI and calculations'!$BG$40:$BJ$58,2,FALSE)*'MACC assist'!D8) -> N/A | M73: =M72+$M$6 ->  | O73: -5 | P73: =IF(R66>0, P68+VLOOKUP(R66, $D$3:$F$21, 2, FALSE), 0) -> 0 | Q73: 0 | R73: 0 | S73: =IFERROR(VLOOKUP(S66, $D$3:$F$21, 3, FALSE), 0) -> 0 | T73: 0 | U73: 0 | V73: 0 | W73: 0 | X73: 0 | Y73: 0 | Z73: 0 | AA73: 0 | AB73: 0 | AC73: 0 | AD73: 0 | AE73: 0 | AF73: 0 | AG73: 0 | AH73: 0 | AI73: 0
A74: Bitumen | B74: =VLOOKUP(A74, 'LCI and calculations'!$K$40:$N$58, 4, FALSE)-VLOOKUP(A74, 'LCI and calculations'!$AG$40:$AJ$58, 4, FALSE) -> -55.15478332 | C74: =IF('MACC assist'!B9="See Table - Layers", "N/A", (VLOOKUP(A74, 'LCI and calculations'!$AG$40:$AJ$58, 2, FALSE)*'MACC assist'!C9-VLOOKUP(A74, 'LCI and calculations'!$K$40:$N$58, 2, FALSE)*'MACC assist'!B9)) -> N/A | D74: N/A | E74: =VLOOKUP(A74, 'LCI and calculations'!$K$40:$N$58, 4, FALSE)-VLOOKUP(A74, 'LCI and calculations'!$BG$40:$BJ$58, 4, FALSE) -> -68.94347914 | F74: =IF('MACC assist'!B9="See Table - Layers","N/A", (VLOOKUP(A74,'LCI and calculations'!$BG$40:$BJ$58,2,FALSE)*'MACC assist'!D9-VLOOKUP(A74,'LCI and calculations'!$K$40:$N$58,2,FALSE)*'MACC assist'!B9)) -> N/A | G74: N/A | H74: =IF('MACC assist'!B9="See Table - Layers","N/A",VLOOKUP(A74,'LCI and calculations'!$AG$40:$AJ$58,2,FALSE)*'MACC assist'!C9) -> N/A | I74: =IF('MACC assist'!B9="See Table - Layers","N/A", VLOOKUP(A74,'LCI and calculations'!$BG$40:$BJ$58,2,FALSE)*'MACC assist'!D9) -> N/A | M74: =MAX(P67:P122) -> 0 | N74: 0 | O74: -5 | P74: =IF(S66>0, P71+VLOOKUP(S66, $D$3:$F$21, 2, FALSE), 0) -> 0 | Q74: 0 | R74: 0 | S74: =IFERROR(VLOOKUP(S66, $D$3:$F$21, 3, FALSE), 0) -> 0 | T74: 0 | U74: 0 | V74: 0 | W74: 0 | X74: 0 | Y74: 0 | Z74: 0 | AA74: 0 | AB74: 0 | AC74: 0 | AD74: 0 | AE74: 0 | AF74: 0 | AG74: 0 | AH74: 0 | AI74: 0
A75: Cement | B75: =VLOOKUP(A75, 'LCI and calculations'!$K$40:$N$58, 4, FALSE)-VLOOKUP(A75, 'LCI and calculations'!$AG$40:$AJ$58, 4, FALSE) -> 0 | C75: =IF('MACC assist'!B10="See Table - Layers", "N/A", (VLOOKUP(A75, 'LCI and calculations'!$AG$40:$AJ$58, 2, FALSE)*'MACC assist'!C10-VLOOKUP(A75, 'LCI and calculations'!$K$40:$N$58, 2, FALSE)*'MACC assist'!B10)) -> N/A | D75: N/A | E75: =VLOOKUP(A75, 'LCI and calculations'!$K$40:$N$58, 4, FALSE)-VLOOKUP(A75, 'LCI and calculations'!$BG$40:$BJ$58, 4, FALSE) -> 0 | F75: =IF('MACC assist'!B10="See Table - Layers","N/A", (VLOOKUP(A75,'LCI and calculations'!$BG$40:$BJ$58,2,FALSE)*'MACC assist'!D10-VLOOKUP(A75,'LCI and calculations'!$K$40:$N$58,2,FALSE)*'MACC assist'!B10)) -> N/A | G75: N/A | H75: =IF('MACC assist'!B10="See Table - Layers","N/A",VLOOKUP(A75,'LCI and calculations'!$AG$40:$AJ$58,2,FALSE)*'MACC assist'!C10) -> N/A | I75: =IF('MACC assist'!B10="See Table - Layers","N/A", VLOOKUP(A75,'LCI and calculations'!$BG$40:$BJ$58,2,FALSE)*'MACC assist'!D10) -> N/A | P75: =IF(S66>0, P71+VLOOKUP(S66, $D$3:$F$21, 2, FALSE), 0) -> 0 | Q75: 0 | R75: 0 | S75: 0 | T75: 0 | U75: 0 | V75: 0 | W75: 0 | X75: 0 | Y75: 0 | Z75: 0 | AA75: 0 | AB75: 0 | AC75: 0 | AD75: 0 | AE75: 0 | AF75: 0 | AG75: 0 | AH75: 0 | AI75: 0
A76: Crushed brick | B76: =VLOOKUP(A76, 'LCI and calculations'!$K$40:$N$58, 4, FALSE)-VLOOKUP(A76, 'LCI and calculations'!$AG$40:$AJ$58, 4, FALSE) -> 0 | C76: =IF('MACC assist'!B11="See Table - Layers", "N/A", (VLOOKUP(A76, 'LCI and calculations'!$AG$40:$AJ$58, 2, FALSE)*'MACC assist'!C11-VLOOKUP(A76, 'LCI and calculations'!$K$40:$N$58, 2, FALSE)*'MACC assist'!B11)) -> N/A | D76: N/A | E76: =VLOOKUP(A76, 'LCI and calculations'!$K$40:$N$58, 4, FALSE)-VLOOKUP(A76, 'LCI and calculations'!$BG$40:$BJ$58, 4, FALSE) -> 0 | F76: =IF('MACC assist'!B11="See Table - Layers","N/A", (VLOOKUP(A76,'LCI and calculations'!$BG$40:$BJ$58,2,FALSE)*'MACC assist'!D11-VLOOKUP(A76,'LCI and calculations'!$K$40:$N$58,2,FALSE)*'MACC assist'!B11)) -> N/A | G76: N/A | H76: =IF('MACC assist'!B11="See Table - Layers","N/A",VLOOKUP(A76,'LCI and calculations'!$AG$40:$AJ$58,2,FALSE)*'MACC assist'!C11) -> N/A | I76: =IF('MACC assist'!B11="See Table - Layers","N/A", VLOOKUP(A76,'LCI and calculations'!$BG$40:$BJ$58,2,FALSE)*'MACC assist'!D11) -> N/A | P76: =IF(S66>0, P71+VLOOKUP(S66, $D$3:$F$21, 2, FALSE), 0) -> 0 | Q76: 0 | R76: 0 | S76: 0 | T76: =IFERROR(VLOOKUP(T66, $D$3:$F$21, 3, FALSE), 0) -> 0 | U76: 0 | V76: 0 | W76: 0 | X76: 0 | Y76: 0 | Z76: 0 | AA76: 0 | AB76: 0 | AC76: 0 | AD76: 0 | AE76: 0 | AF76: 0 | AG76: 0 | AH76: 0 | AI76: 0
A77: Fly ash | B77: =VLOOKUP(A77, 'LCI and calculations'!$K$40:$N$58, 4, FALSE)-VLOOKUP(A77, 'LCI and calculations'!$AG$40:$AJ$58, 4, FALSE) -> 0 | C77: =IF('MACC assist'!B12="See Table - Layers", "N/A", (VLOOKUP(A77, 'LCI and calculations'!$AG$40:$AJ$58, 2, FALSE)*'MACC assist'!C12-VLOOKUP(A77, 'LCI and calculations'!$K$40:$N$58, 2, FALSE)*'MACC assist'!B12)) -> N/A | D77: N/A | E77: =VLOOKUP(A77, 'LCI and calculations'!$K$40:$N$58, 4, FALSE)-VLOOKUP(A77, 'LCI and calculations'!$BG$40:$BJ$58, 4, FALSE) -> 0 | F77: =IF('MACC assist'!B12="See Table - Layers","N/A", (VLOOKUP(A77,'LCI and calculations'!$BG$40:$BJ$58,2,FALSE)*'MACC assist'!D12-VLOOKUP(A77,'LCI and calculations'!$K$40:$N$58,2,FALSE)*'MACC assist'!B12)) -> N/A | G77: N/A | H77: =IF('MACC assist'!B12="See Table - Layers","N/A",VLOOKUP(A77,'LCI and calculations'!$AG$40:$AJ$58,2,FALSE)*'MACC assist'!C12) -> N/A | I77: =IF('MACC assist'!B12="See Table - Layers","N/A", VLOOKUP(A77,'LCI and calculations'!$BG$40:$BJ$58,2,FALSE)*'MACC assist'!D12) -> N/A | P77: =IF(T66>0, P74+VLOOKUP(T66, $D$3:$F$21, 2, FALSE), 0) -> 0 | Q77: 0 | R77: 0 | S77: 0 | T77: =IFERROR(VLOOKUP(T66, $D$3:$F$21, 3, FALSE), 0) -> 0 | U77: 0 | V77: 0 | W77: 0 | X77: 0 | Y77: 0 | Z77: 0 | AA77: 0 | AB77: 0 | AC77: 0 | AD77: 0 | AE77: 0 | AF77: 0 | AG77: 0 | AH77: 0 | AI77: 0
A78: Glass | B78: =VLOOKUP(A78, 'LCI and calculations'!$K$40:$N$58, 4, FALSE)-VLOOKUP(A78, 'LCI and calculations'!$AG$40:$AJ$58, 4, FALSE) -> 0.3253522848 | C78: =IF('MACC assist'!B13="See Table - Layers", "N/A", (VLOOKUP(A78, 'LCI and calculations'!$AG$40:$AJ$58, 2, FALSE)*'MACC assist'!C13-VLOOKUP(A78, 'LCI and calculations'!$K$40:$N$58, 2, FALSE)*'MACC assist'!B13)) -> N/A | D78: N/A | E78: =VLOOKUP(A78, 'LCI and calculations'!$K$40:$N$58, 4, FALSE)-VLOOKUP(A78, 'LCI and calculations'!$BG$40:$BJ$58, 4, FALSE) -> 0.6211270892 | F78: =IF('MACC assist'!B13="See Table - Layers","N/A", (VLOOKUP(A78,'LCI and calculations'!$BG$40:$BJ$58,2,FALSE)*'MACC assist'!D13-VLOOKUP(A78,'LCI and calculations'!$K$40:$N$58,2,FALSE)*'MACC assist'!B13)) -> N/A | G78: N/A | H78: =IF('MACC assist'!B13="See Table - Layers","N/A",VLOOKUP(A78,'LCI and calculations'!$AG$40:$AJ$58,2,FALSE)*'MACC assist'!C13) -> N/A | I78: =IF('MACC assist'!B13="See Table - Layers","N/A", VLOOKUP(A78,'LCI and calculations'!$BG$40:$BJ$58,2,FALSE)*'MACC assist'!D13) -> N/A | P78: =IF(T66>0, P74+VLOOKUP(T66, $D$3:$F$21, 2, FALSE), 0) -> 0 | Q78: 0 | R78: 0 | S78: 0 | T78: 0 | U78: 0 | V78: 0 | W78: 0 | X78: 0 | Y78: 0 | Z78: 0 | AA78: 0 | AB78: 0 | AC78: 0 | AD78: 0 | AE78: 0 | AF78: 0 | AG78: 0 | AH78: 0 | AI78: 0
A79: Lime | B79: =VLOOKUP(A79, 'LCI and calculations'!$K$40:$N$58, 4, FALSE)-VLOOKUP(A79, 'LCI and calculations'!$AG$40:$AJ$58, 4, FALSE) -> 0 | C79: =IF('MACC assist'!B14="See Table - Layers", "N/A", (VLOOKUP(A79, 'LCI and calculations'!$AG$40:$AJ$58, 2, FALSE)*'MACC assist'!C14-VLOOKUP(A79, 'LCI and calculations'!$K$40:$N$58, 2, FALSE)*'MACC assist'!B14)) -> N/A | D79: N/A | E79: =VLOOKUP(A79, 'LCI and calculations'!$K$40:$N$58, 4, FALSE)-VLOOKUP(A79, 'LCI and calculations'!$BG$40:$BJ$58, 4, FALSE) -> 0 | F79: =IF('MACC assist'!B14="See Table - Layers","N/A", (VLOOKUP(A79,'LCI and calculations'!$BG$40:$BJ$58,2,FALSE)*'MACC assist'!D14-VLOOKUP(A79,'LCI and calculations'!$K$40:$N$58,2,FALSE)*'MACC assist'!B14)) -> N/A | G79: N/A | H79: =IF('MACC assist'!B14="See Table - Layers","N/A",VLOOKUP(A79,'LCI and calculations'!$AG$40:$AJ$58,2,FALSE)*'MACC assist'!C14) -> N/A | I79: =IF('MACC assist'!B14="See Table - Layers","N/A", VLOOKUP(A79,'LCI and calculations'!$BG$40:$BJ$58,2,FALSE)*'MACC assist'!D14) -> N/A | P79: =IF(T66>0, P74+VLOOKUP(T66, $D$3:$F$21, 2, FALSE), 0) -> 0 | Q79: 0 | R79: 0 | S79: 0 | T79: 0 | U79: =IFERROR(VLOOKUP(U66, $D$3:$F$21, 3, FALSE), 0) -> 0 | V79: 0 | W79: 0 | X79: 0 | Y79: 0 | Z79: 0 | AA79: 0 | AB79: 0 | AC79: 0 | AD79: 0 | AE79: 0 | AF79: 0 | AG79: 0 | AH79: 0 | AI79: 0
A80: Natural gravel | B80: =VLOOKUP(A80, 'LCI and calculations'!$K$40:$N$58, 4, FALSE)-VLOOKUP(A80, 'LCI and calculations'!$AG$40:$AJ$58, 4, FALSE) -> 21.52463455 | C80: =IF('MACC assist'!B15="See Table - Layers", "N/A", (VLOOKUP(A80, 'LCI and calculations'!$AG$40:$AJ$58, 2, FALSE)*'MACC assist'!C15-VLOOKUP(A80, 'LCI and calculations'!$K$40:$N$58, 2, FALSE)*'MACC assist'!B15)) -> N/A | D80: N/A | E80: =VLOOKUP(A80, 'LCI and calculations'!$K$40:$N$58, 4, FALSE)-VLOOKUP(A80, 'LCI and calculations'!$BG$40:$BJ$58, 4, FALSE) -> 16.51890559 | F80: =IF('MACC assist'!B15="See Table - Layers","N/A", (VLOOKUP(A80,'LCI and calculations'!$BG$40:$BJ$58,2,FALSE)*'MACC assist'!D15-VLOOKUP(A80,'LCI and calculations'!$K$40:$N$58,2,FALSE)*'MACC assist'!B15)) -> N/A | G80: N/A | H80: =IF('MACC assist'!B15="See Table - Layers","N/A",VLOOKUP(A80,'LCI and calculations'!$AG$40:$AJ$58,2,FALSE)*'MACC assist'!C15) -> N/A | I80: =IF('MACC assist'!B15="See Table - Layers","N/A", VLOOKUP(A80,'LCI and calculations'!$BG$40:$BJ$58,2,FALSE)*'MACC assist'!D15) -> N/A | P80: =IF(U66>0, P77+VLOOKUP(U66, $D$3:$F$21, 2, FALSE), 0) -> 0 | Q80: 0 | R80: 0 | S80: 0 | T80: 0 | U80: =IFERROR(VLOOKUP(U66, $D$3:$F$21, 3, FALSE), 0) -> 0 | V80: 0 | W80: 0 | X80: 0 | Y80: 0 | Z80: 0 | AA80: 0 | AB80: 0 | AC80: 0 | AD80: 0 | AE80: 0 | AF80: 0 | AG80: 0 | AH80: 0 | AI80: 0
A81: Plastics | B81: =VLOOKUP(A81, 'LCI and calculations'!$K$40:$N$58, 4, FALSE)-VLOOKUP(A81, 'LCI and calculations'!$AG$40:$AJ$58, 4, FALSE) -> 9.460453641 | C81: =IF('MACC assist'!B16="See Table - Layers", "N/A", (VLOOKUP(A81, 'LCI and calculations'!$AG$40:$AJ$58, 2, FALSE)*'MACC assist'!C16-VLOOKUP(A81, 'LCI and calculations'!$K$40:$N$58, 2, FALSE)*'MACC assist'!B16)) -> N/A | D81: N/A | E81: =VLOOKUP(A81, 'LCI and calculations'!$K$40:$N$58, 4, FALSE)-VLOOKUP(A81, 'LCI and calculations'!$BG$40:$BJ$58, 4, FALSE) -> 18.06086604 | F81: =IF('MACC assist'!B16="See Table - Layers","N/A", (VLOOKUP(A81,'LCI and calculations'!$BG$40:$BJ$58,2,FALSE)*'MACC assist'!D16-VLOOKUP(A81,'LCI and calculations'!$K$40:$N$58,2,FALSE)*'MACC assist'!B16)) -> N/A | G81: N/A | H81: =IF('MACC assist'!B16="See Table - Layers","N/A",VLOOKUP(A81,'LCI and calculations'!$AG$40:$AJ$58,2,FALSE)*'MACC assist'!C16) -> N/A | I81: =IF('MACC assist'!B16="See Table - Layers","N/A", VLOOKUP(A81,'LCI and calculations'!$BG$40:$BJ$58,2,FALSE)*'MACC assist'!D16) -> N/A | P81: =IF(U66>0, P77+VLOOKUP(U66, $D$3:$F$21, 2, FALSE), 0) -> 0 | Q81: 0 | R81: 0 | S81: 0 | T81: 0 | U81: 0 | V81: 0 | W81: 0 | X81: 0 | Y81: 0 | Z81: 0 | AA81: 0 | AB81: 0 | AC81: 0 | AD81: 0 | AE81: 0 | AF81: 0 | AG81: 0 | AH81: 0 | AI81: 0
A82: RAP | B82: =VLOOKUP(A82, 'LCI and calculations'!$K$40:$N$58, 4, FALSE)-VLOOKUP(A82, 'LCI and calculations'!$AG$40:$AJ$58, 4, FALSE) -> -2.626533009 | C82: =IF('MACC assist'!B17="See Table - Layers", "N/A", (VLOOKUP(A82, 'LCI and calculations'!$AG$40:$AJ$58, 2, FALSE)*'MACC assist'!C17-VLOOKUP(A82, 'LCI and calculations'!$K$40:$N$58, 2, FALSE)*'MACC assist'!B17)) -> N/A | D82: N/A | E82: =VLOOKUP(A82, 'LCI and calculations'!$K$40:$N$58, 4, FALSE)-VLOOKUP(A82, 'LCI and calculations'!$BG$40:$BJ$58, 4, FALSE) -> -3.283166261 | F82: =IF('MACC assist'!B17="See Table - Layers","N/A", (VLOOKUP(A82,'LCI and calculations'!$BG$40:$BJ$58,2,FALSE)*'MACC assist'!D17-VLOOKUP(A82,'LCI and calculations'!$K$40:$N$58,2,FALSE)*'MACC assist'!B17)) -> N/A | G82: N/A | H82: =IF('MACC assist'!B17="See Table - Layers","N/A",VLOOKUP(A82,'LCI and calculations'!$AG$40:$AJ$58,2,FALSE)*'MACC assist'!C17) -> N/A | I82: =IF('MACC assist'!B17="See Table - Layers","N/A", VLOOKUP(A82,'LCI and calculations'!$BG$40:$BJ$58,2,FALSE)*'MACC assist'!D17) -> N/A | P82: =IF(U66>0, P77+VLOOKUP(U66, $D$3:$F$21, 2, FALSE), 0) -> 0 | Q82: 0 | R82: 0 | S82: 0 | T82: 0 | U82: 0 | V82: =IFERROR(VLOOKUP(V66, $D$3:$F$21, 3, FALSE), 0) -> 0 | W82: 0 | X82: 0 | Y82: 0 | Z82: 0 | AA82: 0 | AB82: 0 | AC82: 0 | AD82: 0 | AE82: 0 | AF82: 0 | AG82: 0 | AH82: 0 | AI82: 0
A83: Recycled concrete | B83: =VLOOKUP(A83, 'LCI and calculations'!$K$40:$N$58, 4, FALSE)-VLOOKUP(A83, 'LCI and calculations'!$AG$40:$AJ$58, 4, FALSE) -> 0 | C83: =IF('MACC assist'!B18="See Table - Layers", "N/A", (VLOOKUP(A83, 'LCI and calculations'!$AG$40:$AJ$58, 2, FALSE)*'MACC assist'!C18-VLOOKUP(A83, 'LCI and calculations'!$K$40:$N$58, 2, FALSE)*'MACC assist'!B18)) -> N/A | D83: N/A | E83: =VLOOKUP(A83, 'LCI and calculations'!$K$40:$N$58, 4, FALSE)-VLOOKUP(A83, 'LCI and calculations'!$BG$40:$BJ$58, 4, FALSE) -> 0 | F83: =IF('MACC assist'!B18="See Table - Layers","N/A", (VLOOKUP(A83,'LCI and calculations'!$BG$40:$BJ$58,2,FALSE)*'MACC assist'!D18-VLOOKUP(A83,'LCI and calculations'!$K$40:$N$58,2,FALSE)*'MACC assist'!B18)) -> N/A | G83: N/A | H83: =IF('MACC assist'!B18="See Table - Layers","N/A",VLOOKUP(A83,'LCI and calculations'!$AG$40:$AJ$58,2,FALSE)*'MACC assist'!C18) -> N/A | I83: =IF('MACC assist'!B18="See Table - Layers","N/A", VLOOKUP(A83,'LCI and calculations'!$BG$40:$BJ$58,2,FALSE)*'MACC assist'!D18) -> N/A | P83: =IF(V66>0, P80+VLOOKUP(V66, $D$3:$F$21, 2, FALSE), 0) -> 0 | Q83: 0 | R83: 0 | S83: 0 | T83: 0 | U83: 0 | V83: =IFERROR(VLOOKUP(V66, $D$3:$F$21, 3, FALSE), 0) -> 0 | W83: 0 | X83: 0 | Y83: 0 | Z83: 0 | AA83: 0 | AB83: 0 | AC83: 0 | AD83: 0 | AE83: 0 | AF83: 0 | AG83: 0 | AH83: 0 | AI83: 0
A84: Recycled tile | B84: =VLOOKUP(A84, 'LCI and calculations'!$K$40:$N$58, 4, FALSE)-VLOOKUP(A84, 'LCI and calculations'!$AG$40:$AJ$58, 4, FALSE) -> 0 | C84: =IF('MACC assist'!B19="See Table - Layers", "N/A", (VLOOKUP(A84, 'LCI and calculations'!$AG$40:$AJ$58, 2, FALSE)*'MACC assist'!C19-VLOOKUP(A84, 'LCI and calculations'!$K$40:$N$58, 2, FALSE)*'MACC assist'!B19)) -> N/A | D84: N/A | E84: =VLOOKUP(A84, 'LCI and calculations'!$K$40:$N$58, 4, FALSE)-VLOOKUP(A84, 'LCI and calculations'!$BG$40:$BJ$58, 4, FALSE) -> 0 | F84: =IF('MACC assist'!B19="See Table - Layers","N/A", (VLOOKUP(A84,'LCI and calculations'!$BG$40:$BJ$58,2,FALSE)*'MACC assist'!D19-VLOOKUP(A84,'LCI and calculations'!$K$40:$N$58,2,FALSE)*'MACC assist'!B19)) -> N/A | G84: N/A | H84: =IF('MACC assist'!B19="See Table - Layers","N/A",VLOOKUP(A84,'LCI and calculations'!$AG$40:$AJ$58,2,FALSE)*'MACC assist'!C19) -> N/A | I84: =IF('MACC assist'!B19="See Table - Layers","N/A", VLOOKUP(A84,'LCI and calculations'!$BG$40:$BJ$58,2,FALSE)*'MACC assist'!D19) -> N/A | P84: =IF(V66>0, P80+VLOOKUP(V66, $D$3:$F$21, 2, FALSE), 0) -> 0 | Q84: 0 | R84: 0 | S84: 0 | T84: 0 | U84: 0 | V84: 0 | W84: 0 | X84: 0 | Y84: 0 | Z84: 0 | AA84: 0 | AB84: 0 | AC84: 0 | AD84: 0 | AE84: 0 | AF84: 0 | AG84: 0 | AH84: 0 | AI84: 0
A85: Sand | B85: =VLOOKUP(A85, 'LCI and calculations'!$K$40:$N$58, 4, FALSE)-VLOOKUP(A85, 'LCI and calculations'!$AG$40:$AJ$58, 4, FALSE) -> -2.802726522 | C85: =IF('MACC assist'!B20="See Table - Layers", "N/A", (VLOOKUP(A85, 'LCI and calculations'!$AG$40:$AJ$58, 2, FALSE)*'MACC assist'!C20-VLOOKUP(A85, 'LCI and calculations'!$K$40:$N$58, 2, FALSE)*'MACC assist'!B20)) -> N/A | D85: N/A | E85: =VLOOKUP(A85, 'LCI and calculations'!$K$40:$N$58, 4, FALSE)-VLOOKUP(A85, 'LCI and calculations'!$BG$40:$BJ$58, 4, FALSE) -> -3.73491767 | F85: =IF('MACC assist'!B20="See Table - Layers","N/A", (VLOOKUP(A85,'LCI and calculations'!$BG$40:$BJ$58,2,FALSE)*'MACC assist'!D20-VLOOKUP(A85,'LCI and calculations'!$K$40:$N$58,2,FALSE)*'MACC assist'!B20)) -> N/A | G85: N/A | H85: =IF('MACC assist'!B20="See Table - Layers","N/A",VLOOKUP(A85,'LCI and calculations'!$AG$40:$AJ$58,2,FALSE)*'MACC assist'!C20) -> N/A | I85: =IF('MACC assist'!B20="See Table - Layers","N/A", VLOOKUP(A85,'LCI and calculations'!$BG$40:$BJ$58,2,FALSE)*'MACC assist'!D20) -> N/A | P85: =IF(V66>0, P80+VLOOKUP(V66, $D$3:$F$21, 2, FALSE), 0) -> 0 | Q85: 0 | R85: 0 | S85: 0 | T85: 0 | U85: 0 | V85: 0 | W85: =IFERROR(VLOOKUP(W66, $D$3:$F$21, 3, FALSE), 0) -> 0 | X85: 0 | Y85: 0 | Z85: 0 | AA85: 0 | AB85: 0 | AC85: 0 | AD85: 0 | AE85: 0 | AF85: 0 | AG85: 0 | AH85: 0 | AI85: 0
A86: Stabilised gravel | B86: =VLOOKUP(A86, 'LCI and calculations'!$K$40:$N$58, 4, FALSE)-VLOOKUP(A86, 'LCI and calculations'!$AG$40:$AJ$58, 4, FALSE) -> -40.84574656 | C86: =IF('MACC assist'!B21="See Table - Layers", "N/A", (VLOOKUP(A86, 'LCI and calculations'!$AG$40:$AJ$58, 2, FALSE)*'MACC assist'!C21-VLOOKUP(A86, 'LCI and calculations'!$K$40:$N$58, 2, FALSE)*'MACC assist'!B21)) -> N/A | D86: N/A | E86: =VLOOKUP(A86, 'LCI and calculations'!$K$40:$N$58, 4, FALSE)-VLOOKUP(A86, 'LCI and calculations'!$BG$40:$BJ$58, 4, FALSE) -> 122.5372397 | F86: =IF('MACC assist'!B21="See Table - Layers","N/A", (VLOOKUP(A86,'LCI and calculations'!$BG$40:$BJ$58,2,FALSE)*'MACC assist'!D21-VLOOKUP(A86,'LCI and calculations'!$K$40:$N$58,2,FALSE)*'MACC assist'!B21)) -> N/A | G86: N/A | H86: =IF('MACC assist'!B21="See Table - Layers","N/A",VLOOKUP(A86,'LCI and calculations'!$AG$40:$AJ$58,2,FALSE)*'MACC assist'!C21) -> N/A | I86: =IF('MACC assist'!B21="See Table - Layers","N/A", VLOOKUP(A86,'LCI and calculations'!$BG$40:$BJ$58,2,FALSE)*'MACC assist'!D21) -> N/A | P86: =IF(W66>0, P83+VLOOKUP(W66, $D$3:$F$21, 2, FALSE), 0) -> 0 | Q86: 0 | R86: 0 | S86: 0 | T86: 0 | U86: 0 | V86: 0 | W86: =IFERROR(VLOOKUP(W66, $D$3:$F$21, 3, FALSE), 0) -> 0 | X86: 0 | Y86: 0 | Z86: 0 | AA86: 0 | AB86: 0 | AC86: 0 | AD86: 0 | AE86: 0 | AF86: 0 | AG86: 0 | AH86: 0 | AI86: 0
A87: Toner | B87: =VLOOKUP(A87, 'LCI and calculations'!$K$40:$N$58, 4, FALSE)-VLOOKUP(A87, 'LCI and calculations'!$AG$40:$AJ$58, 4, FALSE) -> -77.64681337 | C87: =IF('MACC assist'!B22="See Table - Layers", "N/A", (VLOOKUP(A87, 'LCI and calculations'!$AG$40:$AJ$58, 2, FALSE)*'MACC assist'!C22-VLOOKUP(A87, 'LCI and calculations'!$K$40:$N$58, 2, FALSE)*'MACC assist'!B22)) -> N/A | D87: N/A | E87: =VLOOKUP(A87, 'LCI and calculations'!$K$40:$N$58, 4, FALSE)-VLOOKUP(A87, 'LCI and calculations'!$BG$40:$BJ$58, 4, FALSE) -> -85.44236819 | F87: =IF('MACC assist'!B22="See Table - Layers","N/A", (VLOOKUP(A87,'LCI and calculations'!$BG$40:$BJ$58,2,FALSE)*'MACC assist'!D22-VLOOKUP(A87,'LCI and calculations'!$K$40:$N$58,2,FALSE)*'MACC assist'!B22)) -> N/A | G87: N/A | H87: =IF('MACC assist'!B22="See Table - Layers","N/A",VLOOKUP(A87,'LCI and calculations'!$AG$40:$AJ$58,2,FALSE)*'MACC assist'!C22) -> N/A | I87: =IF('MACC assist'!B22="See Table - Layers","N/A", VLOOKUP(A87,'LCI and calculations'!$BG$40:$BJ$58,2,FALSE)*'MACC assist'!D22) -> N/A | P87: =IF(W66>0, P83+VLOOKUP(W66, $D$3:$F$21, 2, FALSE), 0) -> 0 | Q87: 0 | R87: 0 | S87: 0 | T87: 0 | U87: 0 | V87: 0 | W87: 0 | X87: 0 | Y87: 0 | Z87: 0 | AA87: 0 | AB87: 0 | AC87: 0 | AD87: 0 | AE87: 0 | AF87: 0 | AG87: 0 | AH87: 0 | AI87: 0
A88: Waste tyre | B88: =VLOOKUP(A88, 'LCI and calculations'!$K$40:$N$58, 4, FALSE)-VLOOKUP(A88, 'LCI and calculations'!$AG$40:$AJ$58, 4, FALSE) -> 0 | C88: =IF('MACC assist'!B23="See Table - Layers", "N/A", (VLOOKUP(A88, 'LCI and calculations'!$AG$40:$AJ$58, 2, FALSE)*'MACC assist'!C23-VLOOKUP(A88, 'LCI and calculations'!$K$40:$N$58, 2, FALSE)*'MACC assist'!B23)) -> N/A | D88: N/A | E88: =VLOOKUP(A88, 'LCI and calculations'!$K$40:$N$58, 4, FALSE)-VLOOKUP(A88, 'LCI and calculations'!$BG$40:$BJ$58, 4, FALSE) -> 0 | F88: =IF('MACC assist'!B23="See Table - Layers","N/A", (VLOOKUP(A88,'LCI and calculations'!$BG$40:$BJ$58,2,FALSE)*'MACC assist'!D23-VLOOKUP(A88,'LCI and calculations'!$K$40:$N$58,2,FALSE)*'MACC assist'!B23)) -> N/A | G88: N/A | H88: =IF('MACC assist'!B23="See Table - Layers","N/A",VLOOKUP(A88,'LCI and calculations'!$AG$40:$AJ$58,2,FALSE)*'MACC assist'!C23) -> N/A | I88: =IF('MACC assist'!B23="See Table - Layers","N/A", VLOOKUP(A88,'LCI and calculations'!$BG$40:$BJ$58,2,FALSE)*'MACC assist'!D23) -> N/A | P88: =IF(W66>0, P83+VLOOKUP(W66, $D$3:$F$21, 2, FALSE), 0) -> 0 | Q88: 0 | R88: 0 | S88: 0 | T88: 0 | U88: 0 | V88: 0 | W88: 0 | X88: =IFERROR(VLOOKUP(X66, $D$3:$F$21, 3, FALSE), 0) -> 0 | Y88: 0 | Z88: 0 | AA88: 0 | AB88: 0 | AC88: 0 | AD88: 0 | AE88: 0 | AF88: 0 | AG88: 0 | AH88: 0 | AI88: 0
A89: Transport | B89: ='MACC assist'!C32-'MACC assist'!E32 -> -0.8874542966 | C89: =IF('MACC assist'!B24="See Table - Layers","N/A",('MACC assist'!D32*'MACC assist'!C24-'MACC assist'!B32*'MACC assist'!B24)) -> N/A | D89: =IFERROR(IF('MACC assist'!B24="See Table - Layers","N/A",C89/B89), 0) -> N/A | E89: ='MACC assist'!C32-'MACC assist'!G32 -> -0.3944241318 | F89: =IF('MACC assist'!B24="See Table - Layers","N/A", ('MACC assist'!F32*'MACC assist'!D24-'MACC assist'!B32*'MACC assist'!B24)) -> N/A | G89: =IFERROR(IF('MACC assist'!B24="See Table - Layers","N/A", F89/E89), 0) -> N/A | H89: =IF('MACC assist'!B24="See Table - Layers","N/A",'MACC assist'!D32*'MACC assist'!C24) -> N/A | I89: =IF('MACC assist'!B24="See Table - Layers","N/A", 'MACC assist'!F32*'MACC assist'!D24) -> N/A | P89: =IF(X66>0, P86+VLOOKUP(X66, $D$3:$F$21, 2, FALSE), 0) -> 0 | Q89: 0 | R89: 0 | S89: 0 | T89: 0 | U89: 0 | V89: 0 | W89: 0 | X89: =IFERROR(VLOOKUP(X66, $D$3:$F$21, 3, FALSE), 0) -> 0 | Y89: 0 | Z89: 0 | AA89: 0 | AB89: 0 | AC89: 0 | AD89: 0 | AE89: 0 | AF89: 0 | AG89: 0 | AH89: 0 | AI89: 0
P90: =IF(X66>0, P86+VLOOKUP(X66, $D$3:$F$21, 2, FALSE), 0) -> 0 | Q90: 0 | R90: 0 | S90: 0 | T90: 0 | U90: 0 | V90: 0 | W90: 0 | X90: 0 | Y90: 0 | Z90: 0 | AA90: 0 | AB90: 0 | AC90: 0 | AD90: 0 | AE90: 0 | AF90: 0 | AG90: 0 | AH90: 0 | AI90: 0
B91: =SUM(B72:B89) -> -156.6991088 | C91: =SUM(C72:C89) -> 0 | E91: =SUM(E72:E89) -> -14.11708228 | F91: =SUM(F72:F89) -> 0 | H91: =SUM(H72:H89) -> 0 | I91: =SUM(I72:I89) -> 0 | P91: =IF(X66>0, P86+VLOOKUP(X66, $D$3:$F$21, 2, FALSE), 0) -> 0 | Q91: 0 | R91: 0 | S91: 0 | T91: 0 | U91: 0 | V91: 0 | W91: 0 | X91: 0 | Y91: =IFERROR(VLOOKUP(Y66, $D$3:$F$21, 3, FALSE), 0) -> 0 | Z91: 0 | AA91: 0 | AB91: 0 | AC91: 0 | AD91: 0 | AE91: 0 | AF91: 0 | AG91: 0 | AH91: 0 | AI91: 0
P92: =IF(Y66>0, P89+VLOOKUP(Y66, $D$3:$F$21, 2, FALSE), 0) -> 0 | Q92: 0 | R92: 0 | S92: 0 | T92: 0 | U92: 0 | V92: 0 | W92: 0 | X92: 0 | Y92: =IFERROR(VLOOKUP(Y66, $D$3:$F$21, 3, FALSE), 0) -> 0 | Z92: 0 | AA92: 0 | AB92: 0 | AC92: 0 | AD92: 0 | AE92: 0 | AF92: 0 | AG92: 0 | AH92: 0 | AI92: 0
P93: =IF(Y66>0, P89+VLOOKUP(Y66, $D$3:$F$21, 2, FALSE), 0) -> 0 | Q93: 0 | R93: 0 | S93: 0 | T93: 0 | U93: 0 | V93: 0 | W93: 0 | X93: 0 | Y93: 0 | Z93: 0 | AA93: 0 | AB93: 0 | AC93: 0 | AD93: 0 | AE93: 0 | AF93: 0 | AG93: 0 | AH93: 0 | AI93: 0
P94: =IF(Y66>0, P89+VLOOKUP(Y66, $D$3:$F$21, 2, FALSE), 0) -> 0 | Q94: 0 | R94: 0 | S94: 0 | T94: 0 | U94: 0 | V94: 0 | W94: 0 | X94: 0 | Y94: 0 | Z94: =IFERROR(VLOOKUP(Z66, $D$3:$F$21, 3, FALSE), 0) -> 0 | AA94: 0 | AB94: 0 | AC94: 0 | AD94: 0 | AE94: 0 | AF94: 0 | AG94: 0 | AH94: 0 | AI94: 0
P95: =IF(Z66>0, P92+VLOOKUP(Z66, $D$3:$F$21, 2, FALSE), 0) -> 0 | Q95: 0 | R95: 0 | S95: 0 | T95: 0 | U95: 0 | V95: 0 | W95: 0 | X95: 0 | Y95: 0 | Z95: =IFERROR(VLOOKUP(Z66, $D$3:$F$21, 3, FALSE), 0) -> 0 | AA95: 0 | AB95: 0 | AC95: 0 | AD95: 0 | AE95: 0 | AF95: 0 | AG95: 0 | AH95: 0 | AI95: 0
P96: =IF(Z66>0, P92+VLOOKUP(Z66, $D$3:$F$21, 2, FALSE), 0) -> 0 | Q96: 0 | R96: 0 | S96: 0 | T96: 0 | U96: 0 | V96: 0 | W96: 0 | X96: 0 | Y96: 0 | Z96: 0 | AA96: 0 | AB96: 0 | AC96: 0 | AD96: 0 | AE96: 0 | AF96: 0 | AG96: 0 | AH96: 0 | AI96: 0
P97: =IF(Z66>0, P92+VLOOKUP(Z66, $D$3:$F$21, 2, FALSE), 0) -> 0 | Q97: 0 | R97: 0 | S97: 0 | T97: 0 | U97: 0 | V97: 0 | W97: 0 | X97: 0 | Y97: 0 | Z97: 0 | AA97: =IFERROR(VLOOKUP(AA66, $D$3:$F$21, 3, FALSE), 0) -> 0 | AB97: 0 | AC97: 0 | AD97: 0 | AE97: 0 | AF97: 0 | AG97: 0 | AH97: 0 | AI97: 0
P98: =IF(AA66>0, P95+VLOOKUP(AA66, $D$3:$F$21, 2, FALSE), 0) -> 0 | Q98: 0 | R98: 0 | S98: 0 | T98: 0 | U98: 0 | V98: 0 | W98: 0 | X98: 0 | Y98: 0 | Z98: 0 | AA98: =IFERROR(VLOOKUP(AA66, $D$3:$F$21, 3, FALSE), 0) -> 0 | AB98: 0 | AC98: 0 | AD98: 0 | AE98: 0 | AF98: 0 | AG98: 0 | AH98: 0 | AI98: 0
P99: =IF(AA66>0, P95+VLOOKUP(AA66, $D$3:$F$21, 2, FALSE), 0) -> 0 | Q99: 0 | R99: 0 | S99: 0 | T99: 0 | U99: 0 | V99: 0 | W99: 0 | X99: 0 | Y99: 0 | Z99: 0 | AA99: 0 | AB99: 0 | AC99: 0 | AD99: 0 | AE99: 0 | AF99: 0 | AG99: 0 | AH99: 0 | AI99: 0
P100: =IF(AA66>0, P95+VLOOKUP(AA66, $D$3:$F$21, 2, FALSE), 0) -> 0 | Q100: 0 | R100: 0 | S100: 0 | T100: 0 | U100: 0 | V100: 0 | W100: 0 | X100: 0 | Y100: 0 | Z100: 0 | AA100: 0 | AB100: =IFERROR(VLOOKUP(AB66, $D$3:$F$21, 3, FALSE), 0) -> 0 | AC100: 0 | AD100: 0 | AE100: 0 | AF100: 0 | AG100: 0 | AH100: 0 | AI100: 0
P101: =IF(AB66>0, P98+VLOOKUP(AB66, $D$3:$F$21, 2, FALSE), 0) -> 0 | Q101: 0 | R101: 0 | S101: 0 | T101: 0 | U101: 0 | V101: 0 | W101: 0 | X101: 0 | Y101: 0 | Z101: 0 | AA101: 0 | AB101: =IFERROR(VLOOKUP(AB66, $D$3:$F$21, 3, FALSE), 0) -> 0 | AC101: 0 | AD101: 0 | AE101: 0 | AF101: 0 | AG101: 0 | AH101: 0 | AI101: 0
P102: =IF(AB66>0, P98+VLOOKUP(AB66, $D$3:$F$21, 2, FALSE), 0) -> 0 | Q102: 0 | R102: 0 | S102: 0 | T102: 0 | U102: 0 | V102: 0 | W102: 0 | X102: 0 | Y102: 0 | Z102: 0 | AA102: 0 | AB102: 0 | AC102: 0 | AD102: 0 | AE102: 0 | AF102: 0 | AG102: 0 | AH102: 0 | AI102: 0
P103: =IF(AB66>0, P98+VLOOKUP(AB66, $D$3:$F$21, 2, FALSE), 0) -> 0 | Q103: 0 | R103: 0 | S103: 0 | T103: 0 | U103: 0 | V103: 0 | W103: 0 | X103: 0 | Y103: 0 | Z103: 0 | AA103: 0 | AB103: 0 | AC103: =IFERROR(VLOOKUP(AC66, $D$3:$F$21, 3, FALSE), 0) -> 0 | AD103: 0 | AE103: 0 | AF103: 0 | AG103: 0 | AH103: 0 | AI103: 0
P104: =IF(AC66>0, P101+VLOOKUP(AC66, $D$3:$F$21, 2, FALSE), 0) -> 0 | Q104: 0 | R104: 0 | S104: 0 | T104: 0 | U104: 0 | V104: 0 | W104: 0 | X104: 0 | Y104: 0 | Z104: 0 | AA104: 0 | AB104: 0 | AC104: =IFERROR(VLOOKUP(AC66, $D$3:$F$21, 3, FALSE), 0) -> 0 | AD104: 0 | AE104: 0 | AF104: 0 | AG104: 0 | AH104: 0 | AI104: 0
